Workbook

Sheet Cover
J4: Surfaces (source Orange) | L4: January 2025
J5: Surfaces (source Orange)
J6: Surfaces (source Orange)
J7: Surfaces (source Orange)
L25: Strictly confidential
L60: <

Sheet Disclaimer
L4: January 2025
L25: Strictly Confidential
L60: <

Sheet Navigation
C1: Project Nexus
E2: ⚠ Please enable iterative calculation in Options > Formulas
C7: Contents
C9: Sheets | E9: Description
C11: Pricer | D11: >>> | E11: Total vendor net cash-in depending on structuring assumptions to be provided with indicative offer
C12: KPIs | D12: >>> | E12: Key performance indicators (outputs) of the model
C13: Summary BP | D13: >>> | E13: Consolidation of detailed BP showing main inputs and outputs as well as associated performance indicators
C14: Engine | D14: >>> | E14: Detailed business plan showing all the various inputs and outputs for each asset of the portfolio
C15: Vacancy & sale module | D15: >>> | E15: Dedicated module to calculate number of units taking into account initial, churn rate, sale of vacant units
C16: Assumptions_Overall | D16: >>> | E16: All temporal, operational and financial assumptions and working hypotheses of each of the 3 illustrative BP scenarios
C17: Assumptions_Asset level | D17: >>> | E17: Data tape of all assets of the portfolio shared by the vendor
C21: Key
C23: Colour | E23: Key
C25: XX | D25: >>> | E25: Data provided by the Seller, not to be modified
C26: XX | D26: >>> | E26: Inputs on the active sheet that can be changed
C27: XX | D27: >>> | E27: Inputs linked to another sheet of the workbook
C28: XX | D28: >>> | E28: Calculations
C29: XX | D29: >>> | E29: Calculation with a different formula from the rest of the line
C30: XX | D30: >>> | E30: Only in 'Engine' tab, used to identify column numbers on the 'Assumptions_Asset level' sheet
D31: >>> | E31: Cell with no formula applicable (outside the scope of calculations)
C32: XX | D32: >>> | E32: Scenarios available
C33: XX | D33: >>> | E33: Scenario chosen
C37: Workings
C40: Model flow
C42: The model is driven by the data and assumptions / inputs compiled in only the following two tabs: 'Assumptions_Overall' and 'Assumptions_Asset level'.
C43: They then drive the calculations in the 'Engine' tab and the 'Vacancy & sales module' tab
C44: The direct output from those calculations is the 'Summary BP' tab that consolidates and sums all the asset-level calculations that take place in the 'Engine' tab and the 'Vacancy & sales module' tab
C45: The 'KPIs' tab then groups all the relevant indicators resulting from the calculations for easy and accessible review
C47: Assumptions and scenarios
C49: The model is driven by the inputs identified in cells with blue font and light blue background.
C50: All the input cells are grouped in both Assumptions tabs.
C51: The 'Assumptions_Overall' tab presents all the assumptions that drive the overall mechanics of the model, including the various acquisition and sale scenarios, including pricing scenarios (more on this topic below).
C52: The 'Assumptions_Asset level' tab presents all the assumptions that can be customised on an asset by asset level in the cells with blue font and light blue background, as well as other asset data (asset ID, location, delivery date, housing type, area, vacancy,etc) in the cells with blue font and white background.
C53: There are three (3) separate illustrative scenarios. They can be selected in the 'Assumptions_Overall' tab:
D54: -Three (3) acquisition scenarios to be chosen in cell D101. They impact the acquisition price in the following ways:
E55: -> Scenario 1 (Acquisition price V1): The indexed September 2024 valuation of the portfolio is either discounted or augmented by a % to be inputted by the prospective. In the model, this premium/discount is set at 0% in cell J48 of the 'Assumptions_Overall' tab
E56: -> Scenario 2 (Acquisition price V2): The portfolio acquisition price is equivalent to the September 2024 block occupied valuations that is then discounted to arrive at the inputted desired entry yield. In the model, this yield is set at 4,5% in cell K48 of the 'Assumptions_Overall' tab
E57: -> Scenario 3 (Acquisition price V3): The portfolio acquisition price is set at the asset by asset level by the prospective investor. In the model, the current price per asset inputted can be modified in column AO of the 'Assumptions_Asset level' tab
D58: -Three (3) sale scenarios, corresponding to the different BP strategies explained in page 38 of the IM, are provided for the prospective acquirer to choose between in cell D131. They impact the sale parameters in the following ways:
E59: -> Scenario 1: BP duration = 5 years, % of BOP units sold = 100%, % of vacant units as a result of churn sold = 100%, % of initial vacant units sold in year 1 of the BP = 50%
E60: -> Scenario 2: BP duration = 7 years, % of BOP units sold = 80%, % of vacant units as a result of churn sold = 80%, % of initial vacant units sold in year 1 of the BP = 50%
E61: -> Scenario 3: BP duration = 10 years, % of BOP units sold = 30%, % of vacant units as a result of churn sold = 40%, % of initial vacant units sold in year 1 of the BP = 50%
D62: -Two (2) unit sale price scenarios for the prospective acquirer to choose between in cell D150. They impact the unit sale price in the following ways:
E63: -> Scenario 1: The indexed September 2024 vacant valuation at the unit level is either discounted or augmented by a % to be inputted by the prospective. In the model, this premium/discount is set at 0% in cell J147 of the 'Assumptions_Overall' tab
E64: -> Scenario 2: The sale price is set at the asset by asset level by the prospective investor. In the model, the current price per asset inputted can be modified in column AR of the 'Assumptions_Asset level' tab

Sheet Outputs >

Sheet Pricer
B2: Pricer (in €'k)
C4: NET SHARE PRICE FORMULA
C5: P = (V - D + C + W + T) / (1 + Min(DI ; 5%))
C7: V = Gross asset value incl TT & VAT | D7: =Assumptions_Overall!G52*1000 -> 372679.1726
C8: D = Vendor debt | D8: =SUM(D36,D37,D43,D47) -> 152785.7511
C9: C = Costs refunded to vendor (1)+ (2) + (3) | D9: =D47+D45+D40 -> 2459.978781 | F9: (1) + (2) + (3)
C10: W = Working capital | D10: 0 | F10: To be determined at closing date
C11: T = Cash at closing date | D11: 0 | F11: To be determined at closing date
C12: DI | D12: 0.05 | F12: Transfer tax rate on propcos applicable at closing
C14: P = Net share price | D14: =(D7-D8+D9+D10+D11)/(1+MIN(5%,D12)) -> 211765.1431
C15: D = Vendor debt | D15: =D8 -> 152785.7511
C16: Paid to the vendor at closing date | D16: =D15+D14 -> 364550.8942
C17: Transfer tax | D17: =D14*MIN(5%,D12) -> 10588.25715
C18: Total acquirer cash-out | D18: =D17+D16 -> 375139.1514
C21: Transfer tax on cash contributions ("apports à titre onéreux") | D21: =0.71498% -> 0.0071498
C22: CSI tax on cash contributions ("apports à titre onéreux") | D22: =0.1% -> 0.001
C23: Notary fees on cash contributions ("apports à titre onéreux") | D23: =0.399%*1.2 -> 0.004788
C24: Transfer tax, CSI and notary fees on cash contributions ("apports à titre onéreux") | D24: =SUM(D21:D23) -> 0.0129378
C26: CSI tax on contributions in kind ("apports à titre pur et simple") | D26: =0.1% -> 0.001
C27: Notary fees on contributions in kind ("apports à titre pur et simple") | D27: =0.399%*1.2 -> 0.004788
C28: CSI and notary fees on contributions in kind ("apports à titre pur et simple") | D28: =D26+D27 -> 0.005788
C30: Target leverage | D30: =Assumptions_Overall!$G$167 -> 0.4
C32: Transfer tax | D32: ='Summary BP'!G105 -> 0.01850103419
C34: Contribution value of portfolio - Gross asset value excl. TT & including VAT (€'k) | D34: =D7/(1+D32) -> 365909.469
C36: Cash portion of asset contribution ("apport à titre onéreux") | D36: =D7*D30 -> 149071.669 | G36: Dependent on target leverage
C37: Transfer tax, CSI, notary fees on cash portion of contributions ("apport à titre onéreux") | D37: =D38+D39+D40 -> 1632.061478 | G37: Paid by Newco receiving contribution in cash, financed by new debt
C38: - of which transfer tax on cash portion of contributions ("apport à titre onéreux") | D38: =($D$36/1.2)*$D$21 -> 888.1938494
C39: - of which CSI tax on cash portion of contributions ("apport à titre onéreux") | D39: =$D$36*$D$22 -> 149.071669
C40: - of which notary fees on cash portion of contributions ("apport à titre onéreux") | D40: =($D$36/1.2)*D23 -> 594.7959595 | F40: (1) | G40: Refunded to vendor
C42: Contribution in kind ("apport à titre pur et simple") (€'k) | D42: =D34-D36 -> 216837.8 | G42: Dependent on target leverage
C43: - CSI, emoluments on contribution in kind portion ("apport à titre pur et simple") | D43: =D44+D45 -> 1082.020622 | G43: Paid by Newco receiving contribution in kind, financed by new debt
C44: - of which CSI tax on contribution in kind portion ("apport à titre pur et simple") | D44: =(D42)*D26 -> 216.8378
C45: - of which notary fees on contribution in kind portion ("apport à titre pur et simple") | D45: =(D42/1.2)*D27 -> 865.1828218 | F45: (2) | G45: Refunded to vendor
C47: Other costs | D47: 1000 | F47: (3) | G47: Paid by Newco, refunded to vendor, not to be modified

Sheet KPIs
B3: Acquisition metrics
B5: Acquisition price EoP 2025 incl TT | C5: €'m | D5: =Assumptions_Overall!G52 -> 372.6791726
B6: Gross acquisition yield | D6: =Assumptions_Overall!G56 -> 0.045
B7: Unit by unit vacant value EoP 2025 | C7: €'m | D7: =Assumptions_Overall!G59 -> 455.7226493
B8: Block discount | D8: =Assumptions_Overall!G60 -> 0.1970785968
B9: Acquisition price per sqm | C9: €/m² incl TT | D9: =Assumptions_Overall!G53 -> 4799.297445
B10: GPR | C10: €/m² incl TT | D10: =Assumptions_Overall!G54 -> 5010.593664
B11: Region | C11: €/m² incl TT | D11: =Assumptions_Overall!G55 -> 4478.092164
B15: Performance and other KPIs | F15: Scenarios | G15: 1 | H15: 2 | I15: 3
B17: Duration of the BP | D17: =Assumptions_Overall!G72 -> 10 | F17: BP Duration | G17: =Assumptions_Overall!J72 -> 5 | H17: =Assumptions_Overall!K72 -> 7 | I17: =Assumptions_Overall!L72 -> 10
B19: Indexation over BP (CAGR) | D19: =CHOOSE($D$17,Engine!J15,Engine!K15,Engine!L15,Engine!M15,Engine!N15,Engine!O15,Engine!P15,Engine!Q15,Engine!R15,Engine!S15,Engine!T15,Engine!U15,Engine!V15,Engine!W15) -> 0.02029979924
B20: Reversion over BP (CAGR) | D20: =CHOOSE($D$17,Engine!J16,Engine!K16,Engine!L16,Engine!M16,Engine!N16,Engine!O16,Engine!P16,Engine!Q16,Engine!R16,Engine!S16,Engine!T16,Engine!U16,Engine!V16,Engine!W16) -> 0.005
B21: Rental growth over BP (CAGR) | D21: =CHOOSE($D$17,Engine!J17,Engine!K17,Engine!L17,Engine!M17,Engine!N17,Engine!O17,Engine!P17,Engine!Q17,Engine!R17,Engine!S17,Engine!T17,Engine!U17,Engine!V17,Engine!W17) -> 0.02529980022
B23: % of initial vacancy sold by unit | D23: =Assumptions_Overall!G73 -> 0.3 | F23: % of initial vacancy sold by unit | G23: =Assumptions_Overall!J73 -> 1 | H23: =Assumptions_Overall!K73 -> 0.8 | I23: =Assumptions_Overall!L73 -> 0.3
B24: % churn sold by unit | D24: =Assumptions_Overall!G74 -> 0.4 | F24: % churn sold by unit | G24: =Assumptions_Overall!J74 -> 1 | H24: =Assumptions_Overall!K74 -> 0.8 | I24: =Assumptions_Overall!L74 -> 0.4
B26: % average vacant unit sales / year | D26: =CHOOSE(Assumptions_Overall!D69,Assumptions_Overall!J76,Assumptions_Overall!K76,Assumptions_Overall!L76) -> 0.05421410471 | F26: % average vacant unit sales / year | G26: =Assumptions_Overall!J76 -> 0.1422542166 | H26: =Assumptions_Overall!K76 -> 0.1022249584 | I26: =Assumptions_Overall!L76 -> 0.05421410471
B27: Growth in unit values over BP | D27: =CHOOSE($D$17,Engine!AH1032,Engine!AI1032,Engine!AJ1032,Engine!AK1032,Engine!AL1032,Engine!AM1032,Engine!AN1032,Engine!AO1032,Engine!AP1032,Engine!AQ1032,Engine!AR1032,Engine!AS1032,Engine!AT1032,Engine!AU1032) -> 0.02443950367
B28: Residual block sale in fine | D28: =CHOOSE(Assumptions_Overall!D69,Assumptions_Overall!J77,Assumptions_Overall!K77,Assumptions_Overall!L77) -> 0.4578589529 | F28: Residual block/SPV sale in fine | G28: =Assumptions_Overall!J77 -> 0.2887289172 | H28: =Assumptions_Overall!K77 -> 0.2844252912 | I28: =Assumptions_Overall!L77 -> 0.4578589529
B29: Gross exit yield (block sale) | D29: =Assumptions_Overall!G81 -> 0.04
B30: Growth in block values over BP | D30: =Engine!AD895 -> 0.03471390248
B31: Block discount at end of BP | D31: =CHOOSE(D17,-'Summary BP'!H110,-'Summary BP'!I110,-'Summary BP'!J110,-'Summary BP'!K110,-'Summary BP'!L110,-'Summary BP'!M110,-'Summary BP'!N110,-'Summary BP'!O110,-'Summary BP'!P110,-'Summary BP'!Q110) -> 0.07526382147
B33: LTV | D33: =Assumptions_Overall!G167 -> 0.4 | F33: LTV | G33: =Assumptions_Overall!J167 -> 0.6 | H33: =Assumptions_Overall!K167 -> 0.5 | I33: =Assumptions_Overall!L167 -> 0.4
B34: Annual repayment | D34: =Assumptions_Overall!G171 -> 0 | F34: Annual repayment | G34: =Assumptions_Overall!J171 -> 0 | H34: =Assumptions_Overall!K171 -> 0 | I34: =Assumptions_Overall!L171 -> 0
B35: Interest rate | D35: =Assumptions_Overall!G170 -> 0.036 | F35: Interest rate | G35: =Assumptions_Overall!J170 -> 0.041 | H35: =Assumptions_Overall!K170 -> 0.0395 | I35: =Assumptions_Overall!L170 -> 0.036
B36: All-in cost of debt | D36: =Assumptions_Overall!G175 -> 0.03769526671 | F36: All-in cost of debt | G36: =Assumptions_Overall!J194 -> 0.04469020412 | H36: =Assumptions_Overall!K194 -> 0.04231740027 | I36: =Assumptions_Overall!L194 -> 0.03769526671
B38: Unlevered pre-tax IRR | D38: ='Summary BP'!F82 -> 0.07140382743 | F38: Unlevered pre-tax IRR | G38: =Assumptions_Overall!J182 -> 0.0969426959 | H38: =Assumptions_Overall!K182 -> 0.08635867955 | I38: =Assumptions_Overall!L182 -> 0.07140382743
B39: Levered pre-tax IRR | D39: ='Summary BP'!F93 -> 0.09213513882 | F39: Levered pre-tax IRR | G39: =Assumptions_Overall!J184 -> 0.1769292963 | H39: =Assumptions_Overall!K184 -> 0.1298565954 | I39: =Assumptions_Overall!L184 -> 0.09213513882
B41: Unlevered pre-tax equity multiple | D41: ='Summary BP'!F83 -> 1.562707389 | F41: Unlevered pre-tax equity multiple | G41: =Assumptions_Overall!J186 -> 1.298746101 | H41: =Assumptions_Overall!K186 -> 1.366355425 | I41: =Assumptions_Overall!L186 -> 1.562707389
B42: Levered pre-tax equity multiple | D42: ='Summary BP'!F94 -> 1.778316513 | F42: Levered pre-tax equity multiple | G42: =Assumptions_Overall!J188 -> 1.566509006 | H42: =Assumptions_Overall!K188 -> 1.576408032 | I42: =Assumptions_Overall!L188 -> 1.778316513
B44: Net equity yield including realised gain | D44: ='Summary BP'!C96 -> 0.09672691188 | F44: Net equity yield including realised gain | G44: =Assumptions_Overall!J192 -> 0.2019711867 | H44: =Assumptions_Overall!K192 -> 0.1478115348 | I44: =Assumptions_Overall!L192 -> 0.09672691188

Sheet Summary BP
F1: % portfolio sold | H1: =H4/$F$3 -> -0.0915338212 | I1: -0.0988497393 | J1: -0.05564756286 | K1: -0.05188965174 | L1: -0.0483076301 | M1: -0.04497381512 | N1: -0.04187077244 | O1: -0.03898247903 | P1: -0.03629402737 | Q1: -0.03379154797
F2: 2024 | G2: =F2+1 -> 2025 | H2: =G2+1 -> 2026 | I2: 2027 | J2: 2028 | K2: 2029 | L2: 2030 | M2: 2031 | N2: 2032 | O2: 2033 | P2: 2034 | Q2: 2035 | R2: 2036
E3: Number residential units BoP | F3: =F5 -> 1264 | G3: =F5 -> 1264 | H3: =G5*H13 -> 1264 | I3: 1148.30125 | J3: 1023.35518 | K3: 953.0166601 | L3: 887.4281403 | M3: 826.3672958 | N3: 769.5203935 | O3: 716.5957371 | P3: 667.3218836 | Q3: 621.4462331 | R3: 0 | T3: =(INDEX(H3:R3,0,Assumptions_Overall!$G$72)/G3)^(1/Assumptions_Overall!$G$72)-1 -> -0.06853691365
E4: Sale | F4: 0 | G4: =G5-G3 -> 0 | H4: -115.69875 | I4: -124.9460705 | J4: -70.33851946 | K4: -65.5885198 | L4: -61.06084445 | M4: -56.84690231 | N4: -52.92465636 | O4: -49.27385349 | P4: -45.87565059 | Q4: -42.71251663 | R4: =R5-R3-#REF! -> 
E5: Number residential units EoP | F5: =G5 -> 1264 | G5: =Engine!BD33 -> 1264 | H5: =Engine!BE33*H13 -> 1148.30125 | I5: =Engine!BF33*I13 -> 1023.35518 | J5: =Engine!BG33*J13 -> 953.0166601 | K5: =Engine!BH33*K13 -> 887.4281403 | L5: =Engine!BI33*L13 -> 826.3672958 | M5: =Engine!BJ33*M13 -> 769.5203935 | N5: =Engine!BK33*N13 -> 716.5957371 | O5: =Engine!BL33*O13 -> 667.3218836 | P5: =Engine!BM33*P13 -> 621.4462331 | Q5: =Engine!BN33*Q13 -> 578.7337164 | R5: =Engine!BO33*R13 -> 0 | T5: =(INDEX(H5:R5,0,Assumptions_Overall!$G$72)/G5)^(1/Assumptions_Overall!$G$72)-1 -> -0.07514601737
E8: Residential area m² EoP | F8: =Engine!CA33 -> 77652.86 | G8: =Engine!CB33 -> 77652.86 | H8: =Engine!CC33*H13 -> 70513.49372 | I8: =Engine!CD33*I13 -> 62779.21605 | J8: =Engine!CE33*J13 -> 58466.07797 | K8: =Engine!CF33*K13 -> 54443.92445 | L8: =Engine!CG33*L13 -> 50699.3142 | M8: =Engine!CH33*M13 -> 47213.02308 | N8: =Engine!CI33*N13 -> 43967.17715 | O8: =Engine!CJ33*O13 -> 40945.14296 | P8: =Engine!CK33*P13 -> 38131.44127 | Q8: =Engine!CL33*Q13 -> 35511.66668 | R8: =Engine!CM33 -> 33072.41293 | T8: =(INDEX(H8:R8,0,Assumptions_Overall!$G$72)/G8)^(1/Assumptions_Overall!$G$72)-1 -> -0.07525634531
C10: =SUM(H10:Q10) -> 0.5421410471 | E10: % of units sold (on initial portfolio) | H10: =-H4/$F$3 -> 0.0915338212 | I10: 0.0988497393 | J10: 0.05564756286 | K10: 0.05188965174 | L10: 0.0483076301 | M10: 0.04497381512 | N10: 0.04187077244 | O10: 0.03898247903 | P10: 0.03629402737 | Q10: 0.03379154797
E11: % of units sold (on residual portfolio) | H11: =IFERROR(-H4/H3,"") -> 0.0915338212 | I11: 0.1088094875 | J11: 0.06873324225 | K11: 0.06882200757 | L11: 0.06880652267 | M11: 0.06879132632 | N11: 0.06877615825 | O11: 0.06876101955 | P11: 0.06874591065 | Q11: 0.06873083199
H13: =IF(H14>Assumptions_Overall!$G$72,0,1) -> 1 | I13: =IF(I14>Assumptions_Overall!$G$72,0,1) -> 1 | J13: =IF(J14>Assumptions_Overall!$G$72,0,1) -> 1 | K13: =IF(K14>Assumptions_Overall!$G$72,0,1) -> 1 | L13: =IF(L14>Assumptions_Overall!$G$72,0,1) -> 1 | M13: =IF(M14>Assumptions_Overall!$G$72,0,1) -> 1 | N13: =IF(N14>Assumptions_Overall!$G$72,0,1) -> 1 | O13: =IF(O14>Assumptions_Overall!$G$72,0,1) -> 1 | P13: =IF(P14>Assumptions_Overall!$G$72,0,1) -> 1 | Q13: =IF(Q14>Assumptions_Overall!$G$72,0,1) -> 1 | R13: =IF(R14>Assumptions_Overall!$G$72,0,1) -> 0
H14: 1 | I14: =H14+1 -> 2 | J14: =I14+1 -> 3 | K14: 4 | L14: 5 | M14: 6 | N14: 7 | O14: 8 | P14: 9 | Q14: 10 | R14: 11
C16: Avg | E16: €'k | F16: 2024 (budget) | G16: 2025 | H16: =G16+1 -> 2026 | I16: 2027 | J16: 2028 | K16: 2029 | L16: 2030 | M16: 2031 | N16: 2032 | O16: 2033 | P16: 2034 | Q16: 2035 | R16: 2036
E17: Gross potential rental income | F17: =Engine!H104 -> 16393.51199 | G17: =Engine!I104 -> 16770.56277 | H17: =Engine!J104 -> 17200.29286 | I17: =Engine!K104 -> 15973.1513 | J17: =Engine!L104 -> 14483.30928 | K17: =Engine!M104 -> 13828.13495 | L17: =Engine!N104 -> 13201.06404 | M17: =Engine!O104*M13 -> 12602.6341 | N17: =Engine!P104*N13 -> 12031.52333 | O17: =Engine!Q104*O13 -> 11486.47554 | P17: =Engine!R104*P13 -> 10966.29276 | Q17: =Engine!S104*Q13 -> 10469.83244 | R17: =Engine!T104*R13 -> 0 | T17: =(INDEX(H17:R17,0,Assumptions_Overall!$G$72)/G17)^(1/Assumptions_Overall!$G$72)-1 -> -0.04602013268
C18: =AVERAGE(H18:Q18) -> 0.05096313698 | E18: Gross potential yield | G18: =-G17/(SUM(F$51:$G$51)*(1+SUM(F$1:$G1))) -> 0.04470491204 | H18: =-H17/(SUM($G$51:G$51)*(1+SUM($G$1:G1))) -> 0.04585043388 | I18: =IF(I13=0,"",-I17/(SUM($G$51:H$51)*(1+SUM($G$1:H1)))) -> 0.04686940607 | J18: =IF(J13=0,"",-J17/(SUM($G$51:I$51)*(1+SUM($G$1:I1)))) -> 0.04768657105 | K18: =IF(K13=0,"",-K17/(SUM($G$51:J$51)*(1+SUM($G$1:J1)))) -> 0.04888974801 | L18: =IF(L13=0,"",-L17/(SUM($G$51:K$51)*(1+SUM($G$1:K1)))) -> 0.05012223453 | M18: =IF(M13=0,"",-M17/(SUM($G$51:L$51)*(1+SUM($G$1:L1)))) -> 0.05138577234 | N18: =IF(N13=0,"",-N17/(SUM($G$51:M$51)*(1+SUM($G$1:M1)))) -> 0.05268114019 | O18: =IF(O13=0,"",-O17/(SUM($G$51:N$51)*(1+SUM($G$1:N1)))) -> 0.05400913904 | P18: =IF(P13=0,"",-P17/(SUM($G$51:O$51)*(1+SUM($G$1:O1)))) -> 0.05537058998 | Q18: =IF(Q13=0,"",-Q17/(SUM($G$51:P$51)*(1+SUM($G$1:P1)))) -> 0.05676633474 | R18: =IF(R13=0,"",-R17/(SUM($G$51:Q$51)*(1+SUM($G$1:Q1)))) -> 
E19: Financial occupancy (%) | F19: =F22/F17 -> 0.8063141921 | G19: =IFERROR(G22/G17,0) -> 0.8063141921 | H19: 0.6708246586 | I19: 0.9199140901 | J19: 0.97 | K19: 0.97 | L19: 0.97 | M19: 0.97 | N19: 0.97 | O19: 0.97 | P19: 0.97 | Q19: 0.97 | R19: 0 | S19: =IFERROR(S22/S17,"") -> 
E20: Vacant units (physical vacancy) EoP | F20: ='Vacancy & sales module'!L661 -> 184 | G20: ='Vacancy & sales module'!M661 -> 328.515 | H20: ='Vacancy & sales module'!N661*H13 -> 84.85725 | I20: ='Vacancy & sales module'!O661*I13 -> 34.4490375 | J20: ='Vacancy & sales module'!P661*J13 -> 30.70065539 | K20: ='Vacancy & sales module'!Q661*K13 -> 28.5904998 | L20: ='Vacancy & sales module'!R661*L13 -> 26.62284421 | M20: ='Vacancy & sales module'!S661*M13 -> 24.79101887 | N20: ='Vacancy & sales module'!T661*N13 -> 23.08561181 | O20: ='Vacancy & sales module'!U661*O13 -> 21.49787211 | P20: ='Vacancy & sales module'!V661*P13 -> 20.01965651 | Q20: ='Vacancy & sales module'!W661*Q13 -> 18.64338699
E22: Passing rent | F22: =Engine!BC104 -> 13218.32138 | G22: =Engine!BD104 -> 13522.34277 | H22: =Engine!BE104*H13 -> 11538.38058 | I22: =Engine!BF104*I13 -> 14693.92695 | J22: =Engine!BG104*J13 -> 14048.81 | K22: =Engine!BH104*K13 -> 13413.2909 | L22: =Engine!BI104*L13 -> 12805.03212 | M22: =Engine!BJ104*M13 -> 12224.55508 | N22: =Engine!BK104*N13 -> 11670.57763 | O22: =Engine!BL104*O13 -> 11141.88128 | P22: =Engine!BM104*P13 -> 10637.30398 | Q22: =Engine!BN104*Q13 -> 10155.73747 | R22: =Engine!BO104*R13 -> 0 | T22: =(INDEX(H22:R22,0,Assumptions_Overall!$G$72)/G22)^(1/Assumptions_Overall!$G$72)-1 -> -0.02822448452
E23: % Potential income | F23: =F22/F$17 -> 0.8063141921 | G23: =G22/G$17 -> 0.8063141921 | H23: =H22/H$17 -> 0.6708246586 | I23: =IFERROR(I22/I$17,"") -> 0.9199140901 | J23: 0.97 | K23: 0.97 | L23: 0.97 | M23: 0.97 | N23: 0.97 | O23: 0.97 | P23: 0.97 | Q23: 0.97 | R23: =IFERROR(R22/R$17,"") -> 
E25: Loss of rent (unpaids) | F25: =-Engine!H177 -> -264.3664275 | G25: =-Engine!I177 -> -270.4468554 | H25: =-Engine!J177*H13 -> -230.7676117 | I25: =-Engine!K177*I13 -> -293.8785389 | J25: =-Engine!L177*J13 -> -280.9762001 | K25: =-Engine!M177*K13 -> -268.265818 | L25: =-Engine!N177*L13 -> -256.1006425 | M25: =-Engine!O177*M13 -> -244.4911016 | N25: =-Engine!P177*N13 -> -233.4115525 | O25: =-Engine!Q177*O13 -> -222.8376256 | P25: =-Engine!R177*P13 -> -212.7460795 | Q25: =-Engine!S177*Q13 -> -203.1147494 | R25: =-Engine!T177*R13 -> 0
E26: Vacancy cost | F26: =-Engine!H606 -> -210.622787 | G26: =-Engine!I606 -> -215.2564883 | H26: =-Engine!J606*H13 -> -396.2709682 | I26: =-Engine!K606*I13 -> -90.3400945 | J26: =-Engine!L606*J13 -> -35.91739165 | K26: =-Engine!M606*K13 -> -34.13008174 | L26: =-Engine!N606*L13 -> -32.43221598 | M26: =-Engine!O606*M13 -> -30.81928334 | N26: =-Engine!P606*N13 -> -29.28701072 | O26: =-Engine!Q606*O13 -> -27.83134126 | P26: =-Engine!R606*P13 -> -26.44842333 | Q26: =-Engine!S606*Q13 -> -25.13460011 | R26: =-Engine!T606*R13 -> 0
E27: Property tax | F27: =-Engine!H535 -> -429.749758 | G27: =-Engine!I535 -> -623.3722341 | H27: =-Engine!J535*H13 -> -1444.753404 | I27: =-Engine!K535*I13 -> -1341.817112 | J27: =-Engine!L535*J13 -> -1216.965988 | K27: =-Engine!M535*K13 -> -1161.863563 | L27: =-Engine!N535*L13 -> -1109.128111 | M27: =-Engine!O535*M13 -> -1058.803565 | N27: =-Engine!P535*N13 -> -1010.778557 | O27: =-Engine!Q535*O13 -> -964.9472501 | P27: =-Engine!R535*P13 -> -921.2087147 | Q27: =-Engine!S535*Q13 -> -879.4666975 | R27: =-Engine!T535*R13 -> 0
B28: =Engine!AF461 -> 250 | E28: Co-ownership charges and fees, technical fees, other maintenance fees (for common areas) and litigation fees | F28: =-Engine!H464 -> -297.1229454 | G28: =-Engine!I464 -> -323.0381683 | H28: =-Engine!J464*H13 -> -348.762321 | I28: =-Engine!K464*I13 -> -323.2738001 | J28: =-Engine!L464*J13 -> -294.0465678 | K28: =-Engine!M464*K13 -> -279.3136989 | L28: =-Engine!N464*L13 -> -265.2941556 | M28: =-Engine!O464*M13 -> -251.982479 | N28: =-Engine!P464*N13 -> -239.3426462 | O28: =-Engine!Q464*O13 -> -227.3405474 | P28: =-Engine!R464*P13 -> -215.943815 | Q28: =-Engine!S464*Q13 -> -205.1217339 | R28: =-Engine!T464*R13 -> 0
E30: Net rental income | F30: =SUM(F25:F28,F22) -> 12016.45946 | G30: =SUM(G25:G28,G22) -> 12090.22902 | H30: 9117.82628 | I30: 12644.6174 | J30: 12220.90386 | K30: 11669.71774 | L30: 11142.077 | M30: 10638.45865 | N30: 10157.75786 | O30: 9698.924513 | P30: 9260.956943 | Q30: 8842.899689 | R30: =SUM(R25:R28,R22) -> 0 | T30: =(INDEX(H30:R30,0,Assumptions_Overall!$G$72)/G30)^(1/Assumptions_Overall!$G$72)-1 -> -0.03079417171
E31: % Passing rent | F31: =IFERROR(F30/F$22,"") -> 0.9090760556 | G31: =IFERROR(G30/G$22,"") -> 0.8940927788 | H31: =IFERROR(H30/H$22,"") -> 0.7902171551 | I31: 0.8605335692 | J31: 0.8698888983 | K31: 0.87001153 | L31: 0.8701326862 | M31: 0.8702532388 | N31: 0.8703731885 | O31: 0.8704925382 | P31: 0.8706112906 | Q31: 0.8707294488 | R31: =IFERROR(R30/R$22,"") -> 
B33: =Engine!AF247 -> 650 | E33: Maintenance | F33: =-Engine!H250 -> -204.5106653 | G33: =-Engine!I250 -> -261.6997287 | H33: =-Engine!J250*H13 -> -269.7414703 | I33: =-Engine!K250*I13 -> -278.6992355 | J33: =-Engine!L250*J13 -> -300.6224782 | K33: =-Engine!M250*K13 -> -369.2768549 | L33: =-Engine!N250*L13 -> -401.6871374 | M33: =-Engine!O250*M13 -> -469.9823824 | N33: =-Engine!P250*N13 -> -508.3412602 | O33: =-Engine!Q250*O13 -> -550.2440612 | P33: =-Engine!R250*P13 -> -530.3062378 | Q33: =-Engine!S250*Q13 -> -503.7268496 | R33: =-Engine!T250*R13 -> 0
E34: PM fees | F34: =-Engine!H321 -> -872.4092108 | G34: =-Engine!I321 -> -892.4746227 | H34: =-Engine!J321*H13 -> -761.5331186 | I34: =-Engine!K321*I13 -> -969.7991784 | J34: =-Engine!L321*J13 -> -927.2214602 | K34: =-Engine!M321*K13 -> -885.2771995 | L34: =-Engine!N321*L13 -> -845.1321202 | M34: =-Engine!O321*M13 -> -806.8206354 | N34: =-Engine!P321*N13 -> -770.2581234 | O34: =-Engine!Q321*O13 -> -735.3641643 | P34: =-Engine!R321*P13 -> -702.0620624 | Q34: =-Engine!S321*Q13 -> -670.278673 | R34: =-Engine!T321*R13 -> 0
E35: Letting fees | F35: =-IF(Assumptions_Overall!$D$69=3,Engine!H391,Engine!AF391*F22) -> -224.2082177 | G35: =-Engine!I391 -> 0 | H35: =-Engine!J391*H13 -> -466.7031036 | I35: =-Engine!K391*I13 -> -150.1169398 | J35: =-Engine!L391*J13 -> -143.4962048 | K35: =-Engine!M391*K13 -> -136.9755438 | L35: =-Engine!N391*L13 -> -130.7357148 | M35: =-Engine!O391*M13 -> -124.7822224 | N35: =-Engine!P391*N13 -> -119.1017888 | O35: =-Engine!Q391*O13 -> -113.6817986 | P35: =-Engine!R391*P13 -> -108.5102237 | Q35: =-Engine!S391*Q13 -> -103.5755953 | R35: =-Engine!T391*R13 -> 0
E36: Property management fees | F36: =SUM(F34:F35) -> -1096.617429 | G36: =SUM(G34:G35) -> -892.4746227 | H36: =SUM(H34:H35) -> -1228.236222 | I36: =SUM(I34:I35)*I13 -> -1119.916118 | J36: -1070.717665 | K36: -1022.252743 | L36: -975.867835 | M36: -931.6028578 | N36: -889.3599122 | O36: -849.045963 | P36: -810.5722861 | Q36: -773.8542683 | R36: 0
E38: NOI | F38: =F36+F33+F30 -> 10715.33136 | G38: 10936.05467 | H38: 7619.848587 | I38: 11246.00205 | J38: 10849.56371 | K38: 10278.18814 | L38: 9764.522027 | M38: 9236.873413 | N38: 8760.056689 | O38: 8299.634489 | P38: 7920.078419 | Q38: 7565.318571 | R38: =+#REF!+#REF! ->  | T38: =(INDEX(H38:R38,0,Assumptions_Overall!$G$72)/G38)^(1/Assumptions_Overall!$G$72)-1 -> -0.03617840035
C39: =AVERAGE(H39:Q39) -> 0.7467442643 | E39: % Passing rent | F39: =IFERROR(F38/F$22,"") -> 0.8106423697 | G39: 0.8087396436 | H39: 0.6603915109 | I39: 0.7653503443 | J39: 0.7722763501 | K39: 0.7662689356 | L39: 0.7625534971 | M39: 0.7555999667 | N39: 0.7506103784 | O39: 0.7449042296 | P39: 0.7445569326 | Q39: 0.744930498
E41: NOI yield | G41: =-G38/$G$51 -> 0.02915199501 | H41: =-H38/$G$51 -> 0.02031205903 | I41: =IF(I13=0,"",-I38/(SUM($G$51:H$51)*(1+SUM($G$1:H1)))) -> 0.03299871306 | J41: =IF(J13=0,"",-J38/(SUM($G$51:I$51)*(1+SUM($G$1:I1)))) -> 0.03572239471 | K41: =IF(K13=0,"",-K38/(SUM($G$51:J$51)*(1+SUM($G$1:J1)))) -> 0.03633881431 | L41: =IF(L13=0,"",-L38/(SUM($G$51:K$51)*(1+SUM($G$1:K1)))) -> 0.03707425867 | M41: =IF(M13=0,"",-M38/(SUM($G$51:L$51)*(1+SUM($G$1:L1)))) -> 0.03766227524 | N41: =IF(N13=0,"",-N38/(SUM($G$51:M$51)*(1+SUM($G$1:M1)))) -> 0.03835672026 | O41: =IF(O13=0,"",-O38/(SUM($G$51:N$51)*(1+SUM($G$1:N1)))) -> 0.03902468702 | P41: =IF(P13=0,"",-P38/(SUM($G$51:O$51)*(1+SUM($G$1:O1)))) -> 0.03998975993 | Q41: =IF(Q13=0,"",-Q38/(SUM($G$51:P$51)*(1+SUM($G$1:P1)))) -> 0.04101836479 | R41: =IF(R13=0,"",-R38/(SUM($G$51:Q$51)*(1+SUM($G$1:Q1)))) -> 
E43: Capex | F43: =-Engine!H680 -> 0 | G43: =-Engine!I680 -> 0 | H43: =-Engine!J680 -> 0 | I43: =-Engine!K680*I13 -> 0 | J43: =-Engine!L680*J13 -> -28.37303317 | K43: =-Engine!M680*K13 -> 0 | L43: =-Engine!N680*L13 -> -63.3486582 | M43: =-Engine!O680*M13 -> -794.5643742 | N43: =-Engine!P680*N13 -> -1154.464667 | O43: =-Engine!Q680*O13 -> -1382.530036 | P43: =-Engine!R680*P13 -> -156.1045664 | Q43: =-Engine!S680*Q13 -> 0 | R43: =-Engine!T680*R13 -> 0
E45: CASHFLOWS AFTER CAPEX | F45: =SUM(F43:F43,F38) -> 10715.33136 | G45: 10936.05467 | H45: 7619.848587 | I45: 11246.00205 | J45: 10821.19068 | K45: 10278.18814 | L45: 9701.173368 | M45: 8442.309038 | N45: 7605.592022 | O45: 6917.104453 | P45: 7763.973853 | Q45: 7565.318571 | R45: =SUM(R43:R43,R38) ->  | T45: =(INDEX(H45:R45,0,Assumptions_Overall!$G$72)/G45)^(1/Assumptions_Overall!$G$72)-1 -> -0.03617840035
E46: % Passing rent | F46: =IFERROR(F45/F$22,"") -> 0.8106423697 | G46: 0.8087396436 | H46: 0.6603915109 | I46: 0.7653503443 | J46: 0.7702567461 | K46: 0.7662689356 | L46: 0.7576063281 | M46: 0.6906025604 | N46: 0.6516894249 | O46: 0.6208201542 | P46: 0.7298817323 | Q46: 0.744930498
E48: Acquisition price including transfer tax and VAT | G48: =-Assumptions_Overall!G52*1000 -> -372679.1726
E49: Contribution & transfer cost | G49: =-Pricer!D18-G48-G50 -> -2459.978781
E51: Investment | G51: =SUM(G48:G50) -> -375139.1514 | H51: 0 | I51: 0 | J51: 0 | K51: 0 | L51: 0 | M51: 0 | N51: 0 | O51: 0 | P51: 0 | Q51: 0 | R51: 0
E53: Block sales | H53: =Engine!I1464*H13 -> 0 | I53: =IFERROR(Engine!J1464*I13,0) -> 0 | J53: =IFERROR(Engine!K1464*J13,0) -> 0 | K53: =IFERROR(Engine!L1464*K13,0) -> 0 | L53: =IFERROR(Engine!M1464*L13,0) -> 0 | M53: =IFERROR(Engine!N1464*M13,0) -> 0 | N53: =IFERROR(Engine!O1464*N13,0) -> 0 | O53: =IFERROR(Engine!P1464*O13,0) -> 0 | P53: =IFERROR(Engine!Q1464*P13,0) -> 0 | Q53: =IFERROR(Engine!R1464*Q13,0) -> 0 | R53: =IFERROR(Engine!S1464*R13,0) -> 0
E54: Unit sales | H54: =Engine!J1394*H13 -> 44554.16118 | I54: =Engine!K1394*I13 -> 50321.02822 | J54: =Engine!L1394*J13 -> 26639.70373 | K54: =Engine!M1394*K13 -> 25176.52592 | L54: =Engine!N1394*L13 -> 24041.73449 | M54: =Engine!O1394*M13 -> 22835.95536 | N54: =Engine!P1394*N13 -> 21691.00282 | O54: =Engine!Q1394*O13 -> 20603.79044 | P54: =Engine!R1394*P13 -> 19571.38909 | Q54: =Engine!S1394*Q13 -> 18591.01911 | R54: =Engine!T1394*R13 -> 0
E56: Disposal fees (block) | H56: =-Assumptions_Overall!$G155*H53*1.2 -> 0 | I56: =-Assumptions_Overall!$G155*I53*1.2 -> 0 | J56: =-Assumptions_Overall!$G155*J53*1.2 -> 0 | K56: =-Assumptions_Overall!$G155*K53*1.2 -> 0 | L56: =-Assumptions_Overall!$G155*L53*1.2 -> 0 | M56: =-Assumptions_Overall!$G155*M53*1.2 -> 0 | N56: =-Assumptions_Overall!$G155*N53*1.2 -> 0 | O56: =-Assumptions_Overall!$G155*O53*1.2 -> 0 | P56: =-Assumptions_Overall!$G155*P53*1.2 -> 0 | Q56: =-Assumptions_Overall!$G155*Q53*1.2 -> 0 | R56: =-Assumptions_Overall!$G155*R53 -> 0
E57: Disposal fees (unit) | H57: =-Assumptions_Overall!$G156*H54*1.2 -> -1603.949802 | I57: =-Assumptions_Overall!$G156*I54*1.2 -> -1811.557016 | J57: =-Assumptions_Overall!$G156*J54*1.2 -> -959.0293344 | K57: =-Assumptions_Overall!$G156*K54*1.2 -> -906.3549331 | L57: =-Assumptions_Overall!$G156*L54*1.2 -> -865.5024415 | M57: =-Assumptions_Overall!$G156*M54*1.2 -> -822.0943929 | N57: =-Assumptions_Overall!$G156*N54*1.2 -> -780.8761014 | O57: =-Assumptions_Overall!$G156*O54*1.2 -> -741.7364558 | P57: =-Assumptions_Overall!$G156*P54*1.2 -> -704.5700072 | Q57: =-Assumptions_Overall!$G156*Q54*1.2 -> -669.2766881 | R57: =-Assumptions_Overall!$G156*R54 -> 0
E58: Disposal fees | H58: =SUM(H56:H57) -> -1603.949802 | I58: -1811.557016 | J58: -959.0293344 | K58: -906.3549331 | L58: -865.5024415 | M58: -822.0943929 | N58: -780.8761014 | O58: -741.7364558 | P58: -704.5700072 | Q58: -669.2766881 | R58: =SUM(R56:R57) -> 0
E59: VAT to repay | G59: =Engine!I1180 -> 0 | H59: =Engine!J1180 -> -1003.71113 | I59: =Engine!K1180 -> -1144.460421 | J59: =Engine!L1180 -> -436.2214231 | K59: =Engine!M1180 -> -109.7403323 | L59: =Engine!N1180 -> 0 | M59: =Engine!O1180 -> 0 | N59: =Engine!P1180 -> 0 | O59: =Engine!Q1180 -> 0 | P59: =Engine!R1180 -> 0 | Q59: =Engine!S1180 -> 0 | R59: =Engine!T1180 -> 0
E60: Disposal cashflow | H60: =(H58+H54+H53)+H59 -> 41946.50024 | I60: =(I58+I54+I53)+I59 -> 47365.01078 | J60: =(J58+J54+J53)+J59 -> 25244.45298 | K60: 24160.43066 | L60: 23176.23205 | M60: 22013.86097 | N60: 20910.12671 | O60: 19862.05398 | P60: 18866.81908 | Q60: 17921.74242 | R60: =(R58+R54+R53)+R59 -> 0
E61: Realised gain | H61: =Engine!J1607*H13 -> 6768.55927 | I61: =Engine!K1607*I13 -> 8555.263151 | J61: =Engine!L1607*J13 -> 4828.613766 | K61: =Engine!M1607*K13 -> 5114.128006 | L61: =Engine!N1607*L13 -> 5443.2046 | M61: =Engine!O1607*M13 -> 5502.558809 | N61: =Engine!P1607*N13 -> 5536.180089 | O61: =Engine!Q1607*O13 -> 5546.934412 | P61: =Engine!R1607*P13 -> 5537.434029 | Q61: =Engine!S1607*Q13 -> 5510.057972 | R61: =$G$51*R10+R60 -> 
C62: =AVERAGE(H62:Q62) -> 0.05850757765 | E62: NOI Yield incl realised gain | H62: =IF(H13=0,"",-(H38+H61)/((SUM($G$51:G$51)+SUM($G43:G43))*(1+SUM($G$1:G1)))) -> 0.03835485527 | I62: =IF(I13=0,"",-(I38+I61)/((SUM($G$51:H$51)+SUM($G43:H43))*(1+SUM($G$1:H1)))) -> 0.05810209405 | J62: =IF(J13=0,"",-(J38+J61)/((SUM($G$51:I$51)+SUM($G43:I43))*(1+SUM($G$1:I1)))) -> 0.05162069729 | K62: =IF(K13=0,"",-(K38+K61)/((SUM($G$51:J$51)+SUM($G43:J43))*(1+SUM($G$1:J1)))) -> 0.05441583761 | L62: =IF(L13=0,"",-(L38+L61)/((SUM($G$51:K$51)+SUM($G43:K43))*(1+SUM($G$1:K1)))) -> 0.05773683025 | M62: =IF(M13=0,"",-(M38+M61)/((SUM($G$51:L$51)+SUM($G43:L43))*(1+SUM($G$1:L1)))) -> 0.06008362725 | N62: =IF(N13=0,"",-(N38+N61)/((SUM($G$51:M$51)+SUM($G43:M43))*(1+SUM($G$1:M1)))) -> 0.06244985688 | O62: =IF(O13=0,"",-(O38+O61)/((SUM($G$51:N$51)+SUM($G43:N43))*(1+SUM($G$1:N1)))) -> 0.06475398216 | P62: =IF(P13=0,"",-(P38+P61)/((SUM($G$51:O$51)+SUM($G43:O43))*(1+SUM($G$1:O1)))) -> 0.06733470844 | Q62: =IF(Q13=0,"",-(Q38+Q61)/((SUM($G$51:P$51)+SUM($G43:P43))*(1+SUM($G$1:P1)))) -> 0.07022328733 | R62: =IF(R$13=0,"",-(R$45+R$61)/$G$51) -> 
E64: Debt drawdown | G64: =Pricer!D15 -> 152785.7511
E65: Debt repayment (disposals) | H65: =-$G$64*H10*H13 -> -13985.06363 | I65: -15102.83167 | J65: -8502.154691 | K65: -7927.999417 | L65: -7380.717551 | M65: -6871.358124 | N65: -6397.257418 | O65: -5955.96734 | P65: -5545.210233 | Q65: -5162.867039
B66: =Assumptions_Overall!$G$171 -> 0 | E66: Debt repayment | H66: =-$B66*$G$64*H13 -> 0 | I66: =MAX(-$B66*$G$64*I13,-SUM($H65:I65,$G$64,$H66:H66)) -> 0 | J66: =MAX(-$B66*$G$64*J13,-SUM($H65:J65,$G$64,$H66:I66)) -> 0 | K66: =MAX(-$B66*$G$64*K13,-SUM($H65:K65,$G$64,$H66:J66)) -> 0 | L66: =MAX(-$B66*$G$64*L13,-SUM($H65:L65,$G$64,$H66:K66)) -> 0 | M66: =MAX(-$B66*$G$64*M13,-SUM($H65:M65,$G$64,$H66:L66)) -> 0 | N66: =MAX(-$B66*$G$64*N13,-SUM($H65:N65,$G$64,$H66:M66)) -> 0 | O66: =MAX(-$B66*$G$64*O13,-SUM($H65:O65,$G$64,$H66:N66)) -> 0 | P66: =MAX(-$B66*$G$64*P13,-SUM($H65:P65,$G$64,$H66:O66)) -> 0 | Q66: =MAX(-$B66*$G$64*Q13,-SUM($H65:Q65,$G$64,$H66:P66)) -> 0 | R66: =MAX(-$B66*$G$64*R13,-SUM($H65:R65,$G$64,$H66:Q66)) -> 
E67: Debt | G67: =SUM(G64:G66) -> 152785.7511 | H67: =SUM(H64:H66) -> -13985.06363 | I67: -15102.83167 | J67: -8502.154691 | K67: -7927.999417 | L67: -7380.717551 | M67: -6871.358124 | N67: -6397.257418 | O67: -5955.96734 | P67: -5545.210233 | Q67: -5162.867039 | R67: =SUM(R64:R66) -> 
B68: =Assumptions_Overall!$G$172 -> 0.01 | E68: Set up cost | G68: =-B68*G64 -> -1527.857511
B69: =Assumptions_Overall!$G$170 -> 0.036 | E69: Interest | H69: =-($B69)*SUM($G67:G67) -> -5500.287041 | I69: =-($B69)*SUM($G67:H67)*I13 -> -4996.82475 | J69: =-($B69)*SUM($G67:I67)*J13 -> -4453.12281 | K69: =-($B69)*SUM($G67:J67)*K13 -> -4147.045241 | L69: =-($B69)*SUM($G67:K67)*L13 -> -3861.637262 | M69: =-($B69)*SUM($G67:L67)*M13 -> -3595.931431 | N69: =-($B69)*SUM($G67:M67)*N13 -> -3348.562538 | O69: =-($B69)*SUM($G67:N67)*O13 -> -3118.261271 | P69: =-($B69)*SUM($G67:O67)*P13 -> -2903.846447 | Q69: =-($B69)*SUM($G67:P67)*Q13 -> -2704.218878 | R69: =-($B69)*SUM($G67:Q67)*R13 -> 0
E70: Debt cashflow | G70: =SUM(G69,G67:G68) -> 151257.8936 | H70: -19485.35067 | I70: -20099.65642 | J70: -12955.2775 | K70: -12075.04466 | L70: -11242.35481 | M70: -10467.28955 | N70: -9745.819956 | O70: -9074.228611 | P70: -8449.05668 | Q70: -7867.085917
E71: Debt cashflow incl. residual debt reimbursement | G71: =G70 -> 151257.8936 | H71: =H70-IF(Assumptions_Overall!$G$72='Summary BP'!H14,'Summary BP'!H121) -> -19485.35067 | I71: =I70-IF(Assumptions_Overall!$G$72='Summary BP'!I14,'Summary BP'!I121) -> -20099.65642 | J71: =J70-IF(Assumptions_Overall!$G$72='Summary BP'!J14,'Summary BP'!J121) -> -12955.2775 | K71: =K70-IF(Assumptions_Overall!$G$72='Summary BP'!K14,'Summary BP'!K121) -> -12075.04466 | L71: =L70-IF(Assumptions_Overall!$G$72='Summary BP'!L14,'Summary BP'!L121) -> -11242.35481 | M71: =M70-IF(Assumptions_Overall!$G$72='Summary BP'!M14,'Summary BP'!M121) -> -10467.28955 | N71: =N70-IF(Assumptions_Overall!$G$72='Summary BP'!N14,'Summary BP'!N121) -> -9745.819956 | O71: =O70-IF(Assumptions_Overall!$G$72='Summary BP'!O14,'Summary BP'!O121) -> -9074.228611 | P71: =P70-IF(Assumptions_Overall!$G$72='Summary BP'!P14,'Summary BP'!P121) -> -8449.05668 | Q71: =Q70-IF(Assumptions_Overall!$G$72='Summary BP'!Q14,'Summary BP'!Q121) -> -77821.40995 | R71: =R70-IF(Assumptions_Overall!$G$72='Summary BP'!R14,'Summary BP'!R121) -> 
E72: Cost of debt | G72: =IRR(G71:Q71) -> 0.03769526671
E75: Performance Calculation €'k | F75: 2024 | G75: =F75+1 -> 2025 | H75: =G75+1 -> 2026 | I75: 2027 | J75: 2028 | K75: 2029 | L75: 2030 | M75: 2031 | N75: 2032 | O75: 2033 | P75: 2034 | Q75: 2035 | R75: 2036
E77: Summary cash flows - unlevered
E78: Cash flows after capex | H78: =H45 -> 7619.848587 | I78: 11246.00205 | J78: 10821.19068 | K78: 10278.18814 | L78: 9701.173368 | M78: 8442.309038 | N78: 7605.592022 | O78: 6917.104453 | P78: 7763.973853 | Q78: 7565.318571
E79: Disposal cashflow | H79: =H60 -> 41946.50024 | I79: 47365.01078 | J79: 25244.45298 | K79: 24160.43066 | L79: 23176.23205 | M79: 22013.86097 | N79: 20910.12671 | O79: 19862.05398 | P79: 18866.81908 | Q79: 17921.74242
E80: Investment | G80: =G51 -> -375139.1514 | H80: 0 | I80: 0 | J80: 0 | K80: 0 | L80: 0 | M80: 0 | N80: 0 | O80: 0 | P80: 0 | Q80: 0
E81: Sale of residual portfolio | H81: =IF(Assumptions_Overall!$G$84="Y",H136,H131)*(1-Assumptions_Overall!$G$157) -> 0 | I81: =IF(Assumptions_Overall!$G$84="Y",I136,I131)*(1-Assumptions_Overall!$G$157) -> 0 | J81: =IF(Assumptions_Overall!$G$84="Y",J136,J131)*(1-Assumptions_Overall!$G$157) -> 0 | K81: =IF(Assumptions_Overall!$G$84="Y",K136,K131)*(1-Assumptions_Overall!$G$157) -> 0 | L81: =IF(Assumptions_Overall!$G$84="Y",L136,L131)*(1-Assumptions_Overall!$G$157) -> 0 | M81: =IF(Assumptions_Overall!$G$84="Y",M136,M131)*(1-Assumptions_Overall!$G$157) -> 0 | N81: =IF(Assumptions_Overall!$G$84="Y",N136,N131)*(1-Assumptions_Overall!$G$157) -> 0 | O81: =IF(Assumptions_Overall!$G$84="Y",O136,O131)*(1-Assumptions_Overall!$G$157) -> 0 | P81: =IF(Assumptions_Overall!$G$84="Y",P136,P131)*(1-Assumptions_Overall!$G$157) -> 0 | Q81: =IF(Assumptions_Overall!$G$84="Y",Q136,Q131)*(1-Assumptions_Overall!$G$157) -> 236804.7933
E82: Pre-tax IRR before leverage | F82: =IRR(G82:R82) -> 0.07140382743 | G82: =G51 -> -375139.1514 | H82: =IF(H14>Assumptions_Overall!$G$72,0,IF(Assumptions_Overall!$G$84="Y",H45+H51+H60+H136*(1-Assumptions_Overall!$G$157),H45+H51+H60+H131*(1-Assumptions_Overall!$G$157))) -> 49566.34883 | I82: =IF(I14>Assumptions_Overall!$G$72,0,IF(Assumptions_Overall!$G$84="Y",I45+I51+I60+I136*(1-Assumptions_Overall!$G$157),I45+I51+I60+I131*(1-Assumptions_Overall!$G$157))) -> 58611.01283 | J82: =IF(J14>Assumptions_Overall!$G$72,0,IF(Assumptions_Overall!$G$84="Y",J45+J51+J60+J136*(1-Assumptions_Overall!$G$157),J45+J51+J60+J131*(1-Assumptions_Overall!$G$157))) -> 36065.64366 | K82: =IF(K14>Assumptions_Overall!$G$72,0,IF(Assumptions_Overall!$G$84="Y",K45+K51+K60+K136*(1-Assumptions_Overall!$G$157),K45+K51+K60+K131*(1-Assumptions_Overall!$G$157))) -> 34438.6188 | L82: =IF(L14>Assumptions_Overall!$G$72,0,IF(Assumptions_Overall!$G$84="Y",L45+L51+L60+L136*(1-Assumptions_Overall!$G$157),L45+L51+L60+L131*(1-Assumptions_Overall!$G$157))) -> 32877.40541 | M82: =IF(M14>Assumptions_Overall!$G$72,0,IF(Assumptions_Overall!$G$84="Y",M45+M51+M60+M136*(1-Assumptions_Overall!$G$157),M45+M51+M60+M131*(1-Assumptions_Overall!$G$157))) -> 30456.17 | N82: =IF(N14>Assumptions_Overall!$G$72,0,IF(Assumptions_Overall!$G$84="Y",N45+N51+N60+N136*(1-Assumptions_Overall!$G$157),N45+N51+N60+N131*(1-Assumptions_Overall!$G$157))) -> 28515.71874 | O82: =IF(O14>Assumptions_Overall!$G$72,0,IF(Assumptions_Overall!$G$84="Y",O45+O51+O60+O136*(1-Assumptions_Overall!$G$157),O45+O51+O60+O131*(1-Assumptions_Overall!$G$157))) -> 26779.15844 | P82: =IF(P14>Assumptions_Overall!$G$72,0,IF(Assumptions_Overall!$G$84="Y",P45+P51+P60+P136*(1-Assumptions_Overall!$G$157),P45+P51+P60+P131*(1-Assumptions_Overall!$G$157))) -> 26630.79293 | Q82: =IF(Q14>Assumptions_Overall!$G$72,0,IF(Assumptions_Overall!$G$84="Y",Q45+Q51+Q60+Q136*(1-Assumptions_Overall!$G$157),Q45+Q51+Q60+Q131*(1-Assumptions_Overall!$G$157))) -> 262291.8543 | R82: =IF(R14>Assumptions_Overall!$G$72,0,R45+R51+R60+R131*(1-Assumptions_Overall!$G$157)) -> 0
E83: Multiple before tax | F83: =SUM(H82:R82)/-G82 -> 1.562707389
E86: Summary cash flows - levered
E87: Cash flows after capex | H87: =H45 -> 7619.848587 | I87: 11246.00205 | J87: 10821.19068 | K87: 10278.18814 | L87: 9701.173368 | M87: 8442.309038 | N87: 7605.592022 | O87: 6917.104453 | P87: 7763.973853 | Q87: 7565.318571
E88: Disposal cashflow | H88: =H60 -> 41946.50024 | I88: 47365.01078 | J88: 25244.45298 | K88: 24160.43066 | L88: 23176.23205 | M88: 22013.86097 | N88: 20910.12671 | O88: 19862.05398 | P88: 18866.81908 | Q88: 17921.74242 | R88: 0
E89: Investment | G89: =G51 -> -375139.1514 | H89: 0 | I89: 0 | J89: 0 | K89: 0 | L89: 0 | M89: 0 | N89: 0 | O89: 0 | P89: 0 | Q89: 0 | R89: 0
E90: Debt cashflow | G90: =G70 -> 151257.8936 | H90: -19485.35067 | I90: -20099.65642 | J90: -12955.2775 | K90: -12075.04466 | L90: -11242.35481 | M90: -10467.28955 | N90: -9745.819956 | O90: -9074.228611 | P90: -8449.05668 | Q90: -7867.085917
E91: Sale of residual portfolio | H91: =IF(Assumptions_Overall!$G$84="Y",H137,H131)*(1-Assumptions_Overall!$G$157) -> 0 | I91: =IF(Assumptions_Overall!$G$84="Y",I137,I131)*(1-Assumptions_Overall!$G$157) -> 0 | J91: =IF(Assumptions_Overall!$G$84="Y",J137,J131)*(1-Assumptions_Overall!$G$157) -> 0 | K91: =IF(Assumptions_Overall!$G$84="Y",K137,K131)*(1-Assumptions_Overall!$G$157) -> 0 | L91: =IF(Assumptions_Overall!$G$84="Y",L137,L131)*(1-Assumptions_Overall!$G$157) -> 0 | M91: =IF(Assumptions_Overall!$G$84="Y",M137,M131)*(1-Assumptions_Overall!$G$157) -> 0 | N91: =IF(Assumptions_Overall!$G$84="Y",N137,N131)*(1-Assumptions_Overall!$G$157) -> 0 | O91: =IF(Assumptions_Overall!$G$84="Y",O137,O131)*(1-Assumptions_Overall!$G$157) -> 0 | P91: =IF(Assumptions_Overall!$G$84="Y",P137,P131)*(1-Assumptions_Overall!$G$157) -> 0 | Q91: =IF(Assumptions_Overall!$G$84="Y",Q137,Q131)*(1-Assumptions_Overall!$G$157) -> 240119.2958
E92: Repayment of debt | J92: =IF(J14=Assumptions_Overall!$G$72,-J121,0) -> 0 | K92: =IF(K14=Assumptions_Overall!$G$72,-K121,0) -> 0 | L92: =IF(L14=Assumptions_Overall!$G$72,-L121,0) -> 0 | M92: =IF(M14=Assumptions_Overall!$G$72,-M121,0) -> 0 | N92: =IF(N14=Assumptions_Overall!$G$72,-N121,0) -> 0 | O92: =IF(O14=Assumptions_Overall!$G$72,-O121,0) -> 0 | P92: =IF(P14=Assumptions_Overall!$G$72,-P121,0) -> 0 | Q92: =IF(Q14=Assumptions_Overall!$G$72,-Q121,0) -> -69954.32403 | R92: =IF(R14=Assumptions_Overall!$G$72,-R121,0) -> 0
E93: Pre-tax IRR after leverage | F93: =IRR(G93:R93) -> 0.09213513882 | G93: =G70+G82 -> -223881.2577 | H93: =IF(H14>Assumptions_Overall!$G$72,0,IF(Assumptions_Overall!$G$84="Y",H45+H51+H60+H70+H92+H137*(1-Assumptions_Overall!$G$157),H45+H51+H60+H70+H92+H131*(1-Assumptions_Overall!$G$157))) -> 30080.99816 | I93: =IF(I14>Assumptions_Overall!$G$72,0,IF(Assumptions_Overall!$G$84="Y",I45+I51+I60+I70+I92+I137*(1-Assumptions_Overall!$G$157),I45+I51+I60+I70+I92+I131*(1-Assumptions_Overall!$G$157))) -> 38511.35641 | J93: =IF(J14>Assumptions_Overall!$G$72,0,IF(Assumptions_Overall!$G$84="Y",J45+J51+J60+J70+J92+J137*(1-Assumptions_Overall!$G$157),J45+J51+J60+J70+J92+J131*(1-Assumptions_Overall!$G$157))) -> 23110.36616 | K93: =IF(K14>Assumptions_Overall!$G$72,0,IF(Assumptions_Overall!$G$84="Y",K45+K51+K60+K70+K92+K137*(1-Assumptions_Overall!$G$157),K45+K51+K60+K70+K92+K131*(1-Assumptions_Overall!$G$157))) -> 22363.57414 | L93: =IF(L14>Assumptions_Overall!$G$72,0,IF(Assumptions_Overall!$G$84="Y",L45+L51+L60+L70+L92+L137*(1-Assumptions_Overall!$G$157),L45+L51+L60+L70+L92+L131*(1-Assumptions_Overall!$G$157))) -> 21635.0506 | M93: =IF(M14>Assumptions_Overall!$G$72,0,IF(Assumptions_Overall!$G$84="Y",M45+M51+M60+M70+M92+M137*(1-Assumptions_Overall!$G$157),M45+M51+M60+M70+M92+M131*(1-Assumptions_Overall!$G$157))) -> 19988.88045 | N93: =IF(N14>Assumptions_Overall!$G$72,0,IF(Assumptions_Overall!$G$84="Y",N45+N51+N60+N70+N92+N137*(1-Assumptions_Overall!$G$157),N45+N51+N60+N70+N92+N131*(1-Assumptions_Overall!$G$157))) -> 18769.89878 | O93: =IF(O14>Assumptions_Overall!$G$72,0,IF(Assumptions_Overall!$G$84="Y",O45+O51+O60+O70+O92+O137*(1-Assumptions_Overall!$G$157),O45+O51+O60+O70+O92+O131*(1-Assumptions_Overall!$G$157))) -> 17704.92982 | P93: =IF(P14>Assumptions_Overall!$G$72,0,IF(Assumptions_Overall!$G$84="Y",P45+P51+P60+P70+P92+P137*(1-Assumptions_Overall!$G$157),P45+P51+P60+P70+P92+P131*(1-Assumptions_Overall!$G$157))) -> 18181.73625 | Q93: =IF(Q14>Assumptions_Overall!$G$72,0,IF(Assumptions_Overall!$G$84="Y",Q45+Q51+Q60+Q70+Q92+Q137*(1-Assumptions_Overall!$G$157),Q45+Q51+Q60+Q70+Q92+Q131*(1-Assumptions_Overall!$G$157))) -> 187784.9468 | R93: =IF(R14>Assumptions_Overall!$G$72,0,IF(Assumptions_Overall!$G$84="Y",R45+R51+R60+R70+R92+R137*(1-Assumptions_Overall!$G$157),R45+R51+R60+R70+R92+R131*(1-Assumptions_Overall!$G$157))) -> 0
E94: Multiple before tax | F94: =SUM(H93:R93)/-G93 -> 1.778316513
C96: =(SUM(H96:Q96)-OFFSET(H96,0,Assumptions_Overall!$G$72-1))/(Assumptions_Overall!$G$72-1) -> 0.09672691188 | E96: Net equity yield (Cash yield) including realised gain | H96: =IF(H13=0,"",-(H38+H61)/(($G$51+$G$64)*(1+SUM($G$1:G1)))) -> 0.06470963719 | I96: =IF(I13=0,"",-(I38+I61)/(($G$51+$G$64)*(1+SUM($G$1:H1)))) -> 0.09802580141 | J96: =IF(J13=0,"",-(J38+J61)/(($G$51+$G$64)*(1+SUM($G$1:I1)))) -> 0.08709084077 | K96: =IF(K13=0,"",-(K38+K61)/(($G$51+$G$64)*(1+SUM($G$1:J1)))) -> 0.09181355024 | L96: =IF(L13=0,"",-(L38+L61)/(($G$51+$G$64)*(1+SUM($G$1:K1)))) -> 0.09741692121 | M96: =IF(M13=0,"",-(M38+M61)/(($G$51+$G$64)*(1+SUM($G$1:L1)))) -> 0.1013936908 | N96: =IF(N13=0,"",-(N38+N61)/(($G$51+$G$64)*(1+SUM($G$1:M1)))) -> 0.1056099647 | O96: =IF(O13=0,"",-(O38+O61)/(($G$51+$G$64)*(1+SUM($G$1:N1)))) -> 0.1098427127 | P96: =IF(P13=0,"",-(P38+P61)/(($G$51+$G$64)*(1+SUM($G$1:O1)))) -> 0.1146390879 | Q96: =IF(Q13=0,"",-(Q38+Q61)/(($G$51+$G$64)*(1+SUM($G$1:P1)))) -> 0.1196062691
E98: Unlevered total return | H98: =IF(H13=0,"",(H118-G118+(H60+H45))/(G118)) -> 0.07240897768 | I98: 0.08653722311 | J98: 0.07878186854 | K98: 0.07759791763 | L98: 0.07653788102 | M98: 0.0721738778 | N98: 0.06909497475 | O98: 0.06641019458 | P98: 0.0696845207 | Q98: 0.068953161
E99: Levered total return | H99: =IF(H13=0,"",(H127-G127+(H70+H60+H45))/(G127)) -> 0.0985101224 | I99: 0.1209161933 | J99: 0.1066056894 | K99: 0.1031733519 | L99: 0.1001281104 | M99: 0.09212006216 | N99: 0.08640353309 | O99: 0.08150968264 | P99: 0.08557731114 | Q99: 0.08373917658
E102: NAV Calculation €'k | F102: 2024 | G102: =F102+1 -> 2025 | H102: =G102+1 -> 2026 | I102: 2027 | J102: 2028 | K102: 2029 | L102: 2030 | M102: 2031 | N102: 2032 | O102: 2033 | P102: 2034 | Q102: 2035 | R102: 2036
E103: Resi unit value €'k incl transfer tax | F103: =Engine!H1038 -> 453495.2658 | G103: =Engine!I1038 -> 464153.9896 | H103: =Engine!J1038*H13 -> 433600.5587 | I103: =Engine!K1038*I13 -> 395289.9637 | J103: =Engine!L1038*J13 -> 379265.5193 | K103: =Engine!M1038*K13 -> 363847.961 | L103: =Engine!N1038*L13 -> 349062.7857 | M103: =Engine!O1038*M13 -> 331632.4051 | N103: =Engine!P1038*N13 -> 315077.3712 | O103: =Engine!Q1038*O13 -> 299353.4666 | P103: =Engine!R1038*P13 -> 284418.721 | Q103: =Engine!S1038*Q13 -> 270233.296 | R103: =Engine!T1038*R13 -> 0
E104: Resi unit value incl transfer tax €/m² | F104: =F103/F$8*1000 -> 5840.033012 | G104: =G103/G$8*1000 -> 5977.294199 | H104: =IFERROR(H103/H$8*1000*H13,"") -> 6149.18558 | I104: 6296.510032 | J104: 6486.932807 | K104: 6682.985561 | L104: 6884.960698 | M104: 7024.172219 | N104: 7166.19514 | O104: 7311.086127 | P104: 7458.902983 | Q104: 7609.704676 | R104: 0 | T104: =IFERROR((INDEX(H104:R104,0,Assumptions_Overall!$G$72)/G104)^(1/Assumptions_Overall!$G$72)-1,"") -> 0.02443950367
E105: Average transfer tax | F105: =F103/F107-1 -> 0.018 | G105: =IFERROR(G103/G107-1,"") -> 0.01850103419 | H105: 0.01919273785 | I105: 0.03021886501 | J105: 0.04674756876 | K105: 0.06464350644 | L105: 0.069 | M105: 0.069 | N105: 0.069 | O105: =IFERROR(O103/O107-1,"") -> 0.069 | P105: =IFERROR(P103/P107-1,"") -> 0.069 | Q105: =IFERROR(Q103/Q107-1,"") -> 0.069 | R105: =IFERROR(R103/R107-1,"") -> 
E107: Resi unit value €'k excl transfer tax | F107: =Engine!H1109 -> 445476.6855 | G107: =Engine!I1109 -> 455722.6493 | H107: =Engine!J1109*H13 -> 425435.2907 | I107: =Engine!K1109*I13 -> 383695.1323 | J107: =Engine!L1109*J13 -> 362327.5856 | K107: =Engine!M1109*K13 -> 341755.6758 | L107: =Engine!N1109*L13 -> 326532.0727 | M107: =Engine!O1109*M13 -> 310226.7588 | N107: =Engine!P1109*N13 -> 294740.2911 | O107: =Engine!Q1109*O13 -> 280031.3065 | P107: =Engine!R1109*P13 -> 266060.5435 | Q107: =Engine!S1109*Q13 -> 252790.7353 | R107: =Engine!T1109*R13 -> 0
E108: Resi unit value €/m² | F108: =F107/F8*1000 -> 5736.771131 | G108: =G107/G$8*1000 -> 5868.716867 | H108: =H107/H8*1000*H13 -> 6033.388339 | I108: =I107/I8*1000*I13 -> 6111.817834 | J108: =J107/J8*1000*J13 -> 6197.227489 | K108: =K107/K8*1000*K13 -> 6277.205018 | L108: =IFERROR(L107/L8*1000*L13,"") -> 6440.561925 | M108: 6570.787857 | N108: 6703.643723 | O108: 6839.182532 | P108: 6977.458356 | Q108: 7118.526358 | R108: 0 | T108: =IFERROR((INDEX(H108:R108,0,Assumptions_Overall!$G$72)/G108)^(1/Assumptions_Overall!$G$72)-1,"") -> 0.01949404645
E110: Resi discount | F110: =F114/F107-1 -> -0.1786114046 | G110: =G114/G107-1 -> -0.1970785968 | H110: =H114/H107-1 -> -0.1941471284 | I110: =IFERROR(I114/I107-1,"") -> -0.1819142812 | J110: -0.1649569308 | K110: -0.1467633162 | L110: -0.1393206753 | M110: -0.1268743598 | N110: -0.1142481341 | O110: =IFERROR(O114/O107-1,"") -> -0.1014393996 | P110: =IFERROR(P114/P107-1,"") -> -0.08844552013 | Q110: =IFERROR(Q114/Q107-1,"") -> -0.07526382147 | R110: =IFERROR(R114/R107-1,"") -> 
E111: Resi block value incl transfer tax €'k | F111: =IFERROR(F114*(1+F105),0) -> 372495.8394 | G111: =IFERROR(G114*(1+G105),0) -> 372679.1726 | H111: 349418.2554 | I111: 323381.0741 | J111: 316703.0433 | K111: 310448.4276 | L111: 300431.1226 | M111: 289556.756 | N111: 279080.3695 | O111: 268987.2307 | P111: 259263.1593 | Q111: 249894.5055 | R111: =Engine!T892*R10 -> 
E112: Resi block value incl transfer tax €/m² | F112: =IFERROR(F115*(1+F105),"") -> 4796.936513 | G112: =IFERROR(G115*(1+G105),"") -> 4799.297445 | H112: =IFERROR(H115*(1+H105),"") -> 4955.338858 | I112: =IFERROR(I115*(1+I105),"") -> 5151.084936 | J112: 5416.868281 | K112: 5702.168438 | L112: 5925.743324 | M112: 6132.984866 | N112: 6347.470717 | O112: 6569.45394 | P112: 6799.196429 | Q112: 7036.969222 | R112: =IFERROR(R111/R7*1000,"") ->  | T112: =IFERROR((INDEX(H112:R112,0,Assumptions_Overall!$G$72)/G112)^(1/Assumptions_Overall!$G$72)-1,"") -> 0.03901256226
E114: Resi block value excl transfer tax €'k | F114: =Engine!H894 -> 365909.469 | G114: =Engine!I894 -> 365909.469 | H114: =Engine!J894*H13 -> 342838.2507 | I114: =Engine!K894*I13 -> 313895.5081 | J114: =Engine!L894*J13 -> 302559.1391 | K114: =Engine!M894*K13 -> 291598.4795 | L114: =Engine!N894*L13 -> 281039.4038 | M114: =Engine!O894*M13 -> 270866.9374 | N114: =Engine!P894*N13 -> 261066.7628 | O114: =Engine!Q894*O13 -> 251625.0989 | P114: =Engine!R894*P13 -> 242528.6804 | Q114: =Engine!S894*Q13 -> 233764.7385 | R114: =Engine!T894*R13 -> 0
E115: Resi block value excl transfer tax €/m² | F115: =F114/F8*1000 -> 4712.118382 | G115: 4712.118382 | H115: 4862.023319 | I115: 4999.990886 | J115: 5174.951863 | K115: 5355.941593 | L115: =IFERROR(L114/L8*1000,"") -> 5543.258488 | M115: 5737.123354 | N115: 5937.764936 | O115: 6145.419962 | P115: 6360.333423 | Q115: 6582.758861 | R115: 0 | T115: =IFERROR((INDEX(H115:R115,0,Assumptions_Overall!$G$72)/G115)^(1/Assumptions_Overall!$G$72)-1,"") -> 0.03399675395
E117: BLOCK VALUE incl TT | F117: =F111 -> 372495.8394 | G117: 372679.1726 | H117: 349418.2554 | I117: 323381.0741 | J117: 316703.0433 | K117: 310448.4276 | L117: 300431.1226 | M117: 289556.756 | N117: 279080.3695 | O117: 268987.2307 | P117: 259263.1593 | Q117: 249894.5055 | R117: =IFERROR(Engine!T824*R14,0) -> 69131.91929 | T117: =(INDEX(H117:R117,0,Assumptions_Overall!$G$72)/G117)^(1/Assumptions_Overall!$G$72)-1 -> -0.0391797259
E118: BLOCK VALUE excl TT | F118: =Engine!H823 -> 365909.469 | G118: =Engine!I823 -> 365909.469 | H118: =IFERROR(Engine!J823*H13,0) -> 342838.2507 | I118: =IFERROR(Engine!K823*I13,0) -> 313895.5081 | J118: =IFERROR(Engine!L823*J13,0) -> 302559.1391 | K118: =IFERROR(Engine!M823*K13,0) -> 291598.4795 | L118: =IFERROR(Engine!N823*L13,0) -> 281039.4038 | M118: =IFERROR(Engine!O823*M13,0) -> 270866.9374 | N118: =IFERROR(Engine!P823*N13,0) -> 261066.7628 | O118: =IFERROR(Engine!Q823*O13,0) -> 251625.0989 | P118: =IFERROR(Engine!R823*P13,0) -> 242528.6804 | Q118: =IFERROR(Engine!S823*Q13,0) -> 233764.7385 | R118: =IFERROR(Engine!T823*R13,0) -> 0 | T118: =(INDEX(H118:R118,0,Assumptions_Overall!$G$72)/G118)^(1/Assumptions_Overall!$G$72)-1 -> -0.04381806281
E121: DEBT | G121: =SUM($G67:G67) -> 152785.7511 | H121: =SUM($G67:H67)*H13 -> 138800.6875 | I121: =SUM($G67:I67)*I13 -> 123697.8558 | J121: =SUM($G67:J67)*J13 -> 115195.7012 | K121: =SUM($G67:K67)*K13 -> 107267.7017 | L121: =SUM($G67:L67)*L13 -> 99886.98418 | M121: =SUM($G67:M67)*M13 -> 93015.62606 | N121: =SUM($G67:N67)*N13 -> 86618.36864 | O121: =SUM($G67:O67)*O13 -> 80662.4013 | P121: =SUM($G67:P67)*P13 -> 75117.19107 | Q121: =SUM($G67:Q67)*Q13 -> 69954.32403 | R121: =SUM($G67:R67)*R13 -> 
E122: LTV | G122: =G121/G118 -> 0.4175506897 | H122: =H121/H118 -> 0.404857647 | I122: =IFERROR(I121/I118,"") -> 0.3940733545 | J122: 0.3807378005 | K122: 0.3678609776 | L122: 0.3554198552 | M122: 0.3433997038 | N122: 0.3317862745 | O122: 0.3205658007 | P122: 0.3097249816 | Q122: 0.2992509669
C123: =AVERAGE(H123:Q123) -> 0.08802303364 | E123: Debt yield | G123: =G38/(SUM($G$67:G67)) -> 0.07157771316 | H123: =H38/(SUM($G$67:G67)) -> 0.04987276975 | I123: =I38/(SUM($G$67:H67)) -> 0.08102266817 | J123: =J38/(SUM($G$67:I67)) -> 0.0877102003 | K123: =K38/(SUM($G$67:J67)) -> 0.08922371269 | L123: =L38/(SUM($G$67:K67)) -> 0.0910294699 | M123: =M38/(SUM($G$67:L67)) -> 0.09247324352 | N123: =N38/(SUM($G$67:M67)) -> 0.0941783339 | O123: =O38/(SUM($G$67:N67)) -> 0.09581841149 | P123: =P38/(SUM($G$67:O67)) -> 0.09818798215 | Q123: =Q38/(SUM($G$67:P67)) -> 0.1007135446 | R123: =R72-IF(Assumptions_Overall!$G$72='Summary BP'!R16,'Summary BP'!#REF!) -> 0
E124: ICR | H124: =ABS(H38/H69) -> 1.385354715 | I124: 2.250629671 | J124: 2.436394453 | K124: 2.478436464 | L124: 2.528596386 | M124: 2.568701209 | N124: 2.616064831 | O124: 2.661622541 | P124: 2.727443949 | Q124: 2.79759846
E126: NAV including asset transfer tax | G126: =G117-G121 -> 219893.4215 | H126: 210617.5679 | I126: 199683.2183 | J126: 201507.3421 | K126: 203180.7259 | L126: 200544.1385 | M126: 196541.13 | N126: 192462.0008 | O126: 188324.8294 | P126: 184145.9683 | Q126: 179940.1815
E127: NAV excluding asset transfer tax | G127: =G118-G121 -> 213123.7179 | H127: 204037.5632 | I127: 190197.6523 | J127: 187363.438 | K127: 184330.7777 | L127: 181152.4196 | M127: 177851.3113 | N127: 174448.3942 | O127: 170962.6976 | P127: 167411.4893 | Q127: 163810.4145
E129: Block sale
E130: Transfer tax | G130: =G105 -> 0.01850103419 | H130: =H105 -> 0.01919273785 | I130: =I105 -> 0.03021886501 | J130: =J105 -> 0.04674756876 | K130: =K105 -> 0.06464350644 | L130: =Assumptions_Overall!$G$83 -> 0.06883936 | M130: =L130 -> 0.06883936 | N130: 0.06883936 | O130: =N130 -> 0.06883936 | P130: 0.06883936 | Q130: 0.06883936 | R130: 0.06883936
E131: Net asset block sale price €'k | G131: =-G48/(1+G105) -> 365909.469 | H131: =H132/1000*H8 -> 0 | I131: 0 | J131: 0 | K131: 0 | L131: 0 | M131: 0 | N131: 0 | O131: 0 | P131: 0 | Q131: 233764.7385 | R131: 0
E132: Net asset block sale price €/m² | G132: =G131/G8*1000 -> 4712.118382 | H132: =IF(H14=Assumptions_Overall!$G$72,(H17*(1+Assumptions_Overall!H126))/Assumptions_Overall!$G$81/(1+H130)/G8*1000,0) -> 0 | I132: =IF(I14=Assumptions_Overall!$G$72,(I17*(1+Assumptions_Overall!I126))/Assumptions_Overall!$G$81/(1+I130)/H8*1000,0) -> 0 | J132: =IF(J14=Assumptions_Overall!$G$72,(J17*(1+Assumptions_Overall!J126))/Assumptions_Overall!$G$81/(1+J130)/I8*1000,0) -> 0 | K132: =IF(K14=Assumptions_Overall!$G$72,(K17*(1+Assumptions_Overall!K126))/Assumptions_Overall!$G$81/(1+K130)/J8*1000,0) -> 0 | L132: =IF(L14=Assumptions_Overall!$G$72,(L17*(1+Assumptions_Overall!L126))/Assumptions_Overall!$G$81/(1+L130)/K8*1000,0) -> 0 | M132: =IF(M14=Assumptions_Overall!$G$72,(M17*(1+Assumptions_Overall!M126))/Assumptions_Overall!$G$81/(1+M130)/L8*1000,0) -> 0 | N132: =IF(N14=Assumptions_Overall!$G$72,(N17*(1+Assumptions_Overall!N126))/Assumptions_Overall!$G$81/(1+N130)/M8*1000,0) -> 0 | O132: =IF(O14=Assumptions_Overall!$G$72,(O17*(1+Assumptions_Overall!O126))/Assumptions_Overall!$G$81/(1+O130)/N8*1000,0) -> 0 | P132: =IF(P14=Assumptions_Overall!$G$72,(P17*(1+Assumptions_Overall!P126))/Assumptions_Overall!$G$81/(1+P130)/O8*1000,0) -> 0 | Q132: =IF(Q14=Assumptions_Overall!$G$72,(Q17*(1+Assumptions_Overall!Q126))/Assumptions_Overall!$G$81/(1+Q130)/P8*1000,0) -> 6582.758861 | R132: =IF(R14=Assumptions_Overall!$G$72,R17/Assumptions_Overall!$G$81/(1+R130)/Q8*1000,0) -> 0
E133: Gross exit yield | H133: =IFERROR((Engine!J104*10^3/G8)/H132/(1+H130)*(1+Engine!K6),"") ->  | I133: =IFERROR((Engine!K104*10^3/H8)/I132/(1+I130)*(1+Engine!L6),"") ->  | J133: =IFERROR((Engine!L104*10^3/I8)/J132/(1+J130)*(1+Engine!M6),"") ->  | K133: =IFERROR((Engine!M104*10^3/J8)/K132/(1+K130)*(1+Engine!N6),"") ->  | L133: =IFERROR((Engine!N104*10^3/K8)/L132/(1+L130)*(1+Engine!O6),"") ->  | M133: =IFERROR((Engine!O104*10^3/L8)/M132/(1+M130)*(1+Engine!P6),"") ->  | N133: =IFERROR((Engine!P104*10^3/M8)/N132/(1+N130)*(1+Engine!Q6),"") ->  | O133: =IFERROR((Engine!Q104*10^3/N8)/O132/(1+O130)*(1+Engine!R6),"") ->  | P133: =IFERROR((Engine!R104*10^3/O8)/P132/(1+P130)*(1+Engine!S6),"") ->  | Q133: =IFERROR((Engine!S104*10^3/P8)/Q132/(1+Q130)*(1+Engine!T6),"") -> 0.04
E134: Sale of SPV
E135: Transfer tax on sale of SPV | G135: =Assumptions_Overall!$G$85 -> 0.05 | H135: =Assumptions_Overall!$G$85 -> 0.05 | I135: =Assumptions_Overall!$G$85 -> 0.05 | J135: =Assumptions_Overall!$G$85 -> 0.05 | K135: =Assumptions_Overall!$G$85 -> 0.05 | L135: =Assumptions_Overall!$G$85 -> 0.05 | M135: =Assumptions_Overall!$G$85 -> 0.05 | N135: =Assumptions_Overall!$G$85 -> 0.05 | O135: =Assumptions_Overall!$G$85 -> 0.05 | P135: =Assumptions_Overall!$G$85 -> 0.05 | Q135: =Assumptions_Overall!$G$85 -> 0.05 | R135: =Q135 -> 0.05
E136: Net sale price without leverage €'k | G136: =IF(G14=Assumptions_Overall!$G$72,G117/(1+Assumptions_Overall!$G$85),0) -> 0 | H136: =IF(H14=Assumptions_Overall!$G$72,H117/(1+Assumptions_Overall!$G$85),0) -> 0 | I136: =IF(I14=Assumptions_Overall!$G$72,I117/(1+Assumptions_Overall!$G$85),0) -> 0 | J136: =IF(J14=Assumptions_Overall!$G$72,J117/(1+Assumptions_Overall!$G$85),0) -> 0 | K136: =IF(K14=Assumptions_Overall!$G$72,K117/(1+Assumptions_Overall!$G$85),0) -> 0 | L136: =IF(L14=Assumptions_Overall!$G$72,L117/(1+Assumptions_Overall!$G$85),0) -> 0 | M136: =IF(M14=Assumptions_Overall!$G$72,M117/(1+Assumptions_Overall!$G$85),0) -> 0 | N136: =IF(N14=Assumptions_Overall!$G$72,N117/(1+Assumptions_Overall!$G$85),0) -> 0 | O136: =IF(O14=Assumptions_Overall!$G$72,O117/(1+Assumptions_Overall!$G$85),0) -> 0 | P136: =IF(P14=Assumptions_Overall!$G$72,P117/(1+Assumptions_Overall!$G$85),0) -> 0 | Q136: =IF(Q14=Assumptions_Overall!$G$72,Q117/(1+Assumptions_Overall!$G$85),0) -> 237994.7671 | R136: =R137/1000*R13 -> 0
E137: Net sale price with leverage €'k | G137: =IF(G14=Assumptions_Overall!$G$72,(G117-G121)/(1+Assumptions_Overall!$G$85)+G121,0) -> 0 | H137: =IF(H14=Assumptions_Overall!$G$72,(H117-H121)/(1+Assumptions_Overall!$G$85)+H121,0) -> 0 | I137: =IF(I14=Assumptions_Overall!$G$72,(I117-I121)/(1+Assumptions_Overall!$G$85)+I121,0) -> 0 | J137: =IF(J14=Assumptions_Overall!$G$72,(J117-J121)/(1+Assumptions_Overall!$G$85)+J121,0) -> 0 | K137: =IF(K14=Assumptions_Overall!$G$72,(K117-K121)/(1+Assumptions_Overall!$G$85)+K121,0) -> 0 | L137: =IF(L14=Assumptions_Overall!$G$72,(L117-L121)/(1+Assumptions_Overall!$G$85)+L121,0) -> 0 | M137: =IF(M14=Assumptions_Overall!$G$72,(M117-M121)/(1+Assumptions_Overall!$G$85)+M121,0) -> 0 | N137: =IF(N14=Assumptions_Overall!$G$72,(N117-N121)/(1+Assumptions_Overall!$G$85)+N121,0) -> 0 | O137: =IF(O14=Assumptions_Overall!$G$72,(O117-O121)/(1+Assumptions_Overall!$G$85)+O121,0) -> 0 | P137: =IF(P14=Assumptions_Overall!$G$72,(P117-P121)/(1+Assumptions_Overall!$G$85)+P121,0) -> 0 | Q137: =IF(Q14=Assumptions_Overall!$G$72,(Q117-Q121)/(1+Assumptions_Overall!$G$85)+Q121,0) -> 241325.9254 | R137: =IF(R14=Assumptions_Overall!$G$72,(R117-R121)/(1+Assumptions_Overall!$G$85)+R121,0) -> 0

Sheet Inputs >

Sheet Assumptions_Overall
D2: KPI extract
I4: Scenario | J4: 1 | K4: 2 | L4: 3
D6: Levered pre-tax IRR | G6: ='Summary BP'!F93 -> 0.09213513882 | J6: =J184 -> 0.1769292963 | K6: =K184 -> 0.1298565954 | L6: =L184 -> 0.09213513882
D7: Levered pre-tax equity multiple | G7: ='Summary BP'!F94 -> 1.778316513 | J7: =J188 -> 1.566509006 | K7: =K188 -> 1.576408032 | L7: =L188 -> 1.778316513
D8: Net equity yield (Cash yield) including realised gain | G8: ='Summary BP'!C96 -> 0.09672691188 | J8: =J192 -> 0.2019711867 | K8: =K192 -> 0.1478115348 | L8: 0.09672691188
D11: Nexus portfolio main metrics
D13: Physical metrics
D14: Number of units | G14: =SUMIFS('Assumptions_Asset level'!M15:M81,'Assumptions_Asset level'!Y15:Y81,"x") -> 1264
D15: Area (m²) | G15: =SUMIFS('Assumptions_Asset level'!L15:L81,'Assumptions_Asset level'!Y15:Y81,"x") -> 77652.86
D16: Area per unit (m²) | G16: =G15/G14 -> 61.43422468
D18: Rental metrics
D19: Gross rental value in 2025 (M€) | G19: =SUMIFS('Assumptions_Asset level'!AD15:AD80,'Assumptions_Asset level'!Y15:Y80,"x")/10^6*Engine!I22 -> 16.77056277
D20: Gross rental value in 2025 (€/m²/month) | G20: =G19/12/G15*1000000 -> 17.99736542
D21: GPR | G21: =SUM(('Assumptions_Asset level'!$AD$15:$AD$77)*('Assumptions_Asset level'!$F$15:$F$77=$D$21))/SUM(('Assumptions_Asset level'!$L$15:$L$77)*('Assumptions_Asset level'!$F$15:$F$77=$D$21))/12 -> 18.08468918
D22: Region | G22: =SUM(('Assumptions_Asset level'!$AD$15:$AD$77)*('Assumptions_Asset level'!$F$15:$F$77<>$D$21))/SUM(('Assumptions_Asset level'!$L$15:$L$77)*('Assumptions_Asset level'!$F$15:$F$77<>$D$21))/12 -> 16.84487696
D23: Rental growth over BP (CAGR) | G23: =CHOOSE($G$72,Engine!J17,Engine!K17,Engine!L17,Engine!M17,Engine!N17,Engine!O17,Engine!P17,Engine!Q17,Engine!R17,Engine!S17,Engine!T17,Engine!U17,Engine!V17,Engine!W17) -> 0.02529980022
D24: Indexation over BP (CAGR) | G24: =CHOOSE($G$72,Engine!J15,Engine!K15,Engine!L15,Engine!M15,Engine!N15,Engine!O15,Engine!P15,Engine!Q15,Engine!R15,Engine!S15,Engine!T15,Engine!U15,Engine!V15,Engine!W15) -> 0.02029979924 | H24: >>> Indexation assumptions in Detailed BP Sheet - Line 2 and below
D25: Reversion over BP (CAGR) | G25: =CHOOSE($G$72,Engine!J16,Engine!K16,Engine!L16,Engine!M16,Engine!N16,Engine!O16,Engine!P16,Engine!Q16,Engine!R16,Engine!S16,Engine!T16,Engine!U16,Engine!V16,Engine!W16) -> 0.005
D27: Occupancy / vacancy metrics
D28: Initial vacancy (EoP 2025) | G28: ='Summary BP'!G20/'Summary BP'!G5 -> 0.2599011076
D29: Churn rate | G29: ='Assumptions_Asset level'!P10 -> 0.1784210526 | H29: >>> Input asset by asset in Data Sheet
D34: Acquisition price scenarios and metrics (2025)
D36: Acquisition date | G36: 2025-12-31
D38: Acquisition price options
D40: Acquisition price V2 | G40: =VLOOKUP($D40,$D$42:$G$44,4,0) -> 2
D42: Acquisition price V1 | G42: 1 | H42: 0 | I42: >>> Premium/discount to indexed Sept 2024 block occupied valuation
D43: Acquisition price V2 | G43: 2 | H43: 0.045 | I43: >>> Price based on target portfolio yield converted into discount to Sept 2024 block occupied valuations (equivalent price discount shown in cell AN10 of 'Data' sheet)
D44: Acquisition price V3 | G44: 3 | H44: Input values in Assumptions_Asset level Sheet column AN | I44: >>> Price by building (initial input in Data Sheet, column AO)
D49: ="Pricing metrics according to Acqusition price scenario "&G40 -> Pricing metrics according to Acqusition price scenario 2
D50: Portfolio acquisition price excl. TT, incl. VAT | G50: =SUMIFS('Assumptions_Asset level'!AJ15:AJ80,'Assumptions_Asset level'!Y15:Y80,"x")/10^6 -> 365.909469
D51: Asset transfer tax at acquisition | G51: ='Summary BP'!G105 -> 0.01850103419
D52: "Conventional" acquisition price EoP 2025 incl TT & VAT | G52: =G50*(1+G51) -> 372.6791726
D53: Acquisition price incl TT per sqm | G53: =G52/G15*1000000 -> 4799.297445
D54: GPR | G54: =(SUM(('Assumptions_Asset level'!$AJ$15:$AJ$77)*('Assumptions_Asset level'!$F$15:$F$77=$D$54))*(1+G51))/SUM(('Assumptions_Asset level'!$L$15:$L$77)*('Assumptions_Asset level'!$F$15:$F$77=$D$54)) -> 5010.593664
D55: Region | G55: =(SUM(('Assumptions_Asset level'!$AJ$15:$AJ$77)*('Assumptions_Asset level'!$F$15:$F$77<>$D$54))*(1+G51))/SUM(('Assumptions_Asset level'!$L$15:$L$77)*('Assumptions_Asset level'!$F$15:$F$77<>$D$54)) -> 4478.092164
D56: Gross acquisition Yield (2025E) | G56: =G19/G52 -> 0.045
D58: Block vs. unit sale pricing metrics
D59: Unit by unit vacant value EoP 2025 excl. TT | G59: =SUMIFS('Assumptions_Asset level'!AK15:AK80,'Assumptions_Asset level'!Y15:Y80,"x")/10^6*(1+Engine!$AG$1036) -> 455.7226493
D60: Block discount to unit values | G60: =1-G50/G59 -> 0.1970785968
D65: Sale scenarios (BP scenarios) and metrics
D67: Sale scenarios
D69: 3 | G69: =D69 -> 3
I70: Scenario | J70: 1 | K70: 2 | L70: 3
N71: Year | O71: Units sold | S71: . | T71: Churn | U71: Letting | V71: EoP Vacant | W71: stock | X71: EoP Total | Y71: Physical occupancy
D72: BP Duration | G72: =CHOOSE($D$69,Assumptions_Overall!J72,Assumptions_Overall!K72,Assumptions_Overall!L72) -> 10 | J72: 5 | K72: 7 | L72: 10 | O72: # | P72: % init. stock pa | Q72: % avg pa | R72: % cumul | T72: # | U72: # | V72: # | W72: % | X72: # | Y72: %
D73: % of initial vacancy sold by unit | G73: =CHOOSE($D$69,Assumptions_Overall!J73,Assumptions_Overall!K73,Assumptions_Overall!L73) -> 0.3 | J73: 1 | K73: 0.8 | L73: 0.3 | N73: =N74-1 -> 2024 | V73: =IF(N73>YEAR($G$36)+$G$72,0,OFFSET('Summary BP'!$G$20,0,N73-$N$74)) -> 184 | W73: =IFERROR(V73/X73,"") -> 0.1455696203 | X73: =OFFSET('Summary BP'!$G$5,0,N73-$N$74) -> 1264 | Y73: =IFERROR((X73-V73)/X73,0) -> 0.8544303797
D74: % churn sold by unit | G74: =CHOOSE($D$69,Assumptions_Overall!J74,Assumptions_Overall!K74,Assumptions_Overall!L74) -> 0.4 | J74: 1 | K74: 0.8 | L74: 0.4 | N74: =YEAR(G36) -> 2025 | O74: =IF(N74>YEAR($G$36)+$G$72,0,OFFSET('Summary BP'!$G$4,0,Assumptions_Overall!N74-$N$74)) -> 0 | P74: =-OFFSET('Summary BP'!$G$4,0,Assumptions_Overall!N74-$N$74)/'Summary BP'!$F$3 -> 0 | Q74: =R74 -> 0 | R74: =P74 -> 0 | T74: =IF(N74>YEAR($G$36)+$G$72,0,OFFSET('Vacancy & sales module'!$M$454,0,N74-$N$74)) -> 144.515 | U74: =IF(N74>YEAR($G$36)+$G$72,0,V74-(V73+T74+O74)) -> 0 | V74: =IF(N74>YEAR($G$36)+$G$72,0,OFFSET('Summary BP'!$G$20,0,N74-$N$74)) -> 328.515 | W74: 0.2599011076 | X74: =OFFSET('Summary BP'!$G$5,0,N74-$N$74) -> 1264 | Y74: 0.7400988924
D75: % vacant units sold in year 1 (2025) | G75: =CHOOSE($D$69,Assumptions_Overall!J75,Assumptions_Overall!K75,Assumptions_Overall!L75) -> 0.5 | J75: 0.5 | K75: 0.5 | L75: 0.5 | N75: =N74+1 -> 2026 | O75: =IF(N75>YEAR($G$36)+$G$72,0,OFFSET('Summary BP'!$G$4,0,Assumptions_Overall!N75-$N$74)) -> -115.69875 | P75: =-OFFSET('Summary BP'!$G$4,0,Assumptions_Overall!N75-$N$74)/'Summary BP'!$F$3 -> 0.0915338212 | Q75: =(Q74+R75)/(N75-N$74) -> 0.0915338212 | R75: =R74+P75 -> 0.0915338212 | T75: =IF(N75>YEAR($G$36)+$G$72,0,OFFSET('Vacancy & sales module'!$M$454,0,N75-$N$74)) -> 166.05375 | U75: -294.01275 | V75: =IF(N75>YEAR($G$36)+$G$72,0,OFFSET('Summary BP'!$G$20,0,N75-$N$74)) -> 84.85725 | W75: 0.07389807335 | X75: =OFFSET('Summary BP'!$G$5,0,N75-$N$74) -> 1148.30125 | Y75: 0.9261019267
D76: % average vacant unit sales pa | G76: =OFFSET(Q79,N74+G72-N79,0) -> 0.05421410471 | J76: =J200 -> 0.1422542166 | K76: =K200 -> 0.1022249584 | L76: =L200 -> 0.05421410471 | N76: 2027 | O76: =IF(N76>YEAR($G$36)+$G$72,0,OFFSET('Summary BP'!$G$4,0,Assumptions_Overall!N76-$N$74)) -> -124.9460705 | P76: =-OFFSET('Summary BP'!$G$4,0,Assumptions_Overall!N76-$N$74)/'Summary BP'!$F$3 -> 0.0988497393 | Q76: =R76/(N76-N$74) -> 0.09519178025 | R76: 0.1903835605 | T76: =IF(N76>YEAR($G$36)+$G$72,0,OFFSET('Vacancy & sales module'!$M$454,0,N76-$N$74)) -> 189.1720512 | U76: -114.6341932 | V76: =IF(N76>YEAR($G$36)+$G$72,0,OFFSET('Summary BP'!$G$20,0,N76-$N$74)) -> 34.4490375 | W76: 0.03366283592 | X76: =OFFSET('Summary BP'!$G$5,0,N76-$N$74) -> 1023.35518 | Y76: 0.9663371641
D77: Residual assets for block sale or SPV sale in fine | G77: =1-'Summary BP'!C10 -> 0.4578589529 | J77: =J198 -> 0.2887289172 | K77: =K198 -> 0.2844252912 | L77: =L198 -> 0.4578589529 | N77: 2028 | O77: =IF(N77>YEAR($G$36)+$G$72,0,OFFSET('Summary BP'!$G$4,0,Assumptions_Overall!N77-$N$74)) -> -70.33851946 | P77: =-OFFSET('Summary BP'!$G$4,0,Assumptions_Overall!N77-$N$74)/'Summary BP'!$F$3 -> 0.05564756286 | Q77: =R77/(N77-N$74) -> 0.08201037446 | R77: 0.2460311234 | T77: =IF(N77>YEAR($G$36)+$G$72,0,OFFSET('Vacancy & sales module'!$M$454,0,N77-$N$74)) -> 175.8462986 | U77: -109.2561613 | V77: =IF(N77>YEAR($G$36)+$G$72,0,OFFSET('Summary BP'!$G$20,0,N77-$N$74)) -> 30.70065539 | W77: 0.03221418541 | X77: =OFFSET('Summary BP'!$G$5,0,N77-$N$74) -> 953.0166601 | Y77: 0.9677858146
N78: 2029 | O78: =IF(N78>YEAR($G$36)+$G$72,0,OFFSET('Summary BP'!$G$4,0,Assumptions_Overall!N78-$N$74)) -> -65.5885198 | P78: =-OFFSET('Summary BP'!$G$4,0,Assumptions_Overall!N78-$N$74)/'Summary BP'!$F$3 -> 0.05188965174 | Q78: =R78/(N78-N$74) -> 0.07448019378 | R78: 0.2979207751 | T78: =IF(N78>YEAR($G$36)+$G$72,0,OFFSET('Vacancy & sales module'!$M$454,0,N78-$N$74)) -> 163.9712995 | U78: -100.4929353 | V78: =IF(N78>YEAR($G$36)+$G$72,0,OFFSET('Summary BP'!$G$20,0,N78-$N$74)) -> 28.5904998 | W78: 0.03221725625 | X78: =OFFSET('Summary BP'!$G$5,0,N78-$N$74) -> 887.4281403 | Y78: 0.9677827437
D79: Sale (BP) options and metrics | N79: 2030 | O79: =IF(N79>YEAR($G$36)+$G$72,0,OFFSET('Summary BP'!$G$4,0,Assumptions_Overall!N79-$N$74)) -> -61.06084445 | P79: =-OFFSET('Summary BP'!$G$4,0,Assumptions_Overall!N79-$N$74)/'Summary BP'!$F$3 -> 0.0483076301 | Q79: =R79/(N79-N$74) -> 0.06924568104 | R79: 0.3462284052 | T79: =IF(N79>YEAR($G$36)+$G$72,0,OFFSET('Vacancy & sales module'!$M$454,0,N79-$N$74)) -> 152.6521111 | U79: -93.55892227 | V79: =IF(N79>YEAR($G$36)+$G$72,0,OFFSET('Summary BP'!$G$20,0,N79-$N$74)) -> 26.62284421 | W79: 0.03221672051 | X79: =OFFSET('Summary BP'!$G$5,0,N79-$N$74) -> 826.3672958 | Y79: 0.9677832795
D80: Sale and vacancy : suggested automatic model (Y/N) | G80: Y | N80: 2031 | O80: =IF(N80>YEAR($G$36)+$G$72,0,OFFSET('Summary BP'!$G$4,0,Assumptions_Overall!N80-$N$74)) -> -56.84690231 | P80: =-OFFSET('Summary BP'!$G$4,0,Assumptions_Overall!N80-$N$74)/'Summary BP'!$F$3 -> 0.04497381512 | Q80: =IF(N80>YEAR($G$36)+$G$72,0,R80/(N80-N$74)) -> 0.06520037005 | R80: 0.3912022203 | T80: =IF(N80>YEAR($G$36)+$G$72,0,OFFSET('Vacancy & sales module'!$M$454,0,N80-$N$74)) -> 142.1172558 | U80: -87.1021788 | V80: =IF(N80>YEAR($G$36)+$G$72,0,OFFSET('Summary BP'!$G$20,0,N80-$N$74)) -> 24.79101887 | W80: =IFERROR(V80/X80,"") -> 0.03221619477 | X80: =OFFSET('Summary BP'!$G$5,0,N80-$N$74) -> 769.5203935 | Y80: 0.9677838052
D81: Gross exit yield (block sale) | G81: 0.04 | N81: 2032 | O81: =IF(N81>YEAR($G$36)+$G$72,0,OFFSET('Summary BP'!$G$4,0,Assumptions_Overall!N81-$N$74)) -> -52.92465636 | P81: =-OFFSET('Summary BP'!$G$4,0,Assumptions_Overall!N81-$N$74)/'Summary BP'!$F$3 -> 0.04187077244 | Q81: =IF(N81>YEAR($G$36)+$G$72,0,R81/(N81-N$74)) -> 0.0618675704 | R81: 0.4330729928 | T81: =IF(N81>YEAR($G$36)+$G$72,0,OFFSET('Vacancy & sales module'!$M$454,0,N81-$N$74)) -> 132.3116409 | U81: -81.09239161 | V81: =IF(N81>YEAR($G$36)+$G$72,0,OFFSET('Summary BP'!$G$20,0,N81-$N$74)) -> 23.08561181 | W81: =IFERROR(V81/X81,"") -> 0.03221567002 | X81: =OFFSET('Summary BP'!$G$5,0,N81-$N$74) -> 716.5957371 | Y81: 0.96778433
N82: 2033 | O82: =IF(N82>YEAR($G$36)+$G$72,0,OFFSET('Summary BP'!$G$4,0,Assumptions_Overall!N82-$N$74)) -> -49.27385349 | P82: =-OFFSET('Summary BP'!$G$4,0,Assumptions_Overall!N82-$N$74)/'Summary BP'!$F$3 -> 0.03898247903 | Q82: =IF(N82>YEAR($G$36)+$G$72,0,R82/(N82-N$74)) -> 0.05900693397 | R82: 0.4720554718 | T82: =IF(N82>YEAR($G$36)+$G$72,0,OFFSET('Vacancy & sales module'!$M$454,0,N82-$N$74)) -> 123.1846337 | U82: -75.49851993 | V82: =IF(N82>YEAR($G$36)+$G$72,0,OFFSET('Summary BP'!$G$20,0,N82-$N$74)) -> 21.49787211 | W82: 0.0322151463 | X82: =OFFSET('Summary BP'!$G$5,0,N82-$N$74) -> 667.3218836 | Y82: 0.9677848537
D83: Exit transfer tax (if block sale) | G83: =5.80665%+0.1%+0.814405%*1.2 -> 0.06883936 | N83: 2034 | O83: =IF(N83>YEAR($G$36)+$G$72,0,OFFSET('Summary BP'!$G$4,0,Assumptions_Overall!N83-$N$74)) -> -45.87565059 | P83: =-OFFSET('Summary BP'!$G$4,0,Assumptions_Overall!N83-$N$74)/'Summary BP'!$F$3 -> 0.03629402737 | Q83: =IF(N83>YEAR($G$36)+$G$72,0,R83/(N83-N$74)) -> 0.05648327768 | R83: 0.5083494992 | T83: =IF(N83>YEAR($G$36)+$G$72,0,OFFSET('Vacancy & sales module'!$M$454,0,N83-$N$74)) -> 114.6891265 | U83: -70.29169149 | V83: =IF(N83>YEAR($G$36)+$G$72,0,OFFSET('Summary BP'!$G$20,0,N83-$N$74)) -> 20.01965651 | W83: 0.03221462364 | X83: =OFFSET('Summary BP'!$G$5,0,N83-$N$74) -> 621.4462331 | Y83: 0.9677853764
D84: Sale of SPV (Y/N) | G84: Y | N84: 2035 | O84: =IF(N84>YEAR($G$36)+$G$72,0,OFFSET('Summary BP'!$G$4,0,Assumptions_Overall!N84-$N$74)) -> -42.71251663 | P84: =-OFFSET('Summary BP'!$G$4,0,Assumptions_Overall!N84-$N$74)/'Summary BP'!$F$3 -> 0.03379154797 | Q84: =IF(N84>YEAR($G$36)+$G$72,0,R84/(N84-N$74)) -> 0.05421410471 | R84: 0.5421410471 | T84: =IF(N84>YEAR($G$36)+$G$72,0,OFFSET('Vacancy & sales module'!$M$454,0,N84-$N$74)) -> 106.7812916 | U84: -65.44504447 | V84: =IF(N84>YEAR($G$36)+$G$72,0,OFFSET('Summary BP'!$G$20,0,N84-$N$74)) -> 18.64338699 | W84: 0.03221410203 | X84: =OFFSET('Summary BP'!$G$5,0,N84-$N$74) -> 578.7337164 | Y84: 0.967785898
D85: Exit transfer tax if sale of SPV | G85: 0.05
D88: Unit sale price scenarios and metrics
D90: Unit sale price options
D92: Unit sale price v1 | G92: =VLOOKUP($D92,$D$94:$G$95,4,0) -> 1
D94: Unit sale price V1 | G94: 1 | H94: 0 | I94: >>> Premium/discount to indexed Sept 2024 vacant unit valuation
D95: Unit sale price V2 | G95: 2 | H95: Input values in Data Sheet column AQ | I95: >>> Unit values by building (initial input in Data Sheet, column AU)
D100: Unit value growth
E101: 2024 | F101: 2025 | G101: =F101+1 -> 2026 | H101: =G101+1 -> 2027 | I101: =H101+1 -> 2028 | J101: =I101+1 -> 2029 | K101: =J101+1 -> 2030 | L101: =K101+1 -> 2031 | M101: =L101+1 -> 2032 | N101: =M101+1 -> 2033 | O101: =N101+1 -> 2034 | P101: =O101+1 -> 2035 | Q101: =P101+1 -> 2036 | R101: =Q101+1 -> 2037 | S101: =R101+1 -> 2038 | T101: =S101+1 -> 2039
D102: Premium to IRL | F102: 0 | G102: 0.01 | H102: 0.01 | I102: 0.01 | J102: 0.01 | K102: 0.01 | L102: 0 | M102: 0 | N102: 0 | O102: 0 | P102: 0 | Q102: 0 | R102: 0 | S102: 0 | T102: 0
D103: Growth value | F103: =F102+F124 -> 0.023 | G103: 0.032 | H103: 0.031 | I103: 0.03 | J103: 0.03 | K103: 0.03 | L103: 0.02 | M103: 0.02 | N103: 0.02 | O103: 0.02 | P103: 0.02 | Q103: 0.02 | R103: 0.02 | S103: 0.02 | T103: 0.02
D105: Sale metrics
D106: CAGR in block values over BP | G106: =Engine!AD895 -> 0.03471390248
D107: CAGR in unit values over BP | G107: =CHOOSE($G$72,Engine!AH1032,Engine!AI1032,Engine!AJ1032,Engine!AK1032,Engine!AL1032,Engine!AM1032,Engine!AN1032,Engine!AO1032,Engine!AP1032,Engine!AQ1032,Engine!AR1032,Engine!AS1032,Engine!AT1032,Engine!AU1032) -> 0.02443950367
D108: Block discount at end of BP | G108: =CHOOSE(G72,-'Summary BP'!H110,-'Summary BP'!I110,-'Summary BP'!J110,-'Summary BP'!K110,-'Summary BP'!L110,-'Summary BP'!M110,-'Summary BP'!N110,-'Summary BP'!O110,-'Summary BP'!P110,-'Summary BP'!Q110) -> 0.07526382147
D113: Time-based inputs
D115: Rent and ERV
D116: ERV annual growth (premium on IRL index) | G116: 0.01
D117: Unpaid rate per year (% of total passing rent) | G117: 0.02
D118: Churn Rate | E118: GPR | G118: 0.17
D119: Churn Rate | E119: Region | G119: 0.19
D120: Churn Rate | E120: Average | G120: ='Assumptions_Asset level'!P10 -> 0.1784210526
E122: 2024 | F122: 2025 | G122: =F122+1 -> 2026 | H122: =G122+1 -> 2027 | I122: 2028 | J122: 2029 | K122: 2030 | L122: 2031 | M122: 2032 | N122: 2033 | O122: 2034 | P122: 2035 | Q122: 2036 | R122: 2037 | S122: 2038 | T122: 2039
D123: CPI growth % | F123: 0.022 | G123: 0.021 | H123: 0.02 | I123: 0.02 | J123: 0.02 | K123: 0.02 | L123: 0.02 | M123: 0.02 | N123: 0.02 | O123: 0.02 | P123: 0.02 | Q123: 0.02 | R123: 0.02 | S123: 0.02 | T123: 0.02
D124: Index growth (IRL) | F124: 0.023 | G124: 0.022 | H124: 0.021 | I124: 0.02 | J124: 0.02 | K124: 0.02 | L124: 0.02 | M124: 0.02 | N124: 0.02 | O124: 0.02 | P124: 0.02 | Q124: 0.02 | R124: 0.02 | S124: 0.02 | T124: 0.02
D125: Impact of reversion | G125: 0.005 | H125: =G125 -> 0.005 | I125: 0.005 | J125: 0.005 | K125: 0.005 | L125: 0.005 | M125: 0.005 | N125: 0.005 | O125: 0.005 | P125: 0.005 | Q125: 0.005 | R125: 0.005 | S125: 0.005 | T125: 0.005
D126: Effective Rental Growth | F126: =F124+F125 -> 0.023 | G126: 0.027 | H126: 0.026 | I126: 0.025 | J126: 0.025 | K126: 0.025 | L126: 0.025 | M126: 0.025 | N126: 0.025 | O126: 0.025 | P126: 0.025 | Q126: 0.025 | R126: 0.025 | S126: 0.025 | T126: 0.025
D127: ERV growth | F127: =$G$116+F$124 -> 0.033 | G127: 0.032 | H127: 0.031 | I127: 0.03 | J127: 0.03 | K127: 0.03 | L127: 0.03 | M127: 0.03 | N127: 0.03 | O127: 0.03 | P127: 0.03 | Q127: 0.03 | R127: 0.03 | S127: 0.03 | T127: 0.03
D128: Reversionary Potential | F128: =Engine!AG1321 -> 0.02896627771 | G128: =Engine!AH1321 -> 0.03536298404 | H128: =Engine!AI1321 -> 0.04088572785 | I128: =Engine!AJ1321 -> 0.04632823576 | J128: =Engine!AK1321 -> 0.05141383448 | K128: =Engine!AL1321 -> 0.0565252126 | L128: =Engine!AM1321 -> 0.06166147647 | M128: =Engine!AN1321 -> 0.06682275052 | N128: =Engine!AO1321 -> 0.07200915717 | O128: =Engine!AP1321 -> 0.07722081948 | P128: =Engine!AQ1321 -> 0.08245786108 | Q128: =Engine!AR1321 -> 0.08772040624 | R128: =Engine!AS1321 -> 0.09300857982 | S128: =Engine!AT1321 -> 0.09832250729 | T128: =Engine!AU1321 -> 0.1036623147
D129: Financial occupancy | F129: =Engine!AG104 -> 0.8063141921 | G129: =Engine!AH104 -> 0.6708246586 | H129: =Engine!AI104 -> 0.9199140901 | I129: =Engine!AJ104 -> 0.97 | J129: =Engine!AK104 -> 0.97 | K129: =Engine!AL104 -> 0.97 | L129: =Engine!AM104 -> 0.97 | M129: =Engine!AN104 -> 0.97 | N129: =Engine!AO104 -> 0.97 | O129: =Engine!AP104 -> 0.97 | P129: =Engine!AQ104 -> 0.97 | Q129: =Engine!AR104 -> 0.97 | R129: =Engine!AS104 -> 0.97 | S129: =Engine!AT104 -> 0.97 | T129: =Engine!AU104 -> 0.97
D131: Maintenance costs
D132: Cost of maintenance per unit (€/unit ratio) | G132: 650
D134: Age of building (in years) | F134: 1 | G134: 2 | H134: 3 | I134: 4 | J134: 5 | K134: 6 | L134: 7 | M134: 8 | N134: 9 | O134: 10 | P134: 11 | Q134: 12 | R134: 13 | S134: 14 | T134: 15
D135: % of maintenance cost applied per age | F135: 0.3 | G135: 0.3 | H135: 0.3 | I135: 0.3 | J135: 0.3 | K135: 0.5 | L135: 0.5 | M135: 0.7 | N135: 0.7 | O135: 1 | P135: 1 | Q135: 1 | R135: 1 | S135: 1 | T135: 1
D136: Maintenance costs per unit (€) | E136: =G132 -> 650 | F136: =$E$136*F135 -> 195 | G136: =$E$136*G135 -> 195 | H136: 195 | I136: 195 | J136: 195 | K136: 325 | L136: 325 | M136: 455 | N136: 455 | O136: 650 | P136: 650 | Q136: 650 | R136: 650 | S136: 650 | T136: 650
D138: Capex costs
D139: Capex costs (€/unit ratio) | G139: 4000
D141: Age of building (in years) | F141: 1 | G141: 2 | H141: 3 | I141: 4 | J141: 5 | K141: 6 | L141: 7 | M141: 8 | N141: 9 | O141: 10 | P141: 11 | Q141: 12 | R141: 13 | S141: 14 | T141: 15
D142: % of capex cost applied per age | F142: 0 | G142: 0 | H142: 0 | I142: 0 | J142: 0 | K142: 0 | L142: 0 | M142: 0 | N142: 0 | O142: 1 | P142: 0 | Q142: 0 | R142: 0 | S142: 0 | T142: 0
D143: Capex cost per unit (€) | E143: =G139 -> 4000 | F143: =$E$143*F142 -> 0 | G143: =$E$143*G142 -> 0 | H143: 0 | I143: 0 | J143: 0 | K143: 0 | L143: 0 | M143: 0 | N143: 0 | O143: 4000 | P143: 0 | Q143: 0 | R143: 0 | S143: 0 | T143: 0
D148: Non time-based inputs
D150: Fees
D151: Non recoverable (NR) charges (€/unit) | G151: 250
D152: Due diligence fees (€'k) | G152: 1
D153: PM Fees excl VAT (% rents collected) | G153: 0.055
D154: Letting fees excl VAT (% annual let rent) | G154: =8% -> 0.08
D155: Disposal fees excl VAT (block sales) | G155: 0.008
D156: Disposal fees excl VAT (unit sales) | G156: 0.03
D157: Disposal fees excl VAT (on the BP end block value) | G157: 0.005
D162: Financing assumptions based on Sale (BP) scenario
I163: hhnhoh2
D164: Reminder: selected Sale (BP) scenario | G164: =G69 -> 3
I165: Scenario | J165: 1 | K165: 2 | L165: 3
D167: Initial LTV | G167: =CHOOSE($G$164,Assumptions_Overall!J167,Assumptions_Overall!K167,Assumptions_Overall!L167) -> 0.4 | J167: 0.6 | K167: 0.5 | L167: 0.4
D168: Swap rate | G168: =CHOOSE($G$164,Assumptions_Overall!J168,Assumptions_Overall!K168,Assumptions_Overall!L168) -> 0.023 | J168: 0.022 | K168: 0.0225 | L168: 0.023
D169: Margin | G169: =CHOOSE(G164,J169,K169,L169) -> 0.013 | J169: 0.019 | K169: 0.017 | L169: 0.013
D170: Interest rate (Swap rate + margin) | G170: =CHOOSE($G$164,Assumptions_Overall!J170,Assumptions_Overall!K170,Assumptions_Overall!L170) -> 0.036 | J170: =J168+J169 -> 0.041 | K170: =K168+K169 -> 0.0395 | L170: 0.036
D171: Annual repayment | G171: 0
D172: Set-up cost | G172: 0.01
D174: Debt metrics
D175: All-in cost of debt (calculated as debt IRR) | G175: =CHOOSE($D$69,Assumptions_Overall!J175,Assumptions_Overall!K175,Assumptions_Overall!L175) -> 0.03769526671 | J175: =J194 -> 0.04469020412 | K175: =K194 -> 0.04231740027 | L175: =L194 -> 0.03769526671
D176: Debt yield | G176: ='Summary BP'!C123 -> 0.08802303364
D180: DO NOT ERASE UNDER THIS LINE
D181: Unlevered pre-tax IRR | I181: ='Summary BP'!F82 -> 0.07140382743 | J181: 1 | K181: 2 | L181: 3
J182: 0.0969426959 | K182: 0.08635867955 | L182: 0.07140382743
D183: Levered pre-tax IRR | I183: ='Summary BP'!F93 -> 0.09213513882 | J183: 1 | K183: 2 | L183: 3
J184: 0.1769292963 | K184: 0.1298565954 | L184: 0.09213513882
D185: Unlevered pre-tax equity multiple | I185: ='Summary BP'!F83 -> 1.562707389 | J185: 1 | K185: 2 | L185: 3
J186: 1.298746101 | K186: 1.366355425 | L186: 1.562707389
D187: Levered pre-tax equity multiple | I187: ='Summary BP'!F94 -> 1.778316513 | J187: 1 | K187: 2 | L187: 3
J188: 1.566509006 | K188: 1.576408032 | L188: 1.778316513
D189: Unlevered pre-tax cash-on-cash | I189: ='Summary BP'!C96 -> 0.09672691188 | J189: 1 | K189: 2 | L189: 3
J190: 0.2019711867 | K190: 0.1478115348 | L190: 0.09672691188
D191: Net equity yield including realised gain | I191: ='Summary BP'!C96 -> 0.09672691188 | J191: 1 | K191: 2 | L191: 3
J192: 0.2019711867 | K192: 0.1478115348 | L192: 0.09672691188
D193: All-in cost of debt | I193: ='Summary BP'!G72 -> 0.03769526671 | J193: 1 | K193: 2 | L193: 3
J194: 0.04469020412 | K194: 0.04231740027 | L194: 0.03769526671
D195: Discount on bloc sale in fine | I195: =G108 -> 0.07526382147 | J195: 1 | K195: 2 | L195: 3
J196: 0.0956430834 | K196: 0.0874929974 | L196: 0.07526382147
D197: Residual assets for block sale or SPV sale in fine | I197: =1-R84 -> 0.4578589529 | J197: 1 | K197: 2 | L197: 3
J198: 0.2887289172 | K198: 0.2844252912 | L198: 0.4578589529
D199: Average unit sales pa | I199: =G76 -> 0.05421410471 | J199: 1 | K199: 2 | L199: 3
J200: 0.1422542166 | K200: 0.1022249584 | L200: 0.05421410471

Sheet Assumptions_Asset level
A7: 1 | B7: =A7+1 -> 2 | C7: =B7+1 -> 3 | D7: 4 | E7: 5 | F7: 6 | G7: 7 | H7: 8 | I7: 9 | J7: 10 | K7: 11 | L7: 12 | M7: 13 | N7: 14 | O7: 15 | P7: 16 | Q7: 17 | R7: 18 | S7: 19 | T7: 20 | U7: 21 | V7: 22 | W7: 23 | X7: 24 | Y7: 25 | Z7: 26 | AA7: 27 | AB7: 28 | AC7: 29 | AD7: 30 | AE7: 31 | AF7: 32 | AG7: 33 | AH7: 34 | AI7: 35 | AJ7: 36 | AK7: 37 | AL7: 38 | AM7: 39 | AN7: 40 | AO7: 41 | AP7: 42 | AQ7: 43
O10: 0.03 | P10: =SUM((P15:P80)*($Y15:$Y80<>""))/SUM(1*($Y15:$Y80<>"")) -> 0.1784210526 | Q10: =SUM((Q15:Q80)*($Y15:$Y80<>""))/SUM(1*($Y15:$Y80<>"")) -> 0.1385526316 | R10: =SUMPRODUCT((R15:R80)*(Y15:Y80<>""),(L15:L80)*(Y15:Y80<>""))/L12 -> -18.8204175 | Z10: =SUMIFS(Z15:Z80,$Y15:$Y80,"<>"&"") -> 385180000 | AA10: =SUMIFS('Assumptions_Asset level'!AD15:AD80,'Assumptions_Asset level'!Y15:Y80,"<>"&"")/($Z$10*(1+Assumptions_Overall!$G$51)) -> 0.04178753944 | AM10: =AA10/Assumptions_Overall!H43 -> 0.9286119876
AJ11: =AJ12*(1+AH12) -> 372495839.4 | AK11: =AJ11/L12 -> 4796.936513
L12: =SUMIFS(L15:L80,$Y15:$Y80,"<>"&"") -> 77652.86 | M12: =SUMIFS(M15:M80,$Y15:$Y80,"<>"&"") -> 1264 | N12: =L12/M12 -> 61.43422468 | R12: =SUMIFS(R15:R80,$Y15:$Y80,"<>"&"") -> -716.7545086 | S12: =SUMIFS(S15:S80,$Y15:$Y80,"<>"&"") -> 184 | T12: =SUMIFS(T15:T80,$Y15:$Y80,"<>"&"") -> -429749.758 | U12: =SUMIFS(U15:U80,$Y15:$Y80,"<>"&"") -> -297122.9454 | V12: =U12/M12 -> -235.0656213 | W12: =SUMIFS(W15:W80,$Y15:$Y80,"<>"&"") -> -204510.6653 | Z12: =SUMIFS(Z15:Z80,$Y15:$Y80,"<>"&"") -> 385180000 | AB12: =SUMIFS(AB15:AB80,$Y15:$Y80,"<>"&"") -> 16705076.04 | AC12: =AB12/L12/12 -> 17.92708819 | AD12: =SUMIFS(AD15:AD80,$Y15:$Y80,"<>"&"") -> 16393511.99 | AE12: =AD12/L12/12 -> 17.59273257 | AF12: =SUMIFS(AF15:AF80,$Y15:$Y80,"<>"&"") -> 445476685.5 | AG12: =SUMIFS(Z15:Z80,$Y15:$Y80,"<>"&"")/SUMIFS(AF15:AF80,$Y15:$Y80,"<>"&"")-1 -> -0.1353531789 | AH12: =SUMPRODUCT(AH15:AH80,AF15:AF80)/SUM(AF15:AF80) -> 0.018 | AI12: =SUMIFS(AI15:AI80,$Y15:$Y80,"<>"&"") -> 453495265.8 | AJ12: 365909469 | AK12: 455722649.3 | AL12: 394039140 | AM12: 365909469 | AN12: 394039140 | AP12: =SUMIFS(AP15:AP80,$Y15:$Y80,"<>"&"") -> 455722649.3 | AQ12: =SUMIFS(AQ15:AQ80,$Y15:$Y80,"<>"&"") -> 461923828.7
A13: Asset ID | C13: Asset Location | H13: Asset Characteristics | O13: Asset Operational Parameters | X13: Asset Choice | Z13: External Valuation | AJ13: Purchaser Assumptions
A14: Vendor asset ID (EI) | B14: Holding entity | C14: Town | D14: Address | E14: Department code | F14: Region | G14: Pinel zone (leasing tension) | H14: Collective or individual housing | I14: Status (fr) | J14: Signing Date | K14: Delivery Date | L14: Living area | M14: Number of units | N14: Avg. Unit Size | O14: Target Vacancy rate | P14: Churn rate | Q14: Specific churn rate 2025 | R14: Recoverable charges €/m² (budget 2024) | S14: Vacant units (30 Nov 2024) | T14: Property tax (budget 2024) | U14: Non recoverable charges per asset (budget 2024) | V14: Non recoverable charges per unit in 2025 (€/unit) | W14: Maintenance (budget 2024) | X14: Portfolio (1 or 2) | Y14: Selection | Z14: Block valuation excl TT 30 Sept 2024 | AA14: Yield on block value incl TT | AB14: ERV inl pkg 30 Sept 2024 € | AC14: ERV incl pkg 30 Sept 2024 €/sqm | AD14: In-place rent at 30/11/2024 + ERV for vacant units incl pkg € | AE14: In-place rent at 30/11/2024 + ERV for vacant units incl pkg €/sqm/month | AF14: Unit value excl TT (Sept 2024) | AG14: Block discount | AH14: Transfer tax rate 2024 | AI14: Unit value incl transfer tax (sept 2024) | AJ14: Purchaser block acquisition price excl TT | AK14: Purchaser unit resale value excl TT | AL14: Purchaser acquisition price V1 excl TT Scenario 1 | AM14: Purchaser acquisition price V2 excl TT Scenario 2 | AN14: Purchaser acquisition price V3 excl TT Scenario 3 | AO14: Resale block (1)/ unit (2) | AP14: Purchaser unit resale value excl TT Sept 2025 Unit sale price V1 | AQ14: Purchaser unit resale value excl TT Sept 2025 Unit sale price V2
A15: 117 | B15: M1 | C15: TOURCOING | D15: 16 RUE DES METISSAGES | E15: 59 | F15: Major cities | G15: B1 | H15: Collective housing | I15: Delivered | J15: 2021-06-30T12:00:00 | K15: 2023-11-21 | L15: 3760.16 | M15: 67 | N15: =L15/M15 -> 56.12179104 | O15: 0.03 | P15: =IF(F15=Assumptions_Overall!$E$118,Assumptions_Overall!$G$118,Assumptions_Overall!$G$119) -> 0.19 | Q15: =IF(YEAR($K15)>2023,P15/2,P15) -> 0.19 | R15: -23.16390792 | S15: 1 | T15: -17610.18988 | U15: =-V15*M15 -> -18873.77049 | V15: 281.698067 | W15: -14022.66411 | X15: 1 | Y15: X | Z15: 11100000 | AA15: =AD15/(Z15*(1+Assumptions_Overall!$G$51)) -> 0.04459371608 | AB15: 535150.08 | AC15: =AB15/L15/12 -> 11.86009106 | AD15: 504148.08 | AE15: =AD15/L15/12 -> 11.17301923 | AF15: 12796083 | AG15: =Z15/AF15-1 -> -0.1325470458 | AH15: 0.018 | AI15: =AF15*(1+AH15) -> 13026412.49 | AJ15: =CHOOSE(Assumptions_Overall!$G$40,AL15,AM15,AN15) -> 10544667.7 | AK15: =CHOOSE(Assumptions_Overall!$G$92,AP15,AQ15) -> 13090392.91 | AL15: =$Z15*Engine!$I$22*(1+Assumptions_Overall!$H$42) -> 11355300 | AM15: =$Z15*Engine!$I$22*$AM$10 -> 10544667.7 | AN15: 11355300 | AO15: 2 | AP15: =$AF15*Engine!$I$22*(1+Assumptions_Overall!$H$94) -> 13090392.91 | AQ15: 13090392.91
A16: 24 | B16: M1 | C16: ISSY LES MOULINEAUX | D16: 18-20 RUE VICTOR HUGO | E16: 92 | F16: GPR | G16: Abis | H16: Collective housing | I16: Delivered | J16: 2020-06-30 | K16: 2022-11-03 | L16: 520.03 | M16: 10 | N16: =L16/M16 -> 52.003 | O16: 0.03 | P16: =IF(F16=Assumptions_Overall!$E$118,Assumptions_Overall!$G$118,Assumptions_Overall!$G$119) -> 0.17 | Q16: 0.17 | R16: -23.2853514 | S16: 1 | T16: =-93 -> -93 | U16: =-V16*M16 -> -3125 | V16: 312.5 | W16: =-1856 -> -1856 | X16: 1 | Y16: X | Z16: 4590000 | AA16: =AD16/(Z16*(1+Assumptions_Overall!$G$51)) -> 0.03634858547 | AB16: 163664.04 | AC16: 26.22669846 | AD16: 169926.72 | AE16: 27.23027518 | AF16: 5492614 | AG16: -0.1643323197 | AH16: 0.018 | AI16: 5591481.052 | AJ16: =CHOOSE(Assumptions_Overall!$G$40,AL16,AM16,AN16) -> 4360362.591 | AK16: =CHOOSE(Assumptions_Overall!$G$92,AP16,AQ16) -> 5618944.122 | AL16: =$Z16*Engine!$I$22*(1+Assumptions_Overall!$H$42) -> 4695570 | AM16: =$Z16*Engine!$I$22*$AM$10 -> 4360362.591 | AN16: 4695570 | AO16: 2 | AP16: =$AF16*Engine!$I$22*(1+Assumptions_Overall!$H$94) -> 5618944.122 | AQ16: 5618944.122
A17: 48 | B17: M2 | C17: NICE | D17: 16 AVENUE FRANÇOIS MITTERRAND | E17: 6 | F17: PACA | G17: A | H17: Collective housing | I17: Delivered | J17: 2020-10-29T12:00:00 | K17: 2021-06-23 | L17: 1044.6 | M17: 20 | N17: 52.23 | O17: 0.03 | P17: =IF(F17=Assumptions_Overall!$E$118,Assumptions_Overall!$G$118,Assumptions_Overall!$G$119) -> 0.19 | Q17: 0.19 | R17: -21.25215393 | S17: 0 | T17: -9154.95 | U17: -7342.8942 | V17: 367.14471 | W17: -4060 | X17: 1 | Y17: X | Z17: 5180000 | AA17: =AD17/(Z17*(1+Assumptions_Overall!$G$51)) -> 0.04157836345 | AB17: 239001.6 | AC17: 19.06643691 | AD17: 219360.6 | AE17: 17.49956921 | AF17: 6280320 | AG17: -0.1752012636 | AH17: 0.018 | AI17: 6393365.76 | AJ17: =CHOOSE(Assumptions_Overall!$G$40,AL17,AM17,AN17) -> 4920844.928 | AK17: =CHOOSE(Assumptions_Overall!$G$92,AP17,AQ17) -> 6424767.36 | AL17: =$Z17*Engine!$I$22*(1+Assumptions_Overall!$H$42) -> 5299140 | AM17: =$Z17*Engine!$I$22*$AM$10 -> 4920844.928 | AN17: 5299140 | AO17: 2 | AP17: =$AF17*Engine!$I$22*(1+Assumptions_Overall!$H$94) -> 6424767.36 | AQ17: 6424767.36
A18: 27 | B18: M2 | C18: GAGNY | D18: 3A CHEMIN D'ACCES AUX ABBESSES | E18: 93 | F18: GPR | G18: A | H18: Collective housing | I18: Delivered | J18: 2020-12-11 | K18: 2022-03-29 | L18: 1729.08 | M18: 26 | N18: 66.50307692 | O18: 0.03 | P18: =IF(F18=Assumptions_Overall!$E$118,Assumptions_Overall!$G$118,Assumptions_Overall!$G$119) -> 0.17 | Q18: 0.17 | R18: -22.03585888 | S18: 3 | T18: =-527 -> -527 | U18: -7410 | V18: 285 | W18: =-5296 -> -5296 | X18: 1 | Y18: X | Z18: 6650000 | AA18: =AD18/(Z18*(1+Assumptions_Overall!$G$51)) -> 0.0467557699 | AB18: 325691.48 | AC18: 15.69676167 | AD18: 316678.32 | AE18: 15.26237074 | AF18: =7119885 -> 7119885 | AG18: -0.06599615022 | AH18: 0.018 | AI18: 7248042.93 | AJ18: =CHOOSE(Assumptions_Overall!$G$40,AL18,AM18,AN18) -> 6317300.921 | AK18: =CHOOSE(Assumptions_Overall!$G$92,AP18,AQ18) -> 7283642.355 | AL18: =$Z18*Engine!$I$22*(1+Assumptions_Overall!$H$42) -> 6802950 | AM18: =$Z18*Engine!$I$22*$AM$10 -> 6317300.921 | AN18: 6802950 | AO18: 2 | AP18: =$AF18*Engine!$I$22*(1+Assumptions_Overall!$H$94) -> 7283642.355 | AQ18: 7865877.69
A19: 43 | B19: M2 | C19: DIVONNE LES BAINS | D19: 302 B RUE VOLTAIRE | E19: 01 | F19: Swiss border | G19: Abis | H19: Collective housing | I19: Delivered | J19: 2020-07-31T12:00:00 | K19: 2022-05-18 | L19: 2995.68 | M19: 47 | N19: 63.73787234 | O19: 0.03 | P19: =IF(F19=Assumptions_Overall!$E$118,Assumptions_Overall!$G$118,Assumptions_Overall!$G$119) -> 0.19 | Q19: 0.19 | R19: -15.59010379 | S19: 0 | T19: -32926.95 | U19: -11867.5 | V19: 252.5 | W19: -3570 | X19: 1 | Y19: X | Z19: 20090000 | AA19: =AD19/(Z19*(1+Assumptions_Overall!$G$51)) -> 0.04053718785 | AB19: 863402.68 | AC19: 24.01799369 | AD19: 829459.2 | AE19: 23.07375955 | AF19: 23402360 | AG19: -0.1415395712 | AH19: 0.018 | AI19: 23823602.48 | AJ19: =CHOOSE(Assumptions_Overall!$G$40,AL19,AM19,AN19) -> 19084898.57 | AK19: =CHOOSE(Assumptions_Overall!$G$92,AP19,AQ19) -> 23940614.28 | AL19: =$Z19*Engine!$I$22*(1+Assumptions_Overall!$H$42) -> 20552070 | AM19: =$Z19*Engine!$I$22*$AM$10 -> 19084898.57 | AN19: 20552070 | AO19: 2 | AP19: =$AF19*Engine!$I$22*(1+Assumptions_Overall!$H$94) -> 23940614.28 | AQ19: 23940614.28
A20: 86 | B20: M2 | C20: HUNINGUE | D20: 19 B RUE DE VILLAGE NEUF STATIONNEMENTS EN S/SOL | E20: 68 | F20: Swiss border | G20: B1 | H20: Collective housing | I20: Delivered | J20: 2020-12-30T12:00:00 | K20: 2022-07-05 | L20: 963.76 | M20: 18 | N20: 53.54222222 | O20: 0.03 | P20: =IF(F20=Assumptions_Overall!$E$118,Assumptions_Overall!$G$118,Assumptions_Overall!$G$119) -> 0.19 | Q20: 0.19 | R20: -16.80916411 | S20: 0 | T20: -4911.35 | U20: -5500 | V20: 305.5555556 | W20: -3700 | X20: 1 | Y20: X | Z20: 3300000 | AA20: =AD20/(Z20*(1+Assumptions_Overall!$G$51)) -> 0.04146853468 | AB20: 159075.12 | AC20: 13.75473147 | AD20: 139377.96 | AE20: 12.05157923 | AF20: 4029364.5 | AG20: -0.1810122911 | AH20: 0.018 | AI20: 4101893.061 | AJ20: =CHOOSE(Assumptions_Overall!$G$40,AL20,AM20,AN20) -> 3134901.209 | AK20: =CHOOSE(Assumptions_Overall!$G$92,AP20,AQ20) -> 4122039.883 | AL20: =$Z20*Engine!$I$22*(1+Assumptions_Overall!$H$42) -> 3375900 | AM20: =$Z20*Engine!$I$22*$AM$10 -> 3134901.209 | AN20: 3375900 | AO20: 2 | AP20: =$AF20*Engine!$I$22*(1+Assumptions_Overall!$H$94) -> 4122039.883 | AQ20: 4122039.883
A21: 29 | B21: M2 | C21: LONGJUMEAU | D21: 24 RUE GEORGES BIZET BAT D | E21: 91 | F21: GPR | G21: A | H21: Collective housing | I21: Delivered | J21: 2020-07-29T12:00:00 | K21: 2022-10-07 | L21: 1755.16 | M21: 31 | N21: 56.61806452 | O21: 0.03 | P21: =IF(F21=Assumptions_Overall!$E$118,Assumptions_Overall!$G$118,Assumptions_Overall!$G$119) -> 0.17 | Q21: 0.17 | R21: -27.29095923 | S21: 0 | T21: -22064.7 | U21: -9260 | V21: 298.7096774 | W21: -6626.35794 | X21: 1 | Y21: X | Z21: 7050000 | AA21: =AD21/(Z21*(1+Assumptions_Overall!$G$51)) -> 0.04448294296 | AB21: 325105.2 | AC21: 15.43568677 | AD21: 319406.76 | AE21: 15.16513024 | AF21: 7918298 | AG21: -0.1096571511 | AH21: 0.018 | AI21: 8060827.364 | AJ21: =CHOOSE(Assumptions_Overall!$G$40,AL21,AM21,AN21) -> 6697288.947 | AK21: =CHOOSE(Assumptions_Overall!$G$92,AP21,AQ21) -> 8100418.854 | AL21: =$Z21*Engine!$I$22*(1+Assumptions_Overall!$H$42) -> 7212150 | AM21: =$Z21*Engine!$I$22*$AM$10 -> 6697288.947 | AN21: 7212150 | AO21: 2 | AP21: =$AF21*Engine!$I$22*(1+Assumptions_Overall!$H$94) -> 8100418.854 | AQ21: 8100418.854
A22: 54 | B22: M2 | C22: CRETEIL | D22: 2 - 4 AVENUE DES PETITES HAIES | E22: 94 | F22: GPR | G22: A | H22: Collective housing | I22: Delivered | J22: 2020-12-17T12:00:00 | K22: 2023-02-03 | L22: 2335.85 | M22: 26 | N22: 89.84038462 | O22: 0.03 | P22: =IF(F22=Assumptions_Overall!$E$118,Assumptions_Overall!$G$118,Assumptions_Overall!$G$119) -> 0.17 | Q22: 0.17 | R22: -17.98060663 | S22: 0 | T22: -32767.35 | U22: -7111 | V22: 273.5 | W22: -5602.93764 | X22: 1 | Y22: X | Z22: 9330000 | AA22: =AD22/(Z22*(1+Assumptions_Overall!$G$51)) -> 0.04483400998 | AB22: 438478.8 | AC22: 15.64308496 | AD22: 426040.32 | AE22: 15.19933215 | AF22: 10212663 | AG22: -0.08642829006 | AH22: 0.018 | AI22: 10396490.93 | AJ22: =CHOOSE(Assumptions_Overall!$G$40,AL22,AM22,AN22) -> 8863220.691 | AK22: =CHOOSE(Assumptions_Overall!$G$92,AP22,AQ22) -> 10447554.25 | AL22: =$Z22*Engine!$I$22*(1+Assumptions_Overall!$H$42) -> 9544590 | AM22: =$Z22*Engine!$I$22*$AM$10 -> 8863220.691 | AN22: 9544590 | AO22: 2 | AP22: =$AF22*Engine!$I$22*(1+Assumptions_Overall!$H$94) -> 10447554.25 | AQ22: 10447554.25
A23: 39 | B23: M2 | C23: NEUILLY PLAISANCE | D23: 7-9 AVENUE DU MARECHAL FOCH | E23: 93 | F23: GPR | G23: Abis | H23: Collective housing | I23: Delivered | J23: 2020-08-28T12:00:00 | K23: 2023-10-30 | L23: 2580.78 | M23: 43 | N23: 60.01813953 | O23: 0.03 | P23: =IF(F23=Assumptions_Overall!$E$118,Assumptions_Overall!$G$118,Assumptions_Overall!$G$119) -> 0.17 | Q23: 0.17 | R23: -21.66011826 | S23: 1 | T23: -18491.49852 | U23: -11728.86512 | V23: 272.7643052 | W23: -8120.524 | X23: 1 | Y23: X | Z23: 13360000 | AA23: =AD23/(Z23*(1+Assumptions_Overall!$G$51)) -> 0.04207528821 | AB23: 588282.24 | AC23: 18.99562148 | AD23: 572525.76 | AE23: 18.48684506 | AF23: 15732028 | AG23: -0.1507770009 | AH23: 0.018 | AI23: 16015204.5 | AJ23: =CHOOSE(Assumptions_Overall!$G$40,AL23,AM23,AN23) -> 12691600.05 | AK23: =CHOOSE(Assumptions_Overall!$G$92,AP23,AQ23) -> 16093864.64 | AL23: =$Z23*Engine!$I$22*(1+Assumptions_Overall!$H$42) -> 13667280 | AM23: =$Z23*Engine!$I$22*$AM$10 -> 12691600.05 | AN23: 13667280 | AO23: 2 | AP23: =$AF23*Engine!$I$22*(1+Assumptions_Overall!$H$94) -> 16093864.64 | AQ23: 16093864.64
A24: 124 | B24: M3 | C24: NOISY LE GRAND | D24: 4 - 4 TER BD DU MONT D'EST | E24: 93 | F24: GPR | G24: A | H24: Collective housing | I24: Delivered | J24: 2021-06-29T12:00:00 | K24: 2022-09-29 | L24: 1391.4 | M24: 18 | N24: 77.3 | O24: 0.03 | P24: =IF(F24=Assumptions_Overall!$E$118,Assumptions_Overall!$G$118,Assumptions_Overall!$G$119) -> 0.17 | Q24: 0.17 | R24: -21.27353744 | S24: 1 | T24: -11818.8 | U24: -5300 | V24: 294.4444444 | W24: -3718.0252 | X24: 1 | Y24: X | Z24: 5760000 | AA24: =AD24/(Z24*(1+Assumptions_Overall!$G$51)) -> 0.04242717832 | AB24: 255883.2 | AC24: 15.32528389 | AD24: 248901.84 | AE24: 14.90715826 | AF24: 6540240 | AG24: -0.1192983744 | AH24: 0.018 | AI24: 6657964.32 | AJ24: =CHOOSE(Assumptions_Overall!$G$40,AL24,AM24,AN24) -> 5471827.565 | AK24: =CHOOSE(Assumptions_Overall!$G$92,AP24,AQ24) -> 6690665.52 | AL24: =$Z24*Engine!$I$22*(1+Assumptions_Overall!$H$42) -> 5892480 | AM24: =$Z24*Engine!$I$22*$AM$10 -> 5471827.565 | AN24: 5892480 | AO24: 2 | AP24: =$AF24*Engine!$I$22*(1+Assumptions_Overall!$H$94) -> 6690665.52 | AQ24: 6690665.52
A25: 77 | B25: M3 | C25: COMPIEGNE | D25: 4 BIS AVENUE DE LA FAISANDERIE BATIMEN B | E25: 60 | F25: Major cities | G25: B1 | H25: Collective housing | I25: Delivered | J25: 2020-12-29T12:00:00 | K25: 2022-11-14 | L25: 1071.7 | M25: 18 | N25: 59.53888889 | O25: 0.03 | P25: =IF(F25=Assumptions_Overall!$E$118,Assumptions_Overall!$G$118,Assumptions_Overall!$G$119) -> 0.19 | Q25: 0.19 | R25: -14.18307362 | S25: 0 | T25: -11532.008 | U25: -5850 | V25: 325 | W25: -3780 | X25: 1 | Y25: X | Z25: 3250000 | AA25: =AD25/(Z25*(1+Assumptions_Overall!$G$51)) -> 0.04750706403 | AB25: 160317.6 | AC25: 12.46598862 | AD25: 157254.48 | AE25: 12.22780629 | AF25: 3738000 | AG25: -0.1305510968 | AH25: 0.018 | AI25: 3805284 | AJ25: =CHOOSE(Assumptions_Overall!$G$40,AL25,AM25,AN25) -> 3087402.706 | AK25: =CHOOSE(Assumptions_Overall!$G$92,AP25,AQ25) -> 3823974 | AL25: =$Z25*Engine!$I$22*(1+Assumptions_Overall!$H$42) -> 3324750 | AM25: =$Z25*Engine!$I$22*$AM$10 -> 3087402.706 | AN25: 3324750 | AO25: 2 | AP25: =$AF25*Engine!$I$22*(1+Assumptions_Overall!$H$94) -> 3823974 | AQ25: 3823974
A26: 129 | B26: M3 | C26: LILLE | D26: 2 RUE SIMONE VIEL ILOT 1 PARKING | E26: 59 | F26: Major cities | G26: A | H26: Collective housing | I26: Delivered | J26: 2021-06-18T12:00:00 | K26: 2022-12-08 | L26: 2526.5 | M26: 31 | N26: 81.5 | O26: 0.03 | P26: =IF(F26=Assumptions_Overall!$E$118,Assumptions_Overall!$G$118,Assumptions_Overall!$G$119) -> 0.19 | Q26: 0.19 | R26: -11.79497328 | S26: 0 | T26: -26457.5267 | U26: -7700 | V26: 248.3870968 | W26: -8150 | X26: 1 | Y26: X | Z26: 8800000 | AA26: =AD26/(Z26*(1+Assumptions_Overall!$G$51)) -> 0.03885723729 | AB26: 337974 | AC26: 11.14763507 | AD26: 348270 | AE26: 11.48723531 | AF26: 9978790 | AG26: -0.1181295528 | AH26: 0.018 | AI26: 10158408.22 | AJ26: =CHOOSE(Assumptions_Overall!$G$40,AL26,AM26,AN26) -> 8359736.557 | AK26: =CHOOSE(Assumptions_Overall!$G$92,AP26,AQ26) -> 10208302.17 | AL26: =$Z26*Engine!$I$22*(1+Assumptions_Overall!$H$42) -> 9002400 | AM26: =$Z26*Engine!$I$22*$AM$10 -> 8359736.557 | AN26: 9002400 | AO26: 2 | AP26: =$AF26*Engine!$I$22*(1+Assumptions_Overall!$H$94) -> 10208302.17 | AQ26: 10208302.17
A27: 89 | B27: M3 | C27: ST ANDRE LEZ LILLE | D27: 194 QUAI SADI CARNOT | E27: 59 | F27: Major cities | G27: A | H27: Collective housing | I27: Delivered | J27: 2020-11-24T12:00:00 | K27: 2023-01-23 | L27: 1633.25 | M27: 21 | N27: 77.77380952 | O27: 0.03 | P27: =IF(F27=Assumptions_Overall!$E$118,Assumptions_Overall!$G$118,Assumptions_Overall!$G$119) -> 0.19 | Q27: 0.19 | R27: -11.32710853 | S27: 0 | T27: -9087.95994 | U27: -5750 | V27: 273.8095238 | W27: -4384.989863 | X27: 1 | Y27: X | Z27: 6300000 | AA27: =AD27/(Z27*(1+Assumptions_Overall!$G$51)) -> 0.03598298237 | AB27: 226489.596 | AC27: 11.55618123 | AD27: 230886.84 | AE27: 11.78054186 | AF27: 7050433 | AG27: -0.1064378599 | AH27: 0.018 | AI27: 7177340.794 | AJ27: =CHOOSE(Assumptions_Overall!$G$40,AL27,AM27,AN27) -> 5984811.399 | AK27: =CHOOSE(Assumptions_Overall!$G$92,AP27,AQ27) -> 7212592.959 | AL27: =$Z27*Engine!$I$22*(1+Assumptions_Overall!$H$42) -> 6444900 | AM27: =$Z27*Engine!$I$22*$AM$10 -> 5984811.399 | AN27: 6444900 | AO27: 2 | AP27: =$AF27*Engine!$I$22*(1+Assumptions_Overall!$H$94) -> 7212592.959 | AQ27: 7212592.959
A28: 70 | B28: M3 | C28: VERNEUIL SUR SEINE | D28: 2 BIS GRANDE RUE | E28: 78 | F28: GPR | G28: A | H28: Collective housing | I28: Delivered | J28: 2020-11-26T12:00:00 | K28: 2023-04-07 | L28: 1318.9 | M28: 22 | N28: 59.95 | O28: 0.03 | P28: =IF(F28=Assumptions_Overall!$E$118,Assumptions_Overall!$G$118,Assumptions_Overall!$G$119) -> 0.17 | Q28: 0.17 | R28: -27.6745773 | S28: 0 | T28: -9230.9664 | U28: -5984.211382 | V28: 272.0096083 | W28: -4340.5457 | X28: 1 | Y28: X | Z28: 5850000 | AA28: =AD28/(Z28*(1+Assumptions_Overall!$G$51)) -> 0.04003474152 | AB28: 250695.2 | AC28: 15.8399171 | AD28: 238536.24 | AE28: 15.07166578 | AF28: 6950583 | AG28: -0.1583439835 | AH28: 0.018 | AI28: 7075693.494 | AJ28: =CHOOSE(Assumptions_Overall!$G$40,AL28,AM28,AN28) -> 5557324.871 | AK28: =CHOOSE(Assumptions_Overall!$G$92,AP28,AQ28) -> 7110446.409 | AL28: =$Z28*Engine!$I$22*(1+Assumptions_Overall!$H$42) -> 5984550 | AM28: =$Z28*Engine!$I$22*$AM$10 -> 5557324.871 | AN28: 5984550 | AO28: 2 | AP28: =$AF28*Engine!$I$22*(1+Assumptions_Overall!$H$94) -> 7110446.409 | AQ28: 7110446.409
A29: 59 | B29: M3 | C29: CARRIERES SOUS POISSY | D29: 555 RUE DANIEL BLERVAQUE | E29: 78 | F29: GPR | G29: A | H29: Collective housing | I29: Delivered | J29: 2021-03-25T12:00:00 | K29: 2023-04-19 | L29: 1500.8 | M29: 20 | N29: 75.04 | O29: 0.03 | P29: =IF(F29=Assumptions_Overall!$E$118,Assumptions_Overall!$G$118,Assumptions_Overall!$G$119) -> 0.17 | Q29: 0.17 | R29: -18.3901919 | S29: 0 | T29: -9110.3664 | U29: -5470 | V29: 273.5 | W29: -4048.222085 | X29: 1 | Y29: X | Z29: 5820000 | AA29: =AD29/(Z29*(1+Assumptions_Overall!$G$51)) -> 0.04429707682 | AB29: 251874.72 | AC29: 13.98558102 | AD29: 262578.72 | AE29: 14.5799307 | AF29: 6497780 | AG29: -0.1043094719 | AH29: 0.018 | AI29: 6614740.04 | AJ29: =CHOOSE(Assumptions_Overall!$G$40,AL29,AM29,AN29) -> 5528825.769 | AK29: =CHOOSE(Assumptions_Overall!$G$92,AP29,AQ29) -> 6647228.94 | AL29: =$Z29*Engine!$I$22*(1+Assumptions_Overall!$H$42) -> 5953860 | AM29: =$Z29*Engine!$I$22*$AM$10 -> 5528825.769 | AN29: 5953860 | AO29: 2 | AP29: =$AF29*Engine!$I$22*(1+Assumptions_Overall!$H$94) -> 6647228.94 | AQ29: 6647228.94
A30: 130 | B30: M3 | C30: VAUCRESSON | D30: 8 ROUTE NAPOLÉON III BATIMENT B | E30: 92 | F30: GPR | G30: Abis | H30: Collective housing | I30: Delivered | J30: 2021-07-01T12:00:00 | K30: 2023-07-07 | L30: 1908.38 | M30: 28 | N30: 68.15642857 | O30: 0.03 | P30: =IF(F30=Assumptions_Overall!$E$118,Assumptions_Overall!$G$118,Assumptions_Overall!$G$119) -> 0.17 | Q30: 0.17 | R30: -19.07376938 | S30: 5 | T30: -15697.11298 | U30: -7637.400545 | V30: 272.7643052 | W30: -5251.230553 | X30: 1 | Y30: X | Z30: 12520000 | AA30: =AD30/(Z30*(1+Assumptions_Overall!$G$51)) -> 0.03476885837 | AB30: 459371 | AC30: 20.05937846 | AD30: 443359.72 | AE30: 19.36021303 | AF30: 15271784 | AG30: -0.1801874621 | AH30: 0.018 | AI30: 15546676.11 | AJ30: =CHOOSE(Assumptions_Overall!$G$40,AL30,AM30,AN30) -> 11893625.19 | AK30: =CHOOSE(Assumptions_Overall!$G$92,AP30,AQ30) -> 15623035.03 | AL30: =$Z30*Engine!$I$22*(1+Assumptions_Overall!$H$42) -> 12807960 | AM30: =$Z30*Engine!$I$22*$AM$10 -> 11893625.19 | AN30: 12807960 | AO30: 2 | AP30: =$AF30*Engine!$I$22*(1+Assumptions_Overall!$H$94) -> 15623035.03 | AQ30: 15623035.03
A31: 127 | B31: M3 | C31: VAUCRESSON | D31: 10 ROUTE NAPOLÉON III | E31: 92 | F31: GPR | G31: Abis | H31: Collective housing | I31: Delivered | J31: 2021-06-30T12:00:00 | K31: 2023-07-07 | L31: 1853.35 | M31: 25 | N31: 74.134 | O31: 0.03 | P31: =IF(F31=Assumptions_Overall!$E$118,Assumptions_Overall!$G$118,Assumptions_Overall!$G$119) -> 0.17 | Q31: 0.17 | R31: -17.53581353 | S31: 4 | T31: -15880.86778 | U31: -6809.986413 | V31: 272.3994565 | W31: -4965.2355 | X31: 1 | Y31: X | Z31: 12440000 | AA31: =AD31/(Z31*(1+Assumptions_Overall!$G$51)) -> 0.03381502901 | AB31: 452728.2 | AC31: 20.35630075 | AD31: 428441.5867 | AE31: 19.26428659 | AF31: 14744094 | AG31: -0.1562723352 | AH31: 0.018 | AI31: 15009487.69 | AJ31: =CHOOSE(Assumptions_Overall!$G$40,AL31,AM31,AN31) -> 11817627.59 | AK31: =CHOOSE(Assumptions_Overall!$G$92,AP31,AQ31) -> 15083208.16 | AL31: =$Z31*Engine!$I$22*(1+Assumptions_Overall!$H$42) -> 12726120 | AM31: =$Z31*Engine!$I$22*$AM$10 -> 11817627.59 | AN31: 12726120 | AO31: 2 | AP31: =$AF31*Engine!$I$22*(1+Assumptions_Overall!$H$94) -> 15083208.16 | AQ31: 15083208.16
A32: 71 | B32: M3 | C32: TORCY | D32: 8 RUE HESPÉRIE | E32: 77 | F32: GPR | G32: A | H32: Collective housing | I32: Delivered | J32: 2020-12-15T12:00:00 | K32: 2024-04-05 | L32: 2873.9 | M32: 46 | N32: 62.47608696 | O32: 0.03 | P32: =IF(F32=Assumptions_Overall!$E$118,Assumptions_Overall!$G$118,Assumptions_Overall!$G$119) -> 0.17 | Q32: 0.085 | R32: -20.80796131 | S32: 0 | T32: -18271.19753 | U32: -12311.53892 | V32: 267.6421505 | W32: -8798.472 | X32: 1 | Y32: X | Z32: 11220000 | AA32: =AD32/(Z32*(1+Assumptions_Overall!$G$51)) -> 0.04578755665 | AB32: 519479.36 | AC32: 15.06313604 | AD32: 523241.04 | AE32: 15.17221198 | AF32: 13030160 | AG32: -0.1389207807 | AH32: 0.018 | AI32: 13264702.88 | AJ32: =CHOOSE(Assumptions_Overall!$G$40,AL32,AM32,AN32) -> 10658664.11 | AK32: =CHOOSE(Assumptions_Overall!$G$92,AP32,AQ32) -> 13329853.68 | AL32: =$Z32*Engine!$I$22*(1+Assumptions_Overall!$H$42) -> 11478060 | AM32: =$Z32*Engine!$I$22*$AM$10 -> 10658664.11 | AN32: 11478060 | AO32: 2 | AP32: =$AF32*Engine!$I$22*(1+Assumptions_Overall!$H$94) -> 13329853.68 | AQ32: 13329853.68
A33: 74 | B33: M3 | C33: GAGNY | D33: 3 CHEMIN D'ACCES AUX ABESSES | E33: 93 | F33: GPR | G33: A | H33: Collective housing | I33: Delivered | J33: 2020-07-27 | K33: 2022-03-29 | L33: 155.47 | M33: 2 | N33: 77.735 | O33: 0.03 | P33: =IF(F33=Assumptions_Overall!$E$118,Assumptions_Overall!$G$118,Assumptions_Overall!$G$119) -> 0.17 | Q33: 0.17 | R33: -17.19174117 | S33: 0 | T33: -45 | U33: -823.5 | V33: 411.75 | W33: -352 | X33: 1 | Y33: X | Z33: 530000 | AA33: =AD33/(Z33*(1+Assumptions_Overall!$G$51)) -> 0.04951294053 | AB33: 25645.32 | AC33: 13.74612465 | AD33: 26727.36 | AE33: 14.32610793 | AF33: =569145 -> 569145 | AG33: -0.06877860651 | AH33: 0.018 | AI33: 579389.61 | AJ33: =CHOOSE(Assumptions_Overall!$G$40,AL33,AM33,AN33) -> 503484.1336 | AK33: =CHOOSE(Assumptions_Overall!$G$92,AP33,AQ33) -> 582235.335 | AL33: =$Z33*Engine!$I$22*(1+Assumptions_Overall!$H$42) -> 542190 | AM33: =$Z33*Engine!$I$22*$AM$10 -> 503484.1336 | AN33: 542190 | AO33: 2 | AP33: =$AF33*Engine!$I$22*(1+Assumptions_Overall!$H$94) -> 582235.335 | AQ33: 582235.335
A34: 98 | B34: M4 | C34: PERTUIS | D34: 60 ROCADE SIMONE VEIL VILLA N°59 | E34: 84 | F34: PACA | G34: B1 | H34: Individual housing | I34: Delivered | J34: 2020-12-30T12:00:00 | K34: 2022-08-09 | L34: 1604.6 | M34: 18 | N34: 89.14444444 | O34: 0.03 | P34: =IF(F34=Assumptions_Overall!$E$118,Assumptions_Overall!$G$118,Assumptions_Overall!$G$119) -> 0.19 | Q34: 0.19 | R34: -5.795836969 | S34: 0 | T34: -10617.6 | U34: -4545.50905 | V34: 252.5282806 | W34: -3680 | X34: 1 | Y34: X | Z34: 5230000 | AA34: =AD34/(Z34*(1+Assumptions_Overall!$G$51)) -> 0.04339023013 | AB34: 250317.6 | AC34: 13 | AD34: 231129.36 | AE34: 12.0034775 | AF34: 5937020 | AG34: -0.1190866798 | AH34: 0.018 | AI34: 6043886.36 | AJ34: =CHOOSE(Assumptions_Overall!$G$40,AL34,AM34,AN34) -> 4968343.431 | AK34: =CHOOSE(Assumptions_Overall!$G$92,AP34,AQ34) -> 6073571.46 | AL34: =$Z34*Engine!$I$22*(1+Assumptions_Overall!$H$42) -> 5350290 | AM34: =$Z34*Engine!$I$22*$AM$10 -> 4968343.431 | AN34: 5350290 | AO34: 2 | AP34: =$AF34*Engine!$I$22*(1+Assumptions_Overall!$H$94) -> 6073571.46 | AQ34: 6073571.46
A35: 114 | B35: M4 | C35: ISSY LES MOULINEAUX | D35: 16 RUE VICTOR HUGO CŒUR DE TOPAZE 1 | E35: 92 | F35: GPR | G35: Abis | H35: Collective housing | I35: Delivered | J35: 2021-03-30T12:00:00 | K35: 2022-11-03 | L35: 2099.69 | M35: 42 | N35: 49.99261905 | O35: 0.03 | P35: =IF(F35=Assumptions_Overall!$E$118,Assumptions_Overall!$G$118,Assumptions_Overall!$G$119) -> 0.17 | Q35: 0.17 | R35: -22.57142857 | S35: 2 | T35: -404 | U35: -10020 | V35: 238.5714286 | W35: -8793 | X35: 1 | Y35: X | Z35: 19550000 | AA35: =AD35/(Z35*(1+Assumptions_Overall!$G$51)) -> 0.03388488788 | AB35: 661874.88 | AC35: 26.26875396 | AD35: 674705.56 | AE35: 26.7779831 | AF35: =22548383 -> 22548383 | AG35: -0.132975522 | AH35: 0.018 | AI35: 22954253.89 | AJ35: =CHOOSE(Assumptions_Overall!$G$40,AL35,AM35,AN35) -> 18571914.74 | AK35: =CHOOSE(Assumptions_Overall!$G$92,AP35,AQ35) -> 23066995.81 | AL35: =$Z35*Engine!$I$22*(1+Assumptions_Overall!$H$42) -> 19999650 | AM35: =$Z35*Engine!$I$22*$AM$10 -> 18571914.74 | AN35: 19999650 | AO35: 2 | AP35: =$AF35*Engine!$I$22*(1+Assumptions_Overall!$H$94) -> 23066995.81 | AQ35: 28685939.93
A36: 118 | B36: M4 | C36: MARSEILLE | D36: 47 TRAVERSE DE LA SEIGNEURIE | E36: 13 | F36: PACA | G36: A | H36: Collective housing | I36: Delivered | J36: 2021-05-18T12:00:00 | K36: 2023-04-14 | L36: 1370.8 | M36: 23 | N36: 59.6 | O36: 0.03 | P36: =IF(F36=Assumptions_Overall!$E$118,Assumptions_Overall!$G$118,Assumptions_Overall!$G$119) -> 0.19 | Q36: 0.19 | R36: -19.69652758 | S36: 1 | T36: -9165.6528 | U36: -5115.5 | V36: 222.4130435 | W36: -4521.62274 | X36: 1 | Y36: X | Z36: 5910000 | AA36: =AD36/(Z36*(1+Assumptions_Overall!$G$51)) -> 0.03932340028 | AB36: 237148.8 | AC36: 14.41669098 | AD36: 236700.96 | AE36: 14.38946601 | AF36: 6835160 | AG36: -0.1353530861 | AH36: 0.018 | AI36: 6958192.88 | AJ36: =CHOOSE(Assumptions_Overall!$G$40,AL36,AM36,AN36) -> 5614323.074 | AK36: =CHOOSE(Assumptions_Overall!$G$92,AP36,AQ36) -> 6992368.68 | AL36: =$Z36*Engine!$I$22*(1+Assumptions_Overall!$H$42) -> 6045930 | AM36: =$Z36*Engine!$I$22*$AM$10 -> 5614323.074 | AN36: 6045930 | AO36: 2 | AP36: =$AF36*Engine!$I$22*(1+Assumptions_Overall!$H$94) -> 6992368.68 | AQ36: 6992368.68
A37: 115 | B37: M4 | C37: CLICHY | D37: 26 RUE DAGOBERT 129 BOULEVARD JEAN JAURÈS 43-45 RUE PIERRE | E37: 92 | F37: GPR | G37: Abis | H37: Collective housing | I37: Delivered | J37: 2021-03-30T12:00:00 | K37: 2023-07-20 | L37: 951.18 | M37: 20 | N37: 47.559 | O37: 0.03 | P37: =IF(F37=Assumptions_Overall!$E$118,Assumptions_Overall!$G$118,Assumptions_Overall!$G$119) -> 0.17 | Q37: 0.17 | R37: -28.49092706 | S37: 2 | T37: -7418.25 | U37: -5540 | V37: 277 | W37: -3406.9396 | X37: 1 | Y37: X | Z37: 6830000 | AA37: =AD37/(Z37*(1+Assumptions_Overall!$G$51)) -> 0.03711177734 | AB37: 266614.24 | AC37: 23.35820069 | AD37: 258162.96 | AE37: 22.61778002 | AF37: 7916260 | AG37: -0.1372188382 | AH37: 0.018 | AI37: 8058752.68 | AJ37: =CHOOSE(Assumptions_Overall!$G$40,AL37,AM37,AN37) -> 6488295.533 | AK37: =CHOOSE(Assumptions_Overall!$G$92,AP37,AQ37) -> 8098333.98 | AL37: =$Z37*Engine!$I$22*(1+Assumptions_Overall!$H$42) -> 6987090 | AM37: =$Z37*Engine!$I$22*$AM$10 -> 6488295.533 | AN37: 6987090 | AO37: 2 | AP37: =$AF37*Engine!$I$22*(1+Assumptions_Overall!$H$94) -> 8098333.98 | AQ37: 8098333.98
A38: 112 | B38: M4 | C38: RUEIL MALMAISON | D38: 55AVENUE DU PRÉSIDENT POMPIDOU 57 AVENUE DU PRÉSIDENT POMPIDOU | E38: 92 | F38: GPR | G38: Abis | H38: Collective housing | I38: Delivered | J38: 2021-03-10T12:00:00 | K38: 2023-12-06 | L38: 3954.81 | M38: 66 | N38: 59.92136364 | O38: 0.03 | P38: =IF(F38=Assumptions_Overall!$E$118,Assumptions_Overall!$G$118,Assumptions_Overall!$G$119) -> 0.17 | Q38: 0.17 | R38: -21.6951004 | S38: 4 | T38: -35836.84685 | U38: -18282 | V38: 277 | W38: -12715.12603 | X38: 1 | Y38: X | Z38: 25700000 | AA38: =AD38/(Z38*(1+Assumptions_Overall!$G$51)) -> 0.0391379831 | AB38: 1072792 | AC38: 22.60521576 | AD38: 1024455.36 | AE38: 21.58669569 | AF38: 29050047 | AG38: -0.1153198478 | AH38: 0.018 | AI38: 29572947.85 | AJ38: =CHOOSE(Assumptions_Overall!$G$40,AL38,AM38,AN38) -> 24414230.63 | AK38: =CHOOSE(Assumptions_Overall!$G$92,AP38,AQ38) -> 29718198.08 | AL38: =$Z38*Engine!$I$22*(1+Assumptions_Overall!$H$42) -> 26291100 | AM38: =$Z38*Engine!$I$22*$AM$10 -> 24414230.63 | AN38: 26291100 | AO38: 2 | AP38: =$AF38*Engine!$I$22*(1+Assumptions_Overall!$H$94) -> 29718198.08 | AQ38: 29718198.08
A39: 133 | B39: M4 | C39: VERNOUILLET | D39: LE PARC DU CHÂTEAU 1 RUE DU COLONEL BELTRAME | E39: 78 | F39: GPR | G39: A | H39: Collective housing | I39: Delivered | J39: 2021-07-28T12:00:00 | K39: 2024-01-30 | L39: 2065.29 | M39: 32 | N39: 64.5403125 | O39: 0.03 | P39: =IF(F39=Assumptions_Overall!$E$118,Assumptions_Overall!$G$118,Assumptions_Overall!$G$119) -> 0.17 | Q39: 0.085 | R39: -17.88806363 | S39: 2 | T39: 0 | U39: -7871.922141 | V39: 245.9975669 | W39: -2262.206027 | X39: 1 | Y39: X | Z39: 8410000 | AA39: =AD39/(Z39*(1+Assumptions_Overall!$G$51)) -> 0.04298182858 | AB39: 374156.24 | AC39: 15.09700171 | AD39: 368164.88 | AE39: 14.85525358 | AF39: 9607568 | AG39: -0.1246484022 | AH39: 0.018 | AI39: 9780504.224 | AJ39: =CHOOSE(Assumptions_Overall!$G$40,AL39,AM39,AN39) -> 7989248.233 | AK39: =CHOOSE(Assumptions_Overall!$G$92,AP39,AQ39) -> 9828542.064 | AL39: =$Z39*Engine!$I$22*(1+Assumptions_Overall!$H$42) -> 8603430 | AM39: =$Z39*Engine!$I$22*$AM$10 -> 7989248.233 | AN39: 8603430 | AO39: 2 | AP39: =$AF39*Engine!$I$22*(1+Assumptions_Overall!$H$94) -> 9828542.064 | AQ39: 9828542.064
A40: 105 | B40: M4 | C40: NOISY LE GRAND | D40: 4 ALLÉE DES FRUITIERS | E40: 93 | F40: GPR | G40: A | H40: Collective housing | I40: Delivered | J40: 2020-12-29T12:00:00 | K40: 2024-04-04 | L40: 3027.2 | M40: 50 | N40: 60.544 | O40: 0.03 | P40: =IF(F40=Assumptions_Overall!$E$118,Assumptions_Overall!$G$118,Assumptions_Overall!$G$119) -> 0.17 | Q40: 0.085 | R40: -17.59867224 | S40: 0 | T40: 0 | U40: -13757.48408 | V40: 275.1496817 | W40: -8908.636 | X40: 1 | Y40: X | Z40: 13300000 | AA40: =AD40/(Z40*(1+Assumptions_Overall!$G$51)) -> 0.04456060232 | AB40: 618612.72 | AC40: 17.02928779 | AD40: 603620.76 | AE40: 16.61658628 | AF40: 14897554 | AG40: -0.1072359932 | AH40: 0.018 | AI40: 15165709.97 | AJ40: =CHOOSE(Assumptions_Overall!$G$40,AL40,AM40,AN40) -> 12634601.84 | AK40: =CHOOSE(Assumptions_Overall!$G$92,AP40,AQ40) -> 15240197.74 | AL40: =$Z40*Engine!$I$22*(1+Assumptions_Overall!$H$42) -> 13605900 | AM40: =$Z40*Engine!$I$22*$AM$10 -> 12634601.84 | AN40: 13605900 | AO40: 2 | AP40: =$AF40*Engine!$I$22*(1+Assumptions_Overall!$H$94) -> 15240197.74 | AQ40: 15240197.74
A41: 104 | B41: M4 | C41: CAVALAIRE SUR MER | D41: 1004 AVENUE MARÉCHAL LYAUTEY | E41: 83 | F41: PACA | G41: A | H41: Collective housing | I41: Delivered | J41: 2021-03-26T12:00:00 | K41: 2024-09-17 | L41: 933.04 | M41: 21 | N41: 44.43047619 | O41: 0.03 | P41: =IF(F41=Assumptions_Overall!$E$118,Assumptions_Overall!$G$118,Assumptions_Overall!$G$119) -> 0.19 | Q41: 0 | R41: -18 | S41: 10 | T41: -2033.85 | U41: -5554.06391 | V41: 264.4792338 | W41: -3997.272329 | X41: 1 | Y41: X | Z41: 4940000 | AA41: =AD41/(Z41*(1+Assumptions_Overall!$G$51)) -> 0.04112519004 | AB41: 221411.28 | AC41: 19.77507931 | AD41: 206917.08 | AE41: 18.48054746 | AF41: 5731186 | AG41: -0.1380492624 | AH41: 0.018 | AI41: 5834347.348 | AJ41: =CHOOSE(Assumptions_Overall!$G$40,AL41,AM41,AN41) -> 4692852.113 | AK41: =CHOOSE(Assumptions_Overall!$G$92,AP41,AQ41) -> 5863003.278 | AL41: =$Z41*Engine!$I$22*(1+Assumptions_Overall!$H$42) -> 5053620 | AM41: =$Z41*Engine!$I$22*$AM$10 -> 4692852.113 | AN41: 5053620 | AO41: 2 | AP41: =$AF41*Engine!$I$22*(1+Assumptions_Overall!$H$94) -> 5863003.278 | AQ41: 5863003.278
A42: 106 | B42: M4 | C42: CORMEILLES EN PARISIS | D42: 12 VOIE PRIVEE DU COLONEL ARNAUD BELTRAME | E42: 95 | F42: GPR | G42: A | H42: Collective housing | I42: Delivered | J42: 2020-12-30T12:00:00 | K42: 2024-09-11 | L42: 3139.1 | M42: 54 | N42: 58.13148148 | O42: 0.03 | P42: =IF(F42=Assumptions_Overall!$E$118,Assumptions_Overall!$G$118,Assumptions_Overall!$G$119) -> 0.17 | Q42: 0 | R42: -18.57493757 | S42: 13 | T42: 0 | U42: -12430.94262 | V42: 230.2026412 | W42: -5208 | X42: 1 | Y42: X | Z42: 14020000 | AA42: =AD42/(Z42*(1+Assumptions_Overall!$G$51)) -> 0.04549204484 | AB42: 670401.6 | AC42: 17.79707559 | AD42: 649598.4 | AE42: 17.24481539 | AF42: 16084420 | AG42: -0.1283490483 | AH42: 0.018 | AI42: 16373939.56 | AJ42: =CHOOSE(Assumptions_Overall!$G$40,AL42,AM42,AN42) -> 13318580.29 | AK42: =CHOOSE(Assumptions_Overall!$G$92,AP42,AQ42) -> 16454361.66 | AL42: =$Z42*Engine!$I$22*(1+Assumptions_Overall!$H$42) -> 14342460 | AM42: =$Z42*Engine!$I$22*$AM$10 -> 13318580.29 | AN42: 14342460 | AO42: 2 | AP42: =$AF42*Engine!$I$22*(1+Assumptions_Overall!$H$94) -> 16454361.66 | AQ42: 16454361.66
A43: 136 | B43: M5 | C43: GRETZ ARMAINVILLIERS | D43: 7-9 AVENUE CARNOT | E43: 77 | F43: GPR | G43: A | H43: Collective housing | I43: Delivered | J43: 2021-10-15T12:00:00 | K43: 2023-11-07 | L43: 1987.55 | M43: 36 | N43: 55.20972222 | O43: 0.03 | P43: =IF(F43=Assumptions_Overall!$E$118,Assumptions_Overall!$G$118,Assumptions_Overall!$G$119) -> 0.17 | Q43: =IF(YEAR($K43)>2023,P43/2,P43) -> 0.17 | R43: -23.54657744 | S43: 3 | T43: -13034.21331 | U43: -9819.514986 | V43: 272.7643052 | W43: -6863.08 | X43: 1 | Y43: X | Z43: 8020000 | AA43: =AD43/(Z43*(1+Assumptions_Overall!$G$51)) -> 0.04291362953 | AB43: 367488 | AC43: 15.40791427 | AD43: 350534.76 | AE43: 14.69710448 | AF43: 9353890 | AG43: -0.1426027033 | AH43: 0.018 | AI43: 9522260.02 | AJ43: =CHOOSE(Assumptions_Overall!$G$40,AL43,AM43,AN43) -> 7618759.908 | AK43: =CHOOSE(Assumptions_Overall!$G$92,AP43,AQ43) -> 9569029.47 | AL43: =$Z43*Engine!$I$22*(1+Assumptions_Overall!$H$42) -> 8204460 | AM43: =$Z43*Engine!$I$22*$AM$10 -> 7618759.908 | AN43: 8204460 | AO43: 2 | AP43: =$AF43*Engine!$I$22*(1+Assumptions_Overall!$H$94) -> 9569029.47 | AQ43: 9569029.47
A44: 142 | B44: M5 | C44: MEAUX | D44: 11 RUE DES FUSILLIERS | E44: 77 | F44: GPR | G44: A | H44: Collective housing | I44: Delivered | J44: 2021-12-07T12:00:00 | K44: 2024-02-01 | L44: 2471 | M44: 45 | N44: 54.91111111 | O44: 0.03 | P44: =IF(F44=Assumptions_Overall!$E$118,Assumptions_Overall!$G$118,Assumptions_Overall!$G$119) -> 0.17 | Q44: 0.085 | R44: -23.67462566 | S44: 1 | T44: -16668.74091 | U44: -12465 | V44: 277 | W44: -8739.308219 | X44: 1 | Y44: X | Z44: 9140000 | AA44: =AD44/(Z44*(1+Assumptions_Overall!$G$51)) -> 0.04959332128 | AB44: 466081.24 | AC44: 15.71837448 | AD44: 461669.16 | AE44: 15.56957912 | AF44: 10140353 | AG44: -0.09865070772 | AH44: 0.018 | AI44: 10322879.35 | AJ44: =CHOOSE(Assumptions_Overall!$G$40,AL44,AM44,AN44) -> 8682726.379 | AK44: =CHOOSE(Assumptions_Overall!$G$92,AP44,AQ44) -> 10373581.12 | AL44: =$Z44*Engine!$I$22*(1+Assumptions_Overall!$H$42) -> 9350220 | AM44: =$Z44*Engine!$I$22*$AM$10 -> 8682726.379 | AN44: 9350220 | AO44: 2 | AP44: =$AF44*Engine!$I$22*(1+Assumptions_Overall!$H$94) -> 10373581.12 | AQ44: 10373581.12
A45: 140 | B45: M5 | C45: METZ | D45: 16 RUE DE QUEULEU | E45: 57 | F45: Major cities | G45: B1 | H45: Collective housing | I45: Delivered | J45: 2021-11-29T12:00:00 | K45: 2024-05-31 | L45: 3339.65 | M45: 74 | N45: 45.13040541 | O45: 0.03 | P45: =IF(F45=Assumptions_Overall!$E$118,Assumptions_Overall!$G$118,Assumptions_Overall!$G$119) -> 0.19 | Q45: 0.095 | R45: -18 | S45: 0 | T45: -56297.25 | U45: -11084.26005 | V45: 149.787298 | W45: -14229.34137 | X45: 1 | Y45: X | Z45: 12030000 | AA45: =AD45/(Z45*(1+Assumptions_Overall!$G$51)) -> 0.04451375621 | AB45: 554391.12 | AC45: 13.8335634 | AD45: 545407.8 | AE45: 13.60940518 | AF45: 14031351 | AG45: -0.1426342339 | AH45: 0.018 | AI45: 14283915.32 | AJ45: =CHOOSE(Assumptions_Overall!$G$40,AL45,AM45,AN45) -> 11428139.86 | AK45: =CHOOSE(Assumptions_Overall!$G$92,AP45,AQ45) -> 14354072.07 | AL45: =$Z45*Engine!$I$22*(1+Assumptions_Overall!$H$42) -> 12306690 | AM45: =$Z45*Engine!$I$22*$AM$10 -> 11428139.86 | AN45: 12306690 | AO45: 2 | AP45: =$AF45*Engine!$I$22*(1+Assumptions_Overall!$H$94) -> 14354072.07 | AQ45: 14354072.07
A46: 134 | B46: M5 | C46: BOIS COLOMBES | D46: 301-313 AVENUE D'ARGENTEUIL | E46: 92 | F46: GPR | G46: Abis | H46: Collective housing | I46: Delivered | J46: 2021-07-30T12:00:00 | K46: 2024-07-18 | L46: 4249.58 | M46: 68 | N46: 62.49382353 | O46: 0.03 | P46: =IF(F46=Assumptions_Overall!$E$118,Assumptions_Overall!$G$118,Assumptions_Overall!$G$119) -> 0.17 | Q46: 0 | R46: -15.68750071 | S46: 31 | T46: 0 | U46: -14204.83471 | V46: 208.8946281 | W46: -5800 | X46: 1 | Y46: X | Z46: 24620000 | AA46: =AD46/(Z46*(1+Assumptions_Overall!$G$51)) -> 0.04142260884 | AB46: 1016568.56 | AC46: 19.93468688 | AD46: 1038692.44 | AE46: 20.36853132 | AF46: 28337413 | AG46: -0.1311839228 | AH46: 0.018 | AI46: 28847486.43 | AJ46: =CHOOSE(Assumptions_Overall!$G$40,AL46,AM46,AN46) -> 23388262.96 | AK46: =CHOOSE(Assumptions_Overall!$G$92,AP46,AQ46) -> 28989173.5 | AL46: =$Z46*Engine!$I$22*(1+Assumptions_Overall!$H$42) -> 25186260 | AM46: =$Z46*Engine!$I$22*$AM$10 -> 23388262.96 | AN46: 25186260 | AO46: 2 | AP46: =$AF46*Engine!$I$22*(1+Assumptions_Overall!$H$94) -> 28989173.5 | AQ46: 28989173.5
A47: 135 | B47: M5 | C47: BOIS COLOMBES | D47: 303 AVENUE D'ARGENTEUIL | E47: 92 | F47: GPR | G47: Abis | H47: Collective housing | I47: Delivered | J47: 2021-07-30T12:00:00 | K47: 2024-07-11 | L47: 2971.76 | M47: 49 | N47: 60.64816327 | O47: 0.03 | P47: =IF(F47=Assumptions_Overall!$E$118,Assumptions_Overall!$G$118,Assumptions_Overall!$G$119) -> 0.17 | Q47: 0 | R47: -18.36576254 | S47: 21 | T47: 0 | U47: -11629.44836 | V47: 237.3356808 | W47: -4307.865205 | X47: 1 | Y47: X | Z47: 17860000 | AA47: =AD47/(Z47*(1+Assumptions_Overall!$G$51)) -> 0.0417323789 | AB47: 753462.96 | AC47: 21.12841548 | AD47: 759129.8533 | AE47: 21.28732506 | AF47: 20572715 | AG47: -0.1318598445 | AH47: 0.018 | AI47: 20943023.87 | AJ47: =CHOOSE(Assumptions_Overall!$G$40,AL47,AM47,AN47) -> 16966465.33 | AK47: =CHOOSE(Assumptions_Overall!$G$92,AP47,AQ47) -> 21045887.44 | AL47: =$Z47*Engine!$I$22*(1+Assumptions_Overall!$H$42) -> 18270780 | AM47: =$Z47*Engine!$I$22*$AM$10 -> 16966465.33 | AN47: 18270780 | AO47: 2 | AP47: =$AF47*Engine!$I$22*(1+Assumptions_Overall!$H$94) -> 21045887.44 | AQ47: 21045887.44
A48: 147 | B48: M5 | C48: CAGNES SUR MER | D48: 20 CHEMIN DES PRESSES BAT C | E48: 06 | F48: PACA | G48: A | H48: Collective housing | I48: Delivered | J48: 2022-01-31T12:00:00 | K48: 2024-09-12 | L48: 2163.67 | M48: 37 | N48: 58.47756757 | O48: 0.03 | P48: =IF(F48=Assumptions_Overall!$E$118,Assumptions_Overall!$G$118,Assumptions_Overall!$G$119) -> 0.19 | Q48: 0.095 | R48: -13.30200425 | S48: 0 | T48: 0 | U48: -7157.498361 | V48: 193.4459016 | W48: -5908.393151 | X48: 1 | Y48: X | Z48: 9100000 | AA48: =AD48/(Z48*(1+Assumptions_Overall!$G$51)) -> 0.04648467985 | AB48: 425011.84 | AC48: 16.36924916 | AD48: 430836.72 | AE48: 16.59359329 | AF48: 10752384 | AG48: -0.1536760592 | AH48: 0.018 | AI48: 10945926.91 | AJ48: =CHOOSE(Assumptions_Overall!$G$40,AL48,AM48,AN48) -> 8644727.576 | AK48: =CHOOSE(Assumptions_Overall!$G$92,AP48,AQ48) -> 10999688.83 | AL48: =$Z48*Engine!$I$22*(1+Assumptions_Overall!$H$42) -> 9309300 | AM48: =$Z48*Engine!$I$22*$AM$10 -> 8644727.576 | AN48: 9309300 | AO48: 2 | AP48: =$AF48*Engine!$I$22*(1+Assumptions_Overall!$H$94) -> 10999688.83 | AQ48: 10999688.83
A49: 151 | B49: M5 | C49: DIVONNE | D49: 689 RUE VOLTAIRE | E49: 01 | F49: Swiss border | G49: Abis | H49: Collective housing | I49: Under development | J49: 2022-09-30T12:00:00 | K49: 2025-05-31 | L49: 1176.68 | M49: 16 | N49: 73.5425 | O49: 0.03 | P49: =IF(F49=Assumptions_Overall!$E$118,Assumptions_Overall!$G$118,Assumptions_Overall!$G$119) -> 0.19 | Q49: 0.095 | R49: -18 | S49: 16 | V49: 250 | X49: 1 | Y49: X | Z49: 7800000 | AA49: =AD49/(Z49*(1+Assumptions_Overall!$G$51)) -> 0.04053919829 | AB49: 322055.88 | AC49: 22.80823163 | AD49: 322055.88 | AE49: 22.80823163 | AF49: 9178352 | AG49: -0.1501742361 | AH49: 0.018 | AI49: 9343562.336 | AJ49: =CHOOSE(Assumptions_Overall!$G$40,AL49,AM49,AN49) -> 7409766.494 | AK49: =CHOOSE(Assumptions_Overall!$G$92,AP49,AQ49) -> 9389454.096 | AL49: =$Z49*Engine!$I$22*(1+Assumptions_Overall!$H$42) -> 7979400 | AM49: =$Z49*Engine!$I$22*$AM$10 -> 7409766.494 | AN49: 7979400 | AO49: 2 | AP49: =$AF49*Engine!$I$22*(1+Assumptions_Overall!$H$94) -> 9389454.096 | AQ49: 9389454.096
A50: 146 | B50: M5 | C50: BEAUSOLEIL | D50: 41 BD GUYNEMER | E50: 06 | F50: PACA | G50: Abis | H50: Collective housing | I50: Under development | J50: 2022-05-31T12:00:00 | K50: 2025-09-30 | L50: 4068 | M50: 62 | N50: 65.61290323 | O50: 0.03 | P50: =IF(F50=Assumptions_Overall!$E$118,Assumptions_Overall!$G$118,Assumptions_Overall!$G$119) -> 0.19 | Q50: 0.095 | R50: -18 | S50: 62 | V50: 250 | X50: 1 | Y50: X | Z50: 29900000 | AA50: =AD50/(Z50*(1+Assumptions_Overall!$G$51)) -> 0.04500771212 | AB50: 1370628 | AC50: 28.07743363 | AD50: 1370628 | AE50: 28.07743363 | AF50: 36332998 | AG50: -0.1770566249 | AH50: 0.018 | AI50: 36986991.96 | AJ50: =CHOOSE(Assumptions_Overall!$G$40,AL50,AM50,AN50) -> 28404104.89 | AK50: =CHOOSE(Assumptions_Overall!$G$92,AP50,AQ50) -> 37168656.95 | AL50: =$Z50*Engine!$I$22*(1+Assumptions_Overall!$H$42) -> 30587700 | AM50: =$Z50*Engine!$I$22*$AM$10 -> 28404104.89 | AN50: 30587700 | AO50: 2 | AP50: =$AF50*Engine!$I$22*(1+Assumptions_Overall!$H$94) -> 37168656.95 | AQ50: 37168656.95
A51: 150 | B51: M6 | C51: ST LAURENT DU VAR | D51: 275 AVENUE DES PLANS | E51: 06 | F51: PACA | G51: A | H51: Collective housing | I51: Delivered | J51: 2022-06-01T12:00:00 | K51: 2024-07-12 | L51: 1234.85 | M51: 24 | N51: 51.45208333 | O51: 0.03 | P51: =IF(F51=Assumptions_Overall!$E$118,Assumptions_Overall!$G$118,Assumptions_Overall!$G$119) -> 0.19 | Q51: 0.095 | R51: -18 | S51: 0 | V51: 250 | X51: 1 | Y51: X | Z51: 5800000 | AA51: =AD51/(Z51*(1+Assumptions_Overall!$G$51)) -> 0.04471110182 | AB51: 280275 | AC51: 18.9142406 | AD51: 264122.16 | AE51: 17.82417298 | AF51: 6438555 | AG51: -0.09917675628 | AH51: 0.018 | AI51: 6554448.99 | AJ51: =CHOOSE(Assumptions_Overall!$G$40,AL51,AM51,AN51) -> 5509826.367 | AK51: =CHOOSE(Assumptions_Overall!$G$92,AP51,AQ51) -> 6586641.765 | AL51: =$Z51*Engine!$I$22*(1+Assumptions_Overall!$H$42) -> 5933400 | AM51: =$Z51*Engine!$I$22*$AM$10 -> 5509826.367 | AN51: 5933400 | AO51: 2 | AP51: =$AF51*Engine!$I$22*(1+Assumptions_Overall!$H$94) -> 6586641.765 | AQ51: 6586641.765
A52: 3 | B52: PL | C52: THOIRY | D52: 106 RUE DES MOUCHETS | E52: 01 | F52: Swiss border | G52: A | H52: Individual housing | I52: Delivered | J52: 2018-12-27T12:00:00 | K52: 2019-09-17 | L52: 925.66 | M52: 8 | N52: 115.7075 | O52: 0.03 | P52: =IF(F52=Assumptions_Overall!$E$118,Assumptions_Overall!$G$118,Assumptions_Overall!$G$119) -> 0.19 | Q52: 0.19 | R52: -11.54557235 | S52: 0 | T52: -12594.56 | U52: -1789.3 | V52: 223.6625 | W52: -4526.67 | X52: 1 | Y52: X | Z52: 3880000 | AA52: =AD52/(Z52*(1+Assumptions_Overall!$G$51)) -> 0.04854980696 | AB52: 197474.64 | AC52: 17.77782339 | AD52: 191858.351 | AE52: 17.27221217 | AF52: 4376452 | AG52: -0.1134370947 | AH52: 0.018 | AI52: 4455228.136 | AJ52: =CHOOSE(Assumptions_Overall!$G$40,AL52,AM52,AN52) -> 3685883.846 | AK52: =CHOOSE(Assumptions_Overall!$G$92,AP52,AQ52) -> 4477110.396 | AL52: =$Z52*Engine!$I$22*(1+Assumptions_Overall!$H$42) -> 3969240 | AM52: =$Z52*Engine!$I$22*$AM$10 -> 3685883.846 | AN52: 3969240 | AO52: 2 | AP52: =$AF52*Engine!$I$22*(1+Assumptions_Overall!$H$94) -> 4477110.396 | AQ52: 4477110.396
A53: 37
A54: 23
A55: 19
A56: 36
A57: 17
A58: 95
A59: 128
A60: 137
A61: 92
A62: 34
A63: 33
A64: 46
A65: 50
A66: 90
A67: 52
A68: 88
A69: 91
A70: 108
A71: 145
A72: 144
A73: 15
A74: 6
A75: 11
A76: 4
A77: 12
A78: 9
A79: 7
A80: 10

Sheet Business Plan (BP) >

Sheet Engine
E3: Average | H3: 2024 | I3: 2025 | J3: =I3+1 -> 2026 | K3: =J3+1 -> 2027 | L3: 2028 | M3: 2029 | N3: 2030 | O3: 2031 | P3: 2032 | Q3: 2033 | R3: 2034 | S3: 2035 | T3: 2036 | U3: 2037 | V3: 2038 | W3: 2039
E4: =AVERAGE(J4:W4) -> 0.02021428571 | G4: Index growth | I4: =Assumptions_Overall!F124 -> 0.023 | J4: =Assumptions_Overall!G124 -> 0.022 | K4: =Assumptions_Overall!H124 -> 0.021 | L4: =Assumptions_Overall!I124 -> 0.02 | M4: =Assumptions_Overall!J124 -> 0.02 | N4: =Assumptions_Overall!K124 -> 0.02 | O4: =Assumptions_Overall!L124 -> 0.02 | P4: =Assumptions_Overall!M124 -> 0.02 | Q4: =Assumptions_Overall!N124 -> 0.02 | R4: =Assumptions_Overall!O124 -> 0.02 | S4: =Assumptions_Overall!P124 -> 0.02 | T4: =Assumptions_Overall!Q124 -> 0.02 | U4: =Assumptions_Overall!R124 -> 0.02 | V4: =Assumptions_Overall!S124 -> 0.02 | W4: =Assumptions_Overall!T124 -> 0.02
E5: =AVERAGE(J5:W5) -> 0.005 | G5: Impact of reversion | I5: =Assumptions_Overall!F125 -> 0 | J5: =Assumptions_Overall!G125 -> 0.005 | K5: =Assumptions_Overall!H125 -> 0.005 | L5: =Assumptions_Overall!I125 -> 0.005 | M5: =Assumptions_Overall!J125 -> 0.005 | N5: =Assumptions_Overall!K125 -> 0.005 | O5: =Assumptions_Overall!L125 -> 0.005 | P5: =Assumptions_Overall!M125 -> 0.005 | Q5: =Assumptions_Overall!N125 -> 0.005 | R5: =Assumptions_Overall!O125 -> 0.005 | S5: =Assumptions_Overall!P125 -> 0.005 | T5: =Assumptions_Overall!Q125 -> 0.005 | U5: =Assumptions_Overall!R125 -> 0.005 | V5: =Assumptions_Overall!S125 -> 0.005 | W5: =Assumptions_Overall!T125 -> 0.005
E6: =AVERAGE(J6:W6) -> 0.02521428571 | G6: Rental growth | I6: =SUM(I4:I5) -> 0.023 | J6: =SUM(J4:J5) -> 0.027 | K6: 0.026 | L6: 0.025 | M6: 0.025 | N6: 0.025 | O6: 0.025 | P6: 0.025 | Q6: 0.025 | R6: 0.025 | S6: 0.025 | T6: 0.025 | U6: 0.025 | V6: 0.025 | W6: 0.025
G8: ERV growth (premium on index) | H8: =Assumptions_Overall!$G$116 -> 0.01
E9: =AVERAGE(J9:W9) -> 0.03021428571 | G9: ERV growth | I9: =Assumptions_Overall!F127 -> 0.033 | J9: =Assumptions_Overall!G127 -> 0.032 | K9: =Assumptions_Overall!H127 -> 0.031 | L9: =Assumptions_Overall!I127 -> 0.03 | M9: =Assumptions_Overall!J127 -> 0.03 | N9: =Assumptions_Overall!K127 -> 0.03 | O9: =Assumptions_Overall!L127 -> 0.03 | P9: =Assumptions_Overall!M127 -> 0.03 | Q9: =Assumptions_Overall!N127 -> 0.03 | R9: =Assumptions_Overall!O127 -> 0.03 | S9: =Assumptions_Overall!P127 -> 0.03 | T9: =Assumptions_Overall!Q127 -> 0.03 | U9: =Assumptions_Overall!R127 -> 0.03 | V9: =Assumptions_Overall!S127 -> 0.03 | W9: =Assumptions_Overall!T127 -> 0.03
I11: 1 | J11: =I11*(1+J4) -> 1.022 | K11: =J11*(1+K4) -> 1.043462 | L11: 1.06433124 | M11: 1.085617865 | N11: 1.107330222 | O11: 1.129476827 | P11: 1.152066363 | Q11: 1.17510769 | R11: 1.198609844 | S11: 1.222582041 | T11: 1.247033682 | U11: 1.271974355 | V11: 1.297413843 | W11: 1.323362119
I12: 1 | J12: =I12*(1+J5) -> 1.005 | K12: =J12*(1+K5) -> 1.010025 | L12: 1.015075125 | M12: 1.020150501 | N12: 1.025251253 | O12: 1.030377509 | P12: 1.035529397 | Q12: 1.040707044 | R12: 1.045910579 | S12: 1.051140132 | T12: 1.056395833 | U12: 1.061677812 | V12: 1.066986201 | W12: 1.072321132
I13: 1 | J13: =I13*(1+J6) -> 1.027 | K13: =J13*(1+K6) -> 1.053702 | L13: 1.08004455 | M13: 1.107045664 | N13: 1.134721805 | O13: 1.16308985 | P13: 1.192167097 | Q13: 1.221971274 | R13: 1.252520556 | S13: 1.28383357 | T13: 1.315929409 | U13: 1.348827644 | V13: 1.382548335 | W13: 1.417112044
G15: CAGR Index - 2025+ | J15: =(J11/$I11)^(1/(J3-$I3))-1 -> 0.022 | K15: =(K11/$I11)^(1/(K3-$I3))-1 -> 0.02149987763 | L15: 0.02099967352 | M15: 0.02074966333 | N15: 0.0205996866 | O15: 0.02049971435 | P15: 0.0204283116 | Q15: 0.02037476282 | R15: 0.02033311571 | S15: 0.02029979924 | T15: 0.02027254112 | U15: 0.02024982658 | V15: 0.02023060698 | W15: 0.02021413332
G16: CAGR Reversion - 2025+ | J16: =(J12/$I12)^(1/(J3-$I3))-1 -> 0.005 | K16: =(K12/$I12)^(1/(K3-$I3))-1 -> 0.005 | L16: 0.005 | M16: 0.005 | N16: 0.005 | O16: 0.005 | P16: 0.005 | Q16: 0.005 | R16: 0.005 | S16: 0.005 | T16: 0.005 | U16: 0.005 | V16: 0.005 | W16: 0.005
G17: CAGR Rent growth - 2025+ | J17: =(J13/$I13)^(1/(J3-$I3))-1 -> 0.027 | K17: =(K13/$I13)^(1/(K3-$I3))-1 -> 0.02649987823 | L17: 0.02599967511 | M17: 0.02574966497 | N17: 0.02559968812 | O17: 0.02549971574 | P17: 0.02542831287 | Q17: 0.02537476397 | R17: 0.02533311677 | S17: 0.02529980022 | T17: 0.02527254203 | U17: 0.02524982743 | V17: 0.02523060777 | W17: 0.02521413407
E20: Average | H20: =H3 -> 2024 | I20: =I3 -> 2025 | J20: 2026 | K20: 2027 | L20: 2028 | M20: 2029 | N20: 2030 | O20: 2031 | P20: 2032 | Q20: 2033 | R20: 2034 | S20: 2035 | T20: 2036 | U20: 2037 | V20: 2038 | W20: 2039
E21: =AVERAGE(I21:W21) -> 0.02506666667 | G21: Rent growth % residential | I21: =I6 -> 0.023 | J21: =J6 -> 0.027 | K21: 0.026 | L21: 0.025 | M21: 0.025 | N21: 0.025 | O21: 0.025 | P21: 0.025 | Q21: 0.025 | R21: 0.025 | S21: 0.025 | T21: 0.025 | U21: 0.025 | V21: 0.025 | W21: 0.025
H22: 1 | I22: =H22*(1+I21) -> 1.023 | J22: =I22*(1+J21) -> 1.050621 | K22: 1.077937146 | L22: 1.104885575 | M22: 1.132507714 | N22: 1.160820407 | O22: 1.189840917 | P22: 1.21958694 | Q22: 1.250076613 | R22: 1.281328529 | S22: 1.313361742 | T22: 1.346195786 | U22: 1.37985068 | V22: 1.414346947 | W22: 1.449705621
E23: =AVERAGE(I23:P23) -> 0.020375 | G23: CPI % | I23: =Assumptions_Overall!F123 -> 0.022 | J23: =Assumptions_Overall!G123 -> 0.021 | K23: =Assumptions_Overall!H123 -> 0.02 | L23: =Assumptions_Overall!I123 -> 0.02 | M23: =Assumptions_Overall!J123 -> 0.02 | N23: =Assumptions_Overall!K123 -> 0.02 | O23: =Assumptions_Overall!L123 -> 0.02 | P23: =Assumptions_Overall!M123 -> 0.02 | Q23: =Assumptions_Overall!N123 -> 0.02 | R23: =Assumptions_Overall!O123 -> 0.02 | S23: =Assumptions_Overall!P123 -> 0.02 | T23: =Assumptions_Overall!Q123 -> 0.02 | U23: =Assumptions_Overall!R123 -> 0.02 | V23: =Assumptions_Overall!S123 -> 0.02 | W23: =Assumptions_Overall!T123 -> 0.02
H24: 1 | I24: =H24*(1+I23) -> 1.022 | J24: =I24*(1+J23) -> 1.043462 | K24: 1.06433124 | L24: 1.085617865 | M24: 1.107330222 | N24: 1.129476827 | O24: 1.152066363 | P24: 1.17510769 | Q24: 1.198609844 | R24: 1.222582041 | S24: 1.247033682 | T24: 1.271974355 | U24: 1.297413843 | V24: 1.323362119 | W24: 1.349829362
C30: RESIDENTIAL
H32: 2024 | I32: =H32+1 -> 2025 | J32: =I32+1 -> 2026 | K32: 2027 | L32: 2028 | M32: 2029 | N32: 2030 | O32: 2031 | P32: 2032 | Q32: 2033 | R32: 2034 | S32: 2035 | T32: 2036 | U32: 2037 | V32: 2038 | W32: 2039 | AF32: 2024 | AG32: =AF32+1 -> 2025 | AH32: =AG32+1 -> 2026 | AI32: =AH32+1 -> 2027 | AJ32: 2028 | AK32: 2029 | AL32: 2030 | AM32: 2031 | AN32: 2032 | AO32: 2033 | AP32: 2034 | AQ32: 2035 | AR32: 2036 | AS32: 2037 | AT32: 2038 | AU32: 2039 | BC32: 2024 | BD32: =BC32+1 -> 2025 | BE32: =BD32+1 -> 2026 | BF32: 2027 | BG32: 2028 | BH32: 2029 | BI32: 2030 | BJ32: 2031 | BK32: 2032 | BL32: 2033 | BM32: 2034 | BN32: 2035 | BO32: 2036 | BP32: 2037 | BQ32: 2038 | BR32: 2039 | BX32: m²/unit | CA32: 2024 | CB32: =CA32+1 -> 2025 | CC32: =CB32+1 -> 2026 | CD32: 2027 | CE32: 2028 | CF32: 2029 | CG32: 2030 | CH32: 2031 | CI32: 2032 | CJ32: 2033 | CK32: 2034 | CL32: 2035 | CM32: 2036 | CN32: 2037 | CO32: 2038 | CP32: 2039 | CW32: 2024 | CX32: =CW32+1 -> 2025 | CY32: =CX32+1 -> 2026 | CZ32: 2027 | DA32: 2028 | DB32: 2029 | DC32: 2030 | DD32: 2031 | DE32: 2032 | DF32: 2033 | DG32: 2034 | DH32: 2035 | DI32: 2036 | DJ32: 2037 | DK32: 2038 | DL32: 2039
C33: ='Assumptions_Asset level'!$AE$7 -> 31 | D33: Residential rent (€/m²/month) | H33: =H104/CA33/12*1000 -> 17.59273257 | I33: =I104/CA33/12*1000 -> 17.99736542 | J33: 18.45853119 | K33: 18.8771804 | L33: 19.22519133 | M33: 19.70962683 | N33: 20.20590326 | O33: 20.71466893 | P33: 21.23623692 | Q33: 21.77092908 | R33: 22.31907532 | S33: 22.88101388 | T33: 23.45709145 | U33: 24.04766344 | V33: 24.65309419 | W33: 25.27375719 | Z33: ='Assumptions_Asset level'!$AO$7 -> 41 | AA33: Sale of units (%) | AC33: Block (1) / unit (2) | AG33: =-(BD33/BC33-1) -> 0 | AH33: =-(BE33/BD33-1) -> 0.0915338212 | AI33: 0.1088094875 | AJ33: 0.06873324225 | AK33: 0.06882200757 | AL33: =-(BI33/BH33-1) -> 0.06880652267 | AM33: =-(BJ33/BI33-1) -> 0.06879132632 | AN33: =-(BK33/BJ33-1) -> 0.06877615825 | AO33: =-(BL33/BK33-1) -> 0.06876101955 | AP33: =-(BM33/BL33-1) -> 0.06874591065 | AQ33: =-(BN33/BM33-1) -> 0.06873083199 | AR33: =-(BO33/BN33-1) -> 0.06871578399 | AS33: =-(BP33/BO33-1) -> 0.06870076707 | AT33: =-(BQ33/BP33-1) -> 0.06868578165 | AU33: =-(BR33/BQ33-1) -> 0.06867082815 | AX33: ='Assumptions_Asset level'!$M$7 -> 13 | AY33: Units EOP | BC33: =SUM(BC34:BC99) -> 1264 | BD33: 1264 | BE33: 1148.30125 | BF33: 1023.35518 | BG33: 953.0166601 | BH33: 887.4281403 | BI33: 826.3672958 | BJ33: 769.5203935 | BK33: 716.5957371 | BL33: 667.3218836 | BM33: 621.4462331 | BN33: 578.7337164 | BO33: 538.9655754 | BP33: 501.9382269 | BQ33: 467.4622075 | BR33: 435.3611906 | BU33: ='Assumptions_Asset level'!$L$7 -> 12 | BV33: M² Residential EoP | BX33: =IFERROR(CA33/BC33,0) -> 61.43422468 | CA33: =SUM(CA34:CA99) -> 77652.86 | CB33: 77652.86 | CC33: 70513.49372 | CD33: 62779.21605 | CE33: 58466.07797 | CF33: 54443.92445 | CG33: 50699.3142 | CH33: 47213.02308 | CI33: 43967.17715 | CJ33: 40945.14296 | CK33: 38131.44127 | CL33: 35511.66668 | CM33: 33072.41293 | CN33: 30801.20335 | CO33: 28686.42624 | CP33: 26717.27471 | CS33: M² occupés EoP | CW33: =SUM(CW34:CW99) -> 66070.96612 | CX33: 66070.96612 | CY33: 50100.04535 | CZ33: 58240.43272 | DA33: 56712.09563 | DB33: 52810.60672 | DC33: 49178.33477 | DD33: 45796.63239 | DE33: 42648.16183 | DF33: 39716.78867 | DG33: 36987.49803 | DH33: 34446.31668 | DI33: 32080.24054 | DJ33: 29877.16725 | DK33: 27825.83345 | DL33: 25915.75647
C34: 117 | D34: =VLOOKUP($C34,'Assumptions_Asset level'!$A$15:$AE$81,'Assumptions_Asset level'!$C$7,0) -> TOURCOING | F34: =IF(VLOOKUP($C34,'Assumptions_Asset level'!$A$15:$AO$81,'Assumptions_Asset level'!$Y$7,0)="x",1,0) -> 1 | H34: =VLOOKUP($C34,'Assumptions_Asset level'!$A$15:$AE$81,$C$33,0)*$F34 -> 11.17301923 | I34: =H34*(1+I$21) -> 11.42999868 | J34: =IF(I34>J1252,I34*(1+J$4),MIN(I34*(1+J$21),J1252)) -> 11.73860864 | K34: 12.04381246 | L34: 12.34490778 | M34: 12.65353047 | N34: 12.96986873 | O34: 13.29411545 | P34: 13.62646834 | Q34: 13.96713005 | R34: 14.3163083 | S34: 14.674216 | T34: 15.0410714 | U34: 15.41709819 | V34: 15.80252564 | W34: 16.19758878 | Z34: 117 | AA34: =VLOOKUP($Z34,'Assumptions_Asset level'!$A$15:$AE$81,'Assumptions_Asset level'!$C$7,0) -> TOURCOING | AC34: =VLOOKUP($Z34,'Assumptions_Asset level'!$A$15:$AO$80,$Z$33,0) -> 2 | AF34: ='Vacancy & sales module'!L951 -> 0 | AG34: ='Vacancy & sales module'!M951 -> 0 | AH34: ='Vacancy & sales module'!N951 -> 0.09095462687 | AI34: ='Vacancy & sales module'!O951 -> 0.1043039909 | AJ34: ='Vacancy & sales module'!P951 -> 0.07345449351 | AK34: ='Vacancy & sales module'!Q951 -> 0.07353924661 | AL34: ='Vacancy & sales module'!R951 -> 0.07353902149 | AM34: ='Vacancy & sales module'!S951 -> 0.07353902209 | AN34: ='Vacancy & sales module'!T951 -> 0.07353902209 | AO34: ='Vacancy & sales module'!U951 -> 0.07353902209 | AP34: ='Vacancy & sales module'!V951 -> 0.07353902209 | AQ34: ='Vacancy & sales module'!W951 -> 0.07353902209 | AR34: ='Vacancy & sales module'!X951 -> 0.07353902209 | AS34: ='Vacancy & sales module'!Y951 -> 0.07353902209 | AT34: ='Vacancy & sales module'!Z951 -> 0.07353902209 | AU34: ='Vacancy & sales module'!AA951 -> 0.07353902209 | AX34: 117 | AY34: =VLOOKUP($C34,'Assumptions_Asset level'!$A$15:$AE$81,'Assumptions_Asset level'!$C$7,0) -> TOURCOING | BC34: =VLOOKUP($AX34,'Assumptions_Asset level'!$A$15:$AE$81,$AX$33,0)*F34 -> 67 | BD34: =IFERROR(BC34*(1-AG34),0) -> 67 | BE34: =IFERROR(BD34*(1-AH34),0) -> 60.90604 | BF34: =IFERROR(BE34*(1-AI34),0) -> 54.55329696 | BG34: =IFERROR(BF34*(1-AJ34),0) -> 50.54611216 | BH34: =IFERROR(BG34*(1-AK34),0) -> 46.82898915 | BI34: =IFERROR(BH34*(1-AL34),0) -> 43.38523111 | BJ34: =IFERROR(BI34*(1-AM34),0) -> 40.19472365 | BK34: =IFERROR(BJ34*(1-AN34),0) -> 37.23884298 | BL34: =IFERROR(BK34*(1-AO34),0) -> 34.50033488 | BM34: =IFERROR(BL34*(1-AP34),0) -> 31.96321399 | BN34: =IFERROR(BM34*(1-AQ34),0) -> 29.61267049 | BO34: =IFERROR(BN34*(1-AR34),0) -> 27.43498366 | BP34: =IFERROR(BO34*(1-AS34),0) -> 25.41744179 | BQ34: =IFERROR(BP34*(1-AT34),0) -> 23.54826798 | BR34: =IFERROR(BQ34*(1-AU34),0) -> 21.81655138 | BU34: 117 | BV34: =VLOOKUP($C34,'Assumptions_Asset level'!$A$15:$AE$81,'Assumptions_Asset level'!$C$7,0) -> TOURCOING | BX34: =IFERROR(CA34/BC34,0) -> 56.12179104 | CA34: =VLOOKUP($BU34,'Assumptions_Asset level'!$A$15:$AE$81,$BU$33,0)*F34 -> 3760.16 | CB34: =$BX34*BD34 -> 3760.16 | CC34: 3418.15605 | CD34: 3061.628733 | CE34: 2836.738345 | CF34: 2628.126744 | CG34: 2434.856875 | CH34: 2255.799882 | CI34: 2089.910564 | CJ34: 1936.220585 | CK34: 1793.832817 | CL34: 1661.916106 | CM34: 1539.70042 | CN34: 1426.472357 | CO34: 1321.570975 | CP34: 1224.383938 | CR34: 117 | CS34: =VLOOKUP($C34,'Assumptions_Asset level'!$A$15:$AE$81,'Assumptions_Asset level'!$C$7,0) -> TOURCOING | CW34: =IFERROR(CA34*(1-AF105),0) -> 3704.038209 | CX34: =IFERROR(CB34*(1-AG105),0) -> 3704.038209 | CY34: =IFERROR(CC34*(1-AH105),0) -> 2624.837743 | CZ34: =IFERROR(CD34*(1-AI105),0) -> 2867.685432 | DA34: =IFERROR(CE34*(1-AJ105),0) -> 2751.636195 | DB34: =IFERROR(CF34*(1-AK105),0) -> 2549.282942 | DC34: =IFERROR(CG34*(1-AL105),0) -> 2361.811169 | DD34: =IFERROR(CH34*(1-AM105),0) -> 2188.125885 | DE34: =IFERROR(CI34*(1-AN105),0) -> 2027.213247 | DF34: =IFERROR(CJ34*(1-AO105),0) -> 1878.133968 | DG34: =IFERROR(CK34*(1-AP105),0) -> 1740.017832 | DH34: =IFERROR(CL34*(1-AQ105),0) -> 1612.058622 | DI34: =IFERROR(CM34*(1-AR105),0) -> 1493.509408 | DJ34: =IFERROR(CN34*(1-AS105),0) -> 1383.678186 | DK34: =IFERROR(CO34*(1-AT105),0) -> 1281.923846 | DL34: =IFERROR(CP34*(1-AU105),0) -> 1187.65242
C35: 24 | D35: =VLOOKUP($C35,'Assumptions_Asset level'!$A$15:$AE$81,'Assumptions_Asset level'!$C$7,0) -> ISSY LES MOULINEAUX | F35: =IF(VLOOKUP($C35,'Assumptions_Asset level'!$A$15:$AO$81,'Assumptions_Asset level'!$Y$7,0)="x",1,0) -> 1 | H35: =VLOOKUP($C35,'Assumptions_Asset level'!$A$15:$AE$81,$C$33,0)*$F35 -> 27.23027518 | I35: =H35*(1+I$21) -> 27.85657151 | J35: =IF(I35>J1253,I35*(1+J$4),MIN(I35*(1+J$21),J1253)) -> 27.95912925 | K35: 28.68606661 | L35: 29.40321828 | M35: 30.13829874 | N35: 30.8917562 | O35: 31.66405011 | P35: 32.45565136 | Q35: 33.26704265 | R35: 34.09871871 | S35: 34.95118668 | T35: 35.82496635 | U35: 36.72059051 | V35: 37.63860527 | W35: 38.5795704 | Z35: 24 | AA35: =VLOOKUP($Z35,'Assumptions_Asset level'!$A$15:$AE$81,'Assumptions_Asset level'!$C$7,0) -> ISSY LES MOULINEAUX | AC35: =VLOOKUP($Z35,'Assumptions_Asset level'!$A$15:$AO$80,$Z$33,0) -> 2 | AF35: ='Vacancy & sales module'!L952 -> 0 | AG35: ='Vacancy & sales module'!M952 -> 0 | AH35: ='Vacancy & sales module'!N952 -> 0.088746 | AI35: ='Vacancy & sales module'!O952 -> 0.1045753127 | AJ35: ='Vacancy & sales module'!P952 -> 0.06572175144 | AK35: ='Vacancy & sales module'!Q952 -> 0.06581649631 | AL35: ='Vacancy & sales module'!R952 -> 0.06581627486 | AM35: ='Vacancy & sales module'!S952 -> 0.06581627538 | AN35: ='Vacancy & sales module'!T952 -> 0.06581627538 | AO35: ='Vacancy & sales module'!U952 -> 0.06581627538 | AP35: ='Vacancy & sales module'!V952 -> 0.06581627538 | AQ35: ='Vacancy & sales module'!W952 -> 0.06581627538 | AR35: ='Vacancy & sales module'!X952 -> 0.06581627538 | AS35: ='Vacancy & sales module'!Y952 -> 0.06581627538 | AT35: ='Vacancy & sales module'!Z952 -> 0.06581627538 | AU35: ='Vacancy & sales module'!AA952 -> 0.06581627538 | AX35: 24 | AY35: =VLOOKUP($C35,'Assumptions_Asset level'!$A$15:$AE$81,'Assumptions_Asset level'!$C$7,0) -> ISSY LES MOULINEAUX | BC35: =VLOOKUP($AX35,'Assumptions_Asset level'!$A$15:$AE$81,$AX$33,0)*F35 -> 10 | BD35: 10 | BE35: 9.11254 | BF35: 8.15959328 | BG35: 7.623330519 | BH35: 7.121589614 | BI35: 6.652873114 | BJ35: 6.215005785 | BK35: 5.805957253 | BL35: 5.423830772 | BM35: 5.066854432 | BN35: 4.733372945 | BO35: 4.421839968 | BP35: 4.130810931 | BQ35: 3.858936341 | BR35: 3.604955524 | BU35: 24 | BV35: =VLOOKUP($C35,'Assumptions_Asset level'!$A$15:$AE$81,'Assumptions_Asset level'!$C$7,0) -> ISSY LES MOULINEAUX | BX35: =IFERROR(CA35/BC35,0) -> 52.003 | CA35: =VLOOKUP($BU35,'Assumptions_Asset level'!$A$15:$AE$81,$BU$33,0)*F35 -> 520.03 | CB35: =$BX35*BD35 -> 520.03 | CC35: =$BX35*BE35 -> 473.8794176 | CD35: =$BX35*BF35 -> 424.3233293 | CE35: =$BX35*BG35 -> 396.436057 | CF35: =$BX35*BH35 -> 370.3440247 | CG35: =$BX35*BI35 -> 345.9693606 | CH35: =$BX35*BJ35 -> 323.1989458 | CI35: =$BX35*BK35 -> 301.927195 | CJ35: =$BX35*BL35 -> 282.0554716 | CK35: =$BX35*BM35 -> 263.491631 | CL35: =$BX35*BN35 -> 246.1495933 | CM35: =$BX35*BO35 -> 229.9489439 | CN35: =$BX35*BP35 -> 214.8145608 | CO35: =$BX35*BQ35 -> 200.6762666 | CP35: =$BX35*BR35 -> 187.4685021 | CR35: 24 | CS35: =VLOOKUP($C35,'Assumptions_Asset level'!$A$15:$AE$81,'Assumptions_Asset level'!$C$7,0) -> ISSY LES MOULINEAUX | CW35: 468.027 | CX35: 468.027 | CY35: 339.7715424 | CZ35: 393.9222992 | DA35: 384.5429752 | DB35: 359.2337039 | DC35: 335.5902797 | DD35: 313.5029775 | DE35: 292.8693792 | DF35: 273.5938075 | DG35: 255.5868821 | DH35: 238.7651055 | DI35: 223.0504755 | DJ35: 208.370124 | DK35: 194.6559786 | DL35: 181.8444471
C36: 48 | D36: =VLOOKUP($C36,'Assumptions_Asset level'!$A$15:$AE$81,'Assumptions_Asset level'!$C$7,0) -> NICE | F36: =IF(VLOOKUP($C36,'Assumptions_Asset level'!$A$15:$AO$81,'Assumptions_Asset level'!$Y$7,0)="x",1,0) -> 1 | H36: =VLOOKUP($C36,'Assumptions_Asset level'!$A$15:$AE$81,$C$33,0)*$F36 -> 17.49956921 | I36: 17.9020593 | J36: =IF(I36>J1254,I36*(1+J$4),MIN(I36*(1+J$21),J1254)) -> 18.38541491 | K36: 18.86343569 | L36: 19.33502159 | M36: 19.81839713 | N36: 20.31385705 | O36: 20.82170348 | P36: 21.34224607 | Q36: 21.87580222 | R36: 22.42269727 | S36: 22.98326471 | T36: 23.55784632 | U36: 24.14679248 | V36: 24.75046229 | W36: 25.36922385 | Z36: 48 | AA36: =VLOOKUP($Z36,'Assumptions_Asset level'!$A$15:$AE$81,'Assumptions_Asset level'!$C$7,0) -> NICE | AC36: =VLOOKUP($Z36,'Assumptions_Asset level'!$A$15:$AO$80,$Z$33,0) -> 2 | AF36: ='Vacancy & sales module'!L953 -> 0 | AG36: ='Vacancy & sales module'!M953 -> 0 | AH36: ='Vacancy & sales module'!N953 -> 0.09006 | AI36: ='Vacancy & sales module'!O953 -> 0.10243471 | AJ36: ='Vacancy & sales module'!P953 -> 0.07345979482 | AK36: ='Vacancy & sales module'!Q953 -> 0.07353923253 | AL36: ='Vacancy & sales module'!R953 -> 0.07353902153 | AM36: ='Vacancy & sales module'!S953 -> 0.07353902209 | AN36: ='Vacancy & sales module'!T953 -> 0.07353902209 | AO36: ='Vacancy & sales module'!U953 -> 0.07353902209 | AP36: ='Vacancy & sales module'!V953 -> 0.07353902209 | AQ36: ='Vacancy & sales module'!W953 -> 0.07353902209 | AR36: ='Vacancy & sales module'!X953 -> 0.07353902209 | AS36: ='Vacancy & sales module'!Y953 -> 0.07353902209 | AT36: ='Vacancy & sales module'!Z953 -> 0.07353902209 | AU36: ='Vacancy & sales module'!AA953 -> 0.07353902209 | AX36: 48 | AY36: =VLOOKUP($C36,'Assumptions_Asset level'!$A$15:$AE$81,'Assumptions_Asset level'!$C$7,0) -> NICE | BC36: =VLOOKUP($AX36,'Assumptions_Asset level'!$A$15:$AE$81,$AX$33,0)*F36 -> 20 | BD36: 20 | BE36: 18.1988 | BF36: 16.3346112 | BG36: 15.13467401 | BH36: 14.0216817 | BI36: 12.99054095 | BJ36: 12.03522927 | BK36: 11.15017028 | BL36: 10.33019766 | BM36: 9.570525027 | BN36: 8.866717976 | BO36: 8.214668207 | BP36: 7.61056954 | BQ36: 7.050895698 | BR36: 6.532379724 | BU36: 48 | BV36: =VLOOKUP($C36,'Assumptions_Asset level'!$A$15:$AE$81,'Assumptions_Asset level'!$C$7,0) -> NICE | BX36: 52.23 | CA36: =VLOOKUP($BU36,'Assumptions_Asset level'!$A$15:$AE$81,$BU$33,0)*F36 -> 1044.6 | CB36: 1044.6 | CC36: 950.523324 | CD36: 853.156743 | CE36: 790.4840237 | CF36: 732.3524353 | CG36: 678.4959538 | CH36: 628.6000248 | CI36: 582.3733937 | CJ36: 539.5462238 | CK36: 499.8685222 | CL36: 463.1086799 | CM36: 429.0521204 | CN36: 397.5000471 | CO36: 368.2682823 | CP36: 341.186193 | CR36: 48 | CS36: =VLOOKUP($C36,'Assumptions_Asset level'!$A$15:$AE$81,'Assumptions_Asset level'!$C$7,0) -> NICE | CW36: 1044.6 | CX36: 1044.6 | CY36: 741.4081927 | CZ36: 800.8405347 | DA36: 766.769503 | DB36: 710.3818622 | DC36: 658.1410751 | DD36: 609.7420241 | DE36: 564.9021919 | DF36: 523.3598371 | DG36: 484.8724665 | DH36: 449.2154195 | DI36: 416.1805568 | DJ36: 385.5750457 | DK36: 357.2202339 | DL36: 330.9506072
C37: 27 | D37: =VLOOKUP($C37,'Assumptions_Asset level'!$A$15:$AE$81,'Assumptions_Asset level'!$C$7,0) -> GAGNY | F37: =IF(VLOOKUP($C37,'Assumptions_Asset level'!$A$15:$AO$81,'Assumptions_Asset level'!$Y$7,0)="x",1,0) -> 1 | H37: =VLOOKUP($C37,'Assumptions_Asset level'!$A$15:$AE$81,$C$33,0)*$F37 -> 15.26237074 | I37: 15.61340527 | J37: =IF(I37>J1255,I37*(1+J$4),MIN(I37*(1+J$21),J1255)) -> 16.03496721 | K37: 16.45187636 | L37: 16.86317327 | M37: 17.2847526 | N37: 17.71687141 | O37: 18.1597932 | P37: 18.61378803 | Q37: 19.07913273 | R37: 19.55611105 | S37: 20.04501382 | T37: 20.54613917 | U37: 21.05979265 | V37: 21.58628746 | W37: 22.12594465 | Z37: 27 | AA37: =VLOOKUP($Z37,'Assumptions_Asset level'!$A$15:$AE$81,'Assumptions_Asset level'!$C$7,0) -> GAGNY | AC37: =VLOOKUP($Z37,'Assumptions_Asset level'!$A$15:$AO$80,$Z$33,0) -> 2 | AF37: ='Vacancy & sales module'!L954 -> 0 | AG37: ='Vacancy & sales module'!M954 -> 0 | AH37: ='Vacancy & sales module'!N954 -> 0.08979307692 | AI37: ='Vacancy & sales module'!O954 -> 0.1065786326 | AJ37: ='Vacancy & sales module'!P954 -> 0.06571664293 | AK37: ='Vacancy & sales module'!Q954 -> 0.06581650825 | AL37: ='Vacancy & sales module'!R954 -> 0.06581627483 | AM37: ='Vacancy & sales module'!S954 -> 0.06581627538 | AN37: ='Vacancy & sales module'!T954 -> 0.06581627538 | AO37: ='Vacancy & sales module'!U954 -> 0.06581627538 | AP37: ='Vacancy & sales module'!V954 -> 0.06581627538 | AQ37: ='Vacancy & sales module'!W954 -> 0.06581627538 | AR37: ='Vacancy & sales module'!X954 -> 0.06581627538 | AS37: ='Vacancy & sales module'!Y954 -> 0.06581627538 | AT37: ='Vacancy & sales module'!Z954 -> 0.06581627538 | AU37: ='Vacancy & sales module'!AA954 -> 0.06581627538 | AX37: 27 | AY37: =VLOOKUP($C37,'Assumptions_Asset level'!$A$15:$AE$81,'Assumptions_Asset level'!$C$7,0) -> GAGNY | BC37: =VLOOKUP($AX37,'Assumptions_Asset level'!$A$15:$AE$81,$AX$33,0)*F37 -> 26 | BD37: 26 | BE37: 23.66538 | BF37: 21.14315616 | BG37: 19.75369892 | BH37: 18.45357943 | BI37: 17.23903357 | BJ37: 16.10442459 | BK37: 15.04449135 | BL37: 14.05431896 | BM37: 13.12931604 | BN37: 12.26519336 | BO37: 11.45794401 | BP37: 10.70382481 | BQ37: 9.999338933 | BR37: 9.341219688 | BU37: 27 | BV37: =VLOOKUP($C37,'Assumptions_Asset level'!$A$15:$AE$81,'Assumptions_Asset level'!$C$7,0) -> GAGNY | BX37: 66.50307692 | CA37: =VLOOKUP($BU37,'Assumptions_Asset level'!$A$15:$AE$81,$BU$33,0)*F37 -> 1729.08 | CB37: 1729.08 | CC37: 1573.820587 | CD37: 1406.084941 | CE37: 1313.681759 | CF37: 1227.219812 | CG37: 1146.448776 | CH37: 1070.993787 | CI37: 1000.504965 | CJ37: 934.6554551 | CK37: 873.1399143 | CL37: 815.6730972 | CM37: 761.988532 | CN37: 711.837285 | CO37: 664.9868062 | CP37: 621.2198515 | CR37: 27 | CS37: =VLOOKUP($C37,'Assumptions_Asset level'!$A$15:$AE$81,'Assumptions_Asset level'!$C$7,0) -> GAGNY | CW37: 1529.570769 | CX37: 1529.570769 | CY37: 1108.332882 | CZ37: 1302.318465 | DA37: 1274.271306 | DB37: 1190.403218 | DC37: 1112.055313 | DD37: 1038.863974 | DE37: 970.4898165 | DF37: 906.6157914 | DG37: 846.9457169 | DH37: 791.2029043 | DI37: 739.1288761 | DJ37: 690.4821664 | DK37: 645.037202 | DL37: 602.5832559
C38: 43 | D38: =VLOOKUP($C38,'Assumptions_Asset level'!$A$15:$AE$81,'Assumptions_Asset level'!$C$7,0) -> DIVONNE LES BAINS | F38: =IF(VLOOKUP($C38,'Assumptions_Asset level'!$A$15:$AO$81,'Assumptions_Asset level'!$Y$7,0)="x",1,0) -> 1 | H38: =VLOOKUP($C38,'Assumptions_Asset level'!$A$15:$AE$81,$C$33,0)*$F38 -> 23.07375955 | I38: 23.60445602 | J38: =IF(I38>J1256,I38*(1+J$4),MIN(I38*(1+J$21),J1256)) -> 24.24177633 | K38: 24.87206251 | L38: 25.49386408 | M38: 26.13121068 | N38: 26.78449095 | O38: 27.45410322 | P38: 28.1404558 | Q38: 28.84396719 | R38: 29.56506637 | S38: 30.30419303 | T38: 31.06179786 | U38: 31.83834281 | V38: 32.63430138 | W38: 33.45015891 | Z38: 43 | AA38: =VLOOKUP($Z38,'Assumptions_Asset level'!$A$15:$AE$81,'Assumptions_Asset level'!$C$7,0) -> DIVONNE LES BAINS | AC38: =VLOOKUP($Z38,'Assumptions_Asset level'!$A$15:$AO$80,$Z$33,0) -> 2 | AF38: ='Vacancy & sales module'!L955 -> 0 | AG38: ='Vacancy & sales module'!M955 -> 0 | AH38: ='Vacancy & sales module'!N955 -> 0.09006 | AI38: ='Vacancy & sales module'!O955 -> 0.10243471 | AJ38: ='Vacancy & sales module'!P955 -> 0.07345979482 | AK38: ='Vacancy & sales module'!Q955 -> 0.07353923253 | AL38: ='Vacancy & sales module'!R955 -> 0.07353902153 | AM38: ='Vacancy & sales module'!S955 -> 0.07353902209 | AN38: ='Vacancy & sales module'!T955 -> 0.07353902209 | AO38: ='Vacancy & sales module'!U955 -> 0.07353902209 | AP38: ='Vacancy & sales module'!V955 -> 0.07353902209 | AQ38: ='Vacancy & sales module'!W955 -> 0.07353902209 | AR38: ='Vacancy & sales module'!X955 -> 0.07353902209 | AS38: ='Vacancy & sales module'!Y955 -> 0.07353902209 | AT38: ='Vacancy & sales module'!Z955 -> 0.07353902209 | AU38: ='Vacancy & sales module'!AA955 -> 0.07353902209 | AX38: 43 | AY38: =VLOOKUP($C38,'Assumptions_Asset level'!$A$15:$AE$81,'Assumptions_Asset level'!$C$7,0) -> DIVONNE LES BAINS | BC38: =VLOOKUP($AX38,'Assumptions_Asset level'!$A$15:$AE$81,$AX$33,0)*F38 -> 47 | BD38: 47 | BE38: 42.76718 | BF38: 38.38633632 | BG38: 35.56648393 | BH38: 32.950952 | BI38: 30.52777123 | BJ38: 28.28278879 | BK38: 26.20290016 | BL38: 24.2759645 | BM38: 22.49073381 | BN38: 20.83678724 | BO38: 19.30447029 | BP38: 17.88483842 | BQ38: 16.56960489 | BR38: 15.35109235 | BU38: 43 | BV38: =VLOOKUP($C38,'Assumptions_Asset level'!$A$15:$AE$81,'Assumptions_Asset level'!$C$7,0) -> DIVONNE LES BAINS | BX38: 63.73787234 | CA38: =VLOOKUP($BU38,'Assumptions_Asset level'!$A$15:$AE$81,$BU$33,0)*F38 -> 2995.68 | CB38: 2995.68 | CC38: 2725.889059 | CD38: 2446.663404 | CE38: 2266.932012 | CF38: 2100.223572 | CG38: 1945.775185 | CH38: 1802.684781 | CI38: 1670.117105 | CJ38: 1547.298326 | CK38: 1433.511521 | CL38: 1328.092485 | CM38: 1230.425863 | CN38: 1139.941548 | CO38: 1056.111361 | CP38: 978.4459646 | CR38: 43 | CS38: =VLOOKUP($C38,'Assumptions_Asset level'!$A$15:$AE$81,'Assumptions_Asset level'!$C$7,0) -> DIVONNE LES BAINS | CW38: 2995.68 | CX38: 2995.68 | CY38: 2126.193466 | CZ38: 2296.632178 | DA38: 2198.924052 | DB38: 2037.216865 | DC38: 1887.40193 | DD38: 1748.604238 | DE38: 1620.013592 | DF38: 1500.879377 | DG38: 1390.506175 | DH38: 1288.249711 | DI38: 1193.513087 | DJ38: 1105.743302 | DK38: 1024.42802 | DL38: 949.0925856
C39: 86 | D39: =VLOOKUP($C39,'Assumptions_Asset level'!$A$15:$AE$81,'Assumptions_Asset level'!$C$7,0) -> HUNINGUE | F39: =IF(VLOOKUP($C39,'Assumptions_Asset level'!$A$15:$AO$81,'Assumptions_Asset level'!$Y$7,0)="x",1,0) -> 1 | H39: =VLOOKUP($C39,'Assumptions_Asset level'!$A$15:$AE$81,$C$33,0)*$F39 -> 12.05157923 | I39: 12.32876555 | J39: =IF(I39>J1257,I39*(1+J$4),MIN(I39*(1+J$21),J1257)) -> 12.66164222 | K39: 12.99084492 | L39: 13.31561604 | M39: 13.64850645 | N39: 13.98971911 | O39: 14.33946208 | P39: 14.69794864 | Q39: 15.06539735 | R39: 15.44203229 | S39: 15.82808309 | T39: 16.22378517 | U39: 16.6293798 | V39: 17.04511429 | W39: 17.47124215 | Z39: 86 | AA39: =VLOOKUP($Z39,'Assumptions_Asset level'!$A$15:$AE$81,'Assumptions_Asset level'!$C$7,0) -> HUNINGUE | AC39: =VLOOKUP($Z39,'Assumptions_Asset level'!$A$15:$AO$80,$Z$33,0) -> 2 | AF39: ='Vacancy & sales module'!L956 -> 0 | AG39: ='Vacancy & sales module'!M956 -> 0 | AH39: ='Vacancy & sales module'!N956 -> 0.09006 | AI39: ='Vacancy & sales module'!O956 -> 0.10243471 | AJ39: ='Vacancy & sales module'!P956 -> 0.07345979482 | AK39: ='Vacancy & sales module'!Q956 -> 0.07353923253 | AL39: ='Vacancy & sales module'!R956 -> 0.07353902153 | AM39: ='Vacancy & sales module'!S956 -> 0.07353902209 | AN39: ='Vacancy & sales module'!T956 -> 0.07353902209 | AO39: ='Vacancy & sales module'!U956 -> 0.07353902209 | AP39: ='Vacancy & sales module'!V956 -> 0.07353902209 | AQ39: ='Vacancy & sales module'!W956 -> 0.07353902209 | AR39: ='Vacancy & sales module'!X956 -> 0.07353902209 | AS39: ='Vacancy & sales module'!Y956 -> 0.07353902209 | AT39: ='Vacancy & sales module'!Z956 -> 0.07353902209 | AU39: ='Vacancy & sales module'!AA956 -> 0.07353902209 | AX39: 86 | AY39: =VLOOKUP($C39,'Assumptions_Asset level'!$A$15:$AE$81,'Assumptions_Asset level'!$C$7,0) -> HUNINGUE | BC39: =VLOOKUP($AX39,'Assumptions_Asset level'!$A$15:$AE$81,$AX$33,0)*F39 -> 18 | BD39: 18 | BE39: 16.37892 | BF39: 14.70115008 | BG39: 13.62120661 | BH39: 12.61951353 | BI39: 11.69148685 | BJ39: 10.83170634 | BK39: 10.03515325 | BL39: 9.297177895 | BM39: 8.613472524 | BN39: 7.980046178 | BO39: 7.393201386 | BP39: 6.849512586 | BQ39: 6.345806129 | BR39: 5.879141752 | BU39: 86 | BV39: =VLOOKUP($C39,'Assumptions_Asset level'!$A$15:$AE$81,'Assumptions_Asset level'!$C$7,0) -> HUNINGUE | BX39: 53.54222222 | CA39: =VLOOKUP($BU39,'Assumptions_Asset level'!$A$15:$AE$81,$BU$33,0)*F39 -> 963.76 | CB39: 963.76 | CC39: 876.9637744 | CD39: 787.1322445 | CE39: 729.3096713 | CF39: 675.6767978 | CG39: 625.9881872 | CH39: 579.9536281 | CI39: 537.3044054 | CJ39: 497.7915649 | CK39: 461.18446 | CL39: 427.2694058 | CM39: 395.8484315 | CN39: 366.738125 | CO39: 339.7685619 | CP39: 314.7823141 | CR39: 86 | CS39: =VLOOKUP($C39,'Assumptions_Asset level'!$A$15:$AE$81,'Assumptions_Asset level'!$C$7,0) -> HUNINGUE | CW39: 963.76 | CX39: 963.76 | CY39: 684.031744 | CZ39: 738.8647077 | DA39: 707.4303812 | DB39: 655.4064939 | DC39: 607.2085416 | DD39: 562.5550193 | DE39: 521.1852733 | DF39: 482.857818 | DG39: 447.3489262 | DH39: 414.4513236 | DI39: 383.9729786 | DJ39: 355.7359812 | DK39: 329.5755051 | DL39: 305.3388447
C40: 29 | D40: =VLOOKUP($C40,'Assumptions_Asset level'!$A$15:$AE$81,'Assumptions_Asset level'!$C$7,0) -> LONGJUMEAU | F40: =IF(VLOOKUP($C40,'Assumptions_Asset level'!$A$15:$AO$81,'Assumptions_Asset level'!$Y$7,0)="x",1,0) -> 1 | H40: =VLOOKUP($C40,'Assumptions_Asset level'!$A$15:$AE$81,$C$33,0)*$F40 -> 15.16513024 | I40: 15.51392824 | J40: =IF(I40>J1258,I40*(1+J$4),MIN(I40*(1+J$21),J1258)) -> 15.9328043 | K40: 16.34705721 | L40: 16.75573364 | M40: 17.17462699 | N40: 17.60399266 | O40: 18.04409248 | P40: 18.49519479 | Q40: 18.95757466 | R40: 19.43151403 | S40: 19.91730188 | T40: 20.41523442 | U40: 20.92561528 | V40: 21.44875567 | W40: 21.98497456 | Z40: 29 | AA40: =VLOOKUP($Z40,'Assumptions_Asset level'!$A$15:$AE$81,'Assumptions_Asset level'!$C$7,0) -> LONGJUMEAU | AC40: =VLOOKUP($Z40,'Assumptions_Asset level'!$A$15:$AO$80,$Z$33,0) -> 2 | AF40: ='Vacancy & sales module'!L957 -> 0 | AG40: ='Vacancy & sales module'!M957 -> 0 | AH40: ='Vacancy & sales module'!N957 -> 0.08194 | AI40: ='Vacancy & sales module'!O957 -> 0.09166511993 | AJ40: ='Vacancy & sales module'!P957 -> 0.06575413226 | AK40: ='Vacancy & sales module'!Q957 -> 0.06581642063 | AL40: ='Vacancy & sales module'!R957 -> 0.06581627504 | AM40: ='Vacancy & sales module'!S957 -> 0.06581627538 | AN40: ='Vacancy & sales module'!T957 -> 0.06581627538 | AO40: ='Vacancy & sales module'!U957 -> 0.06581627538 | AP40: ='Vacancy & sales module'!V957 -> 0.06581627538 | AQ40: ='Vacancy & sales module'!W957 -> 0.06581627538 | AR40: ='Vacancy & sales module'!X957 -> 0.06581627538 | AS40: ='Vacancy & sales module'!Y957 -> 0.06581627538 | AT40: ='Vacancy & sales module'!Z957 -> 0.06581627538 | AU40: ='Vacancy & sales module'!AA957 -> 0.06581627538 | AX40: 29 | AY40: =VLOOKUP($C40,'Assumptions_Asset level'!$A$15:$AE$81,'Assumptions_Asset level'!$C$7,0) -> LONGJUMEAU | BC40: =VLOOKUP($AX40,'Assumptions_Asset level'!$A$15:$AE$81,$AX$33,0)*F40 -> 31 | BD40: 31 | BE40: 28.45986 | BF40: 25.85108352 | BG40: 24.15126796 | BH40: 22.56171794 | BI40: 21.07678971 | BJ40: 19.68959392 | BK40: 18.39369818 | BL40: 17.18309348 | BM40: 16.05216626 | BN40: 14.99567247 | BO40: 14.00871316 | BP40: 13.08671184 | BQ40: 12.22539321 | BR40: 11.42076336 | BU40: 29 | BV40: =VLOOKUP($C40,'Assumptions_Asset level'!$A$15:$AE$81,'Assumptions_Asset level'!$C$7,0) -> LONGJUMEAU | BX40: 56.61806452 | CA40: =VLOOKUP($BU40,'Assumptions_Asset level'!$A$15:$AE$81,$BU$33,0)*F40 -> 1755.16 | CB40: 1755.16 | CC40: 1611.34219 | CD40: 1463.638315 | CE40: 1367.398047 | CF40: 1277.400802 | CG40: 1193.32704 | CH40: 1114.786699 | CI40: 1041.41559 | CJ40: 972.873495 | CK40: 908.8425851 | CL40: 849.0259513 | CM40: 793.1462254 | CN40: 740.9442951 | CO40: 692.1781013 | CP40: 646.6215168 | CR40: 29 | CS40: =VLOOKUP($C40,'Assumptions_Asset level'!$A$15:$AE$81,'Assumptions_Asset level'!$C$7,0) -> LONGJUMEAU | CW40: 1755.16 | CX40: 1755.16 | CY40: 1289.073752 | CZ40: 1379.075202 | DA40: 1326.376106 | DB40: 1239.078778 | DC40: 1157.527228 | DD40: 1081.343098 | DE40: 1010.173123 | DF40: 943.6872901 | DG40: 881.5773076 | DH40: 823.5551727 | DI40: 769.3518387 | DJ40: 718.7159662 | DK40: 671.4127583 | DL40: 627.2228713
C41: 54 | D41: =VLOOKUP($C41,'Assumptions_Asset level'!$A$15:$AE$81,'Assumptions_Asset level'!$C$7,0) -> CRETEIL | F41: =IF(VLOOKUP($C41,'Assumptions_Asset level'!$A$15:$AO$81,'Assumptions_Asset level'!$Y$7,0)="x",1,0) -> 1 | H41: =VLOOKUP($C41,'Assumptions_Asset level'!$A$15:$AE$81,$C$33,0)*$F41 -> 15.19933215 | I41: 15.54891679 | J41: =IF(I41>J1259,I41*(1+J$4),MIN(I41*(1+J$21),J1259)) -> 15.96873754 | K41: 16.38392472 | L41: 16.79352284 | M41: 17.21336091 | N41: 17.64369493 | O41: 18.0847873 | P41: 18.53690698 | Q41: 19.00032966 | R41: 19.4753379 | S41: 19.96222135 | T41: 20.46127688 | U41: 20.9728088 | V41: 21.49712902 | W41: 22.03455725 | Z41: 54 | AA41: =VLOOKUP($Z41,'Assumptions_Asset level'!$A$15:$AE$81,'Assumptions_Asset level'!$C$7,0) -> CRETEIL | AC41: =VLOOKUP($Z41,'Assumptions_Asset level'!$A$15:$AO$80,$Z$33,0) -> 2 | AF41: ='Vacancy & sales module'!L958 -> 0 | AG41: ='Vacancy & sales module'!M958 -> 0 | AH41: ='Vacancy & sales module'!N958 -> 0.08194 | AI41: ='Vacancy & sales module'!O958 -> 0.09166511993 | AJ41: ='Vacancy & sales module'!P958 -> 0.06575413226 | AK41: ='Vacancy & sales module'!Q958 -> 0.06581642063 | AL41: ='Vacancy & sales module'!R958 -> 0.06581627504 | AM41: ='Vacancy & sales module'!S958 -> 0.06581627538 | AN41: ='Vacancy & sales module'!T958 -> 0.06581627538 | AO41: ='Vacancy & sales module'!U958 -> 0.06581627538 | AP41: ='Vacancy & sales module'!V958 -> 0.06581627538 | AQ41: ='Vacancy & sales module'!W958 -> 0.06581627538 | AR41: ='Vacancy & sales module'!X958 -> 0.06581627538 | AS41: ='Vacancy & sales module'!Y958 -> 0.06581627538 | AT41: ='Vacancy & sales module'!Z958 -> 0.06581627538 | AU41: ='Vacancy & sales module'!AA958 -> 0.06581627538 | AX41: 54 | AY41: =VLOOKUP($C41,'Assumptions_Asset level'!$A$15:$AE$81,'Assumptions_Asset level'!$C$7,0) -> CRETEIL | BC41: =VLOOKUP($AX41,'Assumptions_Asset level'!$A$15:$AE$81,$AX$33,0)*F41 -> 26 | BD41: 26 | BE41: 23.86956 | BF41: 21.68155392 | BG41: 20.25590216 | BH41: 18.92273118 | BI41: 17.6773075 | BJ41: 16.51385296 | BK41: 15.42697267 | BL41: 14.41162679 | BM41: 13.46310719 | BN41: 12.57701562 | BO41: 11.74924329 | BP41: 10.97595186 | BQ41: 10.25355559 | BR41: 9.578704754 | BU41: 54 | BV41: =VLOOKUP($C41,'Assumptions_Asset level'!$A$15:$AE$81,'Assumptions_Asset level'!$C$7,0) -> CRETEIL | BX41: 89.84038462 | CA41: =VLOOKUP($BU41,'Assumptions_Asset level'!$A$15:$AE$81,$BU$33,0)*F41 -> 2335.85 | CB41: 2335.85 | CC41: 2144.450451 | CD41: 1947.879143 | CE41: 1819.79804 | CF41: 1700.025447 | CG41: 1588.136105 | CH41: 1483.610902 | CI41: 1385.965158 | CJ41: 1294.746093 | CK41: 1209.530728 | CL41: 1129.92392 | CM41: 1055.556537 | CN41: 986.0837369 | CO41: 921.1833781 | CP41: 860.5545192 | CR41: 54 | CS41: =VLOOKUP($C41,'Assumptions_Asset level'!$A$15:$AE$81,'Assumptions_Asset level'!$C$7,0) -> CRETEIL | CW41: 2335.85 | CX41: 2335.85 | CY41: 1715.560361 | CZ41: 1835.338551 | DA41: 1765.204099 | DB41: 1649.024684 | DC41: 1540.492022 | DD41: 1439.102574 | DE41: 1344.386203 | DF41: 1255.903711 | DG41: 1173.244806 | DH41: 1096.026203 | DI41: 1023.88984 | DJ41: 956.5012248 | DK41: 893.5478768 | DL41: 834.7378836
C42: 39 | D42: =VLOOKUP($C42,'Assumptions_Asset level'!$A$15:$AE$81,'Assumptions_Asset level'!$C$7,0) -> NEUILLY PLAISANCE | F42: =IF(VLOOKUP($C42,'Assumptions_Asset level'!$A$15:$AO$81,'Assumptions_Asset level'!$Y$7,0)="x",1,0) -> 1 | H42: =VLOOKUP($C42,'Assumptions_Asset level'!$A$15:$AE$81,$C$33,0)*$F42 -> 18.48684506 | I42: 18.9120425 | J42: =IF(I42>J1260,I42*(1+J$4),MIN(I42*(1+J$21),J1260)) -> 19.42266765 | K42: 19.92765701 | L42: 20.42584843 | M42: 20.93649464 | N42: 21.45990701 | O42: 21.99640468 | P42: 22.5463148 | Q42: 23.10997267 | R42: 23.68772199 | S42: 24.27991504 | T42: 24.88691291 | U42: 25.50908573 | V42: 26.14681288 | W42: 26.8004832 | Z42: 39 | AA42: =VLOOKUP($Z42,'Assumptions_Asset level'!$A$15:$AE$81,'Assumptions_Asset level'!$C$7,0) -> NEUILLY PLAISANCE | AC42: =VLOOKUP($Z42,'Assumptions_Asset level'!$A$15:$AO$80,$Z$33,0) -> 2 | AF42: ='Vacancy & sales module'!L959 -> 0 | AG42: ='Vacancy & sales module'!M959 -> 0 | AH42: ='Vacancy & sales module'!N959 -> 0.0835227907 | AI42: ='Vacancy & sales module'!O959 -> 0.09465037916 | AJ42: ='Vacancy & sales module'!P959 -> 0.06574672684 | AK42: ='Vacancy & sales module'!Q959 -> 0.06581643794 | AL42: ='Vacancy & sales module'!R959 -> 0.065816275 | AM42: ='Vacancy & sales module'!S959 -> 0.06581627538 | AN42: ='Vacancy & sales module'!T959 -> 0.06581627538 | AO42: ='Vacancy & sales module'!U959 -> 0.06581627538 | AP42: ='Vacancy & sales module'!V959 -> 0.06581627538 | AQ42: ='Vacancy & sales module'!W959 -> 0.06581627538 | AR42: ='Vacancy & sales module'!X959 -> 0.06581627538 | AS42: ='Vacancy & sales module'!Y959 -> 0.06581627538 | AT42: ='Vacancy & sales module'!Z959 -> 0.06581627538 | AU42: ='Vacancy & sales module'!AA959 -> 0.06581627538 | AX42: 39 | AY42: =VLOOKUP($C42,'Assumptions_Asset level'!$A$15:$AE$81,'Assumptions_Asset level'!$C$7,0) -> NEUILLY PLAISANCE | BC42: =VLOOKUP($AX42,'Assumptions_Asset level'!$A$15:$AE$81,$AX$33,0)*F42 -> 43 | BD42: 43 | BE42: 39.40852 | BF42: 35.67848864 | BG42: 33.33274479 | BH42: 31.13890226 | BI42: 29.08945571 | BJ42: 27.17489608 | BK42: 25.38634564 | BL42: 23.71551092 | BM42: 22.15464433 | BN42: 20.69650815 | BO42: 19.33434107 | BP42: 18.06182676 | BQ42: 16.87306459 | BR42: 15.76254233 | BU42: 39 | BV42: =VLOOKUP($C42,'Assumptions_Asset level'!$A$15:$AE$81,'Assumptions_Asset level'!$C$7,0) -> NEUILLY PLAISANCE | BX42: 60.01813953 | CA42: =VLOOKUP($BU42,'Assumptions_Asset level'!$A$15:$AE$81,$BU$33,0)*F42 -> 2580.78 | CB42: 2580.78 | CC42: 2365.226052 | CD42: 2141.35651 | CE42: 2000.569328 | CF42: 1868.898981 | CG42: 1745.895012 | CH42: 1630.986705 | CI42: 1523.641235 | CJ42: 1423.360844 | CK42: 1329.680534 | CL42: 1242.165914 | CM42: 1160.41118 | CN42: 1084.037239 | CO42: 1012.689945 | CP42: 946.0384648 | CR42: 39 | CS42: =VLOOKUP($C42,'Assumptions_Asset level'!$A$15:$AE$81,'Assumptions_Asset level'!$C$7,0) -> NEUILLY PLAISANCE | CW42: 2520.76186 | CX42: 2520.76186 | CY42: 1846.526478 | CZ42: 2010.769849 | DA42: 1940.552248 | DB42: 1812.832012 | DC42: 1693.518161 | DD42: 1582.057104 | DE42: 1477.931998 | DF42: 1380.660018 | DG42: 1289.790118 | DH42: 1204.900937 | DI42: 1125.598845 | DJ42: 1051.516121 | DK42: 982.3092468 | DL42: 917.6573109
C43: 124 | D43: =VLOOKUP($C43,'Assumptions_Asset level'!$A$15:$AE$81,'Assumptions_Asset level'!$C$7,0) -> NOISY LE GRAND | F43: =IF(VLOOKUP($C43,'Assumptions_Asset level'!$A$15:$AO$81,'Assumptions_Asset level'!$Y$7,0)="x",1,0) -> 1 | H43: =VLOOKUP($C43,'Assumptions_Asset level'!$A$15:$AE$81,$C$33,0)*$F43 -> 14.90715826 | I43: 15.2500229 | J43: =IF(I43>J1261,I43*(1+J$4),MIN(I43*(1+J$21),J1261)) -> 15.66177352 | K43: 16.06897963 | L43: 16.47070412 | M43: 16.88247172 | N43: 17.30453351 | O43: 17.73714685 | P43: 18.18057552 | Q43: 18.63508991 | R43: 19.10096716 | S43: 19.57849134 | T43: 20.06795362 | U43: 20.56965246 | V43: 21.08389377 | W43: 21.61099112 | Z43: 124 | AA43: =VLOOKUP($Z43,'Assumptions_Asset level'!$A$15:$AE$81,'Assumptions_Asset level'!$C$7,0) -> NOISY LE GRAND | AC43: =VLOOKUP($Z43,'Assumptions_Asset level'!$A$15:$AO$80,$Z$33,0) -> 2 | AF43: ='Vacancy & sales module'!L960 -> 0 | AG43: ='Vacancy & sales module'!M960 -> 0 | AH43: ='Vacancy & sales module'!N960 -> 0.08572111111 | AI43: ='Vacancy & sales module'!O960 -> 0.09881371962 | AJ43: ='Vacancy & sales module'!P960 -> 0.06573631707 | AK43: ='Vacancy & sales module'!Q960 -> 0.06581646227 | AL43: ='Vacancy & sales module'!R960 -> 0.06581627494 | AM43: ='Vacancy & sales module'!S960 -> 0.06581627538 | AN43: ='Vacancy & sales module'!T960 -> 0.06581627538 | AO43: ='Vacancy & sales module'!U960 -> 0.06581627538 | AP43: ='Vacancy & sales module'!V960 -> 0.06581627538 | AQ43: ='Vacancy & sales module'!W960 -> 0.06581627538 | AR43: ='Vacancy & sales module'!X960 -> 0.06581627538 | AS43: ='Vacancy & sales module'!Y960 -> 0.06581627538 | AT43: ='Vacancy & sales module'!Z960 -> 0.06581627538 | AU43: ='Vacancy & sales module'!AA960 -> 0.06581627538 | AX43: 124 | AY43: =VLOOKUP($C43,'Assumptions_Asset level'!$A$15:$AE$81,'Assumptions_Asset level'!$C$7,0) -> NOISY LE GRAND | BC43: =VLOOKUP($AX43,'Assumptions_Asset level'!$A$15:$AE$81,$AX$33,0)*F43 -> 18 | BD43: 18 | BE43: 16.45702 | BF43: 14.83084064 | BG43: 13.8559158 | BH43: 12.94396844 | BI43: 12.09204465 | BJ43: 11.29619131 | BK43: 10.55271807 | BL43: 9.858177475 | BM43: 9.209348951 | BN43: 8.603223905 | BO43: 8.036991751 | BP43: 7.508026889 | BQ43: 7.013876524 | BR43: 6.552249295 | BU43: 124 | BV43: =VLOOKUP($C43,'Assumptions_Asset level'!$A$15:$AE$81,'Assumptions_Asset level'!$C$7,0) -> NOISY LE GRAND | BX43: 77.3 | CA43: =VLOOKUP($BU43,'Assumptions_Asset level'!$A$15:$AE$81,$BU$33,0)*F43 -> 1391.4 | CB43: 1391.4 | CC43: 1272.127646 | CD43: 1146.423981 | CE43: 1071.062291 | CF43: 1000.56876 | CG43: 934.7150516 | CH43: 873.1955884 | CI43: 815.7251071 | CJ43: 762.0371188 | CK43: 711.8826739 | CL43: 665.0292078 | CM43: 621.2594624 | CN43: 580.3704785 | CO43: 542.1726553 | CP43: 506.4888705 | CR43: 124 | CS43: =VLOOKUP($C43,'Assumptions_Asset level'!$A$15:$AE$81,'Assumptions_Asset level'!$C$7,0) -> NOISY LE GRAND | CW43: 1314.1 | CX43: 1314.1 | CY43: 959.0428976 | CZ43: 1071.38366 | DA43: 1038.930422 | DB43: 970.5516974 | DC43: 906.6736001 | DD43: 846.9997207 | DE43: 791.2533539 | DF43: 739.1760052 | DG43: 690.5261937 | DH43: 645.0783316 | DI43: 602.6216785 | DJ43: 562.9593641 | DK43: 525.9074756 | DL43: 491.2942044
C44: 77 | D44: =VLOOKUP($C44,'Assumptions_Asset level'!$A$15:$AE$81,'Assumptions_Asset level'!$C$7,0) -> COMPIEGNE | F44: =IF(VLOOKUP($C44,'Assumptions_Asset level'!$A$15:$AO$81,'Assumptions_Asset level'!$Y$7,0)="x",1,0) -> 1 | H44: =VLOOKUP($C44,'Assumptions_Asset level'!$A$15:$AE$81,$C$33,0)*$F44 -> 12.22780629 | I44: 12.50904583 | J44: =IF(I44>J1262,I44*(1+J$4),MIN(I44*(1+J$21),J1262)) -> 12.84679007 | K44: 13.18080661 | L44: 13.51032678 | M44: 13.84808495 | N44: 14.19428707 | O44: 14.54914425 | P44: 14.91287285 | Q44: 15.28569468 | R44: 15.66783704 | S44: 16.05953297 | T44: 16.46102129 | U44: 16.87254683 | V44: 17.2943605 | W44: 17.72671951 | Z44: 77 | AA44: =VLOOKUP($Z44,'Assumptions_Asset level'!$A$15:$AE$81,'Assumptions_Asset level'!$C$7,0) -> COMPIEGNE | AC44: =VLOOKUP($Z44,'Assumptions_Asset level'!$A$15:$AO$80,$Z$33,0) -> 2 | AF44: ='Vacancy & sales module'!L961 -> 0 | AG44: ='Vacancy & sales module'!M961 -> 0 | AH44: ='Vacancy & sales module'!N961 -> 0.09006 | AI44: ='Vacancy & sales module'!O961 -> 0.10243471 | AJ44: ='Vacancy & sales module'!P961 -> 0.07345979482 | AK44: ='Vacancy & sales module'!Q961 -> 0.07353923253 | AL44: ='Vacancy & sales module'!R961 -> 0.07353902153 | AM44: ='Vacancy & sales module'!S961 -> 0.07353902209 | AN44: ='Vacancy & sales module'!T961 -> 0.07353902209 | AO44: ='Vacancy & sales module'!U961 -> 0.07353902209 | AP44: ='Vacancy & sales module'!V961 -> 0.07353902209 | AQ44: ='Vacancy & sales module'!W961 -> 0.07353902209 | AR44: ='Vacancy & sales module'!X961 -> 0.07353902209 | AS44: ='Vacancy & sales module'!Y961 -> 0.07353902209 | AT44: ='Vacancy & sales module'!Z961 -> 0.07353902209 | AU44: ='Vacancy & sales module'!AA961 -> 0.07353902209 | AX44: 77 | AY44: =VLOOKUP($C44,'Assumptions_Asset level'!$A$15:$AE$81,'Assumptions_Asset level'!$C$7,0) -> COMPIEGNE | BC44: =VLOOKUP($AX44,'Assumptions_Asset level'!$A$15:$AE$81,$AX$33,0)*F44 -> 18 | BD44: 18 | BE44: 16.37892 | BF44: 14.70115008 | BG44: 13.62120661 | BH44: 12.61951353 | BI44: 11.69148685 | BJ44: 10.83170634 | BK44: 10.03515325 | BL44: 9.297177895 | BM44: 8.613472524 | BN44: 7.980046178 | BO44: 7.393201386 | BP44: 6.849512586 | BQ44: 6.345806129 | BR44: 5.879141752 | BU44: 77 | BV44: =VLOOKUP($C44,'Assumptions_Asset level'!$A$15:$AE$81,'Assumptions_Asset level'!$C$7,0) -> COMPIEGNE | BX44: 59.53888889 | CA44: =VLOOKUP($BU44,'Assumptions_Asset level'!$A$15:$AE$81,$BU$33,0)*F44 -> 1071.7 | CB44: 1071.7 | CC44: 975.182698 | CD44: 875.2901412 | CE44: 810.991507 | CF44: 751.351814 | CG44: 696.0981367 | CH44: 644.9077605 | CI44: 597.4818744 | CJ44: 553.5436417 | CK44: 512.8365836 | CL44: 475.1230827 | CM44: 440.1829959 | CN44: 407.8123688 | CO44: 377.822246 | CP44: 350.0375675 | CR44: 77 | CS44: =VLOOKUP($C44,'Assumptions_Asset level'!$A$15:$AE$81,'Assumptions_Asset level'!$C$7,0) -> COMPIEGNE | CW44: 1071.7 | CX44: 1071.7 | CY44: 760.6425044 | CZ44: 821.6166964 | DA44: 786.6617618 | DB44: 728.8112595 | DC44: 675.2151926 | DD44: 625.5605277 | DE44: 579.5574182 | DF44: 536.9373324 | DG44: 497.4514861 | DH44: 460.8693903 | DI44: 426.977506 | DJ44: 395.5779977 | DK44: 366.4875786 | DL44: 339.5364405
C45: 129 | D45: =VLOOKUP($C45,'Assumptions_Asset level'!$A$15:$AE$81,'Assumptions_Asset level'!$C$7,0) -> LILLE | F45: =IF(VLOOKUP($C45,'Assumptions_Asset level'!$A$15:$AO$81,'Assumptions_Asset level'!$Y$7,0)="x",1,0) -> 1 | H45: =VLOOKUP($C45,'Assumptions_Asset level'!$A$15:$AE$81,$C$33,0)*$F45 -> 11.48723531 | I45: 11.75144172 | J45: =IF(I45>J1263,I45*(1+J$4),MIN(I45*(1+J$21),J1263)) -> 11.88400325 | K45: 12.19298733 | L45: 12.49781202 | M45: 12.81025732 | N45: 13.13051375 | O45: 13.4587766 | P45: 13.79524601 | Q45: 14.14012716 | R45: 14.49363034 | S45: 14.8559711 | T45: 15.22737038 | U45: 15.60805463 | V45: 15.998256 | W45: 16.3982124 | Z45: 129 | AA45: =VLOOKUP($Z45,'Assumptions_Asset level'!$A$15:$AE$81,'Assumptions_Asset level'!$C$7,0) -> LILLE | AC45: =VLOOKUP($Z45,'Assumptions_Asset level'!$A$15:$AO$80,$Z$33,0) -> 2 | AF45: ='Vacancy & sales module'!L962 -> 0 | AG45: ='Vacancy & sales module'!M962 -> 0 | AH45: ='Vacancy & sales module'!N962 -> 0.09006 | AI45: ='Vacancy & sales module'!O962 -> 0.10243471 | AJ45: ='Vacancy & sales module'!P962 -> 0.07345979482 | AK45: ='Vacancy & sales module'!Q962 -> 0.07353923253 | AL45: ='Vacancy & sales module'!R962 -> 0.07353902153 | AM45: ='Vacancy & sales module'!S962 -> 0.07353902209 | AN45: ='Vacancy & sales module'!T962 -> 0.07353902209 | AO45: ='Vacancy & sales module'!U962 -> 0.07353902209 | AP45: ='Vacancy & sales module'!V962 -> 0.07353902209 | AQ45: ='Vacancy & sales module'!W962 -> 0.07353902209 | AR45: ='Vacancy & sales module'!X962 -> 0.07353902209 | AS45: ='Vacancy & sales module'!Y962 -> 0.07353902209 | AT45: ='Vacancy & sales module'!Z962 -> 0.07353902209 | AU45: ='Vacancy & sales module'!AA962 -> 0.07353902209 | AX45: 129 | AY45: =VLOOKUP($C45,'Assumptions_Asset level'!$A$15:$AE$81,'Assumptions_Asset level'!$C$7,0) -> LILLE | BC45: =VLOOKUP($AX45,'Assumptions_Asset level'!$A$15:$AE$81,$AX$33,0)*F45 -> 31 | BD45: 31 | BE45: 28.20814 | BF45: 25.31864736 | BG45: 23.45874472 | BH45: 21.73360664 | BI45: 20.13533847 | BJ45: 18.65460537 | BK45: 17.28276393 | BL45: 16.01180637 | BM45: 14.83431379 | BN45: 13.74341286 | BO45: 12.73273572 | BP45: 11.79638279 | BQ45: 10.92888833 | BR45: 10.12518857 | BU45: 129 | BV45: =VLOOKUP($C45,'Assumptions_Asset level'!$A$15:$AE$81,'Assumptions_Asset level'!$C$7,0) -> LILLE | BX45: 81.5 | CA45: =VLOOKUP($BU45,'Assumptions_Asset level'!$A$15:$AE$81,$BU$33,0)*F45 -> 2526.5 | CB45: 2526.5 | CC45: 2298.96341 | CD45: 2063.46976 | CE45: 1911.887695 | CF45: 1771.288941 | CG45: 1641.030085 | CH45: 1520.350338 | CI45: 1408.545261 | CJ45: 1304.96222 | CK45: 1208.996574 | CL45: 1120.088148 | CM45: 1037.717961 | CN45: 961.4051971 | CO45: 890.7043991 | CP45: 825.2028686 | CR45: 129 | CS45: =VLOOKUP($C45,'Assumptions_Asset level'!$A$15:$AE$81,'Assumptions_Asset level'!$C$7,0) -> LILLE | CW45: 2526.5 | CX45: 2526.5 | CY45: 1793.19146 | CZ45: 1936.936254 | DA45: 1854.531064 | DB45: 1718.150273 | DC45: 1591.799183 | DD45: 1474.739828 | DE45: 1366.288903 | DF45: 1265.813353 | DG45: 1172.726677 | DH45: 1086.485504 | DI45: 1006.586422 | DJ45: 932.5630412 | DK45: 863.9832671 | DL45: 800.4467826
C46: 89 | D46: =VLOOKUP($C46,'Assumptions_Asset level'!$A$15:$AE$81,'Assumptions_Asset level'!$C$7,0) -> ST ANDRE LEZ LILLE | F46: =IF(VLOOKUP($C46,'Assumptions_Asset level'!$A$15:$AO$81,'Assumptions_Asset level'!$Y$7,0)="x",1,0) -> 1 | H46: =VLOOKUP($C46,'Assumptions_Asset level'!$A$15:$AE$81,$C$33,0)*$F46 -> 11.78054186 | I46: 12.05149433 | J46: =IF(I46>J1264,I46*(1+J$4),MIN(I46*(1+J$21),J1264)) -> 12.31953634 | K46: 12.63984429 | L46: 12.95584039 | M46: 13.2797364 | N46: 13.61172981 | O46: 13.95202306 | P46: 14.30082364 | Q46: 14.65834423 | R46: 15.02480283 | S46: 15.4004229 | T46: 15.78543347 | U46: 16.18006931 | V46: 16.58457104 | W46: 16.99918532 | Z46: 89 | AA46: =VLOOKUP($Z46,'Assumptions_Asset level'!$A$15:$AE$81,'Assumptions_Asset level'!$C$7,0) -> ST ANDRE LEZ LILLE | AC46: =VLOOKUP($Z46,'Assumptions_Asset level'!$A$15:$AO$80,$Z$33,0) -> 2 | AF46: ='Vacancy & sales module'!L963 -> 0 | AG46: ='Vacancy & sales module'!M963 -> 0 | AH46: ='Vacancy & sales module'!N963 -> 0.09006 | AI46: ='Vacancy & sales module'!O963 -> 0.10243471 | AJ46: ='Vacancy & sales module'!P963 -> 0.07345979482 | AK46: ='Vacancy & sales module'!Q963 -> 0.07353923253 | AL46: ='Vacancy & sales module'!R963 -> 0.07353902153 | AM46: ='Vacancy & sales module'!S963 -> 0.07353902209 | AN46: ='Vacancy & sales module'!T963 -> 0.07353902209 | AO46: ='Vacancy & sales module'!U963 -> 0.07353902209 | AP46: ='Vacancy & sales module'!V963 -> 0.07353902209 | AQ46: ='Vacancy & sales module'!W963 -> 0.07353902209 | AR46: ='Vacancy & sales module'!X963 -> 0.07353902209 | AS46: ='Vacancy & sales module'!Y963 -> 0.07353902209 | AT46: ='Vacancy & sales module'!Z963 -> 0.07353902209 | AU46: ='Vacancy & sales module'!AA963 -> 0.07353902209 | AX46: 89 | AY46: =VLOOKUP($C46,'Assumptions_Asset level'!$A$15:$AE$81,'Assumptions_Asset level'!$C$7,0) -> ST ANDRE LEZ LILLE | BC46: =VLOOKUP($AX46,'Assumptions_Asset level'!$A$15:$AE$81,$AX$33,0)*F46 -> 21 | BD46: 21 | BE46: 19.10874 | BF46: 17.15134176 | BG46: 15.89140771 | BH46: 14.72276579 | BI46: 13.640068 | BJ46: 12.63699073 | BK46: 11.70767879 | BL46: 10.84670754 | BM46: 10.04905128 | BN46: 9.310053875 | BO46: 8.625401617 | BP46: 7.991098017 | BQ46: 7.403440483 | BR46: 6.85899871 | BU46: 89 | BV46: =VLOOKUP($C46,'Assumptions_Asset level'!$A$15:$AE$81,'Assumptions_Asset level'!$C$7,0) -> ST ANDRE LEZ LILLE | BX46: 77.77380952 | CA46: =VLOOKUP($BU46,'Assumptions_Asset level'!$A$15:$AE$81,$BU$33,0)*F46 -> 1633.25 | CB46: 1633.25 | CC46: 1486.159505 | CD46: 1333.925187 | CE46: 1235.935317 | CF46: 1145.045582 | CG46: 1060.84005 | CH46: 982.8269103 | CI46: 910.5507805 | CJ46: 843.5897665 | CK46: 781.553 | CL46: 724.0783567 | CM46: 670.8303424 | CN46: 621.4981351 | CO46: 575.79377 | CP46: 533.4504592 | CR46: 89 | CS46: =VLOOKUP($C46,'Assumptions_Asset level'!$A$15:$AE$81,'Assumptions_Asset level'!$C$7,0) -> ST ANDRE LEZ LILLE | CW46: 1633.25 | CX46: 1633.25 | CY46: 1159.204414 | CZ46: 1252.127899 | DA46: 1198.857257 | DB46: 1110.694214 | DC46: 1029.014849 | DD46: 953.342103 | DE46: 883.2342571 | DF46: 818.2820735 | DG46: 758.10641 | DH46: 702.356006 | DI46: 650.7054322 | DJ46: 602.853191 | DK46: 558.5199569 | DL46: 517.4469454
C47: 70 | D47: =VLOOKUP($C47,'Assumptions_Asset level'!$A$15:$AE$81,'Assumptions_Asset level'!$C$7,0) -> VERNEUIL SUR SEINE | F47: =IF(VLOOKUP($C47,'Assumptions_Asset level'!$A$15:$AO$81,'Assumptions_Asset level'!$Y$7,0)="x",1,0) -> 1 | H47: =VLOOKUP($C47,'Assumptions_Asset level'!$A$15:$AE$81,$C$33,0)*$F47 -> 15.07166578 | I47: 15.4183141 | J47: =IF(I47>J1265,I47*(1+J$4),MIN(I47*(1+J$21),J1265)) -> 15.83460858 | K47: 16.2463084 | L47: 16.65246611 | M47: 17.06877776 | N47: 17.49549721 | O47: 17.93288464 | P47: 18.38120675 | Q47: 18.84073692 | R47: 19.31175534 | S47: 19.79454923 | T47: 20.28941296 | U47: 20.79664828 | V47: 21.31656449 | W47: 21.8494786 | Z47: 70 | AA47: =VLOOKUP($Z47,'Assumptions_Asset level'!$A$15:$AE$81,'Assumptions_Asset level'!$C$7,0) -> VERNEUIL SUR SEINE | AC47: =VLOOKUP($Z47,'Assumptions_Asset level'!$A$15:$AO$80,$Z$33,0) -> 2 | AF47: ='Vacancy & sales module'!L964 -> 0 | AG47: ='Vacancy & sales module'!M964 -> 0 | AH47: ='Vacancy & sales module'!N964 -> 0.08194 | AI47: ='Vacancy & sales module'!O964 -> 0.09166511993 | AJ47: ='Vacancy & sales module'!P964 -> 0.06575413226 | AK47: ='Vacancy & sales module'!Q964 -> 0.06581642063 | AL47: ='Vacancy & sales module'!R964 -> 0.06581627504 | AM47: ='Vacancy & sales module'!S964 -> 0.06581627538 | AN47: ='Vacancy & sales module'!T964 -> 0.06581627538 | AO47: ='Vacancy & sales module'!U964 -> 0.06581627538 | AP47: ='Vacancy & sales module'!V964 -> 0.06581627538 | AQ47: ='Vacancy & sales module'!W964 -> 0.06581627538 | AR47: ='Vacancy & sales module'!X964 -> 0.06581627538 | AS47: ='Vacancy & sales module'!Y964 -> 0.06581627538 | AT47: ='Vacancy & sales module'!Z964 -> 0.06581627538 | AU47: ='Vacancy & sales module'!AA964 -> 0.06581627538 | AX47: 70 | AY47: =VLOOKUP($C47,'Assumptions_Asset level'!$A$15:$AE$81,'Assumptions_Asset level'!$C$7,0) -> VERNEUIL SUR SEINE | BC47: =VLOOKUP($AX47,'Assumptions_Asset level'!$A$15:$AE$81,$AX$33,0)*F47 -> 22 | BD47: 22 | BE47: 20.19732 | BF47: 18.34593024 | BG47: 17.13960952 | BH47: 16.01154177 | BI47: 14.95772173 | BJ47: 13.9732602 | BK47: 13.05359226 | BL47: 12.19445343 | BM47: 11.39185993 | BN47: 10.64209014 | BO47: 9.941667403 | BP47: 9.287343884 | BQ47: 8.676085501 | BR47: 8.105057869 | BU47: 70 | BV47: =VLOOKUP($C47,'Assumptions_Asset level'!$A$15:$AE$81,'Assumptions_Asset level'!$C$7,0) -> VERNEUIL SUR SEINE | BX47: 59.95 | CA47: =VLOOKUP($BU47,'Assumptions_Asset level'!$A$15:$AE$81,$BU$33,0)*F47 -> 1318.9 | CB47: 1318.9 | CC47: 1210.829334 | CD47: 1099.838518 | CE47: 1027.519591 | CF47: 959.8919289 | CG47: 896.7154177 | CH47: 837.6969489 | CI47: 782.5628558 | CJ47: 731.0574834 | CK47: 682.9420027 | CL47: 637.9933038 | CM47: 596.0029608 | CN47: 556.7762658 | CO47: 520.1313258 | CP47: 485.8982192 | CR47: 70 | CS47: =VLOOKUP($C47,'Assumptions_Asset level'!$A$15:$AE$81,'Assumptions_Asset level'!$C$7,0) -> VERNEUIL SUR SEINE | CW47: 1318.9 | CX47: 1318.9 | CY47: 968.6634672 | CZ47: 1036.294289 | DA47: 996.6940028 | DB47: 931.0951711 | DC47: 869.8139552 | DD47: 812.5660404 | DE47: 759.0859701 | DF47: 709.1257589 | DG47: 662.4537426 | DH47: 618.8535047 | DI47: 578.122872 | DJ47: 540.0729779 | DK47: 504.527386 | DL47: 471.3212727
C48: 59 | D48: =VLOOKUP($C48,'Assumptions_Asset level'!$A$15:$AE$81,'Assumptions_Asset level'!$C$7,0) -> CARRIERES SOUS POISSY | F48: =IF(VLOOKUP($C48,'Assumptions_Asset level'!$A$15:$AO$81,'Assumptions_Asset level'!$Y$7,0)="x",1,0) -> 1 | H48: =VLOOKUP($C48,'Assumptions_Asset level'!$A$15:$AE$81,$C$33,0)*$F48 -> 14.5799307 | I48: 14.91526911 | J48: =IF(I48>J1266,I48*(1+J$4),MIN(I48*(1+J$21),J1266)) -> 15.24340503 | K48: 15.37160435 | L48: 15.75589446 | M48: 16.14979182 | N48: 16.55353662 | O48: 16.96737503 | P48: 17.39155941 | Q48: 17.8263484 | R48: 18.27200711 | S48: 18.72880728 | T48: 19.19702747 | U48: 19.67695315 | V48: 20.16887698 | W48: 20.67309891 | Z48: 59 | AA48: =VLOOKUP($Z48,'Assumptions_Asset level'!$A$15:$AE$81,'Assumptions_Asset level'!$C$7,0) -> CARRIERES SOUS POISSY | AC48: =VLOOKUP($Z48,'Assumptions_Asset level'!$A$15:$AO$80,$Z$33,0) -> 2 | AF48: ='Vacancy & sales module'!L965 -> 0 | AG48: ='Vacancy & sales module'!M965 -> 0 | AH48: ='Vacancy & sales module'!N965 -> 0.08194 | AI48: ='Vacancy & sales module'!O965 -> 0.09166511993 | AJ48: ='Vacancy & sales module'!P965 -> 0.06575413226 | AK48: ='Vacancy & sales module'!Q965 -> 0.06581642063 | AL48: ='Vacancy & sales module'!R965 -> 0.06581627504 | AM48: ='Vacancy & sales module'!S965 -> 0.06581627538 | AN48: ='Vacancy & sales module'!T965 -> 0.06581627538 | AO48: ='Vacancy & sales module'!U965 -> 0.06581627538 | AP48: ='Vacancy & sales module'!V965 -> 0.06581627538 | AQ48: ='Vacancy & sales module'!W965 -> 0.06581627538 | AR48: ='Vacancy & sales module'!X965 -> 0.06581627538 | AS48: ='Vacancy & sales module'!Y965 -> 0.06581627538 | AT48: ='Vacancy & sales module'!Z965 -> 0.06581627538 | AU48: ='Vacancy & sales module'!AA965 -> 0.06581627538 | AX48: 59 | AY48: =VLOOKUP($C48,'Assumptions_Asset level'!$A$15:$AE$81,'Assumptions_Asset level'!$C$7,0) -> CARRIERES SOUS POISSY | BC48: =VLOOKUP($AX48,'Assumptions_Asset level'!$A$15:$AE$81,$AX$33,0)*F48 -> 20 | BD48: 20 | BE48: 18.3612 | BF48: 16.6781184 | BG48: 15.5814632 | BH48: 14.55594706 | BI48: 13.59792885 | BJ48: 12.70296382 | BK48: 11.86690205 | BL48: 11.08586676 | BM48: 10.3562363 | BN48: 9.674627399 | BO48: 9.037879458 | BP48: 8.443039894 | BQ48: 7.887350456 | BR48: 7.368234426 | BU48: 59 | BV48: =VLOOKUP($C48,'Assumptions_Asset level'!$A$15:$AE$81,'Assumptions_Asset level'!$C$7,0) -> CARRIERES SOUS POISSY | BX48: 75.04 | CA48: =VLOOKUP($BU48,'Assumptions_Asset level'!$A$15:$AE$81,$BU$33,0)*F48 -> 1500.8 | CB48: 1500.8 | CC48: 1377.824448 | CD48: 1251.526005 | CE48: 1169.232998 | CF48: 1092.278267 | CG48: 1020.388581 | CH48: 953.2304048 | CI48: 890.4923299 | CJ48: 831.8834415 | CK48: 777.1319719 | CL48: 725.98404 | CM48: 678.2024745 | CN48: 633.5657137 | CO48: 591.8667782 | CP48: 552.9123113 | CR48: 59 | CS48: =VLOOKUP($C48,'Assumptions_Asset level'!$A$15:$AE$81,'Assumptions_Asset level'!$C$7,0) -> CARRIERES SOUS POISSY | CW48: 1500.8 | CX48: 1500.8 | CY48: 1102.259558 | CZ48: 1179.217885 | DA48: 1134.156008 | DB48: 1059.509919 | DC48: 989.7769232 | DD48: 924.6334926 | DE48: 863.7775601 | DF48: 806.9269383 | DG48: 753.8180127 | DH48: 704.2045188 | DI48: 657.8564003 | DJ48: 614.5587423 | DK48: 574.1107749 | DL48: 536.324942
C49: 130 | D49: =VLOOKUP($C49,'Assumptions_Asset level'!$A$15:$AE$81,'Assumptions_Asset level'!$C$7,0) -> VAUCRESSON | F49: =IF(VLOOKUP($C49,'Assumptions_Asset level'!$A$15:$AO$81,'Assumptions_Asset level'!$Y$7,0)="x",1,0) -> 1 | H49: =VLOOKUP($C49,'Assumptions_Asset level'!$A$15:$AE$81,$C$33,0)*$F49 -> 19.36021303 | I49: =H49*(1+I$21) -> 19.80549792 | J49: =IF(I49>J1267,I49*(1+J$4),MIN(I49*(1+J$21),J1267)) -> 20.34024637 | K49: 20.86909277 | L49: 21.39082009 | M49: 21.9255906 | N49: 22.47373036 | O49: 23.03557362 | P49: 23.61146296 | Q49: 24.20174953 | R49: 24.80679327 | S49: 25.4269631 | T49: 26.06263718 | U49: 26.71420311 | V49: 27.38205819 | W49: 28.06660964 | Z49: 130 | AA49: =VLOOKUP($Z49,'Assumptions_Asset level'!$A$15:$AE$81,'Assumptions_Asset level'!$C$7,0) -> VAUCRESSON | AC49: =VLOOKUP($Z49,'Assumptions_Asset level'!$A$15:$AO$80,$Z$33,0) -> 2 | AF49: ='Vacancy & sales module'!L966 -> 0 | AG49: ='Vacancy & sales module'!M966 -> 0 | AH49: ='Vacancy & sales module'!N966 -> 0.09409357143 | AI49: ='Vacancy & sales module'!O966 -> 0.114855123 | AJ49: ='Vacancy & sales module'!P966 -> 0.06569529254 | AK49: ='Vacancy & sales module'!Q966 -> 0.06581655815 | AL49: ='Vacancy & sales module'!R966 -> 0.06581627472 | AM49: ='Vacancy & sales module'!S966 -> 0.06581627538 | AN49: ='Vacancy & sales module'!T966 -> 0.06581627538 | AO49: ='Vacancy & sales module'!U966 -> 0.06581627538 | AP49: ='Vacancy & sales module'!V966 -> 0.06581627538 | AQ49: ='Vacancy & sales module'!W966 -> 0.06581627538 | AR49: ='Vacancy & sales module'!X966 -> 0.06581627538 | AS49: ='Vacancy & sales module'!Y966 -> 0.06581627538 | AT49: ='Vacancy & sales module'!Z966 -> 0.06581627538 | AU49: ='Vacancy & sales module'!AA966 -> 0.06581627538 | AX49: 130 | AY49: =VLOOKUP($C49,'Assumptions_Asset level'!$A$15:$AE$81,'Assumptions_Asset level'!$C$7,0) -> VAUCRESSON | BC49: =VLOOKUP($AX49,'Assumptions_Asset level'!$A$15:$AE$81,$AX$33,0)*F49 -> 28 | BD49: 28 | BE49: 25.36538 | BF49: 22.45203616 | BG49: 20.97704308 | BH49: 19.5964063 | BI49: 18.30664384 | BJ49: 17.10176873 | BK49: 15.97619401 | BL49: 14.92470042 | BM49: 13.94241223 | BN49: 13.02477459 | BO49: 12.16753244 | BP49: 11.36671077 | BQ49: 10.6185962 | BR49: 9.919719753 | BU49: 130 | BV49: =VLOOKUP($C49,'Assumptions_Asset level'!$A$15:$AE$81,'Assumptions_Asset level'!$C$7,0) -> VAUCRESSON | BX49: 68.15642857 | CA49: =VLOOKUP($BU49,'Assumptions_Asset level'!$A$15:$AE$81,$BU$33,0)*F49 -> 1908.38 | CB49: 1908.38 | CC49: 1728.81371 | CD49: 1530.250599 | CE49: 1429.720338 | CF49: 1335.621066 | CG49: 1247.715463 | CH49: 1165.595479 | CI49: 1088.880326 | CJ49: 1017.214278 | CK49: 950.2650233 | CL49: 887.7221189 | CM49: 829.2955554 | CN49: 774.7144108 | CO49: 723.7255938 | CP49: 676.0926708 | CR49: 130 | CS49: =VLOOKUP($C49,'Assumptions_Asset level'!$A$15:$AE$81,'Assumptions_Asset level'!$C$7,0) -> VAUCRESSON | CW49: 1567.597857 | CX49: 1567.597857 | CY49: 1126.816079 | CZ49: 1403.71429 | DA49: 1386.828728 | DB49: 1295.552434 | DC49: 1210.283999 | DD49: 1130.627614 | DE49: 1056.213916 | DF49: 986.69785 | DG49: 921.7570726 | DH49: 861.0904553 | DI49: 804.4166888 | DJ49: 751.4729784 | DK49: 702.013826 | DL49: 655.8098907
C50: 127 | D50: =VLOOKUP($C50,'Assumptions_Asset level'!$A$15:$AE$81,'Assumptions_Asset level'!$C$7,0) -> VAUCRESSON | F50: =IF(VLOOKUP($C50,'Assumptions_Asset level'!$A$15:$AO$81,'Assumptions_Asset level'!$Y$7,0)="x",1,0) -> 1 | H50: =VLOOKUP($C50,'Assumptions_Asset level'!$A$15:$AE$81,$C$33,0)*$F50 -> 19.26428659 | I50: 19.70736518 | J50: =IF(I50>J1268,I50*(1+J$4),MIN(I50*(1+J$21),J1268)) -> 20.23946404 | K50: 20.76569011 | L50: 21.28483236 | M50: 21.81695317 | N50: 22.362377 | O50: 22.92143642 | P50: 23.49447234 | Q50: 24.08183414 | R50: 24.68388 | S50: 25.300977 | T50: 25.93350142 | U50: 26.58183896 | V50: 27.24638493 | W50: 27.92754456 | Z50: 127 | AA50: =VLOOKUP($Z50,'Assumptions_Asset level'!$A$15:$AE$81,'Assumptions_Asset level'!$C$7,0) -> VAUCRESSON | AC50: =VLOOKUP($Z50,'Assumptions_Asset level'!$A$15:$AO$80,$Z$33,0) -> 2 | AF50: ='Vacancy & sales module'!L967 -> 0 | AG50: ='Vacancy & sales module'!M967 -> 0 | AH50: ='Vacancy & sales module'!N967 -> 0.0928296 | AI50: ='Vacancy & sales module'!O967 -> 0.1124144121 | AJ50: ='Vacancy & sales module'!P967 -> 0.0657016301 | AK50: ='Vacancy & sales module'!Q967 -> 0.06581654334 | AL50: ='Vacancy & sales module'!R967 -> 0.06581627475 | AM50: ='Vacancy & sales module'!S967 -> 0.06581627538 | AN50: ='Vacancy & sales module'!T967 -> 0.06581627538 | AO50: ='Vacancy & sales module'!U967 -> 0.06581627538 | AP50: ='Vacancy & sales module'!V967 -> 0.06581627538 | AQ50: ='Vacancy & sales module'!W967 -> 0.06581627538 | AR50: ='Vacancy & sales module'!X967 -> 0.06581627538 | AS50: ='Vacancy & sales module'!Y967 -> 0.06581627538 | AT50: ='Vacancy & sales module'!Z967 -> 0.06581627538 | AU50: ='Vacancy & sales module'!AA967 -> 0.06581627538 | AX50: 127 | AY50: =VLOOKUP($C50,'Assumptions_Asset level'!$A$15:$AE$81,'Assumptions_Asset level'!$C$7,0) -> VAUCRESSON | BC50: =VLOOKUP($AX50,'Assumptions_Asset level'!$A$15:$AE$81,$AX$33,0)*F50 -> 25 | BD50: 25 | BE50: 22.67926 | BF50: 20.12978432 | BG50: 18.80722468 | BH50: 17.56939816 | BI50: 16.41304582 | BJ50: 15.33280028 | BK50: 14.32365247 | BL50: 13.38092302 | BM50: 12.5002405 | BN50: 11.67752123 | BO50: 10.90895028 | BP50: 10.1909638 | BQ50: 9.520232523 | BR50: 8.893646278 | BU50: 127 | BV50: =VLOOKUP($C50,'Assumptions_Asset level'!$A$15:$AE$81,'Assumptions_Asset level'!$C$7,0) -> VAUCRESSON | BX50: 74.134 | CA50: =VLOOKUP($BU50,'Assumptions_Asset level'!$A$15:$AE$81,$BU$33,0)*F50 -> 1853.35 | CB50: 1853.35 | CC50: 1681.304261 | CD50: 1492.301431 | CE50: 1394.254794 | CF50: 1302.489763 | CG50: 1216.764739 | CH50: 1136.681816 | CI50: 1061.869652 | CJ50: 991.981347 | CK50: 926.6928295 | CL50: 865.701359 | CM50: 808.72412 | CN50: 755.4969106 | CO50: 705.7729179 | CP50: 659.3215732 | CR50: 127 | CS50: =VLOOKUP($C50,'Assumptions_Asset level'!$A$15:$AE$81,'Assumptions_Asset level'!$C$7,0) -> VAUCRESSON | CW50: 1556.814 | CX50: 1556.814 | CY50: 1121.766203 | CZ50: 1372.816181 | DA50: 1352.42715 | DB50: 1263.41507 | DC50: 1180.261797 | DD50: 1102.581361 | DE50: 1030.013563 | DF50: 962.2219066 | DG50: 898.8920446 | DH50: 839.7303182 | DI50: 784.4623964 | DJ50: 732.8320033 | DK50: 684.5997303 | DL50: 639.541926
C51: 71 | D51: =VLOOKUP($C51,'Assumptions_Asset level'!$A$15:$AE$81,'Assumptions_Asset level'!$C$7,0) -> TORCY | F51: =IF(VLOOKUP($C51,'Assumptions_Asset level'!$A$15:$AO$81,'Assumptions_Asset level'!$Y$7,0)="x",1,0) -> 1 | H51: =VLOOKUP($C51,'Assumptions_Asset level'!$A$15:$AE$81,$C$33,0)*$F51 -> 15.17221198 | I51: 15.52117285 | J51: =IF(I51>J1269,I51*(1+J$4),MIN(I51*(1+J$21),J1269)) -> 15.94024452 | K51: 16.35469088 | L51: 16.76355815 | M51: 17.1826471 | N51: 17.61221328 | O51: 18.05251861 | P51: 18.50383158 | Q51: 18.96642737 | R51: 19.44058805 | S51: 19.92660275 | T51: 20.42476782 | U51: 20.93538702 | V51: 21.45877169 | W51: 21.99524098 | Z51: 71 | AA51: =VLOOKUP($Z51,'Assumptions_Asset level'!$A$15:$AE$81,'Assumptions_Asset level'!$C$7,0) -> TORCY | AC51: =VLOOKUP($Z51,'Assumptions_Asset level'!$A$15:$AO$80,$Z$33,0) -> 2 | AF51: ='Vacancy & sales module'!L968 -> 0 | AG51: ='Vacancy & sales module'!M968 -> 0 | AH51: ='Vacancy & sales module'!N968 -> 0.07497 | AI51: ='Vacancy & sales module'!O968 -> 0.07864073598 | AJ51: ='Vacancy & sales module'!P968 -> 0.06578587997 | AK51: ='Vacancy & sales module'!Q968 -> 0.06581634643 | AL51: ='Vacancy & sales module'!R968 -> 0.06581627521 | AM51: ='Vacancy & sales module'!S968 -> 0.06581627538 | AN51: ='Vacancy & sales module'!T968 -> 0.06581627538 | AO51: ='Vacancy & sales module'!U968 -> 0.06581627538 | AP51: ='Vacancy & sales module'!V968 -> 0.06581627538 | AQ51: ='Vacancy & sales module'!W968 -> 0.06581627538 | AR51: ='Vacancy & sales module'!X968 -> 0.06581627538 | AS51: ='Vacancy & sales module'!Y968 -> 0.06581627538 | AT51: ='Vacancy & sales module'!Z968 -> 0.06581627538 | AU51: ='Vacancy & sales module'!AA968 -> 0.06581627538 | AX51: 71 | AY51: =VLOOKUP($C51,'Assumptions_Asset level'!$A$15:$AE$81,'Assumptions_Asset level'!$C$7,0) -> TORCY | BC51: =VLOOKUP($AX51,'Assumptions_Asset level'!$A$15:$AE$81,$AX$33,0)*F51 -> 46 | BD51: 46 | BE51: 42.55138 | BF51: 39.20510816 | BG51: 36.62596562 | BH51: 34.21537838 | BI51: 31.96344962 | BJ51: 29.85973442 | BK51: 27.89447791 | BL51: 26.05856727 | BM51: 24.34348943 | BN51: 22.74129163 | BO51: 21.24454452 | BP51: 19.84630773 | BQ51: 18.54009767 | BR51: 17.3198575 | BU51: 71 | BV51: =VLOOKUP($C51,'Assumptions_Asset level'!$A$15:$AE$81,'Assumptions_Asset level'!$C$7,0) -> TORCY | BX51: 62.47608696 | CA51: =VLOOKUP($BU51,'Assumptions_Asset level'!$A$15:$AE$81,$BU$33,0)*F51 -> 2873.9 | CB51: 2873.9 | CC51: 2658.443717 | CD51: 2449.381747 | CE51: 2288.247013 | CF51: 2137.642955 | CG51: 1996.951258 | CH51: 1865.519364 | CI51: 1742.737828 | CJ51: 1628.037315 | CK51: 1520.885963 | CL51: 1420.786913 | CM51: 1327.276011 | CN51: 1239.919647 | CO51: 1158.312754 | CP51: 1082.076923 | CR51: 71 | CS51: =VLOOKUP($C51,'Assumptions_Asset level'!$A$15:$AE$81,'Assumptions_Asset level'!$C$7,0) -> TORCY | CW51: 2873.9 | CX51: 2873.9 | CY51: 2352.72269 | CZ51: 2342.139641 | DA51: 2219.599603 | DB51: 2073.513666 | DC51: 1937.04272 | DD51: 1809.553783 | DE51: 1690.455693 | DF51: 1579.196196 | DG51: 1475.259384 | DH51: 1378.163306 | DI51: 1287.45773 | DJ51: 1202.722058 | DK51: 1123.563372 | DL51: 1049.614615
C52: 74 | D52: =VLOOKUP($C52,'Assumptions_Asset level'!$A$15:$AE$81,'Assumptions_Asset level'!$C$7,0) -> GAGNY | F52: =IF(VLOOKUP($C52,'Assumptions_Asset level'!$A$15:$AO$81,'Assumptions_Asset level'!$Y$7,0)="x",1,0) -> 1 | H52: =VLOOKUP($C52,'Assumptions_Asset level'!$A$15:$AE$81,$C$33,0)*$F52 -> 14.32610793 | I52: 14.65560841 | J52: =IF(I52>J1270,I52*(1+J$4),MIN(I52*(1+J$21),J1270)) -> 14.9780318 | K52: 15.10841696 | L52: 15.48612739 | M52: 15.87328057 | N52: 16.27011259 | O52: 16.6768654 | P52: 17.09378704 | Q52: 17.52113171 | R52: 17.95916 | S52: 18.408139 | T52: 18.86834248 | U52: 19.34005104 | V52: 19.82355232 | W52: 20.31914113 | Z52: 74 | AA52: =VLOOKUP($Z52,'Assumptions_Asset level'!$A$15:$AE$81,'Assumptions_Asset level'!$C$7,0) -> GAGNY | AC52: =VLOOKUP($Z52,'Assumptions_Asset level'!$A$15:$AO$80,$Z$33,0) -> 2 | AF52: ='Vacancy & sales module'!L969 -> 0 | AG52: ='Vacancy & sales module'!M969 -> 0 | AH52: ='Vacancy & sales module'!N969 -> 0.08194 | AI52: ='Vacancy & sales module'!O969 -> 0.09166511993 | AJ52: ='Vacancy & sales module'!P969 -> 0.06575413226 | AK52: ='Vacancy & sales module'!Q969 -> 0.06581642063 | AL52: ='Vacancy & sales module'!R969 -> 0.06581627504 | AM52: ='Vacancy & sales module'!S969 -> 0.06581627538 | AN52: ='Vacancy & sales module'!T969 -> 0.06581627538 | AO52: ='Vacancy & sales module'!U969 -> 0.06581627538 | AP52: ='Vacancy & sales module'!V969 -> 0.06581627538 | AQ52: ='Vacancy & sales module'!W969 -> 0.06581627538 | AR52: ='Vacancy & sales module'!X969 -> 0.06581627538 | AS52: ='Vacancy & sales module'!Y969 -> 0.06581627538 | AT52: ='Vacancy & sales module'!Z969 -> 0.06581627538 | AU52: ='Vacancy & sales module'!AA969 -> 0.06581627538 | AX52: 74 | AY52: =VLOOKUP($C52,'Assumptions_Asset level'!$A$15:$AE$81,'Assumptions_Asset level'!$C$7,0) -> GAGNY | BC52: =VLOOKUP($AX52,'Assumptions_Asset level'!$A$15:$AE$81,$AX$33,0)*F52 -> 2 | BD52: 2 | BE52: 1.83612 | BF52: 1.66781184 | BG52: 1.55814632 | BH52: 1.455594706 | BI52: 1.359792885 | BJ52: 1.270296382 | BK52: 1.186690205 | BL52: 1.108586676 | BM52: 1.03562363 | BN52: 0.9674627399 | BO52: 0.9037879458 | BP52: 0.8443039894 | BQ52: 0.7887350456 | BR52: 0.7368234426 | BU52: 74 | BV52: =VLOOKUP($C52,'Assumptions_Asset level'!$A$15:$AE$81,'Assumptions_Asset level'!$C$7,0) -> GAGNY | BX52: 77.735 | CA52: =VLOOKUP($BU52,'Assumptions_Asset level'!$A$15:$AE$81,$BU$33,0)*F52 -> 155.47 | CB52: 155.47 | CC52: 142.7307882 | CD52: 129.6473534 | CE52: 121.1225042 | CF52: 113.1506545 | CG52: 105.7034999 | CH52: 98.74648923 | CI52: 92.2473631 | CJ52: 86.17598525 | CK52: 80.50420287 | CL52: 75.20571608 | CM52: 70.25595596 | CN52: 65.63197062 | CO52: 61.31231877 | CP52: 57.27697031 | CR52: 74 | CS52: =VLOOKUP($C52,'Assumptions_Asset level'!$A$15:$AE$81,'Assumptions_Asset level'!$C$7,0) -> GAGNY | CW52: 155.47 | CX52: 155.47 | CY52: 114.1846306 | CZ52: 122.1568528 | DA52: 117.488829 | DB52: 109.7561348 | DC52: 102.5323949 | DD52: 95.78409455 | DE52: 89.4799422 | DF52: 83.59070569 | DG52: 78.08907678 | DH52: 72.9495446 | DI52: 68.14827729 | DJ52: 63.6630115 | DK52: 59.4729492 | DL52: 55.5586612
C53: 98 | D53: =VLOOKUP($C53,'Assumptions_Asset level'!$A$15:$AE$81,'Assumptions_Asset level'!$C$7,0) -> PERTUIS | F53: =IF(VLOOKUP($C53,'Assumptions_Asset level'!$A$15:$AO$81,'Assumptions_Asset level'!$Y$7,0)="x",1,0) -> 1 | H53: =VLOOKUP($C53,'Assumptions_Asset level'!$A$15:$AE$81,$C$33,0)*$F53 -> 12.0034775 | I53: 12.27955748 | J53: =IF(I53>J1271,I53*(1+J$4),MIN(I53*(1+J$21),J1271)) -> 12.61110554 | K53: 12.93899428 | L53: 13.26246914 | M53: 13.59403087 | N53: 13.93388164 | O53: 14.28222868 | P53: 14.6392844 | Q53: 15.00526651 | R53: 15.38039817 | S53: 15.76490812 | T53: 16.15903083 | U53: 16.5630066 | V53: 16.97708176 | W53: 17.40150881 | Z53: 98 | AA53: =VLOOKUP($Z53,'Assumptions_Asset level'!$A$15:$AE$81,'Assumptions_Asset level'!$C$7,0) -> PERTUIS | AC53: =VLOOKUP($Z53,'Assumptions_Asset level'!$A$15:$AO$80,$Z$33,0) -> 2 | AF53: ='Vacancy & sales module'!L970 -> 0 | AG53: ='Vacancy & sales module'!M970 -> 0 | AH53: ='Vacancy & sales module'!N970 -> 0.09006 | AI53: ='Vacancy & sales module'!O970 -> 0.10243471 | AJ53: ='Vacancy & sales module'!P970 -> 0.07345979482 | AK53: ='Vacancy & sales module'!Q970 -> 0.07353923253 | AL53: ='Vacancy & sales module'!R970 -> 0.07353902153 | AM53: ='Vacancy & sales module'!S970 -> 0.07353902209 | AN53: ='Vacancy & sales module'!T970 -> 0.07353902209 | AO53: ='Vacancy & sales module'!U970 -> 0.07353902209 | AP53: ='Vacancy & sales module'!V970 -> 0.07353902209 | AQ53: ='Vacancy & sales module'!W970 -> 0.07353902209 | AR53: ='Vacancy & sales module'!X970 -> 0.07353902209 | AS53: ='Vacancy & sales module'!Y970 -> 0.07353902209 | AT53: ='Vacancy & sales module'!Z970 -> 0.07353902209 | AU53: ='Vacancy & sales module'!AA970 -> 0.07353902209 | AX53: 98 | AY53: =VLOOKUP($C53,'Assumptions_Asset level'!$A$15:$AE$81,'Assumptions_Asset level'!$C$7,0) -> PERTUIS | BC53: =VLOOKUP($AX53,'Assumptions_Asset level'!$A$15:$AE$81,$AX$33,0)*F53 -> 18 | BD53: 18 | BE53: 16.37892 | BF53: 14.70115008 | BG53: 13.62120661 | BH53: 12.61951353 | BI53: 11.69148685 | BJ53: 10.83170634 | BK53: 10.03515325 | BL53: 9.297177895 | BM53: 8.613472524 | BN53: 7.980046178 | BO53: 7.393201386 | BP53: 6.849512586 | BQ53: 6.345806129 | BR53: 5.879141752 | BU53: 98 | BV53: =VLOOKUP($C53,'Assumptions_Asset level'!$A$15:$AE$81,'Assumptions_Asset level'!$C$7,0) -> PERTUIS | BX53: 89.14444444 | CA53: =VLOOKUP($BU53,'Assumptions_Asset level'!$A$15:$AE$81,$BU$33,0)*F53 -> 1604.6 | CB53: 1604.6 | CC53: 1460.089724 | CD53: 1310.525857 | CE53: 1214.254896 | CF53: 1124.959523 | CG53: 1042.2311 | CH53: 965.5864444 | CI53: 894.5781615 | CJ53: 828.7917584 | CK53: 767.8432229 | CL53: 711.3767832 | CM53: 659.0628302 | CN53: 610.5959942 | CO53: 565.6933619 | CP53: 524.0928253 | CR53: 98 | CS53: =VLOOKUP($C53,'Assumptions_Asset level'!$A$15:$AE$81,'Assumptions_Asset level'!$C$7,0) -> PERTUIS | CW53: 1604.6 | CX53: 1604.6 | CY53: 1138.869985 | CZ53: 1230.163433 | DA53: 1177.827249 | DB53: 1091.210737 | DC53: 1010.964167 | DD53: 936.6188511 | DE53: 867.7408167 | DF53: 803.9280056 | DG53: 744.8079262 | DH53: 690.0354797 | DI53: 639.2909453 | DJ53: 592.2781144 | DK53: 548.722561 | DL53: 508.3700405
C54: 114 | D54: =VLOOKUP($C54,'Assumptions_Asset level'!$A$15:$AE$81,'Assumptions_Asset level'!$C$7,0) -> ISSY LES MOULINEAUX | F54: =IF(VLOOKUP($C54,'Assumptions_Asset level'!$A$15:$AO$81,'Assumptions_Asset level'!$Y$7,0)="x",1,0) -> 1 | H54: =VLOOKUP($C54,'Assumptions_Asset level'!$A$15:$AE$81,$C$33,0)*$F54 -> 26.7779831 | I54: 27.39387671 | J54: =IF(I54>J1272,I54*(1+J$4),MIN(I54*(1+J$21),J1272)) -> 28.00396277 | K54: 28.7320658 | L54: 29.45036745 | M54: 30.18662663 | N54: 30.9412923 | O54: 31.71482461 | P54: 32.50769522 | Q54: 33.3203876 | R54: 34.15339729 | S54: 35.00723223 | T54: 35.88241303 | U54: 36.77947336 | V54: 37.69896019 | W54: 38.6414342 | Z54: 114 | AA54: =VLOOKUP($Z54,'Assumptions_Asset level'!$A$15:$AE$81,'Assumptions_Asset level'!$C$7,0) -> ISSY LES MOULINEAUX | AC54: =VLOOKUP($Z54,'Assumptions_Asset level'!$A$15:$AO$80,$Z$33,0) -> 2 | AF54: ='Vacancy & sales module'!L971 -> 0 | AG54: ='Vacancy & sales module'!M971 -> 0 | AH54: ='Vacancy & sales module'!N971 -> 0.08518095238 | AI54: ='Vacancy & sales module'!O971 -> 0.09778887316 | AJ54: ='Vacancy & sales module'!P971 -> 0.06573888845 | AK54: ='Vacancy & sales module'!Q971 -> 0.06581645626 | AL54: ='Vacancy & sales module'!R971 -> 0.06581627496 | AM54: ='Vacancy & sales module'!S971 -> 0.06581627538 | AN54: ='Vacancy & sales module'!T971 -> 0.06581627538 | AO54: ='Vacancy & sales module'!U971 -> 0.06581627538 | AP54: ='Vacancy & sales module'!V971 -> 0.06581627538 | AQ54: ='Vacancy & sales module'!W971 -> 0.06581627538 | AR54: ='Vacancy & sales module'!X971 -> 0.06581627538 | AS54: ='Vacancy & sales module'!Y971 -> 0.06581627538 | AT54: ='Vacancy & sales module'!Z971 -> 0.06581627538 | AU54: ='Vacancy & sales module'!AA971 -> 0.06581627538 | AX54: 114 | AY54: =VLOOKUP($C54,'Assumptions_Asset level'!$A$15:$AE$81,'Assumptions_Asset level'!$C$7,0) -> ISSY LES MOULINEAUX | BC54: =VLOOKUP($AX54,'Assumptions_Asset level'!$A$15:$AE$81,$AX$33,0)*F54 -> 42 | BD54: 42 | BE54: 38.4224 | BF54: 34.6651168 | BG54: 32.38627055 | BH54: 30.25472099 | BI54: 28.26346796 | BJ54: 26.40327177 | BK54: 24.66550676 | BL54: 23.04211498 | BM54: 21.52556879 | BN54: 20.10883603 | BO54: 18.78534734 | BP54: 17.54896575 | BQ54: 16.39395818 | BR54: 15.31496892 | BU54: 114 | BV54: =VLOOKUP($C54,'Assumptions_Asset level'!$A$15:$AE$81,'Assumptions_Asset level'!$C$7,0) -> ISSY LES MOULINEAUX | BX54: 49.99261905 | CA54: =VLOOKUP($BU54,'Assumptions_Asset level'!$A$15:$AE$81,$BU$33,0)*F54 -> 2099.69 | CB54: 2099.69 | CC54: 1920.836406 | CD54: 1732.999978 | CE54: 1619.074486 | CF54: 1512.512741 | CG54: 1412.964787 | CH54: 1319.968707 | CI54: 1233.093283 | CJ54: 1151.935676 | CK54: 1076.11956 | CL54: 1005.293379 | CM54: 939.1287132 | CN54: 877.3187592 | CO54: 819.5769062 | CP54: 765.6354068 | CR54: 114 | CS54: =VLOOKUP($C54,'Assumptions_Asset level'!$A$15:$AE$81,'Assumptions_Asset level'!$C$7,0) -> ISSY LES MOULINEAUX | CW54: 1999.704762 | CX54: 1999.704762 | CY54: 1460.750353 | CZ54: 1621.472835 | DA54: 1570.502252 | DB54: 1467.137359 | DC54: 1370.575843 | DD54: 1280.369646 | DE54: 1196.100485 | DF54: 1117.377606 | DG54: 1043.835974 | DH54: 975.1345777 | DI54: 910.9548518 | DJ54: 850.9991964 | DK54: 794.989599 | DL54: 742.6663446
C55: 118 | D55: =VLOOKUP($C55,'Assumptions_Asset level'!$A$15:$AE$81,'Assumptions_Asset level'!$C$7,0) -> MARSEILLE | F55: =IF(VLOOKUP($C55,'Assumptions_Asset level'!$A$15:$AO$81,'Assumptions_Asset level'!$Y$7,0)="x",1,0) -> 1 | H55: =VLOOKUP($C55,'Assumptions_Asset level'!$A$15:$AE$81,$C$33,0)*$F55 -> 14.38946601 | I55: 14.72042372 | J55: =IF(I55>J1273,I55*(1+J$4),MIN(I55*(1+J$21),J1273)) -> 15.11787516 | K55: 15.51093992 | L55: 15.89871342 | M55: 16.29618125 | N55: 16.70358578 | O55: 17.12117543 | P55: 17.54920481 | Q55: 17.98793493 | R55: 18.43763331 | S55: 18.89857414 | T55: 19.37103849 | U55: 19.85531446 | V55: 20.35169732 | W55: 20.86048975 | Z55: 118 | AA55: =VLOOKUP($Z55,'Assumptions_Asset level'!$A$15:$AE$81,'Assumptions_Asset level'!$C$7,0) -> MARSEILLE | AC55: =VLOOKUP($Z55,'Assumptions_Asset level'!$A$15:$AO$80,$Z$33,0) -> 2 | AF55: ='Vacancy & sales module'!L972 -> 0 | AG55: ='Vacancy & sales module'!M972 -> 0 | AH55: ='Vacancy & sales module'!N972 -> 0.09266608696 | AI55: ='Vacancy & sales module'!O972 -> 0.1078902777 | AJ55: ='Vacancy & sales module'!P972 -> 0.07344426056 | AK55: ='Vacancy & sales module'!Q972 -> 0.07353927378 | AL55: ='Vacancy & sales module'!R972 -> 0.07353902142 | AM55: ='Vacancy & sales module'!S972 -> 0.07353902209 | AN55: ='Vacancy & sales module'!T972 -> 0.07353902209 | AO55: ='Vacancy & sales module'!U972 -> 0.07353902209 | AP55: ='Vacancy & sales module'!V972 -> 0.07353902209 | AQ55: ='Vacancy & sales module'!W972 -> 0.07353902209 | AR55: ='Vacancy & sales module'!X972 -> 0.07353902209 | AS55: ='Vacancy & sales module'!Y972 -> 0.07353902209 | AT55: ='Vacancy & sales module'!Z972 -> 0.07353902209 | AU55: ='Vacancy & sales module'!AA972 -> 0.07353902209 | AX55: 118 | AY55: =VLOOKUP($C55,'Assumptions_Asset level'!$A$15:$AE$81,'Assumptions_Asset level'!$C$7,0) -> MARSEILLE | BC55: =VLOOKUP($AX55,'Assumptions_Asset level'!$A$15:$AE$81,$AX$33,0)*F55 -> 23 | BD55: 23 | BE55: 20.86868 | BF55: 18.61715232 | BG55: 17.24982933 | BH55: 15.98128941 | BI55: 14.80604103 | BJ55: 13.71721925 | BK55: 12.70846836 | BL55: 11.77390002 | BM55: 10.90805893 | BN55: 10.10589094 | BO55: 9.362713606 | BP55: 8.674188804 | BQ55: 8.036297442 | BR55: 7.445315987 | BU55: 118 | BV55: =VLOOKUP($C55,'Assumptions_Asset level'!$A$15:$AE$81,'Assumptions_Asset level'!$C$7,0) -> MARSEILLE | BX55: 59.6 | CA55: =VLOOKUP($BU55,'Assumptions_Asset level'!$A$15:$AE$81,$BU$33,0)*F55 -> 1370.8 | CB55: 1370.8 | CC55: 1243.773328 | CD55: 1109.582278 | CE55: 1028.089828 | CF55: 952.484849 | CG55: 882.4400452 | CH55: 817.5462673 | CI55: 757.4247143 | CJ55: 701.7244415 | CK55: 650.1203123 | CL55: 602.3111002 | CM55: 558.0177309 | CN55: 516.9816527 | CO55: 478.9633275 | CP55: 443.7408328 | CR55: 118 | CS55: =VLOOKUP($C55,'Assumptions_Asset level'!$A$15:$AE$81,'Assumptions_Asset level'!$C$7,0) -> MARSEILLE | CW55: 1311.2 | CX55: 1311.2 | CY55: 926.3407439 | CZ55: 1034.981922 | DA55: 997.2471335 | DB55: 923.9103035 | DC55: 855.9668439 | DD55: 793.0198792 | DE55: 734.7019728 | DF55: 680.6727082 | DG55: 630.6167029 | DH55: 584.2417672 | DI55: 541.277199 | DJ55: 501.4722031 | DK55: 464.5944277 | DL55: 430.4286078
C56: 115 | D56: =VLOOKUP($C56,'Assumptions_Asset level'!$A$15:$AE$81,'Assumptions_Asset level'!$C$7,0) -> CLICHY | F56: =IF(VLOOKUP($C56,'Assumptions_Asset level'!$A$15:$AO$81,'Assumptions_Asset level'!$Y$7,0)="x",1,0) -> 1 | H56: =VLOOKUP($C56,'Assumptions_Asset level'!$A$15:$AE$81,$C$33,0)*$F56 -> 22.61778002 | I56: 23.13798896 | J56: =IF(I56>J1274,I56*(1+J$4),MIN(I56*(1+J$21),J1274)) -> 23.76271466 | K56: 24.38054524 | L56: 24.99005888 | M56: 25.61481035 | N56: 26.25518061 | O56: 26.91156012 | P56: 27.58434912 | Q56: 28.27395785 | R56: 28.9808068 | S56: 29.70532697 | T56: 30.44796014 | U56: 31.20915915 | V56: 31.98938812 | W56: 32.78912283 | Z56: 115 | AA56: =VLOOKUP($Z56,'Assumptions_Asset level'!$A$15:$AE$81,'Assumptions_Asset level'!$C$7,0) -> CLICHY | AC56: =VLOOKUP($Z56,'Assumptions_Asset level'!$A$15:$AO$80,$Z$33,0) -> 2 | AF56: ='Vacancy & sales module'!L973 -> 0 | AG56: ='Vacancy & sales module'!M973 -> 0 | AH56: ='Vacancy & sales module'!N973 -> 0.088746 | AI56: ='Vacancy & sales module'!O973 -> 0.1045753127 | AJ56: ='Vacancy & sales module'!P973 -> 0.06572175144 | AK56: ='Vacancy & sales module'!Q973 -> 0.06581649631 | AL56: ='Vacancy & sales module'!R973 -> 0.06581627486 | AM56: ='Vacancy & sales module'!S973 -> 0.06581627538 | AN56: ='Vacancy & sales module'!T973 -> 0.06581627538 | AO56: ='Vacancy & sales module'!U973 -> 0.06581627538 | AP56: ='Vacancy & sales module'!V973 -> 0.06581627538 | AQ56: ='Vacancy & sales module'!W973 -> 0.06581627538 | AR56: ='Vacancy & sales module'!X973 -> 0.06581627538 | AS56: ='Vacancy & sales module'!Y973 -> 0.06581627538 | AT56: ='Vacancy & sales module'!Z973 -> 0.06581627538 | AU56: ='Vacancy & sales module'!AA973 -> 0.06581627538 | AX56: 115 | AY56: =VLOOKUP($C56,'Assumptions_Asset level'!$A$15:$AE$81,'Assumptions_Asset level'!$C$7,0) -> CLICHY | BC56: =VLOOKUP($AX56,'Assumptions_Asset level'!$A$15:$AE$81,$AX$33,0)*F56 -> 20 | BD56: 20 | BE56: 18.22508 | BF56: 16.31918656 | BG56: 15.24666104 | BH56: 14.24317923 | BI56: 13.30574623 | BJ56: 12.43001157 | BK56: 11.61191451 | BL56: 10.84766154 | BM56: 10.13370886 | BN56: 9.466745891 | BO56: 8.843679936 | BP56: 8.261621862 | BQ56: 7.717872682 | BR56: 7.209911049 | BU56: 115 | BV56: =VLOOKUP($C56,'Assumptions_Asset level'!$A$15:$AE$81,'Assumptions_Asset level'!$C$7,0) -> CLICHY | BX56: 47.559 | CA56: =VLOOKUP($BU56,'Assumptions_Asset level'!$A$15:$AE$81,$BU$33,0)*F56 -> 951.18 | CB56: 951.18 | CC56: 866.7665797 | CD56: 776.1241936 | CE56: 725.1159523 | CF56: 677.3913609 | CG56: 632.8079849 | CH56: 591.1589203 | CI56: 552.251042 | CJ56: 515.9039353 | CK56: 481.9490599 | CL56: 450.2289678 | CM56: 420.5965741 | CN56: 392.9144741 | CO56: 367.0543069 | CP56: 342.8961596 | CR56: 115 | CS56: =VLOOKUP($C56,'Assumptions_Asset level'!$A$15:$AE$81,'Assumptions_Asset level'!$C$7,0) -> CLICHY | CW56: 856.062 | CX56: 856.062 | CY56: 621.4716377 | CZ56: 720.5180712 | DA56: 703.3624737 | DB56: 657.06962 | DC56: 613.8237453 | DD56: 573.4241527 | DE56: 535.6835107 | DF56: 500.4268173 | DG56: 467.4905881 | DH56: 436.7220988 | DI56: 407.9786769 | DJ56: 381.1270399 | DK56: 356.0426777 | DL56: 332.6092748
C57: 112 | D57: =VLOOKUP($C57,'Assumptions_Asset level'!$A$15:$AE$81,'Assumptions_Asset level'!$C$7,0) -> RUEIL MALMAISON | F57: =IF(VLOOKUP($C57,'Assumptions_Asset level'!$A$15:$AO$81,'Assumptions_Asset level'!$Y$7,0)="x",1,0) -> 1 | H57: =VLOOKUP($C57,'Assumptions_Asset level'!$A$15:$AE$81,$C$33,0)*$F57 -> 21.58669569 | I57: 22.0831897 | J57: =IF(I57>J1275,I57*(1+J$4),MIN(I57*(1+J$21),J1275)) -> 22.67943582 | K57: 23.26910115 | L57: 23.85082868 | M57: 24.44709939 | N57: 25.05827688 | O57: 25.6847338 | P57: 26.32685215 | Q57: 26.98502345 | R57: 27.65964904 | S57: 28.35114026 | T57: 29.05991877 | U57: 29.78641674 | V57: 30.53107716 | W57: 31.29435409 | Z57: 112 | AA57: =VLOOKUP($Z57,'Assumptions_Asset level'!$A$15:$AE$81,'Assumptions_Asset level'!$C$7,0) -> RUEIL MALMAISON | AC57: =VLOOKUP($Z57,'Assumptions_Asset level'!$A$15:$AO$80,$Z$33,0) -> 2 | AF57: ='Vacancy & sales module'!L974 -> 0 | AG57: ='Vacancy & sales module'!M974 -> 0 | AH57: ='Vacancy & sales module'!N974 -> 0.08606484848 | AI57: ='Vacancy & sales module'!O974 -> 0.09946652538 | AJ57: ='Vacancy & sales module'!P974 -> 0.0657346761 | AK57: ='Vacancy & sales module'!Q974 -> 0.06581646611 | AL57: ='Vacancy & sales module'!R974 -> 0.06581627493 | AM57: ='Vacancy & sales module'!S974 -> 0.06581627538 | AN57: ='Vacancy & sales module'!T974 -> 0.06581627538 | AO57: ='Vacancy & sales module'!U974 -> 0.06581627538 | AP57: ='Vacancy & sales module'!V974 -> 0.06581627538 | AQ57: ='Vacancy & sales module'!W974 -> 0.06581627538 | AR57: ='Vacancy & sales module'!X974 -> 0.06581627538 | AS57: ='Vacancy & sales module'!Y974 -> 0.06581627538 | AT57: ='Vacancy & sales module'!Z974 -> 0.06581627538 | AU57: ='Vacancy & sales module'!AA974 -> 0.06581627538 | AX57: 112 | AY57: =VLOOKUP($C57,'Assumptions_Asset level'!$A$15:$AE$81,'Assumptions_Asset level'!$C$7,0) -> RUEIL MALMAISON | BC57: =VLOOKUP($AX57,'Assumptions_Asset level'!$A$15:$AE$81,$AX$33,0)*F57 -> 66 | BD57: 66 | BE57: 60.31972 | BF57: 54.31992704 | BG57: 50.74922423 | BH57: 47.40908963 | BI57: 44.28879996 | BJ57: 41.3738761 | BK57: 38.65080168 | BL57: 36.10694987 | BM57: 33.73052492 | BN57: 31.5105074 | BO57: 29.43660317 | BP57: 27.49919559 | BQ57: 25.68930096 | BR57: 23.99852685 | BU57: 112 | BV57: =VLOOKUP($C57,'Assumptions_Asset level'!$A$15:$AE$81,'Assumptions_Asset level'!$C$7,0) -> RUEIL MALMAISON | BX57: 59.92136364 | CA57: =VLOOKUP($BU57,'Assumptions_Asset level'!$A$15:$AE$81,$BU$33,0)*F57 -> 3954.81 | CB57: 3954.81 | CC57: 3614.439877 | CD57: 3254.924101 | CE57: 3040.962719 | CF57: 2840.8173 | CG57: 2653.845287 | CH57: 2479.179075 | CI57: 2316.008742 | CJ57: 2163.577673 | CK57: 2021.179049 | CL57: 1888.152572 | CM57: 1763.881403 | CN57: 1647.789298 | CO57: 1539.337944 | CP57: 1438.024454 | CR57: 112 | CS57: =VLOOKUP($C57,'Assumptions_Asset level'!$A$15:$AE$81,'Assumptions_Asset level'!$C$7,0) -> RUEIL MALMAISON | CW57: 3715.124545 | CX57: 3715.124545 | CY57: 2709.734623 | CZ57: 3039.587014 | DA57: 2949.733838 | DB57: 2755.592781 | DC57: 2574.229929 | DD57: 2404.803703 | DE57: 2246.52848 | DF57: 2098.670343 | DG57: 1960.543678 | DH57: 1831.507995 | DI57: 1710.964961 | DJ57: 1598.35562 | DK57: 1493.157806 | DL57: 1394.883721
C58: 133 | D58: =VLOOKUP($C58,'Assumptions_Asset level'!$A$15:$AE$81,'Assumptions_Asset level'!$C$7,0) -> VERNOUILLET | F58: =IF(VLOOKUP($C58,'Assumptions_Asset level'!$A$15:$AO$81,'Assumptions_Asset level'!$Y$7,0)="x",1,0) -> 1 | H58: =VLOOKUP($C58,'Assumptions_Asset level'!$A$15:$AE$81,$C$33,0)*$F58 -> 14.85525358 | I58: 15.19692441 | J58: =IF(I58>J1276,I58*(1+J$4),MIN(I58*(1+J$21),J1276)) -> 15.60724137 | K58: 16.01302965 | L58: 16.41335539 | M58: 16.82368927 | N58: 17.24428151 | O58: 17.67538854 | P58: 18.11727326 | Q58: 18.57020509 | R58: 19.03446021 | S58: 19.51032172 | T58: 19.99807976 | U58: 20.49803176 | V58: 21.01048255 | W58: 21.53574462 | Z58: 133 | AA58: =VLOOKUP($Z58,'Assumptions_Asset level'!$A$15:$AE$81,'Assumptions_Asset level'!$C$7,0) -> VERNOUILLET | AC58: =VLOOKUP($Z58,'Assumptions_Asset level'!$A$15:$AO$80,$Z$33,0) -> 2 | AF58: ='Vacancy & sales module'!L975 -> 0 | AG58: ='Vacancy & sales module'!M975 -> 0 | AH58: ='Vacancy & sales module'!N975 -> 0.079659375 | AI58: ='Vacancy & sales module'!O975 -> 0.08738175064 | AJ58: ='Vacancy & sales module'!P975 -> 0.06576467323 | AK58: ='Vacancy & sales module'!Q975 -> 0.065816396 | AL58: ='Vacancy & sales module'!R975 -> 0.0658162751 | AM58: ='Vacancy & sales module'!S975 -> 0.06581627538 | AN58: ='Vacancy & sales module'!T975 -> 0.06581627538 | AO58: ='Vacancy & sales module'!U975 -> 0.06581627538 | AP58: ='Vacancy & sales module'!V975 -> 0.06581627538 | AQ58: ='Vacancy & sales module'!W975 -> 0.06581627538 | AR58: ='Vacancy & sales module'!X975 -> 0.06581627538 | AS58: ='Vacancy & sales module'!Y975 -> 0.06581627538 | AT58: ='Vacancy & sales module'!Z975 -> 0.06581627538 | AU58: ='Vacancy & sales module'!AA975 -> 0.06581627538 | AX58: 133 | AY58: =VLOOKUP($C58,'Assumptions_Asset level'!$A$15:$AE$81,'Assumptions_Asset level'!$C$7,0) -> VERNOUILLET | BC58: =VLOOKUP($AX58,'Assumptions_Asset level'!$A$15:$AE$81,$AX$33,0)*F58 -> 32 | BD58: 32 | BE58: 29.4509 | BF58: 26.8774288 | BG58: 25.10984348 | BH58: 23.45720408 | BI58: 21.91333828 | BJ58: 20.47108397 | BK58: 19.12375347 | BL58: 17.86509925 | BM58: 16.68928496 | BN58: 15.59085838 | BO58: 14.56472615 | BP58: 13.60613013 | BQ58: 12.71062532 | BR58: 11.8740593 | BU58: 133 | BV58: =VLOOKUP($C58,'Assumptions_Asset level'!$A$15:$AE$81,'Assumptions_Asset level'!$C$7,0) -> VERNOUILLET | BX58: 64.5403125 | CA58: =VLOOKUP($BU58,'Assumptions_Asset level'!$A$15:$AE$81,$BU$33,0)*F58 -> 2065.29 | CB58: 2065.29 | CC58: 1900.770289 | CD58: 1734.677654 | CE58: 1620.597145 | CF58: 1513.935281 | CG58: 1414.2937 | CH58: 1321.210157 | CI58: 1234.253025 | CJ58: 1153.019088 | CK58: 1077.131666 | CL58: 1006.238872 | CM58: 940.0119774 | CN58: 878.1438902 | CO58: 820.3477301 | CP58: 766.355498 | CR58: 133 | CS58: =VLOOKUP($C58,'Assumptions_Asset level'!$A$15:$AE$81,'Assumptions_Asset level'!$C$7,0) -> VERNOUILLET | CW58: 1936.209375 | CX58: 1936.209375 | CY58: 1573.481405 | CZ58: 1642.437619 | DA58: 1571.979231 | DB58: 1468.517223 | DC58: 1371.864889 | DD58: 1281.573852 | DE58: 1197.225435 | DF58: 1118.428516 | DG58: 1044.817716 | DH58: 976.0517059 | DI58: 911.8116181 | DJ58: 851.7995735 | DK58: 795.7372982 | DL58: 743.3648331
C59: 105 | D59: =VLOOKUP($C59,'Assumptions_Asset level'!$A$15:$AE$81,'Assumptions_Asset level'!$C$7,0) -> NOISY LE GRAND | F59: =IF(VLOOKUP($C59,'Assumptions_Asset level'!$A$15:$AO$81,'Assumptions_Asset level'!$Y$7,0)="x",1,0) -> 1 | H59: =VLOOKUP($C59,'Assumptions_Asset level'!$A$15:$AE$81,$C$33,0)*$F59 -> 16.61658628 | I59: =H59*(1+I$21) -> 16.99876777 | J59: =IF(I59>J1277,I59*(1+J$4),MIN(I59*(1+J$21),J1277)) -> 17.4577345 | K59: 17.9116356 | L59: 18.35942649 | M59: 18.81841215 | N59: 19.28887245 | O59: 19.77109426 | P59: 20.26537162 | Q59: 20.77200591 | R59: 21.29130606 | S59: 21.82358871 | T59: 22.36917843 | U59: 22.92840789 | V59: 23.50161808 | W59: 24.08915854 | Z59: 105 | AA59: =VLOOKUP($Z59,'Assumptions_Asset level'!$A$15:$AE$81,'Assumptions_Asset level'!$C$7,0) -> NOISY LE GRAND | AC59: =VLOOKUP($Z59,'Assumptions_Asset level'!$A$15:$AO$80,$Z$33,0) -> 2 | AF59: ='Vacancy & sales module'!L976 -> 0 | AG59: ='Vacancy & sales module'!M976 -> 0 | AH59: ='Vacancy & sales module'!N976 -> 0.07497 | AI59: ='Vacancy & sales module'!O976 -> 0.07864073598 | AJ59: ='Vacancy & sales module'!P976 -> 0.06578587997 | AK59: ='Vacancy & sales module'!Q976 -> 0.06581634643 | AL59: ='Vacancy & sales module'!R976 -> 0.06581627521 | AM59: ='Vacancy & sales module'!S976 -> 0.06581627538 | AN59: ='Vacancy & sales module'!T976 -> 0.06581627538 | AO59: ='Vacancy & sales module'!U976 -> 0.06581627538 | AP59: ='Vacancy & sales module'!V976 -> 0.06581627538 | AQ59: ='Vacancy & sales module'!W976 -> 0.06581627538 | AR59: ='Vacancy & sales module'!X976 -> 0.06581627538 | AS59: ='Vacancy & sales module'!Y976 -> 0.06581627538 | AT59: ='Vacancy & sales module'!Z976 -> 0.06581627538 | AU59: ='Vacancy & sales module'!AA976 -> 0.06581627538 | AX59: 105 | AY59: =VLOOKUP($C59,'Assumptions_Asset level'!$A$15:$AE$81,'Assumptions_Asset level'!$C$7,0) -> NOISY LE GRAND | BC59: =VLOOKUP($AX59,'Assumptions_Asset level'!$A$15:$AE$81,$AX$33,0)*F59 -> 50 | BD59: 50 | BE59: 46.2515 | BF59: 42.614248 | BG59: 39.8108322 | BH59: 37.19062867 | BI59: 34.74288002 | BJ59: 32.45623306 | BK59: 30.32008469 | BL59: 28.32452965 | BM59: 26.4603146 | BN59: 24.71879525 | BO59: 23.09189621 | BP59: 21.57207361 | BQ59: 20.15228008 | BR59: 18.82593206 | BU59: 105 | BV59: =VLOOKUP($C59,'Assumptions_Asset level'!$A$15:$AE$81,'Assumptions_Asset level'!$C$7,0) -> NOISY LE GRAND | BX59: 60.544 | CA59: =VLOOKUP($BU59,'Assumptions_Asset level'!$A$15:$AE$81,$BU$33,0)*F59 -> 3027.2 | CB59: 3027.2 | CC59: 2800.250816 | CD59: 2580.037031 | CE59: 2410.307024 | CF59: 2251.669422 | CG59: 2103.472928 | CH59: 1965.030174 | CI59: 1835.699207 | CJ59: 1714.880323 | CK59: 1602.013287 | CL59: 1496.57474 | CM59: 1398.075764 | CN59: 1306.059625 | CO59: 1220.099645 | CP59: 1139.797231 | CR59: 105 | CS59: =VLOOKUP($C59,'Assumptions_Asset level'!$A$15:$AE$81,'Assumptions_Asset level'!$C$7,0) -> NOISY LE GRAND | CW59: 3027.2 | CX59: 3027.2 | CY59: 2478.221972 | CZ59: 2467.074401 | DA59: 2337.997814 | DB59: 2184.11934 | DC59: 2040.36874 | DD59: 1906.079269 | DE59: 1780.628231 | DF59: 1663.433913 | DG59: 1553.952889 | DH59: 1451.677497 | DI59: 1356.133491 | DJ59: 1266.877836 | DK59: 1183.496656 | DL59: 1105.603314
C60: 104 | D60: =VLOOKUP($C60,'Assumptions_Asset level'!$A$15:$AE$81,'Assumptions_Asset level'!$C$7,0) -> CAVALAIRE SUR MER | F60: =IF(VLOOKUP($C60,'Assumptions_Asset level'!$A$15:$AO$81,'Assumptions_Asset level'!$Y$7,0)="x",1,0) -> 1 | H60: =VLOOKUP($C60,'Assumptions_Asset level'!$A$15:$AE$81,$C$33,0)*$F60 -> 18.48054746 | I60: 18.90560005 | J60: =IF(I60>J1278,I60*(1+J$4),MIN(I60*(1+J$21),J1278)) -> 19.41605125 | K60: 19.92086858 | L60: 20.4188903 | M60: 20.92936256 | N60: 21.45259662 | O60: 21.98891153 | P60: 22.53863432 | Q60: 23.10210018 | R60: 23.67965269 | S60: 24.271644 | T60: 24.8784351 | U60: 25.50039598 | V60: 26.13790588 | W60: 26.79135353 | Z60: 104 | AA60: =VLOOKUP($Z60,'Assumptions_Asset level'!$A$15:$AE$81,'Assumptions_Asset level'!$C$7,0) -> CAVALAIRE SUR MER | AC60: =VLOOKUP($Z60,'Assumptions_Asset level'!$A$15:$AO$80,$Z$33,0) -> 2 | AF60: ='Vacancy & sales module'!L977 -> 0 | AG60: ='Vacancy & sales module'!M977 -> 0 | AH60: ='Vacancy & sales module'!N977 -> 0.1112380952 | AI60: ='Vacancy & sales module'!O977 -> 0.1476952422 | AJ60: ='Vacancy & sales module'!P977 -> 0.07332490054 | AK60: ='Vacancy & sales module'!Q977 -> 0.07353959074 | AL60: ='Vacancy & sales module'!R977 -> 0.07353902058 | AM60: ='Vacancy & sales module'!S977 -> 0.0735390221 | AN60: ='Vacancy & sales module'!T977 -> 0.07353902209 | AO60: ='Vacancy & sales module'!U977 -> 0.07353902209 | AP60: ='Vacancy & sales module'!V977 -> 0.07353902209 | AQ60: ='Vacancy & sales module'!W977 -> 0.07353902209 | AR60: ='Vacancy & sales module'!X977 -> 0.07353902209 | AS60: ='Vacancy & sales module'!Y977 -> 0.07353902209 | AT60: ='Vacancy & sales module'!Z977 -> 0.07353902209 | AU60: ='Vacancy & sales module'!AA977 -> 0.07353902209 | AX60: 104 | AY60: =VLOOKUP($C60,'Assumptions_Asset level'!$A$15:$AE$81,'Assumptions_Asset level'!$C$7,0) -> CAVALAIRE SUR MER | BC60: =VLOOKUP($AX60,'Assumptions_Asset level'!$A$15:$AE$81,$AX$33,0)*F60 -> 21 | BD60: 21 | BE60: 18.664 | BF60: 15.907416 | BG60: 14.7410063 | BH60: 13.65695873 | BI60: 12.65263936 | BJ60: 11.72217664 | BK60: 10.86013923 | BL60: 10.06149521 | BM60: 9.321582694 | BN60: 8.636082618 | BO60: 8.000993548 | BP60: 7.412608307 | BQ60: 6.867492341 | BR60: 6.36246367 | BU60: 104 | BV60: =VLOOKUP($C60,'Assumptions_Asset level'!$A$15:$AE$81,'Assumptions_Asset level'!$C$7,0) -> CAVALAIRE SUR MER | BX60: 44.43047619 | CA60: =VLOOKUP($BU60,'Assumptions_Asset level'!$A$15:$AE$81,$BU$33,0)*F60 -> 933.04 | CB60: 933.04 | CC60: 829.2504076 | CD60: 706.7740678 | CE60: 654.9499296 | CF60: 606.7851798 | CG60: 562.162792 | CH60: 520.82189 | CI60: 482.5211576 | CJ60: 447.0370235 | CK60: 414.1623579 | CL60: 383.7052632 | CM60: 355.4879533 | CN60: 329.3457169 | CO60: 305.1259549 | CP60: 282.6872906 | CR60: 104 | CS60: =VLOOKUP($C60,'Assumptions_Asset level'!$A$15:$AE$81,'Assumptions_Asset level'!$C$7,0) -> CAVALAIRE SUR MER | CW60: 488.7352381 | CX60: 488.7352381 | CY60: 409.4917489 | CZ60: 628.7683864 | DA60: 635.3014317 | DB60: 588.5816244 | DC60: 545.2979082 | DD60: 505.1972333 | DE60: 468.0455228 | DF60: 433.6259128 | DG60: 401.7374872 | DH60: 372.1941053 | DI60: 344.8233147 | DJ60: 319.4653454 | DK60: 295.9721763 | DL60: 274.2066719
C61: 106 | D61: =VLOOKUP($C61,'Assumptions_Asset level'!$A$15:$AE$81,'Assumptions_Asset level'!$C$7,0) -> CORMEILLES EN PARISIS | F61: =IF(VLOOKUP($C61,'Assumptions_Asset level'!$A$15:$AO$81,'Assumptions_Asset level'!$Y$7,0)="x",1,0) -> 1 | H61: =VLOOKUP($C61,'Assumptions_Asset level'!$A$15:$AE$81,$C$33,0)*$F61 -> 17.24481539 | I61: 17.64144615 | J61: =IF(I61>J1279,I61*(1+J$4),MIN(I61*(1+J$21),J1279)) -> 18.11776519 | K61: 18.58882709 | L61: 19.05354777 | M61: 19.52988646 | N61: 20.01813362 | O61: 20.51858696 | P61: 21.03155164 | Q61: 21.55734043 | R61: 22.09627394 | S61: 22.64868079 | T61: 23.2148978 | U61: 23.79527025 | V61: 24.39015201 | W61: 24.99990581 | Z61: 106 | AA61: =VLOOKUP($Z61,'Assumptions_Asset level'!$A$15:$AE$81,'Assumptions_Asset level'!$C$7,0) -> CORMEILLES EN PARISIS | AC61: =VLOOKUP($Z61,'Assumptions_Asset level'!$A$15:$AO$80,$Z$33,0) -> 2 | AF61: ='Vacancy & sales module'!L978 -> 0 | AG61: ='Vacancy & sales module'!M978 -> 0 | AH61: ='Vacancy & sales module'!N978 -> 0.08774074074 | AI61: ='Vacancy & sales module'!O978 -> 0.1026563274 | AJ61: ='Vacancy & sales module'!P978 -> 0.06572662352 | AK61: ='Vacancy & sales module'!Q978 -> 0.06581648493 | AL61: ='Vacancy & sales module'!R978 -> 0.06581627489 | AM61: ='Vacancy & sales module'!S978 -> 0.06581627538 | AN61: ='Vacancy & sales module'!T978 -> 0.06581627538 | AO61: ='Vacancy & sales module'!U978 -> 0.06581627538 | AP61: ='Vacancy & sales module'!V978 -> 0.06581627538 | AQ61: ='Vacancy & sales module'!W978 -> 0.06581627538 | AR61: ='Vacancy & sales module'!X978 -> 0.06581627538 | AS61: ='Vacancy & sales module'!Y978 -> 0.06581627538 | AT61: ='Vacancy & sales module'!Z978 -> 0.06581627538 | AU61: ='Vacancy & sales module'!AA978 -> 0.06581627538 | AX61: 106 | AY61: =VLOOKUP($C61,'Assumptions_Asset level'!$A$15:$AE$81,'Assumptions_Asset level'!$C$7,0) -> CORMEILLES EN PARISIS | BC61: =VLOOKUP($AX61,'Assumptions_Asset level'!$A$15:$AE$81,$AX$33,0)*F61 -> 54 | BD61: 54 | BE61: 49.262 | BF61: 44.204944 | BG61: 41.29950229 | BH61: 38.58131422 | BI61: 36.04203584 | BJ61: 33.66988328 | BK61: 31.45385697 | BL61: 29.38368126 | BM61: 27.4497568 | BN61: 25.64311605 | BO61: 23.95538166 | BP61: 22.37872766 | BQ61: 20.90584316 | BR61: 19.52989843 | BU61: 106 | BV61: =VLOOKUP($C61,'Assumptions_Asset level'!$A$15:$AE$81,'Assumptions_Asset level'!$C$7,0) -> CORMEILLES EN PARISIS | BX61: 58.13148148 | CA61: =VLOOKUP($BU61,'Assumptions_Asset level'!$A$15:$AE$81,$BU$33,0)*F61 -> 3139.1 | CB61: 3139.1 | CC61: 2863.673041 | CD61: 2569.698884 | CE61: 2400.801252 | CF61: 2242.788953 | CG61: 2095.176939 | CH61: 1957.280196 | CI61: 1828.459304 | CJ61: 1708.116923 | CK61: 1595.695029 | CL61: 1490.672326 | CM61: 1392.561825 | CN61: 1300.908593 | CO61: 1215.287635 | CP61: 1135.301929 | CR61: 106 | CS61: =VLOOKUP($C61,'Assumptions_Asset level'!$A$15:$AE$81,'Assumptions_Asset level'!$C$7,0) -> CORMEILLES EN PARISIS | CW61: 2383.390741 | CX61: 2383.390741 | CY61: 2088.36008 | CZ61: 2390.888279 | DA61: 2328.777215 | DB61: 2175.505284 | DC61: 2032.321631 | DD61: 1898.56179 | DE61: 1773.605525 | DF61: 1656.873415 | DG61: 1547.824178 | DH61: 1445.952156 | DI61: 1350.784971 | DJ61: 1261.881335 | DK61: 1178.829006 | DL61: 1101.242871
C62: 136 | D62: =VLOOKUP($C62,'Assumptions_Asset level'!$A$15:$AE$81,'Assumptions_Asset level'!$C$7,0) -> GRETZ ARMAINVILLIERS | F62: =IF(VLOOKUP($C62,'Assumptions_Asset level'!$A$15:$AO$81,'Assumptions_Asset level'!$Y$7,0)="x",1,0) -> 1 | H62: =VLOOKUP($C62,'Assumptions_Asset level'!$A$15:$AE$81,$C$33,0)*$F62 -> 14.69710448 | I62: 15.03513788 | J62: =IF(I62>J1280,I62*(1+J$4),MIN(I62*(1+J$21),J1280)) -> 15.4410866 | K62: 15.84255485 | L62: 16.23861872 | M62: 16.64458419 | N62: 17.0606988 | O62: 17.48721627 | P62: 17.92439667 | Q62: 18.37250659 | R62: 18.83181926 | S62: 19.30261474 | T62: 19.7851801 | U62: 20.27980961 | V62: 20.78680485 | W62: 21.30647497 | Z62: 136 | AA62: =VLOOKUP($Z62,'Assumptions_Asset level'!$A$15:$AE$81,'Assumptions_Asset level'!$C$7,0) -> GRETZ ARMAINVILLIERS | AC62: =VLOOKUP($Z62,'Assumptions_Asset level'!$A$15:$AO$80,$Z$33,0) -> 2 | AF62: ='Vacancy & sales module'!L979 -> 0 | AG62: ='Vacancy & sales module'!M979 -> 0 | AH62: ='Vacancy & sales module'!N979 -> 0.08761166667 | AI62: ='Vacancy & sales module'!O979 -> 0.1024102383 | AJ62: ='Vacancy & sales module'!P979 -> 0.0657272468 | AK62: ='Vacancy & sales module'!Q979 -> 0.06581648347 | AL62: ='Vacancy & sales module'!R979 -> 0.06581627489 | AM62: ='Vacancy & sales module'!S979 -> 0.06581627538 | AN62: ='Vacancy & sales module'!T979 -> 0.06581627538 | AO62: ='Vacancy & sales module'!U979 -> 0.06581627538 | AP62: ='Vacancy & sales module'!V979 -> 0.06581627538 | AQ62: ='Vacancy & sales module'!W979 -> 0.06581627538 | AR62: ='Vacancy & sales module'!X979 -> 0.06581627538 | AS62: ='Vacancy & sales module'!Y979 -> 0.06581627538 | AT62: ='Vacancy & sales module'!Z979 -> 0.06581627538 | AU62: ='Vacancy & sales module'!AA979 -> 0.06581627538 | AX62: 136 | AY62: =VLOOKUP($C62,'Assumptions_Asset level'!$A$15:$AE$81,'Assumptions_Asset level'!$C$7,0) -> GRETZ ARMAINVILLIERS | BC62: =VLOOKUP($AX62,'Assumptions_Asset level'!$A$15:$AE$81,$AX$33,0)*F62 -> 36 | BD62: 36 | BE62: 32.84598 | BF62: 29.48221536 | BG62: 27.54443051 | BH62: 25.73155296 | BI62: 24.037998 | BJ62: 22.4559065 | BK62: 20.97794237 | BL62: 19.59725234 | BM62: 18.30743419 | BN62: 17.10250706 | BO62: 15.97688374 | BP62: 14.92534476 | BQ62: 13.94301416 | BR62: 13.0253369 | BU62: 136 | BV62: =VLOOKUP($C62,'Assumptions_Asset level'!$A$15:$AE$81,'Assumptions_Asset level'!$C$7,0) -> GRETZ ARMAINVILLIERS | BX62: 55.20972222 | CA62: =VLOOKUP($BU62,'Assumptions_Asset level'!$A$15:$AE$81,$BU$33,0)*F62 -> 1987.55 | CB62: 1987.55 | CC62: 1813.417432 | CD62: 1627.704921 | CE62: 1520.720357 | CF62: 1420.631891 | CG62: 1327.131192 | CH62: 1239.78436 | CI62: 1158.186371 | CJ62: 1081.958858 | CK62: 1010.748356 | CL62: 944.2246638 | CM62: 882.0793133 | CN62: 824.0241383 | CO62: 769.7899387 | CP62: 719.1252321 | CR62: 136 | CS62: =VLOOKUP($C62,'Assumptions_Asset level'!$A$15:$AE$81,'Assumptions_Asset level'!$C$7,0) -> GRETZ ARMAINVILLIERS | CW62: 1821.920833 | CX62: 1821.920833 | CY62: 1325.305906 | CZ62: 1514.87261 | DA62: 1475.098747 | DB62: 1378.012934 | DC62: 1287.317256 | DD62: 1202.590829 | DE62: 1123.44078 | DF62: 1049.500092 | DG62: 980.4259053 | DH62: 915.8979239 | DI62: 855.6169339 | DJ62: 799.3034142 | DK62: 746.6962406 | DL62: 697.5514752
C63: 142 | D63: =VLOOKUP($C63,'Assumptions_Asset level'!$A$15:$AE$81,'Assumptions_Asset level'!$C$7,0) -> MEAUX | F63: =IF(VLOOKUP($C63,'Assumptions_Asset level'!$A$15:$AO$81,'Assumptions_Asset level'!$Y$7,0)="x",1,0) -> 1 | H63: =VLOOKUP($C63,'Assumptions_Asset level'!$A$15:$AE$81,$C$33,0)*$F63 -> 15.56957912 | I63: 15.92767944 | J63: =IF(I63>J1281,I63*(1+J$4),MIN(I63*(1+J$21),J1281)) -> 16.35772678 | K63: 16.78302768 | L63: 17.20260337 | M63: 17.63266845 | N63: 18.07348517 | O63: 18.5253223 | P63: 18.98845535 | Q63: 19.46316674 | R63: 19.94974591 | S63: 20.44848955 | T63: 20.95970179 | U63: 21.48369434 | V63: 22.02078669 | W63: 22.57130636 | Z63: 142 | AA63: =VLOOKUP($Z63,'Assumptions_Asset level'!$A$15:$AE$81,'Assumptions_Asset level'!$C$7,0) -> MEAUX | AC63: =VLOOKUP($Z63,'Assumptions_Asset level'!$A$15:$AO$80,$Z$33,0) -> 2 | AF63: ='Vacancy & sales module'!L980 -> 0 | AG63: ='Vacancy & sales module'!M980 -> 0 | AH63: ='Vacancy & sales module'!N980 -> 0.07663733333 | AI63: ='Vacancy & sales module'!O980 -> 0.08173848051 | AJ63: ='Vacancy & sales module'!P980 -> 0.06577841066 | AK63: ='Vacancy & sales module'!Q980 -> 0.06581636389 | AL63: ='Vacancy & sales module'!R980 -> 0.06581627517 | AM63: ='Vacancy & sales module'!S980 -> 0.06581627538 | AN63: ='Vacancy & sales module'!T980 -> 0.06581627538 | AO63: ='Vacancy & sales module'!U980 -> 0.06581627538 | AP63: ='Vacancy & sales module'!V980 -> 0.06581627538 | AQ63: ='Vacancy & sales module'!W980 -> 0.06581627538 | AR63: ='Vacancy & sales module'!X980 -> 0.06581627538 | AS63: ='Vacancy & sales module'!Y980 -> 0.06581627538 | AT63: ='Vacancy & sales module'!Z980 -> 0.06581627538 | AU63: ='Vacancy & sales module'!AA980 -> 0.06581627538 | AX63: 142 | AY63: =VLOOKUP($C63,'Assumptions_Asset level'!$A$15:$AE$81,'Assumptions_Asset level'!$C$7,0) -> MEAUX | BC63: =VLOOKUP($AX63,'Assumptions_Asset level'!$A$15:$AE$81,$AX$33,0)*F63 -> 45 | BD63: 45 | BE63: 41.55132 | BF63: 38.15497824 | BG63: 35.64520441 | BH63: 33.29916667 | BI63: 31.10753955 | BJ63: 29.06015716 | BK63: 27.14752586 | BL63: 25.36077682 | BM63: 23.69162495 | BN63: 22.13233044 | BO63: 20.67566288 | BP63: 19.31486776 | BQ63: 18.0436351 | BR63: 16.85607025 | BU63: 142 | BV63: =VLOOKUP($C63,'Assumptions_Asset level'!$A$15:$AE$81,'Assumptions_Asset level'!$C$7,0) -> MEAUX | BX63: 54.91111111 | CA63: =VLOOKUP($BU63,'Assumptions_Asset level'!$A$15:$AE$81,$BU$33,0)*F63 -> 2471 | CB63: 2471 | CC63: 2281.629149 | CD63: 2095.13225 | CE63: 1957.31778 | CF63: 1828.494241 | CG63: 1708.149561 | CH63: 1595.725519 | CI63: 1490.700809 | CJ63: 1392.588434 | CK63: 1300.93345 | CL63: 1215.310856 | CM63: 1135.323622 | CN63: 1060.60085 | CO63: 990.796052 | CP63: 925.5855462 | CR63: 142 | CS63: =VLOOKUP($C63,'Assumptions_Asset level'!$A$15:$AE$81,'Assumptions_Asset level'!$C$7,0) -> MEAUX | CW63: 2416.088889 | CX63: 2416.088889 | CY63: 1972.848671 | CZ63: 1996.427699 | DA63: 1898.598247 | DB63: 1773.639414 | DC63: 1656.905074 | DD63: 1547.853753 | DE63: 1445.979784 | DF63: 1350.810781 | DG63: 1261.905446 | DH63: 1178.85153 | DI63: 1101.263913 | DJ63: 1028.782824 | DK63: 961.0721705 | DL63: 897.8179798
C64: 140 | D64: =VLOOKUP($C64,'Assumptions_Asset level'!$A$15:$AE$81,'Assumptions_Asset level'!$C$7,0) -> METZ | F64: =IF(VLOOKUP($C64,'Assumptions_Asset level'!$A$15:$AO$81,'Assumptions_Asset level'!$Y$7,0)="x",1,0) -> 1 | H64: =VLOOKUP($C64,'Assumptions_Asset level'!$A$15:$AE$81,$C$33,0)*$F64 -> 13.60940518 | I64: 13.9224215 | J64: =IF(I64>J1282,I64*(1+J$4),MIN(I64*(1+J$21),J1282)) -> 14.29832688 | K64: 14.67008338 | L64: 15.03683546 | M64: 15.41275635 | N64: 15.79807525 | O64: 16.19302714 | P64: 16.59785281 | Q64: 17.01279914 | R64: 17.43811911 | S64: 17.87407209 | T64: 18.32092389 | U64: 18.77894699 | V64: 19.24842067 | W64: 19.72963118 | Z64: 140 | AA64: =VLOOKUP($Z64,'Assumptions_Asset level'!$A$15:$AE$81,'Assumptions_Asset level'!$C$7,0) -> METZ | AC64: =VLOOKUP($Z64,'Assumptions_Asset level'!$A$15:$AO$80,$Z$33,0) -> 2 | AF64: ='Vacancy & sales module'!L981 -> 0 | AG64: ='Vacancy & sales module'!M981 -> 0 | AH64: ='Vacancy & sales module'!N981 -> 0.08303 | AI64: ='Vacancy & sales module'!O981 -> 0.08787279846 | AJ64: ='Vacancy & sales module'!P981 -> 0.07350034864 | AK64: ='Vacancy & sales module'!Q981 -> 0.07353912482 | AL64: ='Vacancy & sales module'!R981 -> 0.07353902182 | AM64: ='Vacancy & sales module'!S981 -> 0.07353902209 | AN64: ='Vacancy & sales module'!T981 -> 0.07353902209 | AO64: ='Vacancy & sales module'!U981 -> 0.07353902209 | AP64: ='Vacancy & sales module'!V981 -> 0.07353902209 | AQ64: ='Vacancy & sales module'!W981 -> 0.07353902209 | AR64: ='Vacancy & sales module'!X981 -> 0.07353902209 | AS64: ='Vacancy & sales module'!Y981 -> 0.07353902209 | AT64: ='Vacancy & sales module'!Z981 -> 0.07353902209 | AU64: ='Vacancy & sales module'!AA981 -> 0.07353902209 | AX64: 140 | AY64: =VLOOKUP($C64,'Assumptions_Asset level'!$A$15:$AE$81,'Assumptions_Asset level'!$C$7,0) -> METZ | BC64: =VLOOKUP($AX64,'Assumptions_Asset level'!$A$15:$AE$81,$AX$33,0)*F64 -> 74 | BD64: 74 | BE64: 67.85578 | BF64: 61.89310272 | BG64: 57.34393809 | BH64: 53.12691507 | BI64: 49.2200137 | BJ64: 45.60042203 | BK64: 42.24701159 | BL64: 39.14020767 | BM64: 36.26187507 | BN64: 33.59521224 | BO64: 31.12465318 | BP64: 28.83577663 | BQ64: 26.71522181 | BR64: 24.75061053 | BU64: 140 | BV64: =VLOOKUP($C64,'Assumptions_Asset level'!$A$15:$AE$81,'Assumptions_Asset level'!$C$7,0) -> METZ | BX64: 45.13040541 | CA64: =VLOOKUP($BU64,'Assumptions_Asset level'!$A$15:$AE$81,$BU$33,0)*F64 -> 3339.65 | CB64: 3339.65 | CC64: 3062.35886 | CD64: 2793.260818 | CE64: 2587.955174 | CF64: 2397.639215 | CG64: 2221.319173 | CH64: 2057.965533 | CI64: 1906.62476 | CJ64: 1766.41344 | CK64: 1636.513123 | CL64: 1516.165548 | CM64: 1404.668216 | CN64: 1301.370289 | CO64: 1205.668791 | CP64: 1117.005087 | CR64: 140 | CS64: =VLOOKUP($C64,'Assumptions_Asset level'!$A$15:$AE$81,'Assumptions_Asset level'!$C$7,0) -> METZ | CW64: 3339.65 | CX64: 3339.65 | CY64: 2679.564003 | CZ64: 2666.054848 | DA64: 2510.316518 | DB64: 2325.710039 | DC64: 2154.679597 | DD64: 1996.226567 | DE64: 1849.426017 | DF64: 1713.421037 | DG64: 1587.417729 | DH64: 1470.680582 | DI64: 1362.52817 | DJ64: 1262.329181 | DK64: 1169.498727 | DL64: 1083.494934
C65: 134 | D65: =VLOOKUP($C65,'Assumptions_Asset level'!$A$15:$AE$81,'Assumptions_Asset level'!$C$7,0) -> BOIS COLOMBES | F65: =IF(VLOOKUP($C65,'Assumptions_Asset level'!$A$15:$AO$81,'Assumptions_Asset level'!$Y$7,0)="x",1,0) -> 1 | H65: =VLOOKUP($C65,'Assumptions_Asset level'!$A$15:$AE$81,$C$33,0)*$F65 -> 20.36853132 | I65: 20.83700754 | J65: =IF(I65>J1283,I65*(1+J$4),MIN(I65*(1+J$21),J1283)) -> 21.25149256 | K65: 21.80403136 | L65: 22.34913215 | M65: 22.90786045 | N65: 23.48055696 | O65: 24.06757088 | P65: 24.66926016 | Q65: 25.28599166 | R65: 25.91814145 | S65: 26.56609499 | T65: 27.23024736 | U65: 27.91100355 | V65: 28.60877864 | W65: 29.3239981 | Z65: 134 | AA65: =VLOOKUP($Z65,'Assumptions_Asset level'!$A$15:$AE$81,'Assumptions_Asset level'!$C$7,0) -> BOIS COLOMBES | AC65: =VLOOKUP($Z65,'Assumptions_Asset level'!$A$15:$AO$80,$Z$33,0) -> 2 | AF65: ='Vacancy & sales module'!L982 -> 0 | AG65: ='Vacancy & sales module'!M982 -> 0 | AH65: ='Vacancy & sales module'!N982 -> 0.1053823529 | AI65: ='Vacancy & sales module'!O982 -> 0.1369594635 | AJ65: ='Vacancy & sales module'!P982 -> 0.06563626398 | AK65: ='Vacancy & sales module'!Q982 -> 0.06581669609 | AL65: ='Vacancy & sales module'!R982 -> 0.0658162744 | AM65: ='Vacancy & sales module'!S982 -> 0.06581627538 | AN65: ='Vacancy & sales module'!T982 -> 0.06581627538 | AO65: ='Vacancy & sales module'!U982 -> 0.06581627538 | AP65: ='Vacancy & sales module'!V982 -> 0.06581627538 | AQ65: ='Vacancy & sales module'!W982 -> 0.06581627538 | AR65: ='Vacancy & sales module'!X982 -> 0.06581627538 | AS65: ='Vacancy & sales module'!Y982 -> 0.06581627538 | AT65: ='Vacancy & sales module'!Z982 -> 0.06581627538 | AU65: ='Vacancy & sales module'!AA982 -> 0.06581627538 | AX65: 134 | AY65: =VLOOKUP($C65,'Assumptions_Asset level'!$A$15:$AE$81,'Assumptions_Asset level'!$C$7,0) -> BOIS COLOMBES | BC65: =VLOOKUP($AX65,'Assumptions_Asset level'!$A$15:$AE$81,$AX$33,0)*F65 -> 68 | BD65: 68 | BE65: 60.834 | BF65: 52.502208 | BG65: 49.05615922 | BH65: 45.82744489 | BI65: 42.81125321 | BJ65: 39.99357598 | BK65: 37.36134777 | BL65: 34.90236301 | BM65: 32.60521948 | BN65: 30.45926537 | BO65: 28.45454998 | BP65: 26.58177748 | BQ65: 24.83226389 | BR65: 23.19789677 | BU65: 134 | BV65: =VLOOKUP($C65,'Assumptions_Asset level'!$A$15:$AE$81,'Assumptions_Asset level'!$C$7,0) -> BOIS COLOMBES | BX65: 62.49382353 | CA65: =VLOOKUP($BU65,'Assumptions_Asset level'!$A$15:$AE$81,$BU$33,0)*F65 -> 4249.58 | CB65: 4249.58 | CC65: 3801.749261 | CD65: 3281.063722 | CE65: 3065.706957 | CF65: 2863.932254 | CG65: 2675.438903 | CH65: 2499.351479 | CI65: 2334.853474 | CJ65: 2181.182115 | CK65: 2037.624832 | CL65: 1903.515955 | CM65: 1778.233625 | CN65: 1661.196911 | CO65: 1551.863117 | CP65: 1449.725267 | CR65: 134 | CS65: =VLOOKUP($C65,'Assumptions_Asset level'!$A$15:$AE$81,'Assumptions_Asset level'!$C$7,0) -> BOIS COLOMBES | CW65: 2312.271471 | CX65: 2312.271471 | CY65: 1954.546385 | CZ65: 2931.835441 | DA65: 2973.735748 | DB65: 2778.014286 | DC65: 2595.175736 | DD65: 2424.370935 | DE65: 2264.80787 | DF65: 2115.746651 | DG65: 1976.496087 | DH65: 1846.410476 | DI65: 1724.886616 | DJ65: 1611.361004 | DK65: 1505.307224 | DL65: 1406.233509
C66: 135 | D66: =VLOOKUP($C66,'Assumptions_Asset level'!$A$15:$AE$81,'Assumptions_Asset level'!$C$7,0) -> BOIS COLOMBES | F66: =IF(VLOOKUP($C66,'Assumptions_Asset level'!$A$15:$AO$81,'Assumptions_Asset level'!$Y$7,0)="x",1,0) -> 1 | H66: =VLOOKUP($C66,'Assumptions_Asset level'!$A$15:$AE$81,$C$33,0)*$F66 -> 21.28732506 | I66: 21.77693353 | J66: =IF(I66>J1284,I66*(1+J$4),MIN(I66*(1+J$21),J1284)) -> 22.36491074 | K66: 22.94639842 | L66: 23.52005838 | M66: 24.10805984 | N66: 24.71076133 | O66: 25.32853037 | P66: 25.96174363 | Q66: 26.61078722 | R66: 27.2760569 | S66: 27.95795832 | T66: 28.65690728 | U66: 29.37332996 | V66: 30.10766321 | W66: 30.86035479 | Z66: 135 | AA66: =VLOOKUP($Z66,'Assumptions_Asset level'!$A$15:$AE$81,'Assumptions_Asset level'!$C$7,0) -> BOIS COLOMBES | AC66: =VLOOKUP($Z66,'Assumptions_Asset level'!$A$15:$AO$80,$Z$33,0) -> 2 | AF66: ='Vacancy & sales module'!L983 -> 0 | AG66: ='Vacancy & sales module'!M983 -> 0 | AH66: ='Vacancy & sales module'!N983 -> 0.1031428571 | AI66: ='Vacancy & sales module'!O983 -> 0.1325301051 | AJ66: ='Vacancy & sales module'!P983 -> 0.06564833337 | AK66: ='Vacancy & sales module'!Q983 -> 0.06581666789 | AL66: ='Vacancy & sales module'!R983 -> 0.06581627446 | AM66: ='Vacancy & sales module'!S983 -> 0.06581627538 | AN66: ='Vacancy & sales module'!T983 -> 0.06581627538 | AO66: ='Vacancy & sales module'!U983 -> 0.06581627538 | AP66: ='Vacancy & sales module'!V983 -> 0.06581627538 | AQ66: ='Vacancy & sales module'!W983 -> 0.06581627538 | AR66: ='Vacancy & sales module'!X983 -> 0.06581627538 | AS66: ='Vacancy & sales module'!Y983 -> 0.06581627538 | AT66: ='Vacancy & sales module'!Z983 -> 0.06581627538 | AU66: ='Vacancy & sales module'!AA983 -> 0.06581627538 | AX66: 135 | AY66: =VLOOKUP($C66,'Assumptions_Asset level'!$A$15:$AE$81,'Assumptions_Asset level'!$C$7,0) -> BOIS COLOMBES | BC66: =VLOOKUP($AX66,'Assumptions_Asset level'!$A$15:$AE$81,$AX$33,0)*F66 -> 49 | BD66: =IFERROR(BC66*(1-AG66),0) -> 49 | BE66: =IFERROR(BD66*(1-AH66),0) -> 43.946 | BF66: =IFERROR(BE66*(1-AI66),0) -> 38.121832 | BG66: =IFERROR(BF66*(1-AJ66),0) -> 35.61919726 | BH66: =IFERROR(BG66*(1-AK66),0) -> 33.27486039 | BI66: =IFERROR(BH66*(1-AL66),0) -> 31.08483304 | BJ66: =IFERROR(BI66*(1-AM66),0) -> 29.03894511 | BK66: =IFERROR(BJ66*(1-AN66),0) -> 27.1277099 | BL66: =IFERROR(BK66*(1-AO66),0) -> 25.34226508 | BM66: =IFERROR(BL66*(1-AP66),0) -> 23.67433158 | BN66: =IFERROR(BM66*(1-AQ66),0) -> 22.11617525 | BO66: =IFERROR(BN66*(1-AR66),0) -> 20.66057097 | BP66: =IFERROR(BO66*(1-AS66),0) -> 19.30076914 | BQ66: =IFERROR(BP66*(1-AT66),0) -> 18.03046441 | BR66: =IFERROR(BQ66*(1-AU66),0) -> 16.8437664 | BU66: 135 | BV66: =VLOOKUP($C66,'Assumptions_Asset level'!$A$15:$AE$81,'Assumptions_Asset level'!$C$7,0) -> BOIS COLOMBES | BX66: 60.64816327 | CA66: =VLOOKUP($BU66,'Assumptions_Asset level'!$A$15:$AE$81,$BU$33,0)*F66 -> 2971.76 | CB66: 2971.76 | CC66: 2665.244183 | CD66: 2312.019091 | CE66: 2160.238891 | CF66: 2018.059165 | CG66: 1885.238029 | CH66: 1761.158684 | CI66: 1645.245779 | CJ66: 1536.96183 | CK66: 1435.804727 | CL66: 1341.305408 | CM66: 1253.025682 | CN66: 1170.556198 | CO66: 1093.514549 | CP66: 1021.543494 | CR66: 135 | CS66: =VLOOKUP($C66,'Assumptions_Asset level'!$A$15:$AE$81,'Assumptions_Asset level'!$C$7,0) -> BOIS COLOMBES | CW66: =IFERROR(CA66*(1-AF137),0) -> 1698.148571 | CX66: =IFERROR(CB66*(1-AG137),0) -> 1698.148571 | CY66: =IFERROR(CC66*(1-AH137),0) -> 1443.03935 | CZ66: =IFERROR(CD66*(1-AI137),0) -> 2076.935583 | DA66: =IFERROR(CE66*(1-AJ137),0) -> 2095.431724 | DB66: =IFERROR(CF66*(1-AK137),0) -> 1957.51739 | DC66: =IFERROR(CG66*(1-AL137),0) -> 1828.680889 | DD66: =IFERROR(CH66*(1-AM137),0) -> 1708.323924 | DE66: =IFERROR(CI66*(1-AN137),0) -> 1595.888406 | DF66: =IFERROR(CJ66*(1-AO137),0) -> 1490.852975 | DG66: =IFERROR(CK66*(1-AP137),0) -> 1392.730585 | DH66: =IFERROR(CL66*(1-AQ137),0) -> 1301.066245 | DI66: =IFERROR(CM66*(1-AR137),0) -> 1215.434911 | DJ66: =IFERROR(CN66*(1-AS137),0) -> 1135.439512 | DK66: =IFERROR(CO66*(1-AT137),0) -> 1060.709113 | DL66: =IFERROR(CP66*(1-AU137),0) -> 990.8971896
C67: 147 | D67: =VLOOKUP($C67,'Assumptions_Asset level'!$A$15:$AE$81,'Assumptions_Asset level'!$C$7,0) -> CAGNES SUR MER | F67: =IF(VLOOKUP($C67,'Assumptions_Asset level'!$A$15:$AO$81,'Assumptions_Asset level'!$Y$7,0)="x",1,0) -> 1 | H67: =VLOOKUP($C67,'Assumptions_Asset level'!$A$15:$AE$81,$C$33,0)*$F67 -> 16.59359329 | I67: 16.97524594 | J67: =IF(I67>J1285,I67*(1+J$4),MIN(I67*(1+J$21),J1285)) -> 17.43357758 | K67: 17.8868506 | L67: 18.33402186 | M67: 18.79237241 | N67: 19.26218172 | O67: 19.74373626 | P67: 20.23732967 | Q67: 20.74326291 | R67: 21.26184448 | S67: 21.79339059 | T67: 22.33822536 | U67: 22.89668099 | V67: 23.46909802 | W67: 24.05582547 | Z67: 147 | AA67: =VLOOKUP($Z67,'Assumptions_Asset level'!$A$15:$AE$81,'Assumptions_Asset level'!$C$7,0) -> CAGNES SUR MER | AC67: =VLOOKUP($Z67,'Assumptions_Asset level'!$A$15:$AO$80,$Z$33,0) -> 2 | AF67: ='Vacancy & sales module'!L984 -> 0 | AG67: ='Vacancy & sales module'!M984 -> 0 | AH67: ='Vacancy & sales module'!N984 -> 0.08303 | AI67: ='Vacancy & sales module'!O984 -> 0.08787279846 | AJ67: ='Vacancy & sales module'!P984 -> 0.07350034864 | AK67: ='Vacancy & sales module'!Q984 -> 0.07353912482 | AL67: ='Vacancy & sales module'!R984 -> 0.07353902182 | AM67: ='Vacancy & sales module'!S984 -> 0.07353902209 | AN67: ='Vacancy & sales module'!T984 -> 0.07353902209 | AO67: ='Vacancy & sales module'!U984 -> 0.07353902209 | AP67: ='Vacancy & sales module'!V984 -> 0.07353902209 | AQ67: ='Vacancy & sales module'!W984 -> 0.07353902209 | AR67: ='Vacancy & sales module'!X984 -> 0.07353902209 | AS67: ='Vacancy & sales module'!Y984 -> 0.07353902209 | AT67: ='Vacancy & sales module'!Z984 -> 0.07353902209 | AU67: ='Vacancy & sales module'!AA984 -> 0.07353902209 | AX67: 147 | AY67: =VLOOKUP($C67,'Assumptions_Asset level'!$A$15:$AE$81,'Assumptions_Asset level'!$C$7,0) -> CAGNES SUR MER | BC67: =VLOOKUP($AX67,'Assumptions_Asset level'!$A$15:$AE$81,$AX$33,0)*F67 -> 37 | BD67: 37 | BE67: 33.92789 | BF67: 30.94655136 | BG67: 28.67196905 | BH67: 26.56345754 | BI67: 24.61000685 | BJ67: 22.80021101 | BK67: 21.12350579 | BL67: 19.57010383 | BM67: 18.13093754 | BN67: 16.79760612 | BO67: 15.56232659 | BP67: 14.41788831 | BQ67: 13.35761091 | BR67: 12.37530526 | BU67: 147 | BV67: =VLOOKUP($C67,'Assumptions_Asset level'!$A$15:$AE$81,'Assumptions_Asset level'!$C$7,0) -> CAGNES SUR MER | BX67: 58.47756757 | CA67: =VLOOKUP($BU67,'Assumptions_Asset level'!$A$15:$AE$81,$BU$33,0)*F67 -> 2163.67 | CB67: 2163.67 | CC67: 1984.02048 | CD67: 1809.679048 | CE67: 1676.667007 | CF67: 1553.366383 | CG67: 1439.133339 | CH67: 1333.30088 | CI67: 1235.251237 | CJ67: 1144.412069 | CK67: 1060.253125 | CL67: 982.2831468 | CM67: 910.0470048 | CN67: 843.123038 | CO67: 781.1205943 | CP67: 723.6777497 | CR67: 147 | CS67: =VLOOKUP($C67,'Assumptions_Asset level'!$A$15:$AE$81,'Assumptions_Asset level'!$C$7,0) -> CAGNES SUR MER | CW67: 2163.67 | CX67: 2163.67 | CY67: 1736.01792 | CZ67: 1727.265699 | DA67: 1626.366997 | DB67: 1506.765391 | DC67: 1395.959338 | DD67: 1293.301854 | DE67: 1198.1937 | DF67: 1110.079707 | DG67: 1028.445531 | DH67: 952.8146524 | DI67: 882.7455947 | DJ67: 817.8293469 | DK67: 757.6869765 | DL67: 701.9674172
C68: 151 | D68: =VLOOKUP($C68,'Assumptions_Asset level'!$A$15:$AE$81,'Assumptions_Asset level'!$C$7,0) -> DIVONNE | F68: =IF(VLOOKUP($C68,'Assumptions_Asset level'!$A$15:$AO$81,'Assumptions_Asset level'!$Y$7,0)="x",1,0) -> 1 | H68: =VLOOKUP($C68,'Assumptions_Asset level'!$A$15:$AE$81,$C$33,0)*$F68 -> 22.80823163 | I68: 23.33282096 | J68: =IF(I68>J1286,I68*(1+J$4),MIN(I68*(1+J$21),J1286)) -> 23.96280713 | K68: 24.58584011 | L68: 25.20048612 | M68: 25.83049827 | N68: 26.47626073 | O68: 27.13816724 | P68: 27.81662143 | Q68: 28.51203696 | R68: 29.22483789 | S68: 29.95545883 | T68: 30.7043453 | U68: 31.47195394 | V68: 32.25875278 | W68: 33.0652216 | Z68: 151 | AA68: =VLOOKUP($Z68,'Assumptions_Asset level'!$A$15:$AE$81,'Assumptions_Asset level'!$C$7,0) -> DIVONNE | AC68: =VLOOKUP($Z68,'Assumptions_Asset level'!$A$15:$AO$80,$Z$33,0) -> 2 | AF68: ='Vacancy & sales module'!L985 -> 0 | AG68: ='Vacancy & sales module'!M985 -> 0 | AH68: ='Vacancy & sales module'!N985 -> 0.15 | AI68: ='Vacancy & sales module'!O985 -> 0.2390588235 | AJ68: ='Vacancy & sales module'!P985 -> 0.07300371058 | AK68: ='Vacancy & sales module'!Q985 -> 0.07354044323 | AL68: ='Vacancy & sales module'!R985 -> 0.07353901832 | AM68: ='Vacancy & sales module'!S985 -> 0.0735390221 | AN68: ='Vacancy & sales module'!T985 -> 0.07353902209 | AO68: ='Vacancy & sales module'!U985 -> 0.07353902209 | AP68: ='Vacancy & sales module'!V985 -> 0.07353902209 | AQ68: ='Vacancy & sales module'!W985 -> 0.07353902209 | AR68: ='Vacancy & sales module'!X985 -> 0.07353902209 | AS68: ='Vacancy & sales module'!Y985 -> 0.07353902209 | AT68: ='Vacancy & sales module'!Z985 -> 0.07353902209 | AU68: ='Vacancy & sales module'!AA985 -> 0.07353902209 | AX68: 151 | AY68: =VLOOKUP($C68,'Assumptions_Asset level'!$A$15:$AE$81,'Assumptions_Asset level'!$C$7,0) -> DIVONNE | BC68: =VLOOKUP($AX68,'Assumptions_Asset level'!$A$15:$AE$81,$AX$33,0)*F68 -> 16 | BD68: 16 | BE68: 13.6 | BF68: 10.3488 | BG68: 9.5932992 | BH68: 8.887803725 | BI68: 8.234203364 | BJ68: 7.628668101 | BK68: 7.067663309 | BL68: 6.547914261 | BM68: 6.066387049 | BN68: 5.620270878 | BO68: 5.206961654 | BP68: 4.824046786 | BQ68: 4.469291102 | BR68: 4.140623805 | BU68: 151 | BV68: =VLOOKUP($C68,'Assumptions_Asset level'!$A$15:$AE$81,'Assumptions_Asset level'!$C$7,0) -> DIVONNE | BX68: 73.5425 | CA68: =VLOOKUP($BU68,'Assumptions_Asset level'!$A$15:$AE$81,$BU$33,0)*F68 -> 1176.68 | CB68: 1176.68 | CC68: 1000.178 | CD68: 761.076624 | CE68: 705.5152064 | CF68: 653.6313054 | CG68: 605.5639009 | CH68: 561.0313238 | CI68: 519.7736289 | CJ68: 481.5499845 | CK68: 446.1372696 | CL68: 413.328771 | CM68: 382.9329774 | CN68: 354.7724607 | CO68: 328.6828409 | CP68: 304.5118262 | CR68: 151 | CS68: =VLOOKUP($C68,'Assumptions_Asset level'!$A$15:$AE$81,'Assumptions_Asset level'!$C$7,0) -> DIVONNE | CW68: 0 | CX68: 0 | CY68: 0 | CZ68: 603.9366858 | DA68: 684.3497502 | DB68: 634.0223663 | DC68: 587.3969839 | DD68: 544.2003841 | DE68: 504.18042 | DF68: 467.103485 | DG68: 432.7531515 | DH68: 400.9289079 | DI68: 371.4449881 | DJ68: 344.1292869 | DK68: 318.8223557 | DL68: 295.3764714
C69: 146 | D69: =VLOOKUP($C69,'Assumptions_Asset level'!$A$15:$AE$81,'Assumptions_Asset level'!$C$7,0) -> BEAUSOLEIL | F69: =IF(VLOOKUP($C69,'Assumptions_Asset level'!$A$15:$AO$81,'Assumptions_Asset level'!$Y$7,0)="x",1,0) -> 1 | H69: =VLOOKUP($C69,'Assumptions_Asset level'!$A$15:$AE$81,$C$33,0)*$F69 -> 28.07743363 | I69: 28.7232146 | J69: =IF(I69>J1287,I69*(1+J$4),MIN(I69*(1+J$21),J1287)) -> 29.4987414 | K69: 30.26570867 | L69: 31.02235139 | M69: 31.79791017 | N69: 32.59285793 | O69: 33.40767938 | P69: 34.24287136 | Q69: 35.09894314 | R69: 35.97641672 | S69: 36.87582714 | T69: 37.79772282 | U69: 38.74266589 | V69: 39.71123254 | W69: 40.70401335 | Z69: 146 | AA69: =VLOOKUP($Z69,'Assumptions_Asset level'!$A$15:$AE$81,'Assumptions_Asset level'!$C$7,0) -> BEAUSOLEIL | AC69: =VLOOKUP($Z69,'Assumptions_Asset level'!$A$15:$AO$80,$Z$33,0) -> 2 | AF69: ='Vacancy & sales module'!L986 -> 0 | AG69: ='Vacancy & sales module'!M986 -> 0 | AH69: ='Vacancy & sales module'!N986 -> 0.15 | AI69: ='Vacancy & sales module'!O986 -> 0.2390588235 | AJ69: ='Vacancy & sales module'!P986 -> 0.07300371058 | AK69: ='Vacancy & sales module'!Q986 -> 0.07354044323 | AL69: ='Vacancy & sales module'!R986 -> 0.07353901832 | AM69: ='Vacancy & sales module'!S986 -> 0.0735390221 | AN69: ='Vacancy & sales module'!T986 -> 0.07353902209 | AO69: ='Vacancy & sales module'!U986 -> 0.07353902209 | AP69: ='Vacancy & sales module'!V986 -> 0.07353902209 | AQ69: ='Vacancy & sales module'!W986 -> 0.07353902209 | AR69: ='Vacancy & sales module'!X986 -> 0.07353902209 | AS69: ='Vacancy & sales module'!Y986 -> 0.07353902209 | AT69: ='Vacancy & sales module'!Z986 -> 0.07353902209 | AU69: ='Vacancy & sales module'!AA986 -> 0.07353902209 | AX69: 146 | AY69: =VLOOKUP($C69,'Assumptions_Asset level'!$A$15:$AE$81,'Assumptions_Asset level'!$C$7,0) -> BEAUSOLEIL | BC69: =VLOOKUP($AX69,'Assumptions_Asset level'!$A$15:$AE$81,$AX$33,0)*F69 -> 62 | BD69: 62 | BE69: 52.7 | BF69: 40.1016 | BG69: 37.1740344 | BH69: 34.44023943 | BI69: 31.90753804 | BJ69: 29.56108889 | BK69: 27.38719532 | BL69: 25.37316776 | BM69: 23.50724982 | BN69: 21.77854965 | BO69: 20.17697641 | BP69: 18.69318129 | BQ69: 17.31850302 | BR69: 16.04491725 | BU69: 146 | BV69: =VLOOKUP($C69,'Assumptions_Asset level'!$A$15:$AE$81,'Assumptions_Asset level'!$C$7,0) -> BEAUSOLEIL | BX69: 65.61290323 | CA69: =VLOOKUP($BU69,'Assumptions_Asset level'!$A$15:$AE$81,$BU$33,0)*F69 -> 4068 | CB69: 4068 | CC69: 3457.8 | CD69: 2631.1824 | CE69: 2439.096322 | CF69: 2259.724097 | CG69: 2093.546205 | CH69: 1939.588865 | CI69: 1796.953396 | CJ69: 1664.807201 | CK69: 1542.378907 | CL69: 1428.953871 | CM69: 1323.87 | CN69: 1226.513895 | CO69: 1136.317263 | CP69: 1052.753602 | CR69: 146 | CS69: =VLOOKUP($C69,'Assumptions_Asset level'!$A$15:$AE$81,'Assumptions_Asset level'!$C$7,0) -> BEAUSOLEIL | CW69: 0 | CX69: 0 | CY69: 0 | CZ69: 2087.920622 | DA69: 2365.923432 | DB69: 2191.932374 | DC69: 2030.739819 | DD69: 1881.401199 | DE69: 1743.044794 | DF69: 1614.862985 | DG69: 1496.10754 | DH69: 1386.085255 | DI69: 1284.1539 | DJ69: 1189.718478 | DK69: 1102.227745 | DL69: 1021.170994
C70: 150 | D70: =VLOOKUP($C70,'Assumptions_Asset level'!$A$15:$AE$81,'Assumptions_Asset level'!$C$7,0) -> ST LAURENT DU VAR | F70: =IF(VLOOKUP($C70,'Assumptions_Asset level'!$A$15:$AO$81,'Assumptions_Asset level'!$Y$7,0)="x",1,0) -> 1 | H70: =VLOOKUP($C70,'Assumptions_Asset level'!$A$15:$AE$81,$C$33,0)*$F70 -> 17.82417298 | I70: 18.23412895 | J70: =IF(I70>J1288,I70*(1+J$4),MIN(I70*(1+J$21),J1288)) -> 18.72645044 | K70: 19.21333815 | L70: 19.6936716 | M70: 20.18601339 | N70: 20.69066373 | O70: 21.20793032 | P70: 21.73812858 | Q70: 22.28158179 | R70: 22.83862134 | S70: 23.40958687 | T70: 23.99482654 | U70: 24.59469721 | V70: 25.20956464 | W70: 25.83980375 | Z70: 150 | AA70: =VLOOKUP($Z70,'Assumptions_Asset level'!$A$15:$AE$81,'Assumptions_Asset level'!$C$7,0) -> ST LAURENT DU VAR | AC70: =VLOOKUP($Z70,'Assumptions_Asset level'!$A$15:$AO$80,$Z$33,0) -> 2 | AF70: ='Vacancy & sales module'!L987 -> 0 | AG70: ='Vacancy & sales module'!M987 -> 0 | AH70: ='Vacancy & sales module'!N987 -> 0.08303 | AI70: ='Vacancy & sales module'!O987 -> 0.08787279846 | AJ70: ='Vacancy & sales module'!P987 -> 0.07350034864 | AK70: ='Vacancy & sales module'!Q987 -> 0.07353912482 | AL70: ='Vacancy & sales module'!R987 -> 0.07353902182 | AM70: ='Vacancy & sales module'!S987 -> 0.07353902209 | AN70: ='Vacancy & sales module'!T987 -> 0.07353902209 | AO70: ='Vacancy & sales module'!U987 -> 0.07353902209 | AP70: ='Vacancy & sales module'!V987 -> 0.07353902209 | AQ70: ='Vacancy & sales module'!W987 -> 0.07353902209 | AR70: ='Vacancy & sales module'!X987 -> 0.07353902209 | AS70: ='Vacancy & sales module'!Y987 -> 0.07353902209 | AT70: ='Vacancy & sales module'!Z987 -> 0.07353902209 | AU70: ='Vacancy & sales module'!AA987 -> 0.07353902209 | AX70: 150 | AY70: =VLOOKUP($C70,'Assumptions_Asset level'!$A$15:$AE$81,'Assumptions_Asset level'!$C$7,0) -> ST LAURENT DU VAR | BC70: =VLOOKUP($AX70,'Assumptions_Asset level'!$A$15:$AE$81,$AX$33,0)*F70 -> 24 | BD70: 24 | BE70: 22.00728 | BF70: 20.07343872 | BG70: 18.59803398 | BH70: 17.23035083 | BI70: 15.96324769 | BJ70: 14.78932606 | BK70: 13.70173349 | BL70: 12.69412141 | BM70: 11.76060813 | BN70: 10.89574451 | BO70: 10.09448211 | BP70: 9.352143771 | BQ70: 8.664396263 | BR70: 8.027225035 | BU70: 150 | BV70: =VLOOKUP($C70,'Assumptions_Asset level'!$A$15:$AE$81,'Assumptions_Asset level'!$C$7,0) -> ST LAURENT DU VAR | BX70: 51.45208333 | CA70: =VLOOKUP($BU70,'Assumptions_Asset level'!$A$15:$AE$81,$BU$33,0)*F70 -> 1234.85 | CB70: 1234.85 | CC70: 1132.320404 | CD70: 1032.820242 | CE70: 956.907594 | CF70: 886.537447 | CG70: 821.3423503 | CH70: 760.9416371 | CI70: 704.9827332 | CJ70: 653.1389924 | CK70: 605.1077896 | CL70: 560.6087545 | CM70: 519.3821349 | CN70: 481.1872806 | CO70: 445.8012386 | CP70: 413.0174514 | CR70: 150 | CS70: =VLOOKUP($C70,'Assumptions_Asset level'!$A$15:$AE$81,'Assumptions_Asset level'!$C$7,0) -> ST LAURENT DU VAR | CW70: 1234.85 | CX70: 1234.85 | CY70: 990.7803539 | CZ70: 985.7852856 | DA70: 928.2003661 | DB70: 859.9413236 | DC70: 796.7020798 | DD70: 738.113388 | DE70: 683.8332512 | DF70: 633.5448226 | DG70: 586.9545559 | DH70: 543.7904919 | DI70: 503.8006709 | DJ70: 466.7516622 | DK70: 432.4272014 | DL70: 400.6269279
C71: 3 | D71: =VLOOKUP($C71,'Assumptions_Asset level'!$A$15:$AE$81,'Assumptions_Asset level'!$C$7,0) -> THOIRY | F71: =IF(VLOOKUP($C71,'Assumptions_Asset level'!$A$15:$AO$81,'Assumptions_Asset level'!$Y$7,0)="x",1,0) -> 1 | H71: =VLOOKUP($C71,'Assumptions_Asset level'!$A$15:$AE$81,$C$33,0)*$F71 -> 17.27221217 | I71: 17.66947305 | J71: =IF(I71>J1289,I71*(1+J$4),MIN(I71*(1+J$21),J1289)) -> 18.14654882 | K71: 18.61835909 | L71: 19.08381806 | M71: 19.56091352 | N71: 20.04993635 | O71: 20.55118476 | P71: 21.06496438 | Q71: 21.59158849 | R71: 22.1313782 | S71: 22.68466266 | T71: 23.25177922 | U71: 23.83307371 | V71: 24.42890055 | W71: 25.03962306 | Z71: 3 | AA71: =VLOOKUP($Z71,'Assumptions_Asset level'!$A$15:$AE$81,'Assumptions_Asset level'!$C$7,0) -> THOIRY | AC71: =VLOOKUP($Z71,'Assumptions_Asset level'!$A$15:$AO$80,$Z$33,0) -> 2 | AF71: ='Vacancy & sales module'!L988 -> 0 | AG71: ='Vacancy & sales module'!M988 -> 0 | AH71: ='Vacancy & sales module'!N988 -> 0.09006 | AI71: ='Vacancy & sales module'!O988 -> 0.10243471 | AJ71: ='Vacancy & sales module'!P988 -> 0.07345979482 | AK71: ='Vacancy & sales module'!Q988 -> 0.07353923253 | AL71: ='Vacancy & sales module'!R988 -> 0.07353902153 | AM71: ='Vacancy & sales module'!S988 -> 0.07353902209 | AN71: ='Vacancy & sales module'!T988 -> 0.07353902209 | AO71: ='Vacancy & sales module'!U988 -> 0.07353902209 | AP71: ='Vacancy & sales module'!V988 -> 0.07353902209 | AQ71: ='Vacancy & sales module'!W988 -> 0.07353902209 | AR71: ='Vacancy & sales module'!X988 -> 0.07353902209 | AS71: ='Vacancy & sales module'!Y988 -> 0.07353902209 | AT71: ='Vacancy & sales module'!Z988 -> 0.07353902209 | AU71: ='Vacancy & sales module'!AA988 -> 0.07353902209 | AX71: 3 | AY71: =VLOOKUP($C71,'Assumptions_Asset level'!$A$15:$AE$81,'Assumptions_Asset level'!$C$7,0) -> THOIRY | BC71: =VLOOKUP($AX71,'Assumptions_Asset level'!$A$15:$AE$81,$AX$33,0)*F71 -> 8 | BD71: 8 | BE71: 7.27952 | BF71: 6.53384448 | BG71: 6.053869605 | BH71: 5.608672681 | BI71: 5.19621638 | BJ71: 4.814091708 | BK71: 4.460068112 | BL71: 4.132079064 | BM71: 3.828210011 | BN71: 3.54668719 | BO71: 3.285867283 | BP71: 3.044227816 | BQ71: 2.820358279 | BR71: 2.61295189 | BU71: 3 | BV71: =VLOOKUP($C71,'Assumptions_Asset level'!$A$15:$AE$81,'Assumptions_Asset level'!$C$7,0) -> THOIRY | BX71: 115.7075 | CA71: =VLOOKUP($BU71,'Assumptions_Asset level'!$A$15:$AE$81,$BU$33,0)*F71 -> 925.66 | CB71: 925.66 | CC71: 842.2950604 | CD71: 756.0148102 | CE71: 700.4781173 | CF71: 648.9654942 | CG71: 601.2412067 | CH71: 557.0265163 | CI71: 516.0633311 | CJ71: 478.1125384 | CK71: 442.9526098 | CL71: 410.3783081 | CM71: 380.1994886 | CN71: 352.23999 | CO71: 326.3366056 | CP71: 302.3381308 | CR71: 3 | CS71: =VLOOKUP($C71,'Assumptions_Asset level'!$A$15:$AE$81,'Assumptions_Asset level'!$C$7,0) -> THOIRY | CW71: 925.66 | CX71: 925.66 | CY71: 656.9901471 | CZ71: 709.6554177 | DA71: 679.4637738 | DB71: 629.4965294 | DC71: 583.2039705 | DD71: 540.3157209 | DE71: 500.5814311 | DF71: 463.7691622 | DG71: 429.6640315 | DH71: 398.0669588 | DI71: 368.793504 | DJ71: 341.6727903 | DK71: 316.5465074 | DL71: 293.2679868
C72: 37 | D72: =VLOOKUP($C72,'Assumptions_Asset level'!$A$15:$AE$81,'Assumptions_Asset level'!$C$7,0) -> 0 | F72: =IF(VLOOKUP($C72,'Assumptions_Asset level'!$A$15:$AO$81,'Assumptions_Asset level'!$Y$7,0)="x",1,0) -> 0 | H72: =VLOOKUP($C72,'Assumptions_Asset level'!$A$15:$AE$81,$C$33,0)*$F72 -> 0 | I72: 0 | J72: =IF(I72>J1290,I72*(1+J$4),MIN(I72*(1+J$21),J1290)) -> 0 | K72: 0 | L72: 0 | M72: 0 | N72: 0 | O72: 0 | P72: 0 | Q72: 0 | R72: 0 | S72: 0 | T72: 0 | U72: 0 | V72: 0 | W72: 0 | Z72: 37 | AA72: =VLOOKUP($Z72,'Assumptions_Asset level'!$A$15:$AE$81,'Assumptions_Asset level'!$C$7,0) -> 0 | AC72: =VLOOKUP($Z72,'Assumptions_Asset level'!$A$15:$AO$80,$Z$33,0) -> 0 | AF72: ='Vacancy & sales module'!L989 -> 0 | AG72: ='Vacancy & sales module'!M989 -> 0 | AH72: ='Vacancy & sales module'!N989 -> 0 | AI72: ='Vacancy & sales module'!O989 -> 0 | AJ72: ='Vacancy & sales module'!P989 -> 0 | AK72: ='Vacancy & sales module'!Q989 -> 0 | AL72: ='Vacancy & sales module'!R989 -> 0 | AM72: ='Vacancy & sales module'!S989 -> 0 | AN72: ='Vacancy & sales module'!T989 -> 0 | AO72: ='Vacancy & sales module'!U989 -> 0 | AP72: ='Vacancy & sales module'!V989 -> 0 | AQ72: ='Vacancy & sales module'!W989 -> 0 | AR72: ='Vacancy & sales module'!X989 -> 0 | AS72: ='Vacancy & sales module'!Y989 -> 0 | AT72: ='Vacancy & sales module'!Z989 -> 0 | AU72: ='Vacancy & sales module'!AA989 -> 0 | AX72: 37 | AY72: =VLOOKUP($C72,'Assumptions_Asset level'!$A$15:$AE$81,'Assumptions_Asset level'!$C$7,0) -> 0 | BC72: =VLOOKUP($AX72,'Assumptions_Asset level'!$A$15:$AE$81,$AX$33,0)*F72 -> 0 | BD72: 0 | BE72: 0 | BF72: 0 | BG72: 0 | BH72: 0 | BI72: 0 | BJ72: 0 | BK72: 0 | BL72: 0 | BM72: 0 | BN72: 0 | BO72: 0 | BP72: 0 | BQ72: 0 | BR72: 0 | BU72: 37 | BV72: =VLOOKUP($C72,'Assumptions_Asset level'!$A$15:$AE$81,'Assumptions_Asset level'!$C$7,0) -> 0 | BX72: 0 | CA72: =VLOOKUP($BU72,'Assumptions_Asset level'!$A$15:$AE$81,$BU$33,0)*F72 -> 0 | CB72: 0 | CC72: 0 | CD72: 0 | CE72: 0 | CF72: 0 | CG72: 0 | CH72: 0 | CI72: 0 | CJ72: 0 | CK72: 0 | CL72: 0 | CM72: 0 | CN72: 0 | CO72: 0 | CP72: 0 | CR72: 37 | CS72: =VLOOKUP($C72,'Assumptions_Asset level'!$A$15:$AE$81,'Assumptions_Asset level'!$C$7,0) -> 0 | CW72: 0 | CX72: 0 | CY72: 0 | CZ72: 0 | DA72: 0 | DB72: 0 | DC72: 0 | DD72: 0 | DE72: 0 | DF72: 0 | DG72: 0 | DH72: 0 | DI72: 0 | DJ72: 0 | DK72: 0 | DL72: 0
C73: 23 | D73: =VLOOKUP($C73,'Assumptions_Asset level'!$A$15:$AE$81,'Assumptions_Asset level'!$C$7,0) -> 0 | F73: =IF(VLOOKUP($C73,'Assumptions_Asset level'!$A$15:$AO$81,'Assumptions_Asset level'!$Y$7,0)="x",1,0) -> 0 | H73: =VLOOKUP($C73,'Assumptions_Asset level'!$A$15:$AE$81,$C$33,0)*$F73 -> 0 | I73: 0 | J73: =IF(I73>J1291,I73*(1+J$4),MIN(I73*(1+J$21),J1291)) -> 0 | K73: 0 | L73: 0 | M73: 0 | N73: 0 | O73: 0 | P73: 0 | Q73: 0 | R73: 0 | S73: 0 | T73: 0 | U73: 0 | V73: 0 | W73: 0 | Z73: 23 | AA73: =VLOOKUP($Z73,'Assumptions_Asset level'!$A$15:$AE$81,'Assumptions_Asset level'!$C$7,0) -> 0 | AC73: =VLOOKUP($Z73,'Assumptions_Asset level'!$A$15:$AO$80,$Z$33,0) -> 0 | AF73: ='Vacancy & sales module'!L990 -> 0 | AG73: ='Vacancy & sales module'!M990 -> 0 | AH73: ='Vacancy & sales module'!N990 -> 0 | AI73: ='Vacancy & sales module'!O990 -> 0 | AJ73: ='Vacancy & sales module'!P990 -> 0 | AK73: ='Vacancy & sales module'!Q990 -> 0 | AL73: ='Vacancy & sales module'!R990 -> 0 | AM73: ='Vacancy & sales module'!S990 -> 0 | AN73: ='Vacancy & sales module'!T990 -> 0 | AO73: ='Vacancy & sales module'!U990 -> 0 | AP73: ='Vacancy & sales module'!V990 -> 0 | AQ73: ='Vacancy & sales module'!W990 -> 0 | AR73: ='Vacancy & sales module'!X990 -> 0 | AS73: ='Vacancy & sales module'!Y990 -> 0 | AT73: ='Vacancy & sales module'!Z990 -> 0 | AU73: ='Vacancy & sales module'!AA990 -> 0 | AX73: 23 | AY73: =VLOOKUP($C73,'Assumptions_Asset level'!$A$15:$AE$81,'Assumptions_Asset level'!$C$7,0) -> 0 | BC73: =VLOOKUP($AX73,'Assumptions_Asset level'!$A$15:$AE$81,$AX$33,0)*F73 -> 0 | BD73: 0 | BE73: 0 | BF73: 0 | BG73: 0 | BH73: 0 | BI73: 0 | BJ73: 0 | BK73: 0 | BL73: 0 | BM73: 0 | BN73: 0 | BO73: 0 | BP73: 0 | BQ73: 0 | BR73: 0 | BU73: 23 | BV73: =VLOOKUP($C73,'Assumptions_Asset level'!$A$15:$AE$81,'Assumptions_Asset level'!$C$7,0) -> 0 | BX73: 0 | CA73: =VLOOKUP($BU73,'Assumptions_Asset level'!$A$15:$AE$81,$BU$33,0)*F73 -> 0 | CB73: 0 | CC73: 0 | CD73: 0 | CE73: 0 | CF73: 0 | CG73: 0 | CH73: 0 | CI73: 0 | CJ73: 0 | CK73: 0 | CL73: 0 | CM73: 0 | CN73: 0 | CO73: 0 | CP73: 0 | CR73: 23 | CS73: =VLOOKUP($C73,'Assumptions_Asset level'!$A$15:$AE$81,'Assumptions_Asset level'!$C$7,0) -> 0 | CW73: 0 | CX73: 0 | CY73: 0 | CZ73: 0 | DA73: 0 | DB73: 0 | DC73: 0 | DD73: 0 | DE73: 0 | DF73: 0 | DG73: 0 | DH73: 0 | DI73: 0 | DJ73: 0 | DK73: 0 | DL73: 0
C74: 19 | D74: =VLOOKUP($C74,'Assumptions_Asset level'!$A$15:$AE$81,'Assumptions_Asset level'!$C$7,0) -> 0 | F74: =IF(VLOOKUP($C74,'Assumptions_Asset level'!$A$15:$AO$81,'Assumptions_Asset level'!$Y$7,0)="x",1,0) -> 0 | H74: =VLOOKUP($C74,'Assumptions_Asset level'!$A$15:$AE$81,$C$33,0)*$F74 -> 0 | I74: 0 | J74: =IF(I74>J1292,I74*(1+J$4),MIN(I74*(1+J$21),J1292)) -> 0 | K74: 0 | L74: 0 | M74: 0 | N74: 0 | O74: 0 | P74: 0 | Q74: 0 | R74: 0 | S74: 0 | T74: 0 | U74: 0 | V74: 0 | W74: 0 | Z74: 19 | AA74: =VLOOKUP($Z74,'Assumptions_Asset level'!$A$15:$AE$81,'Assumptions_Asset level'!$C$7,0) -> 0 | AC74: =VLOOKUP($Z74,'Assumptions_Asset level'!$A$15:$AO$80,$Z$33,0) -> 0 | AF74: ='Vacancy & sales module'!L991 -> 0 | AG74: ='Vacancy & sales module'!M991 -> 0 | AH74: ='Vacancy & sales module'!N991 -> 0 | AI74: ='Vacancy & sales module'!O991 -> 0 | AJ74: ='Vacancy & sales module'!P991 -> 0 | AK74: ='Vacancy & sales module'!Q991 -> 0 | AL74: ='Vacancy & sales module'!R991 -> 0 | AM74: ='Vacancy & sales module'!S991 -> 0 | AN74: ='Vacancy & sales module'!T991 -> 0 | AO74: ='Vacancy & sales module'!U991 -> 0 | AP74: ='Vacancy & sales module'!V991 -> 0 | AQ74: ='Vacancy & sales module'!W991 -> 0 | AR74: ='Vacancy & sales module'!X991 -> 0 | AS74: ='Vacancy & sales module'!Y991 -> 0 | AT74: ='Vacancy & sales module'!Z991 -> 0 | AU74: ='Vacancy & sales module'!AA991 -> 0 | AX74: 19 | AY74: =VLOOKUP($C74,'Assumptions_Asset level'!$A$15:$AE$81,'Assumptions_Asset level'!$C$7,0) -> 0 | BC74: =VLOOKUP($AX74,'Assumptions_Asset level'!$A$15:$AE$81,$AX$33,0)*F74 -> 0 | BD74: 0 | BE74: 0 | BF74: 0 | BG74: 0 | BH74: 0 | BI74: 0 | BJ74: 0 | BK74: 0 | BL74: 0 | BM74: 0 | BN74: 0 | BO74: 0 | BP74: 0 | BQ74: 0 | BR74: 0 | BU74: 19 | BV74: =VLOOKUP($C74,'Assumptions_Asset level'!$A$15:$AE$81,'Assumptions_Asset level'!$C$7,0) -> 0 | BX74: 0 | CA74: =VLOOKUP($BU74,'Assumptions_Asset level'!$A$15:$AE$81,$BU$33,0)*F74 -> 0 | CB74: 0 | CC74: 0 | CD74: 0 | CE74: 0 | CF74: 0 | CG74: 0 | CH74: 0 | CI74: 0 | CJ74: 0 | CK74: 0 | CL74: 0 | CM74: 0 | CN74: 0 | CO74: 0 | CP74: 0 | CR74: 19 | CS74: =VLOOKUP($C74,'Assumptions_Asset level'!$A$15:$AE$81,'Assumptions_Asset level'!$C$7,0) -> 0 | CW74: 0 | CX74: 0 | CY74: 0 | CZ74: 0 | DA74: 0 | DB74: 0 | DC74: 0 | DD74: 0 | DE74: 0 | DF74: 0 | DG74: 0 | DH74: 0 | DI74: 0 | DJ74: 0 | DK74: 0 | DL74: 0
C75: 36 | D75: =VLOOKUP($C75,'Assumptions_Asset level'!$A$15:$AE$81,'Assumptions_Asset level'!$C$7,0) -> 0 | F75: =IF(VLOOKUP($C75,'Assumptions_Asset level'!$A$15:$AO$81,'Assumptions_Asset level'!$Y$7,0)="x",1,0) -> 0 | H75: =VLOOKUP($C75,'Assumptions_Asset level'!$A$15:$AE$81,$C$33,0)*$F75 -> 0 | I75: 0 | J75: =IF(I75>J1293,I75*(1+J$4),MIN(I75*(1+J$21),J1293)) -> 0 | K75: 0 | L75: 0 | M75: 0 | N75: 0 | O75: 0 | P75: 0 | Q75: 0 | R75: 0 | S75: 0 | T75: 0 | U75: 0 | V75: 0 | W75: 0 | Z75: 36 | AA75: =VLOOKUP($Z75,'Assumptions_Asset level'!$A$15:$AE$81,'Assumptions_Asset level'!$C$7,0) -> 0 | AC75: =VLOOKUP($Z75,'Assumptions_Asset level'!$A$15:$AO$80,$Z$33,0) -> 0 | AF75: ='Vacancy & sales module'!L992 -> 0 | AG75: ='Vacancy & sales module'!M992 -> 0 | AH75: ='Vacancy & sales module'!N992 -> 0 | AI75: ='Vacancy & sales module'!O992 -> 0 | AJ75: ='Vacancy & sales module'!P992 -> 0 | AK75: ='Vacancy & sales module'!Q992 -> 0 | AL75: ='Vacancy & sales module'!R992 -> 0 | AM75: ='Vacancy & sales module'!S992 -> 0 | AN75: ='Vacancy & sales module'!T992 -> 0 | AO75: ='Vacancy & sales module'!U992 -> 0 | AP75: ='Vacancy & sales module'!V992 -> 0 | AQ75: ='Vacancy & sales module'!W992 -> 0 | AR75: ='Vacancy & sales module'!X992 -> 0 | AS75: ='Vacancy & sales module'!Y992 -> 0 | AT75: ='Vacancy & sales module'!Z992 -> 0 | AU75: ='Vacancy & sales module'!AA992 -> 0 | AX75: 36 | AY75: =VLOOKUP($C75,'Assumptions_Asset level'!$A$15:$AE$81,'Assumptions_Asset level'!$C$7,0) -> 0 | BC75: =VLOOKUP($AX75,'Assumptions_Asset level'!$A$15:$AE$81,$AX$33,0)*F75 -> 0 | BD75: 0 | BE75: 0 | BF75: 0 | BG75: 0 | BH75: 0 | BI75: 0 | BJ75: 0 | BK75: 0 | BL75: 0 | BM75: 0 | BN75: 0 | BO75: 0 | BP75: 0 | BQ75: 0 | BR75: 0 | BU75: 36 | BV75: =VLOOKUP($C75,'Assumptions_Asset level'!$A$15:$AE$81,'Assumptions_Asset level'!$C$7,0) -> 0 | BX75: 0 | CA75: =VLOOKUP($BU75,'Assumptions_Asset level'!$A$15:$AE$81,$BU$33,0)*F75 -> 0 | CB75: 0 | CC75: 0 | CD75: 0 | CE75: 0 | CF75: 0 | CG75: 0 | CH75: 0 | CI75: 0 | CJ75: 0 | CK75: 0 | CL75: 0 | CM75: 0 | CN75: 0 | CO75: 0 | CP75: 0 | CR75: 36 | CS75: =VLOOKUP($C75,'Assumptions_Asset level'!$A$15:$AE$81,'Assumptions_Asset level'!$C$7,0) -> 0 | CW75: 0 | CX75: 0 | CY75: 0 | CZ75: 0 | DA75: 0 | DB75: 0 | DC75: 0 | DD75: 0 | DE75: 0 | DF75: 0 | DG75: 0 | DH75: 0 | DI75: 0 | DJ75: 0 | DK75: 0 | DL75: 0
C76: 17 | D76: =VLOOKUP($C76,'Assumptions_Asset level'!$A$15:$AE$81,'Assumptions_Asset level'!$C$7,0) -> 0 | F76: =IF(VLOOKUP($C76,'Assumptions_Asset level'!$A$15:$AO$81,'Assumptions_Asset level'!$Y$7,0)="x",1,0) -> 0 | H76: =VLOOKUP($C76,'Assumptions_Asset level'!$A$15:$AE$81,$C$33,0)*$F76 -> 0 | I76: 0 | J76: =IF(I76>J1294,I76*(1+J$4),MIN(I76*(1+J$21),J1294)) -> 0 | K76: 0 | L76: 0 | M76: 0 | N76: 0 | O76: 0 | P76: 0 | Q76: 0 | R76: 0 | S76: 0 | T76: 0 | U76: 0 | V76: 0 | W76: 0 | Z76: 17 | AA76: =VLOOKUP($Z76,'Assumptions_Asset level'!$A$15:$AE$81,'Assumptions_Asset level'!$C$7,0) -> 0 | AC76: =VLOOKUP($Z76,'Assumptions_Asset level'!$A$15:$AO$80,$Z$33,0) -> 0 | AF76: ='Vacancy & sales module'!L993 -> 0 | AG76: ='Vacancy & sales module'!M993 -> 0 | AH76: ='Vacancy & sales module'!N993 -> 0 | AI76: ='Vacancy & sales module'!O993 -> 0 | AJ76: ='Vacancy & sales module'!P993 -> 0 | AK76: ='Vacancy & sales module'!Q993 -> 0 | AL76: ='Vacancy & sales module'!R993 -> 0 | AM76: ='Vacancy & sales module'!S993 -> 0 | AN76: ='Vacancy & sales module'!T993 -> 0 | AO76: ='Vacancy & sales module'!U993 -> 0 | AP76: ='Vacancy & sales module'!V993 -> 0 | AQ76: ='Vacancy & sales module'!W993 -> 0 | AR76: ='Vacancy & sales module'!X993 -> 0 | AS76: ='Vacancy & sales module'!Y993 -> 0 | AT76: ='Vacancy & sales module'!Z993 -> 0 | AU76: ='Vacancy & sales module'!AA993 -> 0 | AX76: 17 | AY76: =VLOOKUP($C76,'Assumptions_Asset level'!$A$15:$AE$81,'Assumptions_Asset level'!$C$7,0) -> 0 | BC76: =VLOOKUP($AX76,'Assumptions_Asset level'!$A$15:$AE$81,$AX$33,0)*F76 -> 0 | BD76: 0 | BE76: 0 | BF76: 0 | BG76: 0 | BH76: 0 | BI76: 0 | BJ76: 0 | BK76: 0 | BL76: 0 | BM76: 0 | BN76: 0 | BO76: 0 | BP76: 0 | BQ76: 0 | BR76: 0 | BU76: 17 | BV76: =VLOOKUP($C76,'Assumptions_Asset level'!$A$15:$AE$81,'Assumptions_Asset level'!$C$7,0) -> 0 | BX76: 0 | CA76: =VLOOKUP($BU76,'Assumptions_Asset level'!$A$15:$AE$81,$BU$33,0)*F76 -> 0 | CB76: 0 | CC76: 0 | CD76: 0 | CE76: 0 | CF76: 0 | CG76: 0 | CH76: 0 | CI76: 0 | CJ76: 0 | CK76: 0 | CL76: 0 | CM76: 0 | CN76: 0 | CO76: 0 | CP76: 0 | CR76: 17 | CS76: =VLOOKUP($C76,'Assumptions_Asset level'!$A$15:$AE$81,'Assumptions_Asset level'!$C$7,0) -> 0 | CW76: 0 | CX76: 0 | CY76: 0 | CZ76: 0 | DA76: 0 | DB76: 0 | DC76: 0 | DD76: 0 | DE76: 0 | DF76: 0 | DG76: 0 | DH76: 0 | DI76: 0 | DJ76: 0 | DK76: 0 | DL76: 0
C77: 95 | D77: =VLOOKUP($C77,'Assumptions_Asset level'!$A$15:$AE$81,'Assumptions_Asset level'!$C$7,0) -> 0 | F77: =IF(VLOOKUP($C77,'Assumptions_Asset level'!$A$15:$AO$81,'Assumptions_Asset level'!$Y$7,0)="x",1,0) -> 0 | H77: =VLOOKUP($C77,'Assumptions_Asset level'!$A$15:$AE$81,$C$33,0)*$F77 -> 0 | I77: 0 | J77: =IF(I77>J1295,I77*(1+J$4),MIN(I77*(1+J$21),J1295)) -> 0 | K77: 0 | L77: 0 | M77: 0 | N77: 0 | O77: 0 | P77: 0 | Q77: 0 | R77: 0 | S77: 0 | T77: 0 | U77: 0 | V77: 0 | W77: 0 | Z77: 95 | AA77: =VLOOKUP($Z77,'Assumptions_Asset level'!$A$15:$AE$81,'Assumptions_Asset level'!$C$7,0) -> 0 | AC77: =VLOOKUP($Z77,'Assumptions_Asset level'!$A$15:$AO$80,$Z$33,0) -> 0 | AF77: ='Vacancy & sales module'!L994 -> 0 | AG77: ='Vacancy & sales module'!M994 -> 0 | AH77: ='Vacancy & sales module'!N994 -> 0 | AI77: ='Vacancy & sales module'!O994 -> 0 | AJ77: ='Vacancy & sales module'!P994 -> 0 | AK77: ='Vacancy & sales module'!Q994 -> 0 | AL77: ='Vacancy & sales module'!R994 -> 0 | AM77: ='Vacancy & sales module'!S994 -> 0 | AN77: ='Vacancy & sales module'!T994 -> 0 | AO77: ='Vacancy & sales module'!U994 -> 0 | AP77: ='Vacancy & sales module'!V994 -> 0 | AQ77: ='Vacancy & sales module'!W994 -> 0 | AR77: ='Vacancy & sales module'!X994 -> 0 | AS77: ='Vacancy & sales module'!Y994 -> 0 | AT77: ='Vacancy & sales module'!Z994 -> 0 | AU77: ='Vacancy & sales module'!AA994 -> 0 | AX77: 95 | AY77: =VLOOKUP($C77,'Assumptions_Asset level'!$A$15:$AE$81,'Assumptions_Asset level'!$C$7,0) -> 0 | BC77: =VLOOKUP($AX77,'Assumptions_Asset level'!$A$15:$AE$81,$AX$33,0)*F77 -> 0 | BD77: 0 | BE77: 0 | BF77: 0 | BG77: 0 | BH77: 0 | BI77: 0 | BJ77: 0 | BK77: 0 | BL77: 0 | BM77: 0 | BN77: 0 | BO77: 0 | BP77: 0 | BQ77: 0 | BR77: 0 | BU77: 95 | BV77: =VLOOKUP($C77,'Assumptions_Asset level'!$A$15:$AE$81,'Assumptions_Asset level'!$C$7,0) -> 0 | BX77: 0 | CA77: =VLOOKUP($BU77,'Assumptions_Asset level'!$A$15:$AE$81,$BU$33,0)*F77 -> 0 | CB77: 0 | CC77: 0 | CD77: 0 | CE77: 0 | CF77: 0 | CG77: 0 | CH77: 0 | CI77: 0 | CJ77: 0 | CK77: 0 | CL77: 0 | CM77: 0 | CN77: 0 | CO77: 0 | CP77: 0 | CR77: 95 | CS77: =VLOOKUP($C77,'Assumptions_Asset level'!$A$15:$AE$81,'Assumptions_Asset level'!$C$7,0) -> 0 | CW77: 0 | CX77: 0 | CY77: 0 | CZ77: 0 | DA77: 0 | DB77: 0 | DC77: 0 | DD77: 0 | DE77: 0 | DF77: 0 | DG77: 0 | DH77: 0 | DI77: 0 | DJ77: 0 | DK77: 0 | DL77: 0
C78: 128 | D78: =VLOOKUP($C78,'Assumptions_Asset level'!$A$15:$AE$81,'Assumptions_Asset level'!$C$7,0) -> 0 | F78: =IF(VLOOKUP($C78,'Assumptions_Asset level'!$A$15:$AO$81,'Assumptions_Asset level'!$Y$7,0)="x",1,0) -> 0 | H78: =VLOOKUP($C78,'Assumptions_Asset level'!$A$15:$AE$81,$C$33,0)*$F78 -> 0 | I78: 0 | J78: =IF(I78>J1296,I78*(1+J$4),MIN(I78*(1+J$21),J1296)) -> 0 | K78: 0 | L78: 0 | M78: 0 | N78: 0 | O78: 0 | P78: 0 | Q78: 0 | R78: 0 | S78: 0 | T78: 0 | U78: 0 | V78: 0 | W78: 0 | Z78: 128 | AA78: =VLOOKUP($Z78,'Assumptions_Asset level'!$A$15:$AE$81,'Assumptions_Asset level'!$C$7,0) -> 0 | AC78: =VLOOKUP($Z78,'Assumptions_Asset level'!$A$15:$AO$80,$Z$33,0) -> 0 | AF78: ='Vacancy & sales module'!L995 -> 0 | AG78: ='Vacancy & sales module'!M995 -> 0 | AH78: ='Vacancy & sales module'!N995 -> 0 | AI78: ='Vacancy & sales module'!O995 -> 0 | AJ78: ='Vacancy & sales module'!P995 -> 0 | AK78: ='Vacancy & sales module'!Q995 -> 0 | AL78: ='Vacancy & sales module'!R995 -> 0 | AM78: ='Vacancy & sales module'!S995 -> 0 | AN78: ='Vacancy & sales module'!T995 -> 0 | AO78: ='Vacancy & sales module'!U995 -> 0 | AP78: ='Vacancy & sales module'!V995 -> 0 | AQ78: ='Vacancy & sales module'!W995 -> 0 | AR78: ='Vacancy & sales module'!X995 -> 0 | AS78: ='Vacancy & sales module'!Y995 -> 0 | AT78: ='Vacancy & sales module'!Z995 -> 0 | AU78: ='Vacancy & sales module'!AA995 -> 0 | AX78: 128 | AY78: =VLOOKUP($C78,'Assumptions_Asset level'!$A$15:$AE$81,'Assumptions_Asset level'!$C$7,0) -> 0 | BC78: =VLOOKUP($AX78,'Assumptions_Asset level'!$A$15:$AE$81,$AX$33,0)*F78 -> 0 | BD78: 0 | BE78: 0 | BF78: 0 | BG78: 0 | BH78: 0 | BI78: 0 | BJ78: 0 | BK78: 0 | BL78: 0 | BM78: 0 | BN78: 0 | BO78: 0 | BP78: 0 | BQ78: 0 | BR78: 0 | BU78: 128 | BV78: =VLOOKUP($C78,'Assumptions_Asset level'!$A$15:$AE$81,'Assumptions_Asset level'!$C$7,0) -> 0 | BX78: 0 | CA78: =VLOOKUP($BU78,'Assumptions_Asset level'!$A$15:$AE$81,$BU$33,0)*F78 -> 0 | CB78: 0 | CC78: 0 | CD78: 0 | CE78: 0 | CF78: 0 | CG78: 0 | CH78: 0 | CI78: 0 | CJ78: 0 | CK78: 0 | CL78: 0 | CM78: 0 | CN78: 0 | CO78: 0 | CP78: 0 | CR78: 128 | CS78: =VLOOKUP($C78,'Assumptions_Asset level'!$A$15:$AE$81,'Assumptions_Asset level'!$C$7,0) -> 0 | CW78: 0 | CX78: 0 | CY78: 0 | CZ78: 0 | DA78: 0 | DB78: 0 | DC78: 0 | DD78: 0 | DE78: 0 | DF78: 0 | DG78: 0 | DH78: 0 | DI78: 0 | DJ78: 0 | DK78: 0 | DL78: 0
C79: 137 | D79: =VLOOKUP($C79,'Assumptions_Asset level'!$A$15:$AE$81,'Assumptions_Asset level'!$C$7,0) -> 0 | F79: =IF(VLOOKUP($C79,'Assumptions_Asset level'!$A$15:$AO$81,'Assumptions_Asset level'!$Y$7,0)="x",1,0) -> 0 | H79: =VLOOKUP($C79,'Assumptions_Asset level'!$A$15:$AE$81,$C$33,0)*$F79 -> 0 | I79: 0 | J79: =IF(I79>J1297,I79*(1+J$4),MIN(I79*(1+J$21),J1297)) -> 0 | K79: 0 | L79: 0 | M79: 0 | N79: 0 | O79: 0 | P79: 0 | Q79: 0 | R79: 0 | S79: 0 | T79: 0 | U79: 0 | V79: 0 | W79: 0 | Z79: 137 | AA79: =VLOOKUP($Z79,'Assumptions_Asset level'!$A$15:$AE$81,'Assumptions_Asset level'!$C$7,0) -> 0 | AC79: =VLOOKUP($Z79,'Assumptions_Asset level'!$A$15:$AO$80,$Z$33,0) -> 0 | AF79: ='Vacancy & sales module'!L996 -> 0 | AG79: ='Vacancy & sales module'!M996 -> 0 | AH79: ='Vacancy & sales module'!N996 -> 0 | AI79: ='Vacancy & sales module'!O996 -> 0 | AJ79: ='Vacancy & sales module'!P996 -> 0 | AK79: ='Vacancy & sales module'!Q996 -> 0 | AL79: ='Vacancy & sales module'!R996 -> 0 | AM79: ='Vacancy & sales module'!S996 -> 0 | AN79: ='Vacancy & sales module'!T996 -> 0 | AO79: ='Vacancy & sales module'!U996 -> 0 | AP79: ='Vacancy & sales module'!V996 -> 0 | AQ79: ='Vacancy & sales module'!W996 -> 0 | AR79: ='Vacancy & sales module'!X996 -> 0 | AS79: ='Vacancy & sales module'!Y996 -> 0 | AT79: ='Vacancy & sales module'!Z996 -> 0 | AU79: ='Vacancy & sales module'!AA996 -> 0 | AX79: 137 | AY79: =VLOOKUP($C79,'Assumptions_Asset level'!$A$15:$AE$81,'Assumptions_Asset level'!$C$7,0) -> 0 | BC79: =VLOOKUP($AX79,'Assumptions_Asset level'!$A$15:$AE$81,$AX$33,0)*F79 -> 0 | BD79: 0 | BE79: 0 | BF79: 0 | BG79: 0 | BH79: 0 | BI79: 0 | BJ79: 0 | BK79: 0 | BL79: 0 | BM79: 0 | BN79: 0 | BO79: 0 | BP79: 0 | BQ79: 0 | BR79: 0 | BU79: 137 | BV79: =VLOOKUP($C79,'Assumptions_Asset level'!$A$15:$AE$81,'Assumptions_Asset level'!$C$7,0) -> 0 | BX79: 0 | CA79: =VLOOKUP($BU79,'Assumptions_Asset level'!$A$15:$AE$81,$BU$33,0)*F79 -> 0 | CB79: 0 | CC79: 0 | CD79: 0 | CE79: 0 | CF79: 0 | CG79: 0 | CH79: 0 | CI79: 0 | CJ79: 0 | CK79: 0 | CL79: 0 | CM79: 0 | CN79: 0 | CO79: 0 | CP79: 0 | CR79: 137 | CS79: =VLOOKUP($C79,'Assumptions_Asset level'!$A$15:$AE$81,'Assumptions_Asset level'!$C$7,0) -> 0 | CW79: 0 | CX79: 0 | CY79: 0 | CZ79: 0 | DA79: 0 | DB79: 0 | DC79: 0 | DD79: 0 | DE79: 0 | DF79: 0 | DG79: 0 | DH79: 0 | DI79: 0 | DJ79: 0 | DK79: 0 | DL79: 0
C80: 92 | D80: =VLOOKUP($C80,'Assumptions_Asset level'!$A$15:$AE$81,'Assumptions_Asset level'!$C$7,0) -> 0 | F80: =IF(VLOOKUP($C80,'Assumptions_Asset level'!$A$15:$AO$81,'Assumptions_Asset level'!$Y$7,0)="x",1,0) -> 0 | H80: =VLOOKUP($C80,'Assumptions_Asset level'!$A$15:$AE$81,$C$33,0)*$F80 -> 0 | I80: 0 | J80: =IF(I80>J1298,I80*(1+J$4),MIN(I80*(1+J$21),J1298)) -> 0 | K80: 0 | L80: 0 | M80: 0 | N80: 0 | O80: 0 | P80: 0 | Q80: 0 | R80: 0 | S80: 0 | T80: 0 | U80: 0 | V80: 0 | W80: 0 | Z80: 92 | AA80: =VLOOKUP($Z80,'Assumptions_Asset level'!$A$15:$AE$81,'Assumptions_Asset level'!$C$7,0) -> 0 | AC80: =VLOOKUP($Z80,'Assumptions_Asset level'!$A$15:$AO$80,$Z$33,0) -> 0 | AF80: ='Vacancy & sales module'!L997 -> 0 | AG80: ='Vacancy & sales module'!M997 -> 0 | AH80: ='Vacancy & sales module'!N997 -> 0 | AI80: ='Vacancy & sales module'!O997 -> 0 | AJ80: ='Vacancy & sales module'!P997 -> 0 | AK80: ='Vacancy & sales module'!Q997 -> 0 | AL80: ='Vacancy & sales module'!R997 -> 0 | AM80: ='Vacancy & sales module'!S997 -> 0 | AN80: ='Vacancy & sales module'!T997 -> 0 | AO80: ='Vacancy & sales module'!U997 -> 0 | AP80: ='Vacancy & sales module'!V997 -> 0 | AQ80: ='Vacancy & sales module'!W997 -> 0 | AR80: ='Vacancy & sales module'!X997 -> 0 | AS80: ='Vacancy & sales module'!Y997 -> 0 | AT80: ='Vacancy & sales module'!Z997 -> 0 | AU80: ='Vacancy & sales module'!AA997 -> 0 | AX80: 92 | AY80: =VLOOKUP($C80,'Assumptions_Asset level'!$A$15:$AE$81,'Assumptions_Asset level'!$C$7,0) -> 0 | BC80: =VLOOKUP($AX80,'Assumptions_Asset level'!$A$15:$AE$81,$AX$33,0)*F80 -> 0 | BD80: 0 | BE80: 0 | BF80: 0 | BG80: 0 | BH80: 0 | BI80: 0 | BJ80: 0 | BK80: 0 | BL80: 0 | BM80: 0 | BN80: 0 | BO80: 0 | BP80: 0 | BQ80: 0 | BR80: 0 | BU80: 92 | BV80: =VLOOKUP($C80,'Assumptions_Asset level'!$A$15:$AE$81,'Assumptions_Asset level'!$C$7,0) -> 0 | BX80: 0 | CA80: =VLOOKUP($BU80,'Assumptions_Asset level'!$A$15:$AE$81,$BU$33,0)*F80 -> 0 | CB80: 0 | CC80: 0 | CD80: 0 | CE80: 0 | CF80: 0 | CG80: 0 | CH80: 0 | CI80: 0 | CJ80: 0 | CK80: 0 | CL80: 0 | CM80: 0 | CN80: 0 | CO80: 0 | CP80: 0 | CR80: 92 | CS80: =VLOOKUP($C80,'Assumptions_Asset level'!$A$15:$AE$81,'Assumptions_Asset level'!$C$7,0) -> 0 | CW80: 0 | CX80: 0 | CY80: 0 | CZ80: 0 | DA80: 0 | DB80: 0 | DC80: 0 | DD80: 0 | DE80: 0 | DF80: 0 | DG80: 0 | DH80: 0 | DI80: 0 | DJ80: 0 | DK80: 0 | DL80: 0
C81: 34 | D81: =VLOOKUP($C81,'Assumptions_Asset level'!$A$15:$AE$81,'Assumptions_Asset level'!$C$7,0) -> 0 | F81: =IF(VLOOKUP($C81,'Assumptions_Asset level'!$A$15:$AO$81,'Assumptions_Asset level'!$Y$7,0)="x",1,0) -> 0 | H81: =VLOOKUP($C81,'Assumptions_Asset level'!$A$15:$AE$81,$C$33,0)*$F81 -> 0 | I81: 0 | J81: =IF(I81>J1299,I81*(1+J$4),MIN(I81*(1+J$21),J1299)) -> 0 | K81: 0 | L81: 0 | M81: 0 | N81: 0 | O81: 0 | P81: 0 | Q81: 0 | R81: 0 | S81: 0 | T81: 0 | U81: 0 | V81: 0 | W81: 0 | Z81: 34 | AA81: =VLOOKUP($Z81,'Assumptions_Asset level'!$A$15:$AE$81,'Assumptions_Asset level'!$C$7,0) -> 0 | AC81: =VLOOKUP($Z81,'Assumptions_Asset level'!$A$15:$AO$80,$Z$33,0) -> 0 | AF81: ='Vacancy & sales module'!L998 -> 0 | AG81: ='Vacancy & sales module'!M998 -> 0 | AH81: ='Vacancy & sales module'!N998 -> 0 | AI81: ='Vacancy & sales module'!O998 -> 0 | AJ81: ='Vacancy & sales module'!P998 -> 0 | AK81: ='Vacancy & sales module'!Q998 -> 0 | AL81: ='Vacancy & sales module'!R998 -> 0 | AM81: ='Vacancy & sales module'!S998 -> 0 | AN81: ='Vacancy & sales module'!T998 -> 0 | AO81: ='Vacancy & sales module'!U998 -> 0 | AP81: ='Vacancy & sales module'!V998 -> 0 | AQ81: ='Vacancy & sales module'!W998 -> 0 | AR81: ='Vacancy & sales module'!X998 -> 0 | AS81: ='Vacancy & sales module'!Y998 -> 0 | AT81: ='Vacancy & sales module'!Z998 -> 0 | AU81: ='Vacancy & sales module'!AA998 -> 0 | AX81: 34 | AY81: =VLOOKUP($C81,'Assumptions_Asset level'!$A$15:$AE$81,'Assumptions_Asset level'!$C$7,0) -> 0 | BC81: =VLOOKUP($AX81,'Assumptions_Asset level'!$A$15:$AE$81,$AX$33,0)*F81 -> 0 | BD81: 0 | BE81: 0 | BF81: 0 | BG81: 0 | BH81: 0 | BI81: 0 | BJ81: 0 | BK81: 0 | BL81: 0 | BM81: 0 | BN81: 0 | BO81: 0 | BP81: 0 | BQ81: 0 | BR81: 0 | BU81: 34 | BV81: =VLOOKUP($C81,'Assumptions_Asset level'!$A$15:$AE$81,'Assumptions_Asset level'!$C$7,0) -> 0 | BX81: 0 | CA81: =VLOOKUP($BU81,'Assumptions_Asset level'!$A$15:$AE$81,$BU$33,0)*F81 -> 0 | CB81: 0 | CC81: 0 | CD81: 0 | CE81: 0 | CF81: 0 | CG81: 0 | CH81: 0 | CI81: 0 | CJ81: 0 | CK81: 0 | CL81: 0 | CM81: 0 | CN81: 0 | CO81: 0 | CP81: 0 | CR81: 34 | CS81: =VLOOKUP($C81,'Assumptions_Asset level'!$A$15:$AE$81,'Assumptions_Asset level'!$C$7,0) -> 0 | CW81: 0 | CX81: 0 | CY81: 0 | CZ81: 0 | DA81: 0 | DB81: 0 | DC81: 0 | DD81: 0 | DE81: 0 | DF81: 0 | DG81: 0 | DH81: 0 | DI81: 0 | DJ81: 0 | DK81: 0 | DL81: 0
C82: 33 | D82: =VLOOKUP($C82,'Assumptions_Asset level'!$A$15:$AE$81,'Assumptions_Asset level'!$C$7,0) -> 0 | F82: =IF(VLOOKUP($C82,'Assumptions_Asset level'!$A$15:$AO$81,'Assumptions_Asset level'!$Y$7,0)="x",1,0) -> 0 | H82: =VLOOKUP($C82,'Assumptions_Asset level'!$A$15:$AE$81,$C$33,0)*$F82 -> 0 | I82: 0 | J82: =IF(I82>J1300,I82*(1+J$4),MIN(I82*(1+J$21),J1300)) -> 0 | K82: 0 | L82: 0 | M82: 0 | N82: 0 | O82: 0 | P82: 0 | Q82: 0 | R82: 0 | S82: 0 | T82: 0 | U82: 0 | V82: 0 | W82: 0 | Z82: 33 | AA82: =VLOOKUP($Z82,'Assumptions_Asset level'!$A$15:$AE$81,'Assumptions_Asset level'!$C$7,0) -> 0 | AC82: =VLOOKUP($Z82,'Assumptions_Asset level'!$A$15:$AO$80,$Z$33,0) -> 0 | AF82: ='Vacancy & sales module'!L999 -> 0 | AG82: ='Vacancy & sales module'!M999 -> 0 | AH82: ='Vacancy & sales module'!N999 -> 0 | AI82: ='Vacancy & sales module'!O999 -> 0 | AJ82: ='Vacancy & sales module'!P999 -> 0 | AK82: ='Vacancy & sales module'!Q999 -> 0 | AL82: ='Vacancy & sales module'!R999 -> 0 | AM82: ='Vacancy & sales module'!S999 -> 0 | AN82: ='Vacancy & sales module'!T999 -> 0 | AO82: ='Vacancy & sales module'!U999 -> 0 | AP82: ='Vacancy & sales module'!V999 -> 0 | AQ82: ='Vacancy & sales module'!W999 -> 0 | AR82: ='Vacancy & sales module'!X999 -> 0 | AS82: ='Vacancy & sales module'!Y999 -> 0 | AT82: ='Vacancy & sales module'!Z999 -> 0 | AU82: ='Vacancy & sales module'!AA999 -> 0 | AX82: 33 | AY82: =VLOOKUP($C82,'Assumptions_Asset level'!$A$15:$AE$81,'Assumptions_Asset level'!$C$7,0) -> 0 | BC82: =VLOOKUP($AX82,'Assumptions_Asset level'!$A$15:$AE$81,$AX$33,0)*F82 -> 0 | BD82: 0 | BE82: 0 | BF82: 0 | BG82: 0 | BH82: 0 | BI82: 0 | BJ82: 0 | BK82: 0 | BL82: 0 | BM82: 0 | BN82: 0 | BO82: 0 | BP82: 0 | BQ82: 0 | BR82: 0 | BU82: 33 | BV82: =VLOOKUP($C82,'Assumptions_Asset level'!$A$15:$AE$81,'Assumptions_Asset level'!$C$7,0) -> 0 | BX82: 0 | CA82: =VLOOKUP($BU82,'Assumptions_Asset level'!$A$15:$AE$81,$BU$33,0)*F82 -> 0 | CB82: 0 | CC82: 0 | CD82: 0 | CE82: 0 | CF82: 0 | CG82: 0 | CH82: 0 | CI82: 0 | CJ82: 0 | CK82: 0 | CL82: 0 | CM82: 0 | CN82: 0 | CO82: 0 | CP82: 0 | CR82: 33 | CS82: =VLOOKUP($C82,'Assumptions_Asset level'!$A$15:$AE$81,'Assumptions_Asset level'!$C$7,0) -> 0 | CW82: 0 | CX82: 0 | CY82: 0 | CZ82: 0 | DA82: 0 | DB82: 0 | DC82: 0 | DD82: 0 | DE82: 0 | DF82: 0 | DG82: 0 | DH82: 0 | DI82: 0 | DJ82: 0 | DK82: 0 | DL82: 0
C83: 46 | D83: =VLOOKUP($C83,'Assumptions_Asset level'!$A$15:$AE$81,'Assumptions_Asset level'!$C$7,0) -> 0 | F83: =IF(VLOOKUP($C83,'Assumptions_Asset level'!$A$15:$AO$81,'Assumptions_Asset level'!$Y$7,0)="x",1,0) -> 0 | H83: =VLOOKUP($C83,'Assumptions_Asset level'!$A$15:$AE$81,$C$33,0)*$F83 -> 0 | I83: 0 | J83: =IF(I83>J1301,I83*(1+J$4),MIN(I83*(1+J$21),J1301)) -> 0 | K83: 0 | L83: 0 | M83: 0 | N83: 0 | O83: 0 | P83: 0 | Q83: 0 | R83: 0 | S83: 0 | T83: 0 | U83: 0 | V83: 0 | W83: 0 | Z83: 46 | AA83: =VLOOKUP($Z83,'Assumptions_Asset level'!$A$15:$AE$81,'Assumptions_Asset level'!$C$7,0) -> 0 | AC83: =VLOOKUP($Z83,'Assumptions_Asset level'!$A$15:$AO$80,$Z$33,0) -> 0 | AF83: ='Vacancy & sales module'!L1000 -> 0 | AG83: ='Vacancy & sales module'!M1000 -> 0 | AH83: ='Vacancy & sales module'!N1000 -> 0 | AI83: ='Vacancy & sales module'!O1000 -> 0 | AJ83: ='Vacancy & sales module'!P1000 -> 0 | AK83: ='Vacancy & sales module'!Q1000 -> 0 | AL83: ='Vacancy & sales module'!R1000 -> 0 | AM83: ='Vacancy & sales module'!S1000 -> 0 | AN83: ='Vacancy & sales module'!T1000 -> 0 | AO83: ='Vacancy & sales module'!U1000 -> 0 | AP83: ='Vacancy & sales module'!V1000 -> 0 | AQ83: ='Vacancy & sales module'!W1000 -> 0 | AR83: ='Vacancy & sales module'!X1000 -> 0 | AS83: ='Vacancy & sales module'!Y1000 -> 0 | AT83: ='Vacancy & sales module'!Z1000 -> 0 | AU83: ='Vacancy & sales module'!AA1000 -> 0 | AX83: 46 | AY83: =VLOOKUP($C83,'Assumptions_Asset level'!$A$15:$AE$81,'Assumptions_Asset level'!$C$7,0) -> 0 | BC83: =VLOOKUP($AX83,'Assumptions_Asset level'!$A$15:$AE$81,$AX$33,0)*F83 -> 0 | BD83: 0 | BE83: 0 | BF83: 0 | BG83: 0 | BH83: 0 | BI83: 0 | BJ83: 0 | BK83: 0 | BL83: 0 | BM83: 0 | BN83: 0 | BO83: 0 | BP83: 0 | BQ83: 0 | BR83: 0 | BU83: 46 | BV83: =VLOOKUP($C83,'Assumptions_Asset level'!$A$15:$AE$81,'Assumptions_Asset level'!$C$7,0) -> 0 | BX83: 0 | CA83: =VLOOKUP($BU83,'Assumptions_Asset level'!$A$15:$AE$81,$BU$33,0)*F83 -> 0 | CB83: 0 | CC83: 0 | CD83: 0 | CE83: 0 | CF83: 0 | CG83: 0 | CH83: 0 | CI83: 0 | CJ83: 0 | CK83: 0 | CL83: 0 | CM83: 0 | CN83: 0 | CO83: 0 | CP83: 0 | CR83: 46 | CS83: =VLOOKUP($C83,'Assumptions_Asset level'!$A$15:$AE$81,'Assumptions_Asset level'!$C$7,0) -> 0 | CW83: 0 | CX83: 0 | CY83: 0 | CZ83: 0 | DA83: 0 | DB83: 0 | DC83: 0 | DD83: 0 | DE83: 0 | DF83: 0 | DG83: 0 | DH83: 0 | DI83: 0 | DJ83: 0 | DK83: 0 | DL83: 0
C84: 50 | D84: =VLOOKUP($C84,'Assumptions_Asset level'!$A$15:$AE$81,'Assumptions_Asset level'!$C$7,0) -> 0 | F84: =IF(VLOOKUP($C84,'Assumptions_Asset level'!$A$15:$AO$81,'Assumptions_Asset level'!$Y$7,0)="x",1,0) -> 0 | H84: =VLOOKUP($C84,'Assumptions_Asset level'!$A$15:$AE$81,$C$33,0)*$F84 -> 0 | I84: 0 | J84: =IF(I84>J1302,I84*(1+J$4),MIN(I84*(1+J$21),J1302)) -> 0 | K84: 0 | L84: 0 | M84: 0 | N84: 0 | O84: 0 | P84: 0 | Q84: 0 | R84: 0 | S84: 0 | T84: 0 | U84: 0 | V84: 0 | W84: 0 | Z84: 50 | AA84: =VLOOKUP($Z84,'Assumptions_Asset level'!$A$15:$AE$81,'Assumptions_Asset level'!$C$7,0) -> 0 | AC84: =VLOOKUP($Z84,'Assumptions_Asset level'!$A$15:$AO$80,$Z$33,0) -> 0 | AF84: ='Vacancy & sales module'!L1001 -> 0 | AG84: ='Vacancy & sales module'!M1001 -> 0 | AH84: ='Vacancy & sales module'!N1001 -> 0 | AI84: ='Vacancy & sales module'!O1001 -> 0 | AJ84: ='Vacancy & sales module'!P1001 -> 0 | AK84: ='Vacancy & sales module'!Q1001 -> 0 | AL84: ='Vacancy & sales module'!R1001 -> 0 | AM84: ='Vacancy & sales module'!S1001 -> 0 | AN84: ='Vacancy & sales module'!T1001 -> 0 | AO84: ='Vacancy & sales module'!U1001 -> 0 | AP84: ='Vacancy & sales module'!V1001 -> 0 | AQ84: ='Vacancy & sales module'!W1001 -> 0 | AR84: ='Vacancy & sales module'!X1001 -> 0 | AS84: ='Vacancy & sales module'!Y1001 -> 0 | AT84: ='Vacancy & sales module'!Z1001 -> 0 | AU84: ='Vacancy & sales module'!AA1001 -> 0 | AX84: 50 | AY84: =VLOOKUP($C84,'Assumptions_Asset level'!$A$15:$AE$81,'Assumptions_Asset level'!$C$7,0) -> 0 | BC84: =VLOOKUP($AX84,'Assumptions_Asset level'!$A$15:$AE$81,$AX$33,0)*F84 -> 0 | BD84: 0 | BE84: 0 | BF84: 0 | BG84: 0 | BH84: 0 | BI84: 0 | BJ84: 0 | BK84: 0 | BL84: 0 | BM84: 0 | BN84: 0 | BO84: 0 | BP84: 0 | BQ84: 0 | BR84: 0 | BU84: 50 | BV84: =VLOOKUP($C84,'Assumptions_Asset level'!$A$15:$AE$81,'Assumptions_Asset level'!$C$7,0) -> 0 | BX84: 0 | CA84: =VLOOKUP($BU84,'Assumptions_Asset level'!$A$15:$AE$81,$BU$33,0)*F84 -> 0 | CB84: 0 | CC84: 0 | CD84: 0 | CE84: 0 | CF84: 0 | CG84: 0 | CH84: 0 | CI84: 0 | CJ84: 0 | CK84: 0 | CL84: 0 | CM84: 0 | CN84: 0 | CO84: 0 | CP84: 0 | CR84: 50 | CS84: =VLOOKUP($C84,'Assumptions_Asset level'!$A$15:$AE$81,'Assumptions_Asset level'!$C$7,0) -> 0 | CW84: 0 | CX84: 0 | CY84: 0 | CZ84: 0 | DA84: 0 | DB84: 0 | DC84: 0 | DD84: 0 | DE84: 0 | DF84: 0 | DG84: 0 | DH84: 0 | DI84: 0 | DJ84: 0 | DK84: 0 | DL84: 0
C85: 90 | D85: =VLOOKUP($C85,'Assumptions_Asset level'!$A$15:$AE$81,'Assumptions_Asset level'!$C$7,0) -> 0 | F85: =IF(VLOOKUP($C85,'Assumptions_Asset level'!$A$15:$AO$81,'Assumptions_Asset level'!$Y$7,0)="x",1,0) -> 0 | H85: =VLOOKUP($C85,'Assumptions_Asset level'!$A$15:$AE$81,$C$33,0)*$F85 -> 0 | I85: 0 | J85: =IF(I85>J1303,I85*(1+J$4),MIN(I85*(1+J$21),J1303)) -> 0 | K85: 0 | L85: 0 | M85: 0 | N85: 0 | O85: 0 | P85: 0 | Q85: 0 | R85: 0 | S85: 0 | T85: 0 | U85: 0 | V85: 0 | W85: 0 | Z85: 90 | AA85: =VLOOKUP($Z85,'Assumptions_Asset level'!$A$15:$AE$81,'Assumptions_Asset level'!$C$7,0) -> 0 | AC85: =VLOOKUP($Z85,'Assumptions_Asset level'!$A$15:$AO$80,$Z$33,0) -> 0 | AF85: ='Vacancy & sales module'!L1002 -> 0 | AG85: ='Vacancy & sales module'!M1002 -> 0 | AH85: ='Vacancy & sales module'!N1002 -> 0 | AI85: ='Vacancy & sales module'!O1002 -> 0 | AJ85: ='Vacancy & sales module'!P1002 -> 0 | AK85: ='Vacancy & sales module'!Q1002 -> 0 | AL85: ='Vacancy & sales module'!R1002 -> 0 | AM85: ='Vacancy & sales module'!S1002 -> 0 | AN85: ='Vacancy & sales module'!T1002 -> 0 | AO85: ='Vacancy & sales module'!U1002 -> 0 | AP85: ='Vacancy & sales module'!V1002 -> 0 | AQ85: ='Vacancy & sales module'!W1002 -> 0 | AR85: ='Vacancy & sales module'!X1002 -> 0 | AS85: ='Vacancy & sales module'!Y1002 -> 0 | AT85: ='Vacancy & sales module'!Z1002 -> 0 | AU85: ='Vacancy & sales module'!AA1002 -> 0 | AX85: 90 | AY85: =VLOOKUP($C85,'Assumptions_Asset level'!$A$15:$AE$81,'Assumptions_Asset level'!$C$7,0) -> 0 | BC85: =VLOOKUP($AX85,'Assumptions_Asset level'!$A$15:$AE$81,$AX$33,0)*F85 -> 0 | BD85: 0 | BE85: 0 | BF85: 0 | BG85: 0 | BH85: 0 | BI85: 0 | BJ85: 0 | BK85: 0 | BL85: 0 | BM85: 0 | BN85: 0 | BO85: 0 | BP85: 0 | BQ85: 0 | BR85: 0 | BU85: 90 | BV85: =VLOOKUP($C85,'Assumptions_Asset level'!$A$15:$AE$81,'Assumptions_Asset level'!$C$7,0) -> 0 | BX85: 0 | CA85: =VLOOKUP($BU85,'Assumptions_Asset level'!$A$15:$AE$81,$BU$33,0)*F85 -> 0 | CB85: 0 | CC85: 0 | CD85: 0 | CE85: 0 | CF85: 0 | CG85: 0 | CH85: 0 | CI85: 0 | CJ85: 0 | CK85: 0 | CL85: 0 | CM85: 0 | CN85: 0 | CO85: 0 | CP85: 0 | CR85: 90 | CS85: =VLOOKUP($C85,'Assumptions_Asset level'!$A$15:$AE$81,'Assumptions_Asset level'!$C$7,0) -> 0 | CW85: 0 | CX85: 0 | CY85: 0 | CZ85: 0 | DA85: 0 | DB85: 0 | DC85: 0 | DD85: 0 | DE85: 0 | DF85: 0 | DG85: 0 | DH85: 0 | DI85: 0 | DJ85: 0 | DK85: 0 | DL85: 0
C86: 52 | D86: =VLOOKUP($C86,'Assumptions_Asset level'!$A$15:$AE$81,'Assumptions_Asset level'!$C$7,0) -> 0 | F86: =IF(VLOOKUP($C86,'Assumptions_Asset level'!$A$15:$AO$81,'Assumptions_Asset level'!$Y$7,0)="x",1,0) -> 0 | H86: =VLOOKUP($C86,'Assumptions_Asset level'!$A$15:$AE$81,$C$33,0)*$F86 -> 0 | I86: 0 | J86: =IF(I86>J1304,I86*(1+J$4),MIN(I86*(1+J$21),J1304)) -> 0 | K86: 0 | L86: 0 | M86: 0 | N86: 0 | O86: 0 | P86: 0 | Q86: 0 | R86: 0 | S86: 0 | T86: 0 | U86: 0 | V86: 0 | W86: 0 | Z86: 52 | AA86: =VLOOKUP($Z86,'Assumptions_Asset level'!$A$15:$AE$81,'Assumptions_Asset level'!$C$7,0) -> 0 | AC86: =VLOOKUP($Z86,'Assumptions_Asset level'!$A$15:$AO$80,$Z$33,0) -> 0 | AF86: ='Vacancy & sales module'!L1003 -> 0 | AG86: ='Vacancy & sales module'!M1003 -> 0 | AH86: ='Vacancy & sales module'!N1003 -> 0 | AI86: ='Vacancy & sales module'!O1003 -> 0 | AJ86: ='Vacancy & sales module'!P1003 -> 0 | AK86: ='Vacancy & sales module'!Q1003 -> 0 | AL86: ='Vacancy & sales module'!R1003 -> 0 | AM86: ='Vacancy & sales module'!S1003 -> 0 | AN86: ='Vacancy & sales module'!T1003 -> 0 | AO86: ='Vacancy & sales module'!U1003 -> 0 | AP86: ='Vacancy & sales module'!V1003 -> 0 | AQ86: ='Vacancy & sales module'!W1003 -> 0 | AR86: ='Vacancy & sales module'!X1003 -> 0 | AS86: ='Vacancy & sales module'!Y1003 -> 0 | AT86: ='Vacancy & sales module'!Z1003 -> 0 | AU86: ='Vacancy & sales module'!AA1003 -> 0 | AX86: 52 | AY86: =VLOOKUP($C86,'Assumptions_Asset level'!$A$15:$AE$81,'Assumptions_Asset level'!$C$7,0) -> 0 | BC86: =VLOOKUP($AX86,'Assumptions_Asset level'!$A$15:$AE$81,$AX$33,0)*F86 -> 0 | BD86: 0 | BE86: 0 | BF86: 0 | BG86: 0 | BH86: 0 | BI86: 0 | BJ86: 0 | BK86: 0 | BL86: 0 | BM86: 0 | BN86: 0 | BO86: 0 | BP86: 0 | BQ86: 0 | BR86: 0 | BU86: 52 | BV86: =VLOOKUP($C86,'Assumptions_Asset level'!$A$15:$AE$81,'Assumptions_Asset level'!$C$7,0) -> 0 | BX86: 0 | CA86: =VLOOKUP($BU86,'Assumptions_Asset level'!$A$15:$AE$81,$BU$33,0)*F86 -> 0 | CB86: 0 | CC86: 0 | CD86: 0 | CE86: 0 | CF86: 0 | CG86: 0 | CH86: 0 | CI86: 0 | CJ86: 0 | CK86: 0 | CL86: 0 | CM86: 0 | CN86: 0 | CO86: 0 | CP86: 0 | CR86: 52 | CS86: =VLOOKUP($C86,'Assumptions_Asset level'!$A$15:$AE$81,'Assumptions_Asset level'!$C$7,0) -> 0 | CW86: 0 | CX86: 0 | CY86: 0 | CZ86: 0 | DA86: 0 | DB86: 0 | DC86: 0 | DD86: 0 | DE86: 0 | DF86: 0 | DG86: 0 | DH86: 0 | DI86: 0 | DJ86: 0 | DK86: 0 | DL86: 0
